Workbook

Sheet СПИСОК ЗАКАЗОВ
A1: СПИСОК ЗАКАЗОВ | B1: =SUM(A2:A500) -> 21 | C1: ДАТА заказа | D1: ФИО | E1: Город доставки | F1: ТЕЛЕФОН | G1: ЛОГИН | H1: СТАТУС заказа | I1: СУММА заказа | J1: ДАТА ОПЛАТЫ | K1: ОПЛАЧЕНО | L1: СПОСОБ ОПЛАТЫ | M1: № ПОСЫЛКИ | N1: ДАТА ПОСЫЛКИ | Q1: =IFERROR(0.98*MID(R1,SEARCH("++",R1)+2,99),0) -> 0 | R1: феррит | S1: 0 | T1: 1 | U1: 0 | V1: 0 | W1: 0 | X1: 0 | Y1: 0 | Z1: 0 | AA1: 0 | AB1: 0 | AC1: 4200 | AD1: 00:00:00 | AE1: 0 | AG1: 0
A2: =IF(LEN(B2)>0,1,0) -> 1 | B2: =IFERROR(HYPERLINK( SUBSTITUTE(INDEX(ЛИСТЫ, ROW()), "]", "]'") & "'!A1", INDEX(ЛИСТ.ИМЯ, ROW()) ),"") -> ТАРИФЫ ТК | C2: =IFERROR(INDIRECT("'"&B2&"'!B2"),"") -> 00:00:00 | D2: =IFERROR(INDIRECT("'"&$B2&"'!B3"),"") -> 0 | E2: 1575877 | F2: =IFERROR(INDIRECT("'"&$B2&"'!B4"),"") -> Аста | G2: =IFERROR(INDIRECT("'"&$B2&"'!K3"),"") -> Зона 2 | H2: =IFERROR(INDIRECT("'"&$B2&"'!C1"),"") -> 00:00:00 | I2: =IFERROR(INDIRECT("'"&$B2&"'!F18"),"") -> Усть | J2: =IFERROR(INDIRECT("'"&$B2&"'!G6"),"") -> 1903-10-31 | K2: =IFERROR(INDIRECT("'"&$B2&"'!I6"),"") -> 5.5 | L2: =IFERROR(INDIRECT("'"&$B2&"'!h6"),"") -> 0 | M2: =IFERROR(INDIRECT("'"&$B2&"'!E2"),"") -> 0 | N2: =IFERROR(IF(M2>0,INDIRECT("'"&$B2&"'!E1"),""),"") ->  | O2: =IFERROR(INDIRECT("'"&$B2&"'!E4"),"") -> Астана | P2: =IF(LEFT(O2,8)="оплачено",0,IF(LEFT(O2,8)="ОПЛАТИТЬ",(ПоискСКонца(O2,"= "))*1,"")) ->  | Q2: =IFERROR(0.98*MID(R2,SEARCH("++",R2)+2,99),0) -> 0 | R2: +Beeline+220819_3++0 | S2: 2019-08-22 | T2: СОЛОВЬЕВ ВИКТОР | U2: Бишкек | V2: 9-965-572-22-24 2-0--- ---- | W2: Логин | X2: ОТПРАВЛЕНО | Y2: 30000 | Z2: 43705 | AA2: 33200 | AB2: Beeline | AC2: 3893651 | AD2: 00:00:00 | AE2: ОПЛАТИТЬ= 1100 | AF2: 1100 | AG2: 0
A3: =IF(LEN(B3)>0,1,0) -> 1 | B3: +KASPI+ 9641++0 | C3: =IFERROR(INDIRECT("'"&B3&"'!B1"),"") -> 2020-08-16T18:08:28 | D3: =IFERROR(INDIRECT("'"&$B3&"'!B3"),"") -> КУЗНЕЦОВА ЛАРИСА | E3: =IFERROR(INDIRECT("'"&$B3&"'!B34"),"") -> ТАРАЗ | F3: =IFERROR(INDIRECT("'"&$B3&"'!B4"),"") -> 7-771-835-95-68 0---- ---- | G3: =IFERROR(INDIRECT("'"&$B3&"'!K3"),"") -> Логин | H3: =IFERROR(INDIRECT("'"&$B3&"'!C1"),"") -> ОТПРАВЛЕНО | I3: =IFERROR(INDIRECT("'"&$B3&"'!F24"),"") -> 3480 | J3: =IFERROR(INDIRECT("'"&$B3&"'!G6"),"") -> 2020-08-21 | K3: =IFERROR(INDIRECT("'"&$B3&"'!I6"),"") -> 4880 | L3: =IFERROR(INDIRECT("'"&$B3&"'!h6"),"") -> KASPI | M3: =IFERROR(INDIRECT("'"&$B3&"'!E2"),"") -> 3611555 | N3: =IFERROR(IF(M3>0,INDIRECT("'"&$B3&"'!E1"),""),"") -> 2020-08-18 | O3: ОПЛАТИТЬ= 1400 | P3: =IF(LEFT(O3,8)="оплачено",0,IF(LEFT(O3,8)="ОПЛАТИТЬ",(ПоискСКонца(O3,"= "))*1,"")) -> 1400 | Q3: =IFERROR((0.98*MID(R3,SEARCH("++",R3)+2,99)-AF3+AA3),0) -> 18839 | R3: 30120++20550 | S3: 43833 | T3: ГУЛЬЖАН УЗБЕКОВА | U3: Жетыгара | V3: 8-777-639-64-87 0---- ---- | W3: Логин | X3: ОТПРАВЛЕНО | Y3: 18800 | AA3: 0 | AB3: 0 | AC3: 3611221 | AD3: 2020-01-05 | AE3: ОПЛАТИТЬ= 1300 | AF3: 1300 | AG3: 3065
A4: =IF(LEN(B4)>0,1,0) -> 1 | B4: +KASPI+1200820_2++0 | C4: =IFERROR(INDIRECT("'"&B4&"'!B1"),"") -> 2020-08-12 | D4: =IFERROR(INDIRECT("'"&$B4&"'!B3"),"") -> АДИЛХАНОВ БАХТИАР | E4: =IFERROR(INDIRECT("'"&$B4&"'!B34"),"") -> Тараз | F4: 8-776-640-42-21 0---- ---- | G4: Логин | H4: ОТПРАВЛЕНО | I4: =IFERROR(INDIRECT("'"&$B4&"'!F24"),"") -> 18000 | J4: 2020-08-21 | K4: 19400 | L4: KASPI | M4: =IFERROR(INDIRECT("'"&$B4&"'!E2"),"") -> 3611551 | N4: =IFERROR(IF(M4>0,INDIRECT("'"&$B4&"'!E1"),""),"") -> 2020-08-17 | O4: ОПЛАТИТЬ= 1400 | P4: =IF(LEFT(O4,8)="оплачено",0,IF(LEFT(O4,8)="ОПЛАТИТЬ",(ПоискСКонца(O4,"= "))*1,"")) -> 1400 | Q4: =IFERROR((0.98*MID(R4,SEARCH("++",R4)+2,99)-AF4+AA4),0) -> 15121 | R4: 040120_2++16450 | S4: 2020-01-04 | T4: ВАСИЛИЙ ЛИНКОВ | U4: Астана | V4: 8-707-841-99-07 8-702-109-24-90 ---- | W4: Логин | X4: ОТПРАВЛЕНО | Y4: 15120 | AA4: 0 | AB4: 0 | AC4: 3611222 | AD4: 2020-01-05 | AE4: ОПЛАТИТЬ= 1000 | AF4: 1000 | AG4: 13831
A5: 1 | B5: 9639++11550 | C5: 2020-08-15T15:08:12 | D5: НУРЖАН ИСАБАЕВ | E5: КАРАГАНДА | F5: 7-700-404-04-50 0---- ---- | G5: Логин | H5: ОТПРАВЛЕНО | I5: 9900 | K5: 0 | L5: 0 | M5: 3611552 | N5: 2020-08-17 | O5: ОПЛАТИТЬ= 1400 | P5: =IF(LEFT(O5,8)="оплачено",0,IF(LEFT(O5,8)="ОПЛАТИТЬ",(ПоискСКонца(O5,"= "))*1,"")) -> 1400 | Q5: 18839 | R5: 040120_3++20550 | S5: 2020-01-04 | T5: ДАНИЯР ДЖАНБЕКОВ | U5: Каскелен | V5: 8-777-250-04-86 0---- ---- | W5: Логин | X5: ОТПРАВЛЕНО | Y5: 18800 | AA5: 0 | AB5: 0 | AC5: 3611223 | AD5: 2020-01-05 | AE5: ОПЛАТИТЬ= 1300 | AF5: 1300 | AG5: 2673
A6: 1 | B6: 9640++25950 | C6: 2020-08-16T18:08:49 | D6: ОСТАПЕНКО НИКОЛАЙ | E6: НУР-СУЛТАН | F6: 7-775-974-53-71 0---- ---- | G6: Логин | H6: ОТПРАВЛЕНО | I6: 24000 | K6: 0 | L6: 0 | M6: 3611553 | N6: 2020-08-17 | O6: ОПЛАТИТЬ= 1400 | P6: 1400 | Q6: 25754 | R6: 9114++27300 | S6: 2020-01-04T21:01:53 | T6: ЕВГЕНИЙ ПОДКОСОВ | U6: АЛМАТЫ | V6: 7-707-318-19-99 0---- ---- | W6: Логин | X6: ОТПРАВЛЕНО | Y6: 25760 | AA6: 0 | AB6: 0 | AC6: 3611224 | AD6: 2020-01-05 | AE6: ОПЛАТИТЬ= 1000 | AF6: 1000 | AG6: 7426
A7: 1 | B7: 170820++29000 | C7: 2020-08-17 | D7: РАКИШЕВ АБЗАЛ | E7: Кокшетау | F7: 8-701-105-64-80 0---- ---- | G7: Логин | H7: ОТПРАВЛЕНО | I7: 27000 | K7: 0 | L7: 0 | M7: 3611554 | N7: 2020-08-17 | O7: ОПЛАТИТЬ= 1400 | P7: 1400 | Q7: =IFERROR((0.98*MID(R7,SEARCH("++",R7)+2,99)-AF7+AA7),0) -> 15980 | R7: +KASPI+060120_1++0 | S7: 2020-01-06 | T7: ИЛДАНИЗ СУЛТАНОВ | U7: Актау | V7: 8-701-351-86-33 0---- ---- | W7: Логин | X7: ОТПРАВЛЕНО | Y7: 15580 | Z7: 43840 | AA7: 16680 | AB7: KASPI | AC7: 3611226 | AD7: 2020-01-08 | AE7: ОПЛАТИТЬ= 700 | AF7: 700 | AG7: 8943
A8: 1 | B8: 140820++29300 | C8: 2020-08-14 | D8: АБУЛКАСИМОВ БАУЫРЖАН | E8: Семей | F8: 8-702-673-12-82 0---- ---- | G8: Логин | H8: ОТПРАВЛЕНО | I8: 27300 | K8: 0 | L8: 0 | M8: 3611550 | N8: 2020-08-14 | O8: ОПЛАТИТЬ= 1400 | P8: 1400 | Q8: 6203 | R8: 070120_1++7350 | S8: 2020-01-07 | T8: ГАБИТ АБДИГАПАРОВ | U8: Кызылорда | V8: 8-777-562-66-99 0---- ---- | W8: Логин | X8: ОТПРАВЛЕНО | Y8: 6200 | AA8: 0 | AB8: 0 | AC8: 3611227 | AD8: 2020-01-08 | AE8: ОПЛАТИТЬ= 1000 | AF8: 1000 | AG8: 6444
A9: 1 | B9: +KASPI+ 9635++0 | C9: 2020-08-12T19:08:35 | D9: АРЦИБАШЕВА АЛЛА ЛЕОНИДОВНА | E9: Семей | F9: 8-778-929-83-33 ---- ---- | G9: Логин | H9: ОТПРАВЛЕНО | I9: =IFERROR(INDIRECT("'"&$B9&"'!F24"),"") -> 14600 | J9: 2020-08-21 | K9: 16000 | L9: KASPI | M9: 3611548 | N9: 2020-08-13 | O9: ОПЛАТИТЬ= 1400 | P9: 1400 | Q9: 26000 | R9: +KASPI+080120_1++0 | S9: 43838 | T9: БОЛАТ НАРБАЕВ | U9: Астана | V9: 7-707-988-41-48 0---- ---- | W9: Логин | X9: ОТПРАВЛЕНО | Y9: 26000 | Z9: 43840 | AA9: 27000 | AB9: KASPI | AC9: 3611228 | AD9: 2020-01-09 | AE9: ОПЛАТИТЬ= 1000 | AF9: 1000 | AG9: 7618
A10: 1 | B10: +KASPI+120820++0 | C10: 2020-08-12 | D10: ЁЛКИН АЛЕКСАНДР | E10: Алматы | F10: 8-701-072-23-33 0---- ---- | G10: Логин | H10: ОТПРАВЛЕНО | I10: 14600 | J10: 2020-08-21 | K10: 16000 | L10: KASPI | M10: 3611549 | N10: 2020-08-13 | O10: ОПЛАТИТЬ= 1400 | P10: =IF(LEFT(O10,8)="оплачено",0,IF(LEFT(O10,8)="ОПЛАТИТЬ",(ПоискСКонца(O10,"= "))*1,"")) -> 1400 | Q10: 8506 | R10: 090120_1++9700 | S10: 43839 | T10: СТАХАНОВА МАРИЯ | U10: Алматы | V10: 7-705-223-60-10 0---- ---- | W10: Логин | X10: ОТПРАВЛЕНО | Y10: 8480 | AA10: 0 | AB10: 0 | AC10: 3611229 | AD10: 2020-01-09 | AE10: ОПЛАТИТЬ= 1000 | AF10: 1000 | AG10: 13108
A11: 1 | B11: 9632++10650 | C11: 2020-08-09T18:08:34 | D11: АНАТОЛИ ЕЛИМГИРЕЙ | E11: Астана | F11: 7-707-695-04-76 0---- ---- | G11: Логин | H11: ОТПРАВЛЕНО | I11: 9000 | K11: 0 | L11: 0 | M11: 3611546 | N11: 2020-08-11 | O11: ОПЛАТИТЬ= 1400 | P11: 1400 | Q11: 4500 | R11: +Beeline+ 8957++0 | S11: 2019-11-04T14:11:51 | T11: ШАРКУНОВ АНДРЕЙ | U11: ШЫМКЕНТ | V11: 7-771-383-10-71 0---- ---- | W11: Логин | X11: ОТПРАВЛЕНО | Y11: 4800 | Z11: 43794 | AA11: 5800 | AB11: Beeline | AC11: 3611108 | AD11: 2019-11-05 | AE11: ОПЛАТИТЬ= 1300 | AF11: 1300 | AG11: 6734
A12: 1 | B12: +KASPI+ 9633++0 | C12: 2020-08-11T13:08:02 | D12: СКРЕБЦОВ МАКСИМ | E12: УСТЬ-КАМЕНОГОРСК | F12: 7-776-900-77-99 0---- ---- | G12: Логин | H12: ОТПРАВЛЕНО | I12: 5100 | J12: 2020-08-21 | K12: 6500 | L12: KASPI | M12: 3611547 | N12: 2020-08-11 | O12: =IFERROR(INDIRECT("'"&$B12&"'!E4"),"") -> ОПЛАТИТЬ= 1400 | P12: 1400 | Q12: 9137 | R12: 8962++10650 | S12: 2019-11-05T11:11:27 | T12: ТОЛЫБАЕВА ФЕРУЗА | U12: Шымкент | V12: 7-702-761-06-14 0---- ---- | W12: Логин | X12: ОТПРАВЛЕНО | Y12: 9400 | AA12: 0 | AB12: 0 | AC12: 3611109 | AD12: 2019-11-05 | AE12: ОПЛАТИТЬ= 1300 | AF12: 1300 | AG12: 11536
A13: 1 | B13: +СЧЁТ Альфа-Банк+Сч0608++0 | C13: 2020-08-06 | D13: ТОО «РОДАМИН» | E13: Алматы | F13: 8-701-517-14-04 0---- ---- | G13: Логин | H13: ОТПРАВЛЕНО | I13: 216000 | J13: 2020-08-21 | K13: 220400 | L13: СЧЁТ Альфа-Банк | M13: 3611544 | N13: 2020-08-10 | O13: ОПЛАТИТЬ= 3300 | P13: 3300 | Q13: 8106 | R13: 8963++9700 | S13: 2019-11-05T12:11:46 | T13: АБЗАЛБЕКОВ ЕРЖАН АГАЛКАУЛЫ | U13: БАЛХАШ | V13: 7-707-952-61-64 0---- ---- | W13: Логин | X13: ОТПРАВЛЕНО | Y13: 8200 | AA13: 0 | AB13: 0 | AC13: 3611110 | AD13: 2019-11-05 | AE13: ОПЛАТИТЬ= 1400 | AF13: 1400 | AG13: 25309
A14: 1 | B14: +СЧЁТ Альфа-Банк+Сч0908++0 | C14: 2020-08-09 | D14: ТОО ZZZ | E14: Шымкент | F14: 8-705-767-77-77 0---- ---- | G14: Логин | H14: ОТПРАВЛЕНО | I14: 277290 | J14: 2020-08-21 | K14: 286720 | L14: СЧЁТ Альфа-Банк | M14: 3611545 | N14: 2020-08-10 | O14: ОПЛАТИТЬ= 7700 | P14: 7700 | Q14: 75777 | R14: 8965++78650 | S14: 2019-11-05T14:11:02 | T14: АРМАН ОСПАНОВ | U14: Астана | V14: 7-705-297-10-68 0---- ---- | W14: Логин | X14: ОТПРАВЛЕНО | Y14: 75600 | AA14: 0 | AB14: 0 | AC14: 3611111 | AD14: 2019-11-05 | AE14: ОПЛАТИТЬ= 1300 | AF14: 1300 | AG14: 24066
A15: 1 | B15: +СЧЁТ Альфа-Банк+Сч0608_1++0 | C15: 2020-08-06 | D15: ИП ОЛИМП СТАХАНОВА МАРИЯ | E15: Алматы | F15: 7-705-223-60-10 0---- ---- | G15: Логин | H15: ОТПРАВЛЕНО | I15: 7171.2 | J15: 2020-08-21 | K15: 8592 | L15: СЧЁТ Альфа-Банк | M15: 3611543 | N15: 2020-08-07 | O15: ОПЛАТИТЬ= 1400 | P15: 1400 | Q15: 19235 | R15: 051119_2++20750 | S15: 2019-11-05 | T15: МАКСАТ АХМЕТОВ | U15: Алматы | V15: 8-701-780-77-75 0---- ---- | W15: Логин | X15: ОТПРАВЛЕНО | Y15: 18800 | AA15: 0 | AB15: 0 | AC15: 3611112 | AD15: 2019-11-05 | AE15: ОПЛАТИТЬ= 1100 | AF15: 1100 | AG15: 14909
A16: 1 | B16: +KASPI+ 9630++0 | C16: 2020-08-06T07:08:52 | D16: ШЕЛОМЕНЦЕВ АНТОН | E16: АЛМАТЫ | F16: 8-707-998-85-08 8-777-602-92-11 ---- | G16: Логин | H16: ОТПРАВЛЕНО | I16: 4200 | J16: 2020-08-21 | K16: 5600 | L16: KASPI | M16: 3611541 | N16: 2020-08-06 | O16: ОПЛАТИТЬ= 1400 | P16: 1400 | Q16: 16393 | R16: 051119_3++17850 | S16: 2019-11-05 | T16: ЕВГЕНИЙ КИЛЬТЕР | U16: Усть-каменогорск | V16: 8-777-995-95-94 0---- ---- | W16: Логин | X16: ОТПРАВЛЕНО | Y16: 16400 | AA16: 0 | AB16: 0 | AC16: 3611113 | AD16: 2019-11-06 | AE16: ОПЛАТИТЬ= 1100 | AF16: 1100 | AG16: 7522
A17: 1 | B17: + | C17: дата заказа | D17: ФИО | F17: 0---- ---- ---- | G17: Логин | H17: ОПЛОЧЕНО | I17: 0 | K17: 0 | L17: 0 | M17: 0 | O17: ОПЛАТИТЬ= 0 | P17: 0 | Q17: 9137 | R17: 61119++10650 | S17: 2019-11-06 | T17: ДЖАФАРОВ МАХИР | U17: Атырау | V17: 8-778-222-02-03 0---- ---- | W17: Логин | X17: ОТПРАВЛЕНО | Y17: 9400 | AA17: 0 | AB17: 0 | AC17: 3611114 | AD17: 2019-11-06 | AE17: ОПЛАТИТЬ= 1300 | AF17: 1300 | AG17: 6440
A18: 1 | B18: +СЧЁТ Альфа-Банк+Сч1708++0 | C18: 2020-08-17 | D18: РЕГРО «ХРИСТИАНСКИЙ ЦЕНТР СВИДЕТЕЛЕЙ ИЕГОВЫ» | E18: Алматы | F18: 7-771-790-09-84 0---- ---- | G18: Логин | H18: ОПЛОЧЕНО | I18: 9950 | J18: 2020-08-21 | K18: 11350 | L18: СЧЁТ Альфа-Банк | M18: 0 | O18: ОПЛАТИТЬ= 1400 | P18: 1400 | Q18: 19828 | R18: 061119_2++23600 | S18: 2019-11-06 | T18: МАРИНА НИКОЛЕНКО | U18: Шымкент | V18: 8-702-415-42-29 0---- ---- | W18: Логин | X18: ОТПРАВЛЕНО | Y18: 21600 | AA18: 0 | AB18: 0 | AC18: 3611115 | AD18: 2019-11-06 | AE18: ОПЛАТИТЬ= 3300 | AF18: 3300 | AG18: 3845
A19: 1 | B19: 170820_2 | C19: 2020-08-17 | D19: ФИО | E19: Алматы | F19: 0---- ---- ---- | G19: Логин | H19: ОПЛОЧЕНО | I19: 7900 | K19: 0 | L19: 0 | M19: 0 | O19: ОПЛАТИТЬ= 0 | P19: 0 | Q19: 37148 | R19: +СЧЁТ Альфа-Банк+Сч0511++0 | S19: 2019-11-05 | T19: СТАХАНОВА МАРИЯ | U19: Алматы | V19: 7-705-223-60-10 0---- ---- | W19: Логин | X19: ОТПРАВЛЕНО | Y19: 37440 | Z19: 43794 | AA19: 38448 | AB19: СЧЁТ Альфа-Банк | AC19: 3611116 | AD19: 2019-11-07 | AE19: ОПЛАТИТЬ= 1300 | AF19: 1300 | AG19: 8885
A20: 1 | B20: +KASPI+ 9651++0 | C20: 2020-08-19T13:08:48 | D20: САВОРОВСКИЙ ДМИТРИЙ | E20: ПАВЛОДАР | F20: 7-778-500-02-25 0---- ---- | G20: Логин | H20: ОПЛОЧЕНО | I20: 1950 | J20: 2020-08-21 | K20: 3350 | L20: KASPI | M20: 0 | O20: ОПЛАТИТЬ= 1400 | P20: 1400 | Q20: 4640 | R20: +KASPI+71119++0 | S20: 2019-11-06 | T20: МАКСИМ НИКОЛАЕВ | U20: Астана | V20: 8-701-470-10-79 0---- ---- | W20: Логин | X20: ОТПРАВЛЕНО | Y20: 4940 | Z20: 43794 | AA20: 5940 | AB20: KASPI | AC20: 3611117 | AD20: 2019-11-07 | AE20: ОПЛАТИТЬ= 1300 | AF20: 1300 | AG20: 3114
A21: 1 | B21: Лист10 | C21: дата заказа | D21: ФИО | F21: 0---- ---- ---- | G21: Логин | H21: ОПЛОЧЕНО | I21: 0 | K21: 0 | L21: 0 | M21: 0 | O21: ОПЛАТИТЬ= 0 | P21: 0 | Q21: 12698 | R21: 8967++15100 | S21: 2019-11-06T22:11:51 | T21: ДАВЫДОВ ТОМ АЛЕКСЕЕВИЧ | U21: Шымкент | V21: 8-700-664-95-45 8-707-279-75-98 ---- | W21: Логин | X21: ОТПРАВЛЕНО | Y21: 13800 | AA21: 0 | AB21: 0 | AC21: 3611118 | AD21: 2019-11-07 | AE21: ОПЛАТИТЬ= 2100 | AF21: 2100 | AG21: 3065
A22: 1 | B22: Образец | C22: дата заказа | D22: ФИО | F22: 0---- ---- ---- | G22: Логин | H22: ОПЛОЧЕНО | I22: 0 | K22: 0 | L22: 0 | M22: 0 | O22: ОПЛАТИТЬ= 0 | P22: 0 | Q22: -205 | R22: +KASPI+3383427++0 | S22: 2019-11-08 | T22: ЖАНДАУЛЕТ ТАЖИБЕК | U22: Туркестан | V22: 7-700-277-78-02 0---- ---- | W22: Логин | X22: ОТПРАВЛЕНО | Y22: 520 | Z22: 43794 | AA22: 1820 | AB22: KASPI | AC22: 3611101 | AD22: 2019-11-08 | AE22: ОПЛАТИТЬ= 2025 | AF22: 2025 | AG22: 256
A23: =IF(LEN(B23)>0,1,0) -> 0 | C23: =IFERROR(INDIRECT("'"&B23&"'!B1"),"") ->  | D23: =IFERROR(INDIRECT("'"&$B23&"'!B3"),"") ->  | E23: =IFERROR(INDIRECT("'"&$B23&"'!B34"),"") ->  | F23: =IFERROR(INDIRECT("'"&$B23&"'!B4"),"") ->  | G23: =IFERROR(INDIRECT("'"&$B23&"'!K3"),"") ->  | H23: =IFERROR(INDIRECT("'"&$B23&"'!C1"),"") ->  | I23: =IFERROR(INDIRECT("'"&$B23&"'!F24"),"") ->  | J23: =IFERROR(INDIRECT("'"&$B23&"'!G6"),"") ->  | K23: =IFERROR(INDIRECT("'"&$B23&"'!I6"),"") ->  | L23: =IFERROR(INDIRECT("'"&$B23&"'!h6"),"") ->  | M23: =IFERROR(INDIRECT("'"&$B23&"'!E2"),"") ->  | N23: =IFERROR(IF(M23>0,INDIRECT("'"&$B23&"'!E1"),""),"") ->  | O23: =IFERROR(INDIRECT("'"&$B23&"'!E4"),"") ->  | P23: =IF(LEFT(O23,8)="оплачено",0,IF(LEFT(O23,8)="ОПЛАТИТЬ",(ПоискСКонца(O23,"= "))*1,"")) ->  | Q23: =IFERROR((0.98*MID(R23,SEARCH("++",R23)+2,99)-AF23+AA23),0) -> 7930 | R23: +KASPI+81119++0 | S23: 2019-11-08 | T23: СМАГУЛОВ ДЕНИС | U23: Астана | V23: 8-700-700-74-74 0---- ---- | W23: Логин | X23: ОТПРАВЛЕНО | Y23: 9330 | Z23: 43794 | AA23: 10030 | AB23: KASPI | AC23: 3611119 | AD23: 2019-11-08 | AE23: ОПЛАТИТЬ= 2100 | AF23: 2100 | AG23: 15019
A24: 0 | Q24: 22300 | R24: +KASPI+ 8970++0 | S24: 2019-11-07T21:11:25 | T24: МУСИРЕПОВ МИРАС | U24: АСТАНА | V24: 7-747-803-04-29 0---- ---- | W24: Логин | X24: ОТПРАВЛЕНО | Y24: 22000 | Z24: 43794 | AA24: 23000 | AB24: KASPI | AC24: 3611102 | AD24: 2019-11-09 | AE24: ОПЛАТИТЬ= 700 | AF24: 700 | AG24: 8014
A25: 0 | Q25: 4837 | R25: 101119++5650 | S25: 2019-11-10 | T25: ВАСИЛЬЕВ АЛЕКСАНДР | U25: Балхаш | V25: 8-777-072-90-96 0---- ---- | W25: Логин | X25: ОТПРАВЛЕНО | Y25: 4200 | AA25: 0 | AB25: 0 | AC25: 3611120 | AD25: 2019-11-11 | AE25: ОПЛАТИТЬ= 700 | AF25: 700 | AG25: 4531
A26: =IF(LEN(B26)>0,1,0) -> 0 | C26: =IFERROR(INDIRECT("'"&B26&"'!B1"),"") ->  | D26: =IFERROR(INDIRECT("'"&$B26&"'!B3"),"") ->  | E26: =IFERROR(INDIRECT("'"&$B26&"'!B34"),"") ->  | F26: =IFERROR(INDIRECT("'"&$B26&"'!B4"),"") ->  | G26: =IFERROR(INDIRECT("'"&$B26&"'!K3"),"") ->  | H26: =IFERROR(INDIRECT("'"&$B26&"'!C1"),"") ->  | I26: =IFERROR(INDIRECT("'"&$B26&"'!F24"),"") ->  | J26: =IFERROR(INDIRECT("'"&$B26&"'!G6"),"") ->  | K26: =IFERROR(INDIRECT("'"&$B26&"'!I6"),"") ->  | L26: =IFERROR(INDIRECT("'"&$B26&"'!h6"),"") ->  | M26: =IFERROR(INDIRECT("'"&$B26&"'!E2"),"") ->  | N26: =IFERROR(IF(M26>0,INDIRECT("'"&$B26&"'!E1"),""),"") ->  | O26: =IFERROR(INDIRECT("'"&$B26&"'!E4"),"") ->  | P26: =IF(LEFT(O26,8)="оплачено",0,IF(LEFT(O26,8)="ОПЛАТИТЬ",(ПоискСКонца(O26,"= "))*1,"")) ->  | Q26: =IFERROR((0.98*MID(R26,SEARCH("++",R26)+2,99)-AF26+AA26),0) -> 26208 | R26: 8979++29600 | S26: 2019-11-11T21:11:47 | T26: ВИКТОРИЯ КОЛПАШНИКОВА | U26: ПЕТРОПАВЛОВСК | V26: 7-705-101-86-45 0---- ---- | W26: Логин | X26: ОТПРАВЛЕНО | Y26: 28000 | AA26: 0 | AB26: 0 | AC26: 3611121 | AD26: 2019-11-12 | AE26: ОПЛАТИТЬ= 2800 | AF26: 2800 | AG26: 7522
A27: 0 | Q27: 4431 | R27: 8988++5950 | S27: 2019-11-12T13:11:58 | T27: СЕВАСТЬЯНОВ АЛЕКСЕЙ | U27: АТЫРАУ | V27: 7-777-960-20-60 0---- ---- | W27: Логин | X27: ОТПРАВЛЕНО | Y27: 4800 | AA27: 0 | AB27: 0 | AC27: 3611122 | AD27: 2019-11-12 | AE27: ОПЛАТИТЬ= 1400 | AF27: 1400 | AG27: 13500
A28: 0 | Q28: 7520 | R28: 8989++9000 | S28: 2019-11-12T14:11:35 | T28: ШЕРСТОВ ДМИТРИЙ | U28: ПЕТРОПАВЛОВСК | V28: 7-705-309-00-80 0---- ---- | W28: Логин | X28: ОТПРАВЛЕНО | Y28: 7800 | AA28: 0 | AB28: 0 | AC28: 3611123 | AD28: 2019-11-12 | AE28: ОПЛАТИТЬ= 1300 | AF28: 1300 | AG28: 14676
A29: 0 | Q29: 11000 | R29: +KASPI+ 8982++0 | S29: 2019-11-11T21:11:06 | T29: КОХ ДМИТРИЙ | U29: ТЕМИРТАУ | V29: 7-747-376-19-01 0---- ---- | W29: Логин | X29: ОТПРАВЛЕНО | Y29: 11000 | Z29: 43794 | AA29: 12300 | AB29: KASPI | AC29: 3611124 | AD29: 2019-11-12 | AE29: ОПЛАТИТЬ= 1300 | AF29: 1300 | AG29: 9041
A30: 0 | M30: =IFERROR(INDIRECT("'"&$B30&"'!E2"),"") ->  | Q30: 9800 | R30: +KASPI+ 8980++0 | S30: 2019-11-11T21:11:38 | T30: ЖОЛАКОВ ЧИНГИС | U30: ПАВЛОДАР | V30: 7-707-863-02-60 8-747-198-32-19 0---- | W30: Логин | X30: ОТПРАВЛЕНО | Y30: 13000 | Z30: 43794 | AA30: 14000 | AB30: KASPI | AC30: 3611125 | AD30: 2019-11-13 | AE30: ОПЛАТИТЬ= 4200 | AF30: 4200 | AG30: 34521
A31: 0 | Q31: 12865 | R31: 131119++14250 | S31: 2019-11-14 | T31: ГУЛЬНУР РАХАТКЫЗЫ | U31: Шымкент | V31: 8-775-330-02-36 0---- ---- | W31: Логин | X31: ОТПРАВЛЕНО | Y31: 12960 | AA31: 0 | AB31: 0 | AC31: 3611126 | AD31: 2019-11-14 | AE31: ОПЛАТИТЬ= 1100 | AF31: 1100 | AG31: 13104
A32: 0 | Q32: 22529 | R32: 131119_2++26050 | S32: 2019-11-14 | T32: АШГАЛИЕВА ОКСАНА РУСТАМ УСМАНОВ | U32: Атырау | V32: 8-701-766-92-54 0---- ---- | W32: Логин | X32: ОТПРАВЛЕНО | Y32: 24000 | AA32: 0 | AB32: 0 | AC32: 3611127 | AD32: 2019-11-14 | AE32: ОПЛАТИТЬ= 3000 | AF32: 3000 | AG32: 7522
A33: 0 | Q33: 1400 | R33: +KASPI+ 8993++0 | S33: 2019-11-14T13:11:21 | T33: КУЛЬЖАНОВ ГЫЛЫМ | U33: НУР-СУЛТАН | V33: 7-701-500-34-54 0---- ---- | W33: Логин | X33: ОТПРАВЛЕНО | Y33: 1500 | Z33: 43794 | AA33: 2500 | AB33: KASPI | AC33: 3611128 | AD33: 2019-11-14 | AE33: ОПЛАТИТЬ= 1100 | AF33: 1100 | AG33: 3943
A34: 0 | Q34: 9037 | R34: 151119++10650 | S34: 2019-11-15 | T34: РОМАН ЛАРИЧЕВ | U34: Актау | V34: 8-775-233-99-99 0---- ---- | W34: Логин | X34: ОТПРАВЛЕНО | Y34: 9400 | AA34: 0 | AB34: 0 | AC34: 3611130 | AD34: 2019-11-15 | AE34: ОПЛАТИТЬ= 1400 | AF34: 1400 | AG34: 17812
A35: 0 | Q35: 10115 | R35: 8994++11750 | S35: 2019-11-14T16:11:26 | T35: НАТАЛЬЯ ЛАРИОНОВА | U35: Усть-Каменогорск | V35: 7-705-500-76-80 0---- ---- | W35: Логин | X35: ОТПРАВЛЕНО | Y35: 10500 | AA35: 0 | AB35: 0 | AC35: 3611131 | AD35: 2019-11-15 | AE35: ОПЛАТИТЬ= 1400 | AF35: 1400 | AG35: 6342
A36: 0 | Q36: 6443 | R36: 3395432++9100 | S36: 2019-11-14 | T36: АМИРХАН МУСАБЕКОВ МУСАБЕКОВ | U36: Астана | V36: 7-707-741-70-20 0---- ---- | W36: Логин | X36: ОТПРАВЛЕНО | Y36: 7900 | AA36: 0 | AB36: 0 | AC36: 3611132 | AD36: 2019-11-15 | AE36: ОПЛАТИТЬ= 2475 | AF36: 2475 | AG36: 7032
A37: 0 | Q37: -230 | R37: +KASPI+ 8996++0 | S37: 43783.79992 | T37: ЛИ ЮЛИЯ | U37: КАРАГАНДА | V37: 7-701-530-61-01 0---- ---- | W37: Логин | X37: ОТПРАВЛЕНО | Y37: 1920 | Z37: 43794 | AA37: 2920 | AB37: KASPI | AC37: 3611133 | AD37: 2019-11-15 | AE37: ОПЛАТИТЬ= 3150 | AF37: 3150 | AG37: 628
A38: 0 | Q38: 14623 | R38: 9001++16350 | S38: 2019-11-15T15:11:59 | T38: ИВАНОВ СЕРГЕЙ МИХАЙЛОВИЧ | U38: УСТЬ-КАМЕНОГОРСК | V38: 8-705-527-45-83 8-705-527-45-83 ---- | W38: Логин | X38: ОТПРАВЛЕНО | Y38: 15000 | AA38: 0 | AB38: 0 | AC38: 3611134 | AD38: 2019-11-15 | AE38: ОПЛАТИТЬ= 1400 | AF38: 1400 | AG38: 8014
A39: 0 | Q39: 2075 | R39: +KASPI+ 8997++0 | S39: 43783.88292 | T39: ЛАЗАРЕВ ГРИГОРИЙ | U39: ТЕМИРТАУ | V39: 7-778-009-70-65 0---- ---- | W39: Логин | X39: ОТПРАВЛЕНО | Y39: 2800 | Z39: 43794 | AA39: 4100 | AB39: KASPI | AC39: 3611135 | AD39: 2019-11-16 | AE39: ОПЛАТИТЬ= 2025 | AF39: 2025 | AG39: 15021
A40: 0 | Q40: 18055 | R40: 161119++19750 | S40: 2019-11-16 | T40: АЛДОНГАРОВ Б.К. | U40: Актау | V40: 8-777-057-68-86 0---- ---- | W40: Логин | X40: ОТПРАВЛЕНО | Y40: 17860 | AA40: 0 | AB40: 0 | AC40: 3611137 | AD40: 2019-11-16 | AE40: ОПЛАТИТЬ= 1300 | AF40: 1300 | AG40: 18008
A41: 0 | Q41: 21044 | R41: 161119_3++22800 | S41: 2019-11-16 | T41: МЕРУЕРТ БАЙГУНАКОВА | U41: УСТЬ-КАМЕНОГОРСК | V41: 7-775-903-80-99 0---- ---- | W41: Логин | X41: ОТПРАВЛЕНО | Y41: 21340 | AA41: 0 | AB41: 0 | AC41: 3611138 | AD41: 2019-11-16 | AE41: ОПЛАТИТЬ= 1300 | AF41: 1300 | AG41: 7522
A42: 0 | Q42: 4531 | R42: 9005++5950 | S42: 2019-11-16T12:11:39 | T42: КУЗНЕЦОВА НАТАЛИ | U42: Атырау | V42: 7-701-139-27-80 0---- ---- | W42: Логин | X42: ОТПРАВЛЕНО | Y42: 4800 | AA42: 0 | AB42: 0 | AC42: 3611139 | AD42: 2019-11-16 | AE42: ОПЛАТИТЬ= 1300 | AF42: 1300 | AG42: 7522
A43: 0 | Q43: 9337 | R43: 9002++10650 | S43: 2019-11-15T18:11:36 | T43: ЧИНГИЗ СЕРАЛИЕВ | U43: КЫЗЫЛОРДА | V43: 7-702-231-66-66 0---- ---- | W43: Логин | X43: ОТПРАВЛЕНО | Y43: 9400 | AA43: 0 | AB43: 0 | AC43: 3611140 | AD43: 2019-11-16 | AE43: ОПЛАТИТЬ= 1100 | AF43: 1100 | AG43: 7518
A44: 0 | Q44: 37702 | R44: 161119_4++39900 | S44: 2019-11-16 | T44: ТУЛЕГОНОВА КУЛЬПАШ | U44: Актау | V44: 8-701-413-30-30 ---- ---- | W44: Логин | X44: ОТПРАВЛЕНО | Y44: 37600 | AA44: 0 | AB44: 0 | AC44: 3611103 | AD44: 2019-11-18 | AE44: ОПЛАТИТЬ= 1400 | AF44: 1400 | AG44: 4533
A45: 0 | Q45: 16808 | R45: 9007++19600 | S45: 2019-11-17T11:11:07 | T45: ЛОСЕВ ВИКТОР | U45: КАРАГАНДА | V45: 7-708-330-70-32 0---- ---- | W45: Логин | X45: ОТПРАВЛЕНО | Y45: 18200 | AA45: 0 | AB45: 0 | AC45: 3611104 | AD45: 2019-11-18 | AE45: ОПЛАТИТЬ= 2400 | AF45: 2400 | AG45: 29131
A46: 0 | Q46: 21930 | R46: 9008++23500 | S46: 2019-11-17T14:11:50 | T46: КЕНЖЕБАЕВ АЗАТ | U46: НУР-СУЛТАН | V46: 7-707-346-02-60 0---- ---- | W46: Логин | X46: ОТПРАВЛЕНО | Y46: 22000 | AA46: 0 | AB46: 0 | AC46: 3611105 | AD46: 2019-11-18 | AE46: ОПЛАТИТЬ= 1100 | AF46: 1100 | AG46: 25995
A47: 0 | Q47: 7618 | R47: 181119++9100 | S47: 2019-11-18 | T47: АЗАМАТ КАПТАГУЛОВ | U47: Караганда | V47: 8-771-180-64-26 0---- ---- | W47: Логин | X47: ОТПРАВЛЕНО | Y47: 8200 | AA47: 0 | AB47: 0 | AC47: 3611106 | AD47: 2019-11-18 | AE47: ОПЛАТИТЬ= 1300 | AF47: 1300 | AG47: 7522
A48: 0 | Q48: 2500 | R48: +KASPI+ 9013++0 | S48: 2019-11-19T16:11:05 | T48: ЕРЛАН ТАГАЕВ | U48: ТАРАЗ | V48: 7-701-300-02-76 8-726-245-29-00 0---- | W48: Логин | X48: ОТПРАВЛЕНО | Y48: 2600 | Z48: 43794 | AA48: 3600 | AB48: KASPI | AC48: 3611144 | AD48: 2019-11-19 | AE48: ОПЛАТИТЬ= 1100 | AF48: 1100 | AG48: 37706
A49: 0 | Q49: 20975 | R49: +СЧЁТ Альфа-Банк+Сч1511++0 | S49: 2019-11-15 | T49: МАЛИК ВЛАНТИНА | U49: Алматы | V49: 8-701-690-39-00 0---- ---- | W49: Логин | X49: ОТПРАВЛЕНО | Y49: 22000 | Z49: 43794 | AA49: 23000 | AB49: СЧЁТ Альфа-Банк | AC49: 3611143 | AD49: 2019-11-19 | AE49: ОПЛАТИТЬ= 2025 | AF49: 2025 | AG49: 5707
A50: 0 | Q50: 27908 | R50: 9010++29600 | S50: 2019-11-18T21:11:36 | T50: ПОДКОСОВ ЕВГЕНИЙ | U50: АЛМАТЫ | V50: 7-707-318-19-99 0---- ---- | W50: Логин | X50: ОТПРАВЛЕНО | Y50: 28000 | AA50: 0 | AB50: 0 | AC50: 3611142 | AD50: 2019-11-19 | AE50: ОПЛАТИТЬ= 1100 | AF50: 1100 | AG50: 21193
A51: 0 | Q51: 12698 | R51: 201119++15100 | S51: 2019-11-20 | T51: ТОЛМАШЕВ ДАНИЯР | U51: караганда | V51: 8-702-645-88-24 0---- ---- | W51: Логин | X51: ОТПРАВЛЕНО | Y51: 13800 | AA51: 0 | AB51: 0 | AC51: 3611145 | AD51: 2019-11-20 | AE51: ОПЛАТИТЬ= 2100 | AF51: 2100 | AG51: 7083
A52: 0 | Q52: 6276 | R52: 9017++8700 | S52: 2019-11-20T16:11:01 | T52: ГРИГОРЯН ЛЕВОН | U52: АКТОБЕ | V52: 7-701-270-89-86 8-708-495-76-44 0---- | W52: Логин | X52: ОТПРАВЛЕНО | Y52: 7500 | AA52: 0 | AB52: 0 | AC52: 3611146 | AD52: 2019-11-20 | AE52: ОПЛАТИТЬ= 2250 | AF52: 2250 | AG52: 13012
A53: 0 | Q53: 10900 | R53: +KASPI+211119++0 | S53: 43790 | T53: СТАХАНОВА МАРИЯ | U53: Алматы | V53: 7-705-223-60-10 0---- ---- | W53: Логин | X53: ОТПРАВЛЕНО | Y53: 10600 | Z53: 43794 | AA53: 11600 | AB53: KASPI | AC53: 3611150 | AD53: 2019-11-21 | AE53: ОПЛАТИТЬ= 700 | AF53: 700 | AG53: 0
A54: 0 | Q54: 22379 | R54: 9018++23550 | S54: 2019-11-21T11:11:01 | T54: ДУПЛИНСКИЙ СЕРГЕЙ | U54: ТАЛДЫКОРГАН | V54: 7-705-954-21-44 0---- ---- | W54: Логин | X54: ОТПРАВЛЕНО | Y54: 22068 | AA54: 0 | AB54: 0 | AC54: 3611147 | AD54: 2019-11-21 | AE54: ОПЛАТИТЬ= 700 | AF54: 700 | AG54: 17322
A55: =IF(LEN(B55)>0,1,0) -> 0 | C55: =IFERROR(INDIRECT("'"&B55&"'!B1"),"") ->  | D55: =IFERROR(INDIRECT("'"&$B55&"'!B3"),"") ->  | E55: =IFERROR(INDIRECT("'"&$B55&"'!B34"),"") ->  | F55: =IFERROR(INDIRECT("'"&$B55&"'!B4"),"") ->  | G55: =IFERROR(INDIRECT("'"&$B55&"'!K3"),"") ->  | H55: =IFERROR(INDIRECT("'"&$B55&"'!C1"),"") ->  | I55: =IFERROR(INDIRECT("'"&$B55&"'!F24"),"") ->  | J55: =IFERROR(INDIRECT("'"&$B55&"'!G6"),"") ->  | K55: =IFERROR(INDIRECT("'"&$B55&"'!I6"),"") ->  | L55: =IFERROR(INDIRECT("'"&$B55&"'!h6"),"") ->  | M55: =IFERROR(INDIRECT("'"&$B55&"'!E2"),"") ->  | N55: =IFERROR(IF(M55>0,INDIRECT("'"&$B55&"'!E1"),""),"") ->  | O55: =IFERROR(INDIRECT("'"&$B55&"'!E4"),"") ->  | P55: =IF(LEFT(O55,8)="оплачено",0,IF(LEFT(O55,8)="ОПЛАТИТЬ",(ПоискСКонца(O55,"= "))*1,"")) ->  | Q55: =IFERROR((0.98*MID(R55,SEARCH("++",R55)+2,99)-AF55+AA55),0) -> 43192 | R55: 211119_2++45400 | S55: 2019-11-21 | T55: БАГЛАН СУЕНДИКОВ | U55: Шымкент | V55: 8-777-604-78-43 8-701-355-19-58 ---- | W55: Логин | X55: ОТПРАВЛЕНО | Y55: 43200 | AA55: 0 | AB55: 0 | AC55: 3611148 | AD55: 2019-11-21 | AE55: ОПЛАТИТЬ= 1300 | AF55: 1300 | AG55: -1200
A56: =IF(LEN(B56)>0,1,0) -> 0 | C56: =IFERROR(INDIRECT("'"&B56&"'!B1"),"") ->  | D56: =IFERROR(INDIRECT("'"&$B56&"'!B3"),"") ->  | E56: =IFERROR(INDIRECT("'"&$B56&"'!B34"),"") ->  | F56: =IFERROR(INDIRECT("'"&$B56&"'!B4"),"") ->  | G56: =IFERROR(INDIRECT("'"&$B56&"'!K3"),"") ->  | H56: =IFERROR(INDIRECT("'"&$B56&"'!C1"),"") ->  | I56: =IFERROR(INDIRECT("'"&$B56&"'!F24"),"") ->  | J56: =IFERROR(INDIRECT("'"&$B56&"'!G6"),"") ->  | K56: =IFERROR(INDIRECT("'"&$B56&"'!I6"),"") ->  | L56: =IFERROR(INDIRECT("'"&$B56&"'!h6"),"") ->  | M56: =IFERROR(INDIRECT("'"&$B56&"'!E2"),"") ->  | N56: =IFERROR(IF(M56>0,INDIRECT("'"&$B56&"'!E1"),""),"") ->  | O56: =IFERROR(INDIRECT("'"&$B56&"'!E4"),"") ->  | P56: =IF(LEFT(O56,8)="оплачено",0,IF(LEFT(O56,8)="ОПЛАТИТЬ",(ПоискСКонца(O56,"= "))*1,"")) ->  | Q56: =IFERROR((0.98*MID(R56,SEARCH("++",R56)+2,99)-AF56+AA56),0) -> 9333 | R56: 211119_3++10850 | S56: 2019-11-21 | T56: ВЛАДИМИР КУЗНЕЦОВ | U56: Усть-Каменогорск | V56: 8-705-653-51-00 0---- ---- | W56: Логин | X56: ОТПРАВЛЕНО | Y56: 9600 | AA56: 0 | AB56: 0 | AC56: 3611149 | AD56: 2019-11-21 | AE56: ОПЛАТИТЬ= 1300 | AF56: 1300 | AG56: -1200
A57: 0 | Q57: 3700 | R57: +СЧЁТ Альфа-Банк+Сч2111++0 | S57: 2019-11-21 | T57: РЕГРО «ХРИСТИАНСКИЙ ЦЕНТР СВИДЕТЕЛЕЙ ИЕГОВЫ» | U57: Алматы | V57: 7-771-790-09-84 0---- ---- | W57: Логин | X57: ОТПРАВЛЕНО | Y57: 3800 | Z57: 43794 | AA57: 4800 | AB57: СЧЁТ Альфа-Банк | AC57: 3611151 | AD57: 2019-11-22 | AE57: ОПЛАТИТЬ= 1100 | AF57: 1100 | AG57: 7224
A58: =IF(LEN(B58)>0,1,0) -> 0 | Q58: 14511 | R58: 211119_3++16950 | S58: 2019-11-21 | T58: ФЕДОРОВ АНДРЕЙ | U58: Актобе | V58: 8-701-566-04-90 0---- ---- | W58: Логин | X58: ОТПРАВЛЕНО | Y58: 15600 | AA58: 0 | AB58: 0 | AC58: 3611152 | AD58: 2019-11-22 | AE58: ОПЛАТИТЬ= 2100 | AF58: 2100 | AG58: 16832
A59: 0 | Q59: 15831 | R59: 221119++18450 | S59: 2019-11-22 | T59: ГУЛЬНУР РАХАТКЫЗЫ | U59: Шымкент | V59: 8-775-330-02-36 0---- ---- | W59: Логин | X59: ОТПРАВЛЕНО | Y59: 16740 | AA59: 0 | AB59: 0 | AC59: 3611153 | AD59: 2019-11-22 | AE59: ОПЛАТИТЬ= 2250 | AF59: 2250 | AG59: 10219
A60: 0 | Q60: 2895 | R60: 9019++5250 | S60: 43791.42464 | T60: КИМ АНТОН | U60: НУР-СУЛТАН | V60: 7-701-727-73-53 0---- ---- | W60: Логин | X60: ОТПРАВЛЕНО | Y60: 4400 | AA60: 0 | AB60: 0 | AC60: 3611154 | AD60: 2019-11-22 | AE60: ОПЛАТИТЬ= 2250 | AF60: 2250 | AG60: -1200
A61: 0 | Q61: 3512 | R61: 9022++5650 | S61: 2019-11-22T14:11:56 | T61: КОЖАН РУСЛАН | U61: АКТОБЕ | V61: 7-708-828-49-63 0---- ---- | W61: Логин | X61: ОТПРАВЛЕНО | Y61: 4800 | AA61: 0 | AB61: 0 | AC61: 3611155 | AD61: 2019-11-22 | AE61: ОПЛАТИТЬ= 2025 | AF61: 2025 | AG61: -1100
A62: 0 | Q62: 3806 | R62: 231119++5950 | S62: 2019-11-23 | T62: АЛЕКСАНДР МУХИН | U62: Караганда | V62: 8-700-328-98-34 0---- ---- | W62: Логин | X62: ОТПРАВЛЕНО | Y62: 4800 | AA62: 0 | AB62: 0 | AC62: 3611157 | AD62: 2019-11-23 | AE62: ОПЛАТИТЬ= 2025 | AF62: 2025 | AG62: 1742
A63: 0 | Q63: 6540 | R63: 9023++8000 | S63: 2019-11-22T19:11:32 | T63: ЛАРИОНОВА НАТАЛЬЯ | U63: УСТЬ-КАМЕНОГОРСК | V63: 7-705-500-76-80 0---- ---- | W63: Логин | X63: ОТПРАВЛЕНО | Y63: 6820 | AA63: 0 | AB63: 0 | AC63: 3611156 | AD63: 2019-11-23 | AE63: ОПЛАТИТЬ= 1300 | AF63: 1300 | AG63: -1200
A64: 0 | Q64: 37610 | R64: 6646++39500 | S64: 2018-02-13T16:02:26 | T64: МЕНЬЖУКОВА ПОЛИНА | U64: ШЫМКЕНТ | V64: 7-747-467-11-60 ---- ---- | W64: Логин | X64: ОТПРАВЛЕНО | Y64: 36000 | AA64: 0 | AB64: 0 | AC64: 2428034 | AD64: 2018-02-13 | AE64: ОПЛАТИТЬ= 1100 | AF64: 1100 | AG64: 0
A65: 0 | Q65: 4139 | R65: 2239407++5550 | S65: 2018-02-13 | T65: ДУМАН БЕКМАМБЕТОВ | U65: Балхаш | V65: 8-775-530-34-01 0---- ---- | W65: Логин | X65: ОТПРАВЛЕНО | Y65: 4000 | AA65: 0 | AB65: 0 | AC65: 2428032 | AD65: 2018-02-13 | AE65: ОПЛАТИТЬ= 1300 | AF65: 1300 | AG65: 0
A66: 0 | B66: =IFERROR(HYPERLINK( SUBSTITUTE(INDEX(ЛИСТЫ, ROW()), "]", "]'") & "'!A1", INDEX(ЛИСТ.ИМЯ, ROW()) ),"") ->  | Q66: 48560 | R66: +СчётСб+Сч2601++0 | S66: 2018-01-21 | T66: АО РТС ДЕКО | U66: Алматы | V66: 8-701-743-96-86 8-727-258-84-22 1-614-0-- | W66: Логин | X66: ОТПРАВЛЕНО | Y66: 47160 | Z66: 43157 | AA66: 49860 | AB66: СчётСб | AC66: 2428033 | AD66: 2018-02-13 | AE66: ОПЛАТИТЬ= 1300 | AF66: 1300 | AG66: 0
A67: 0 | F67: =IFERROR(INDIRECT("'"&$B67&"'!B4"),"") ->  | G67: =IFERROR(INDIRECT("'"&$B67&"'!K3"),"") ->  | H67: =IFERROR(INDIRECT("'"&$B67&"'!C1"),"") ->  | J67: =IFERROR(INDIRECT("'"&$B67&"'!G6"),"") ->  | K67: =IFERROR(INDIRECT("'"&$B67&"'!I6"),"") ->  | L67: =IFERROR(INDIRECT("'"&$B67&"'!h6"),"") ->  | M67: =IFERROR(INDIRECT("'"&$B67&"'!E2"),"") ->  | O67: =IFERROR(INDIRECT("'"&$B67&"'!E4"),"") ->  | Q67: 14723 | R67: 130218++16350 | S67: 2018-02-13 | T67: ЧУГУНКОВ ОЛЕГ | U67: Усть-Каменогорск | V67: 8-777-201-11-07 8-747-558-63-88 ---- | W67: Логин | X67: ОТПРАВЛЕНО | Y67: 14000 | AA67: 0 | AB67: 0 | AC67: 2428022 | AD67: 2018-02-13 | AE67: ОПЛАТИТЬ= 1300 | AF67: 1300 | AG67: 0
A68: =IF(LEN(B68)>0,1,0) -> 0 | C68: =IFERROR(INDIRECT("'"&B68&"'!B1"),"") ->  | D68: =IFERROR(INDIRECT("'"&$B68&"'!B3"),"") ->  | E68: =IFERROR(INDIRECT("'"&$B68&"'!B34"),"") ->  | I68: =IFERROR(INDIRECT("'"&$B68&"'!F24"),"") ->  | N68: =IFERROR(IF(M68>0,INDIRECT("'"&$B68&"'!E1"),""),"") ->  | P68: =IF(LEFT(O68,8)="оплачено",0,IF(LEFT(O68,8)="ОПЛАТИТЬ",(ПоискСКонца(O68,"= "))*1,"")) ->  | Q68: =IFERROR((0.98*MID(R68,SEARCH("++",R68)+2,99)-AF68+AA68),0) -> 3845 | R68: 6636++5250 | S68: 2018-02-12T21:02:03 | T68: КОРГАШОВ БАХЫТ | U68: АСТАНА | V68: 7-778-504-84-54 4-359-41-- ---- | W68: Логин | X68: ОТПРАВЛЕНО | Y68: 4000 | AA68: 0 | AB68: 0 | AC68: 2428023 | AD68: 2018-02-13 | AE68: ОПЛАТИТЬ= 1300 | AF68: 1300 | AG68: 0
A69: 0 | Q69: 8806 | R69: 6639++9700 | S69: 2018-02-12T22:02:52 | T69: ПЕКНИЧ АЛЕКСАНДР | U69: АСТАНА | V69: 7-701-748-25-00 ---- ---- | W69: Логин | X69: ОТПРАВЛЕНО | Y69: 8380 | AA69: 0 | AB69: 0 | AC69: 2428024 | AD69: 2018-02-13 | AE69: ОПЛАТИТЬ= 700 | AF69: 700 | AG69: 0
A70: 0 | Q70: 7910 | R70: 6635++9500 | S70: 2018-02-12T21:02:33 | T70: ЯХЬЯЕВ ГАБИБУЛАХ | U70: АКТАУ | V70: 7-747-674-66-32 ---- ---- | W70: Логин | X70: ОТПРАВЛЕНО | Y70: 8000 | AA70: 0 | AB70: 0 | AC70: 2428025 | AD70: 2018-02-13 | AE70: ОПЛАТИТЬ= 1400 | AF70: 1400 | AG70: 0
A71: 0 | Q71: 17369 | R71: 6642++19050 | S71: 2018-02-13T11:02:18 | T71: ПИЛЮГИН ЕВГЕНИЙ | U71: АЛМАТЫ | V71: 7-707-419-08-57 ---- ---- | W71: Логин | X71: ОТПРАВЛЕНО | Y71: 16650 | AA71: 0 | AB71: 0 | AC71: 2428026 | AD71: 2018-02-13 | AE71: ОПЛАТИТЬ= 1300 | AF71: 1300 | AG71: 0
A72: 0 | Q72: 11636 | R72: 6626++13200 | S72: 43141.00161 | T72: КУСТАЕВ ГАЛЫМЖАН АКЫЛБАЙУЛЫ | U72: Жанаозен | V72: 7-702-433-60-28 8-776-190-80-97 ---- | W72: Логин | X72: ОТПРАВЛЕНО | Y72: 11500 | AA72: 0 | AB72: 0 | AC72: 2428027 | AD72: 2018-02-13 | AE72: ОПЛАТИТЬ= 1300 | AF72: 1300 | AG72: 65400
A73: 0 | Q73: 23884 | R73: 6608++25800 | S73: 2018-02-08T10:02:05 | T73: МЕРИСТАН ГАМИДОВА | U73: АКТАУ | V73: 7-701-375-46-93 0---- ---- | W73: Логин | X73: ОТПРАВЛЕНО | Y73: 23000 | AA73: 0 | AB73: 0 | AC73: 2428028 | AD73: 2018-02-13 | AE73: ОПЛАТИТЬ= 1400 | AF73: 1400 | AG73: 0
A74: 0 | Q74: 10392 | R74: 6634++12900 | S74: 2018-02-12T16:02:32 | T74: МАЙЕР АЛЕКСАНДР ЭДУАРДОВИЧ | U74: КАРАГАНДА | V74: 8-707-864-76-01 8---- ---- | W74: Логин | X74: ОТПРАВЛЕНО | Y74: 11500 | AA74: 0 | AB74: 0 | AC74: 2428029 | AD74: 2018-02-13 | AE74: ОПЛАТИТЬ= 2250 | AF74: 2250 | AG74: 34400
A75: 0 | Q75: 7893 | R75: 2238842++10350 | S75: 2018-02-13 | T75: ЕВГЕНИЙ ХОХЛОВ | U75: Щучинск | V75: 7-702-496-27-77 8-708-626-20-91 ---- | W75: Логин | X75: ОТПРАВЛЕНО | Y75: 8000 | AA75: 0 | AB75: 0 | AC75: 2428030 | AD75: 2018-02-13 | AE75: ОПЛАТИТЬ= 2250 | AF75: 2250 | AG75: 61700
A76: 0 | Q76: 7814 | R76: 130218_2++9300 | S76: 43144 | T76: ДОШАЕВ СЕЙФУЛЛА | U76: Кульсары | V76: 8-778-171-60-31 8-702-248-41-26 ---- | W76: Логин | X76: ОТПРАВЛЕНО | Y76: 7000 | AA76: 0 | AB76: 0 | AC76: 2428031 | AD76: 2018-02-13 | AE76: ОПЛАТИТЬ= 1300 | AF76: 1300 | AG76: 0
A77: 0 | Q77: 3633 | R77: 6648++5850 | S77: 43145.62649 | T77: АЛИБЕКОВ САХИ | U77: АКТАУ | V77: 7-701-566-92-11 4-131-610-- ---- | W77: Логин | X77: ОТПРАВЛЕНО | Y77: 4600 | AA77: 0 | AB77: 0 | AC77: 2428039 | AD77: 2018-02-14 | AE77: ОПЛАТИТЬ= 2100 | AF77: 2100 | AG77: -3600
A78: 0 | Q78: 4437 | R78: 130218_4++5650 | S78: 2018-02-13 | T78: ПАВЕЛ ОГАЙ | U78: Астана | V78: 8-707-855-54-02 0---- ---- | W78: Логин | X78: ОТПРАВЛЕНО | Y78: 4400 | AA78: 0 | AB78: 0 | AC78: 2428035 | AD78: 2018-02-14 | AE78: ОПЛАТИТЬ= 1100 | AF78: 1100 | AG78: -1200
A79: 0 | M79: =IFERROR(INDIRECT("'"&$B79&"'!E2"),"") ->  | Q79: 3745 | R79: 6647++5250 | S79: 2018-02-14T10:02:59 | T79: СУИЕСИНОВ ТАЛГАТ | U79: АТЫРАУ | V79: 7-771-507-79-35 ---- ---- | W79: Логин | X79: ОТПРАВЛЕНО | Y79: 4000 | AA79: 0 | AB79: 0 | AC79: 2428036 | AD79: 2018-02-14 | AE79: ОПЛАТИТЬ= 1400 | AF79: 1400 | AG79: -2100
A80: 0 | Q80: 8400 | R80: +Beeline+140218++0 | S80: 2018-02-14 | T80: КАРАКУШИКОВА КУЛЯШ | U80: Актау | V80: 8-701-370-41-03 8-701-559-71-77 ---- | W80: Логин | X80: ОТПРАВЛЕНО | Y80: 8000 | Z80: 43157 | AA80: 9500 | AB80: Beeline | AC80: 2428037 | AD80: 2018-02-14 | AE80: ОПЛАТИТЬ= 1100 | AF80: 1100 | AG80: -2100
A81: 0 | Q81: 14037 | R81: 6620++15650 | S81: 2018-02-09T13:02:33 | T81: ДИГЛАРИС ЭЛАНА | U81: ЖЕЗКАЗГАН | V81: 7-778-226-31-44 ---- ---- | W81: Логин | X81: ОТПРАВЛЕНО | Y81: 13900 | AA81: 0 | AB81: 0 | AC81: 2428038 | AD81: 2018-02-14 | AE81: ОПЛАТИТЬ= 1300 | AF81: 1300 | AG81: 79800
A82: 0 | Q82: 8700 | R82: 6657++10000 | S82: 2018-02-15T15:02:53 | T82: КУРЛЫКОВ ВЯЧЕСЛАВ | U82: КАРАГАНДА | V82: 7-701-538-35-37 ---- ---- | W82: Логин | X82: ОТПРАВЛЕНО | Y82: 8700 | AA82: 0 | AB82: 0 | AC82: 2428041 | AD82: 2018-02-15 | AE82: ОПЛАТИТЬ= 1100 | AF82: 1100 | AG82: 0
A83: 0 | Q83: 3604 | R83: 6656++4800 | S83: 2018-02-15T14:02:36 | T83: КУРЛЫКОВ ВЯЧЕСЛАВ | U83: КАРАГАНДА | V83: 7-701-538-35-37 ---- ---- | W83: Логин | X83: ОТПРАВЛЕНО | Y83: 3600 | AA83: 0 | AB83: 0 | AC83: 2428040 | AD83: 2018-02-15 | AE83: ОПЛАТИТЬ= 1100 | AF83: 1100 | AG83: 0
A84: 0 | Q84: 17000 | R84: +Beeline+110218++0 | S84: 2018-02-11 | T84: МАРАТ КАДАЙБЕРГЕНОВ | U84: Щучинск | V84: 8-771-163-56-00 0---- ---- | W84: Логин | X84: ОТПРАВЛЕНО | Y84: 16000 | Z84: 43157 | AA84: 18100 | AB84: Beeline | AC84: 2231206 | AD84: 2018-02-15 | AE84: ОПЛАТИТЬ= 1100 | AF84: 1100 | AG84: 0
A85: 0 | Q85: 5914 | R85: 6649++9300 | S85: 2018-02-14T19:02:34 | T85: БОРИСОВА НАДЕЖДА ВАЛЕНТИНОВНА | U85: УСТЬ-КАМЕНОГОРСК | V85: 8-777-411-75-79 8-708-695-73-61 ---- | W85: Логин | X85: ОТПРАВЛЕНО | Y85: 8000 | AA85: 0 | AB85: 0 | AC85: 2231207 | AD85: 2018-02-15 | AE85: ОПЛАТИТЬ= 3200 | AF85: 3200 | AG85: 0
A86: 0 | Q86: 4041 | R86: 2242685++5450 | S86: 2018-02-15 | T86: АЛЕКСАНДР РОГОЗИН | U86: Актау | V86: 7-708-632-50-98 8-701-283-12-38 ---- | W86: Логин | X86: ОТПРАВЛЕНО | Y86: 4000 | AA86: 0 | AB86: 0 | AC86: 2231208 | AD86: 2018-02-15 | AE86: ОПЛАТИТЬ= 1300 | AF86: 1300 | AG86: 0
A87: 0 | Q87: 7230 | R87: 6654++8500 | S87: 2018-02-15T11:02:36 | T87: ИВАНОВ СЕРГЕЙ | U87: АКТОБЕ | V87: 7-771-118-00-16 ---- ---- | W87: Логин | X87: ОТПРАВЛЕНО | Y87: 7200 | AA87: 0 | AB87: 0 | AC87: 2231209 | AD87: 2018-02-15 | AE87: ОПЛАТИТЬ= 1100 | AF87: 1100 | AG87: 0
A88: 0 | Q88: 6638 | R88: 6650++8100 | S88: 2018-02-14T22:02:50 | T88: МОЛЯРЕВИЧ АНАТОЛИЙ | U88: Алматы | V88: 7-702-956-83-00 ---- ---- | W88: Логин | X88: ОТПРАВЛЕНО | Y88: 6800 | AA88: 0 | AB88: 0 | AC88: 2231210 | AD88: 2018-02-15 | AE88: ОПЛАТИТЬ= 1300 | AF88: 1300 | AG88: 0
A89: 0 | Q89: 7814 | R89: 6660++9300 | S89: 2018-02-15T17:02:16 | T89: ЮГАЙ ВИКТОРИЯ | U89: КЫЗЫЛОРДА | V89: 7-705-166-82-48 0---- ---- | W89: Логин | X89: ОТПРАВЛЕНО | Y89: 8000 | AA89: 0 | AB89: 0 | AC89: 2231212 | AD89: 2018-02-16 | AE89: ОПЛАТИТЬ= 1300 | AF89: 1300 | AG89: 0
A90: 0 | Q90: 7994 | R90: 6643++10300 | S90: 2018-02-13T11:02:22 | T90: ГРЕБЕНЮКОВА НАТАЛЬЯ | U90: ЗЫРЯНОВСК | V90: 7-775-487-51-41 ---- ---- | W90: Логин | X90: ОТПРАВЛЕНО | Y90: 7960 | AA90: 0 | AB90: 0 | AC90: 2231213 | AD90: 2018-02-16 | AE90: ОПЛАТИТЬ= 2100 | AF90: 2100 | AG90: 0
A91: 0 | Q91: 6610 | R91: 160218++9500 | S91: 2018-02-16 | T91: ПОПОВ ЮРИЙ | U91: Актау | V91: 8-701-566-02-63 8-729-254-42-29 ---- | W91: Логин | X91: ОТПРАВЛЕНО | Y91: 8000 | AA91: 0 | AB91: 0 | AC91: 2231214 | AD91: 2018-02-16 | AE91: ОПЛАТИТЬ= 2700 | AF91: 2700 | AG91: 0
A92: 0 | Q92: 4445 | R92: 6662++5250 | S92: 2018-02-15T19:02:05 | T92: РАХЫМБАЕВ ПЕРИЗАТ | U92: Кызылорда | V92: 7-775-575-03-45 ---- ---- | W92: Логин | X92: ОТПРАВЛЕНО | Y92: 4000 | AA92: 0 | AB92: 0 | AC92: 2231215 | AD92: 2018-02-16 | AE92: ОПЛАТИТЬ= 700 | AF92: 700 | AG92: 0
A93: 0 | Q93: 3800 | R93: +Beeline+160218_2++0 | S93: 2018-02-15 | T93: ОСПАН ЕРМУРАТ | U93: Караганда | V93: 8-705-749-22-04 8-708-746-04-31 ---- | W93: Логин | X93: ОТПРАВЛЕНО | Y93: 4000 | Z93: 43157 | AA93: 5100 | AB93: Beeline | AC93: 2231216 | AD93: 2018-02-16 | AE93: ОПЛАТИТЬ= 1300 | AF93: 1300 | AG93: 0
A94: 0 | Q94: 16932 | R94: 160218_3++18400 | S94: 2018-02-16 | T94: АНДРЕЕВА АНГЕЛИНА | U94: Шымкент | V94: 8-777-329-85-51 0---- ---- | W94: Логин | X94: ОТПРАВЛЕНО | Y94: 16000 | AA94: 0 | AB94: 0 | AC94: 2231217 | AD94: 2018-02-16 | AE94: ОПЛАТИТЬ= 1100 | AF94: 1100 | AG94: 0
A95: 0 | Q95: -2025 | R95: +0+160218_4++0 | S95: 2018-02-13 | T95: ЧУГУНКОВ ОЛЕГ | U95: Усть-Каменогорск | V95: 8-777-201-11-07 8-747-558-63-88 ---- | W95: Логин | X95: ОТПРАВЛЕНО | Y95: 0 | Z95: 1 | AA95: 0 | AB95: 0 | AC95: 2231218 | AD95: 2018-02-16 | AE95: ОПЛАТИТЬ= 2025 | AF95: 2025 | AG95: 0
A96: 0 | Q96: 7714 | R96: 6685++9300 | S96: 2018-02-19T16:02:18 | T96: ТУРСЫНБАЕВА АЙГУЛЬ | U96: АТЫРАУ | V96: 7-775-555-85-58 ---- ---- | W96: Логин | X96: ОТПРАВЛЕНО | Y96: 8000 | AA96: 0 | AB96: 0 | AC96: 2231229 | AD96: 2018-02-19 | AE96: ОПЛАТИТЬ= 1400 | AF96: 1400 | AG96: 0
A97: 0 | Q97: 708 | R97: +Beeline+ 6681++0 | S97: 2018-02-19T13:02:15 | T97: ГЛАДКОВ ИВАН | U97: Караганда | V97: 7-700-310-85-34 8-701-255-63-38 0---- | W97: Логин | X97: ОТПРАВЛЕНО | Y97: 1108 | Z97: 43157 | AA97: 1808 | AB97: Beeline | AC97: 2231226 | AD97: 2018-02-19 | AE97: ОПЛАТИТЬ= 1100 | AF97: 1100 | AG97: 0
A98: 0 | Q98: 7814 | R98: 6682++9300 | S98: 2018-02-19T15:02:19 | T98: АЛЕКСАНДР ГОТФРИД | U98: АКТОБЕ | V98: 7-705-158-28-53 8-713-256-34-72 ---- | W98: Логин | X98: ОТПРАВЛЕНО | Y98: 8000 | AA98: 0 | AB98: 0 | AC98: 2231227 | AD98: 2018-02-19 | AE98: ОПЛАТИТЬ= 1300 | AF98: 1300 | AG98: 0
A99: 0 | Q99: 7014 | R99: 6684++9300 | S99: 2018-02-19T16:02:01 | T99: ГЛУХОВ ВИТАЛИЙ | U99: АЛМАТЫ | V99: 7-707-170-21-70 8-747-808-52-74 ---- | W99: Логин | X99: ОТПРАВЛЕНО | Y99: 8000 | AA99: 0 | AB99: 0 | AC99: 2231228 | AD99: 2018-02-19 | AE99: ОПЛАТИТЬ= 2100 | AF99: 2100 | AG99: -1100
A100: 0 | Q100: 11636 | R100: 190218_3++13200 | S100: 2018-02-19 | T100: ЕРЛАН УШКЕМПЕРОВ | U100: Капшагай | V100: 8-747-551-85-60 0---- ---- | W100: Логин | X100: ОТПРАВЛЕНО | Y100: 11500 | AA100: 0 | AB100: 0 | AC100: 2428042 | AD100: 2018-02-19 | AE100: ОПЛАТИТЬ= 1300 | AF100: 1300 | AG100: -1400
A101: 0 | Q101: 17402 | R101: 190218_2++19900 | S101: 2018-02-19 | T101: ЖУМАШЕВ ГАБИТ | U101: Балхаш | V101: 8-775-264-00-09 8-777-487-94-84 8-778-479-92-94 | W101: Логин | X101: ОТПРАВЛЕНО | Y101: 18100 | AA101: 0 | AB101: 0 | AC101: 2231225 | AD101: 2018-02-19 | AE101: ОПЛАТИТЬ= 2100 | AF101: 2100 | AG101: 0
A102: 0 | Q102: 6843 | R102: 6666++10350 | S102: 2018-02-16T18:02:43 | T102: ЕГОРОВА ЕЛЕНА | U102: СТЕПНОГОРСК | V102: 7-702-106-29-84 ---- ---- | W102: Логин | X102: ОТПРАВЛЕНО | Y102: 8000 | AA102: 0 | AB102: 0 | AC102: 2231219 | AD102: 2018-02-19 | AE102: ОПЛАТИТЬ= 3300 | AF102: 3300 | AG102: 0
A103: 0 | Q103: 26095 | R103: 6676++27750 | S103: 2018-02-17T17:02:02 | T103: АМАНЖОЛОВА ЖАНИЯ | U103: САТПАЕВ | V103: 7-777-181-54-01 ---- ---- | W103: Логин | X103: ОТПРАВЛЕНО | Y103: 25760 | AA103: 0 | AB103: 0 | AC103: 2231220 | AD103: 2018-02-19 | AE103: ОПЛАТИТЬ= 1100 | AF103: 1100 | AG103: -1200
A104: 0 | Q104: 2200 | R104: +Beeline+ 6613++0 | S104: 2018-02-08T18:02:26 | T104: ТЕН НИНА | U104: АКТАУ | V104: 7-702-525-99-53 0---- ---- | W104: Логин | X104: ОТПРАВЛЕНО | Y104: 3600 | Z104: 43157 | AA104: 4900 | AB104: Beeline | AC104: 2231221 | AD104: 2018-02-19 | AE104: ОПЛАТИТЬ= 2700 | AF104: 2700 | AG104: -1400
A105: 0 | Q105: 18625 | R105: +Beeline+180218++0 | S105: 2018-02-18 | T105: ДИНАРА КУАТАЛИЕВА | U105: АТЫРАУ | V105: 7-775-599-06-17 7-775-599-06-17 ---- | W105: Логин | X105: ОТПРАВЛЕНО | Y105: 18000 | Z105: 43157 | AA105: 20025 | AB105: Beeline | AC105: 2231222 | AD105: 2018-02-19 | AE105: ОПЛАТИТЬ= 1400 | AF105: 1400 | AG105: 0
A106: 0 | Q106: 25212 | R106: 190218++29400 | S106: 2018-02-19 | T106: ГАННИБАЛ ОЛЕГ | U106: Алматы | V106: 7-701-713-06-05 8-707-131-08-12 0---- | W106: Логин | X106: ОТПРАВЛЕНО | Y106: 27680 | AA106: 0 | AB106: 0 | AC106: 2231223 | AD106: 2018-02-19 | AE106: ОПЛАТИТЬ= 3600 | AF106: 3600 | AG106: 0
A107: 0 | Q107: 11666 | R107: 6680++14200 | S107: 2018-02-18T23:02:58 | T107: КОРОЛЬКОВ ВИТАЛИЙ НИКОЛАЕВИЧ | U107: ШЫМКЕНТ | V107: 7-701-270-73-54 ---- ---- | W107: Логин | X107: ОТПРАВЛЕНО | Y107: 12800 | AA107: 0 | AB107: 0 | AC107: 2231224 | AD107: 2018-02-19 | AE107: ОПЛАТИТЬ= 2250 | AF107: 2250 | AG107: 0
A108: 0 | Q108: 14049 | R108: 200218_4++17550 | S108: 2018-02-20 | T108: НАУШАБАЕВ АМАНГЕЛЬДЫ | U108: Актау | V108: 8-701-466-82-42 0---- ---- | W108: Логин | X108: ОТПРАВЛЕНО | Y108: 16000 | AA108: 0 | AB108: 0 | AC108: 2231230 | AD108: 2018-02-20 | AE108: ОПЛАТИТЬ= 3150 | AF108: 3150 | AG108: -1100
A109: 0 | Q109: 23114 | R109: 6691++24300 | S109: 2018-02-20T15:02:16 | T109: ДЮ ВЛАДИСЛАВ ИГОРЕВИЧ | U109: КАРАГАНДА | V109: 8-707-516-60-36 8-701-516-60-36 ---- | W109: Логин | X109: ОТПРАВЛЕНО | Y109: 22500 | AA109: 0 | AB109: 0 | AC109: 2428048 | AD109: 2018-02-20 | AE109: ОПЛАТИТЬ= 700 | AF109: 700 | AG109: -1200
A110: 0 | Q110: 23737 | R110: 200218++25650 | S110: 2018-02-20 | T110: НЕСЕТПАЕВ ЕСЕНАЛИ | U110: Алматы | V110: 8-771-487-81-51 8-707-353-01-40 ---- | W110: Логин | X110: ОТПРАВЛЕНО | Y110: 24000 | AA110: 0 | AB110: 0 | AC110: 2428043 | AD110: 2018-02-20 | AE110: ОПЛАТИТЬ= 1400 | AF110: 1400 | AG110: -2100
A111: 0 | Q111: 7720 | R111: 6687++9000 | S111: 2018-02-19T17:02:17 | T111: КУДЖОЯН ТАТЕВИК | U111: Карабалык | V111: 7-705-234-96-81 ---- ---- | W111: Логин | X111: ОТПРАВЛЕНО | Y111: 7400 | AA111: 0 | AB111: 0 | AC111: 2428044 | AD111: 2018-02-20 | AE111: ОПЛАТИТЬ= 1100 | AF111: 1100 | AG111: 9043
A112: 0 | Q112: 7014 | R112: 200218_2++9300 | S112: 2018-02-20 | T112: БОЛДАКОВ СЕРИК | U112: Кызылорда | V112: 8-777-370-12-72 8-705-506-74-00 ---- | W112: Логин | X112: ОТПРАВЛЕНО | Y112: 8000 | AA112: 0 | AB112: 0 | AC112: 2428046 | AD112: 2018-02-20 | AE112: ОПЛАТИТЬ= 2100 | AF112: 2100 | AG112: 0
A113: 0 | Q113: 7014 | R113: 6688++9300 | S113: 2018-02-19T18:02:22 | T113: АБСАДЫКОВ АЛМАТ | U113: Кызылорда | V113: 7-705-722-59-42 ---- ---- | W113: Логин | X113: ОТПРАВЛЕНО | Y113: 8000 | AA113: 0 | AB113: 0 | AC113: 2428046 | AD113: 2018-02-20 | AE113: ОПЛАТИТЬ= 2100 | AF113: 2100 | AG113: 0
A114: 0 | Q114: 20293 | R114: 200218_3++22850 | S114: 2018-02-20 | T114: ГУЦОЛ СВЕТЛАНА | U114: Сатпаев | V114: 8-705-301-12-35 0---- ---- | W114: Логин | X114: ОТПРАВЛЕНО | Y114: 21000 | AA114: 0 | AB114: 0 | AC114: 2428047 | AD114: 2018-02-20 | AE114: ОПЛАТИТЬ= 2100 | AF114: 2100 | AG114: 0
A115: 0 | Q115: 7714 | R115: 210218++9300 | S115: 2018-02-20 | T115: МУКАЖАНОВА ГУЛЬНАЗ | U115: Караганда | V115: 8-701-988-24-22 8-721-232-48-82 ---- | W115: Логин | X115: ОТПРАВЛЕНО | Y115: 8000 | AA115: 0 | AB115: 0 | AC115: 2231233 | AD115: 2018-02-21 | AE115: ОПЛАТИТЬ= 1400 | AF115: 1400 | AG115: -4500
A116: 0 | Q116: 8200 | R116: +Beeline+210218_2++0 | S116: 2018-02-21 | T116: ОСПАН ЕРМУРАТ | U116: Караганда | V116: 8-705-749-22-04 8-708-746-04-31 ---- | W116: Логин | X116: ОТПРАВЛЕНО | Y116: 8000 | Z116: 43157 | AA116: 9500 | AB116: Beeline | AC116: 2231234 | AD116: 2018-02-21 | AE116: ОПЛАТИТЬ= 1300 | AF116: 1300 | AG116: 0
A117: 0 | Q117: 6109 | R117: 210218_3++8300 | S117: 2018-02-21 | T117: ЖАНЫСБАЕВА АЙГУЛЬ | U117: Актау | V117: 8-701-653-16-52 0---- ---- | W117: Логин | X117: ОТПРАВЛЕНО | Y117: 7000 | AA117: 0 | AB117: 0 | AC117: 2231235 | AD117: 2018-02-21 | AE117: ОПЛАТИТЬ= 2025 | AF117: 2025 | AG117: 16832
A118: 0 | Q118: 28983 | R118: 6696++32100 | S118: 2018-02-21T13:02:40 | T118: ПИЛЮГИН ЕВГЕНИЙ | U118: АЛМАТЫ | V118: 7-707-419-08-57 ---- ---- | W118: Логин | X118: ОТПРАВЛЕНО | Y118: 28980 | AA118: 0 | AB118: 0 | AC118: 2231236 | AD118: 2018-02-21 | AE118: ОПЛАТИТЬ= 2475 | AF118: 2475 | AG118: 5880
A119: 0 | Q119: 6005 | R119: 6692++7250 | S119: 2018-02-20T16:02:31 | T119: ЗИМА НАТАЛЬЯ | U119: ШЫМКЕНТ | V119: 7-707-060-32-70 ---- ---- | W119: Логин | X119: ОТПРАВЛЕНО | Y119: 6000 | AA119: 0 | AB119: 0 | AC119: 2231231 | AD119: 2018-02-21 | AE119: ОПЛАТИТЬ= 1100 | AF119: 1100 | AG119: -70000
A120: 0 | Q120: 20750 | R120: 6695++22500 | S120: 2018-02-21T10:02:36 | T120: ТУРГАНОВ АБДУЛЛА | U120: Кызылорда | V120: 7-777-453-51-35 ---- ---- | W120: Логин | X120: ОТПРАВЛЕНО | Y120: 20000 | AA120: 0 | AB120: 0 | AC120: 2231232 | AD120: 2018-02-21 | AE120: ОПЛАТИТЬ= 1300 | AF120: 1300 | AG120: 0
A121: 0 | Q121: 83100 | R121: +Beeline+090218_3++0 | S121: 2018-02-09 | T121: РАВИЛЬ ХАМИТОВ | U121: Атырау | V121: 7-775-355-13-09 8-701-551-96-70 ---- | W121: Логин | X121: ОТПРАВЛЕНО | Y121: 82800 | Z121: 43157 | AA121: 85200 | AB121: Beeline | AC121: 2428049 | AD121: 2018-02-22 | AE121: ОПЛАТИТЬ= 2100 | AF121: 2100 | AG121: 0
A122: 0 | Q122: -60 | R122: +Beeline+ 6693++0 | S122: 2018-02-20T21:02:11 | T122: ТУЯКБАЕВ ТЕНГИЗ | U122: АЛМАТЫ | V122: 7-701-532-69-32 ---- ---- | W122: Логин | X122: ОТПРАВЛЕНО | Y122: 1090 | Z122: 43157 | AA122: 2190 | AB122: Beeline | AC122: 2231240 | AD122: 2018-02-22 | AE122: ОПЛАТИТЬ= 2250 | AF122: 2250 | AG122: 74652
A123: 0 | Q123: 14735 | R123: 2257182++15750 | S123: 2018-02-21 | T123: АННА ЗЕЛЕПУКИНА | U123: Сатпаев | V123: 7-747-955-93-87 0---- ---- | W123: Логин | X123: ОТПРАВЛЕНО | Y123: 14000 | AA123: 0 | AB123: 0 | AC123: 2231239 | AD123: 2018-02-22 | AE123: ОПЛАТИТЬ= 700 | AF123: 700 | AG123: 0
A124: 0 | Q124: 16850 | R124: +Beeline+210218_4++0 | S124: 2018-02-21 | T124: ВОЙТЕНКО АЛЕКСАНДР | U124: Актау | V124: 7-771-545-44-04 0---- ---- | W124: Логин | X124: ОТПРАВЛЕНО | Y124: 16000 | Z124: 43157 | AA124: 18250 | AB124: Beeline | AC124: 2231238 | AD124: 2018-02-22 | AE124: ОПЛАТИТЬ= 1400 | AF124: 1400 | AG124: 0
A125: 0 | Q125: -1300 | R125: 220218++0 | S125: 2018-02-02 | T125: МУСАЕВ СУНАТТУЛЛА ЕРГАШОВИЧ | U125: КЕНТАУ | V125: 8-707-737-72-72 8-708-327-17-27 8-777-106-29-92 | W125: Логин | X125: ОТПРАВЛЕНО | Y125: 0 | AA125: 0 | AB125: 0 | AC125: 2231237 | AD125: 2018-02-22 | AE125: ОПЛАТИТЬ= 1300 | AF125: 1300 | AG125: 2342.2
A126: 0 | Q126: 10607 | R126: 6721++12150 | S126: 2018-02-23T15:02:51 | T126: ПИЛЮГИН ЕВГЕНИЙ | U126: АЛМАТЫ | V126: 7-707-419-08-57 ---- ---- | W126: Логин | X126: ОТПРАВЛЕНО | Y126: 10800 | AA126: 0 | AB126: 0 | AC126: 2428057 | AD126: 2018-02-23 | AE126: ОПЛАТИТЬ= 1300 | AF126: 1300 | AG126: 2820
A127: 0 | Q127: 2895 | R127: 230218++5250 | S127: 2018-02-23 | T127: ЕЛЕБАЕВ ЕРБОЛ | U127: Актобе | V127: 8-705-630-64-25 0---- ---- | W127: Логин | X127: ОТПРАВЛЕНО | Y127: 4000 | AA127: 0 | AB127: 0 | AC127: 2428050 | AD127: 2018-02-23 | AE127: ОПЛАТИТЬ= 2250 | AF127: 2250 | AG127: 47996
A128: 0 | Q128: 5425 | R128: 6703++6250 | S128: 2018-02-22T18:02:31 | T128: ВАЙЦЕХОВСКИЙ АЛЕКСЕЙ | U128: АТБАСАР | V128: 7-705-581-90-27 ---- ---- | W128: Логин | X128: ОТПРАВЛЕНО | Y128: 4000 | AA128: 0 | AB128: 0 | AC128: 2428051 | AD128: 2018-02-23 | AE128: ОПЛАТИТЬ= 700 | AF128: 700 | AG128: 0
A129: 0 | Q129: 6034 | R129: 2258966++8300 | S129: 2018-02-22 | T129: АЖКЕНОВ КУАНЫШ | U129: Тараз | V129: 7-777-783-64-00 0---- ---- | W129: Логин | X129: ОТПРАВЛЕНО | Y129: 7000 | AA129: 0 | AB129: 0 | AC129: 2428052 | AD129: 2018-02-23 | AE129: ОПЛАТИТЬ= 2100 | AF129: 2100 | AG129: -1100
A130: 0 | B130: =IFERROR(HYPERLINK( SUBSTITUTE(INDEX(ЛИСТЫ, ROW()), "]", "]'") & "'!A1", INDEX(ЛИСТ.ИМЯ, ROW()) ),"") ->  | Q130: 8108 | R130: 230218_3++9600 | S130: 2018-02-23 | T130: КУРБАНОВ ДМИТРИЙ | U130: Балхаш | V130: 8-771-274-53-41 8-775-374-92-73 ---- | W130: Логин | X130: ОТПРАВЛЕНО | Y130: 8000 | AA130: 0 | AB130: 0 | AC130: 2428053 | AD130: 2018-02-23 | AE130: ОПЛАТИТЬ= 1300 | AF130: 1300 | AG130: 0
A131: 0 | F131: =IFERROR(INDIRECT("'"&$B131&"'!B4"),"") ->  | G131: =IFERROR(INDIRECT("'"&$B131&"'!K3"),"") ->  | H131: =IFERROR(INDIRECT("'"&$B131&"'!C1"),"") ->  | J131: =IFERROR(INDIRECT("'"&$B131&"'!G6"),"") ->  | K131: =IFERROR(INDIRECT("'"&$B131&"'!I6"),"") ->  | L131: =IFERROR(INDIRECT("'"&$B131&"'!h6"),"") ->  | M131: =IFERROR(INDIRECT("'"&$B131&"'!E2"),"") ->  | O131: =IFERROR(INDIRECT("'"&$B131&"'!E4"),"") ->  | Q131: 6295 | R131: 230218_4++7750 | S131: 2018-02-23 | T131: ВАСИЛИЙ ЛИНКОВ | U131: Астана | V131: 8-707-841-99-07 8-702-109-24-90 ---- | W131: Логин | X131: ОТПРАВЛЕНО | Y131: 6480 | AA131: 0 | AB131: 0 | AC131: 2428054 | AD131: 2018-02-23 | AE131: ОПЛАТИТЬ= 1300 | AF131: 1300 | AG131: 7720
A132: =IF(LEN(B132)>0,1,0) -> 0 | C132: =IFERROR(INDIRECT("'"&B132&"'!B1"),"") ->  | D132: =IFERROR(INDIRECT("'"&$B132&"'!B3"),"") ->  | E132: =IFERROR(INDIRECT("'"&$B132&"'!B34"),"") ->  | I132: =IFERROR(INDIRECT("'"&$B132&"'!F24"),"") ->  | N132: =IFERROR(IF(M132>0,INDIRECT("'"&$B132&"'!E1"),""),"") ->  | P132: =IF(LEFT(O132,8)="оплачено",0,IF(LEFT(O132,8)="ОПЛАТИТЬ",(ПоискСКонца(O132,"= "))*1,"")) ->  | Q132: =IFERROR((0.98*MID(R132,SEARCH("++",R132)+2,99)-AF132+AA132),0) -> 17010 | R132: 6715++19500 | S132: 2018-02-22T23:02:12 | T132: СЕМЕНЯК ИВАН | U132: АЛМАТЫ | V132: 7-707-500-47-09 8-707-277-94-98 ---- | W132: Логин | X132: ОТПРАВЛЕНО | Y132: 18000 | AA132: 0 | AB132: 0 | AC132: 2428055 | AD132: 2018-02-23 | AE132: ОПЛАТИТЬ= 2100 | AF132: 2100 | AG132: 0
A133: 0 | Q133: 15932 | R133: 230218_5++18400 | S133: 2018-02-23 | T133: САВЧЕНКО ИВАН | U133: Павлодар | V133: 8-705-613-08-21 0---- ---- | W133: Логин | X133: ОТПРАВЛЕНО | Y133: 16000 | AA133: 0 | AB133: 0 | AC133: 2428056 | AD133: 2018-02-23 | AE133: ОПЛАТИТЬ= 2100 | AF133: 2100 | AG133: 0
A134: 0 | Q134: 2145 | R134: 230218_6++5250 | S134: 2018-02-23 | T134: САКЕЕВ САБЫР | U134: Актобе | V134: 8-771-049-05-70 8-701-049-05-70 ---- | W134: Логин | X134: ОТПРАВЛЕНО | Y134: 4000 | AA134: 0 | AB134: 0 | AC134: 2231241 | AD134: 2018-02-24 | AE134: ОПЛАТИТЬ= 3000 | AF134: 3000 | AG134: 0
A135: 0 | Q135: 7814 | R135: 230218_7++9300 | S135: 2018-02-23 | T135: ХАМЗИНА УПАН | U135: Астана | V135: 8-701-441-28-44 0---- ---- | W135: Логин | X135: ОТПРАВЛЕНО | Y135: 8000 | AA135: 0 | AB135: 0 | AC135: 2231242 | AD135: 2018-02-24 | AE135: ОПЛАТИТЬ= 1300 | AF135: 1300 | AG135: 0
A136: 0 | Q136: 7426 | R136: 2265328++8700 | S136: 2018-02-26 | T136: БАЙГАБУЛОВ ЕРМЕК | U136: Астана | V136: 7-705-760-15-81 8-705-130-03-35 ---- | W136: Логин | X136: ОТПРАВЛЕНО | Y136: 7400 | AA136: 0 | AB136: 0 | AC136: 2231248 | AD136: 2018-02-26 | AE136: ОПЛАТИТЬ= 1100 | AF136: 1100 | AG136: 6587
A137: 0 | Q137: 6109 | R137: 250218++8300 | S137: 2018-02-25 | T137: ДЕНИС ГОРОДЕЛЬСКИЙ | U137: Астана | V137: 8-776-148-90-65 8-705-550-31-43 ---- | W137: Логин | X137: ОТПРАВЛЕНО | Y137: 7000 | AA137: 0 | AB137: 0 | AC137: 2231243 | AD137: 2018-02-26 | AE137: ОПЛАТИТЬ= 2025 | AF137: 2025 | AG137: 0
A138: 0 | Q138: 8014 | R138: 6724++9300 | S138: 2018-02-25T14:02:34 | T138: ПАДЕРИН ЕВГЕНИЙ | U138: УСТЬ-КАМЕНОГОРСК | V138: 7-771-485-80-53 8-701-318-58-24 ---- | W138: Логин | X138: ОТПРАВЛЕНО | Y138: 8000 | AA138: 0 | AB138: 0 | AC138: 2231244 | AD138: 2018-02-26 | AE138: ОПЛАТИТЬ= 1100 | AF138: 1100 | AG138: 0
A139: 0 | Q139: -1300 | R139: 260218++0 | S139: 2018-02-26 | T139: МУСАЕВ СУНАТТУЛЛА ЕРГАШОВИЧ | U139: КЕНТАУ | V139: 8-707-737-72-72 8-708-327-17-27 8-777-106-29-92 | W139: Логин | X139: ОТПРАВЛЕНО | Y139: 3450 | AA139: 0 | AB139: 0 | AC139: 2231245 | AD139: 2018-02-26 | AE139: ОПЛАТИТЬ= 1300 | AF139: 1300 | AG139: 0
A140: 0 | Q140: 10392 | R140: 6725++12900 | S140: 2018-02-25T19:02:10 | T140: ПУШКАРСКИЙ ВИКТОР ВИКТОРОВИЧ | U140: ПЕТРОПАВЛОВСК | V140: 7-777-271-30-76 ---- ---- | W140: Логин | X140: ОТПРАВЛЕНО | Y140: 11500 | AA140: 0 | AB140: 0 | AC140: 2231246 | AD140: 2018-02-26 | AE140: ОПЛАТИТЬ= 2250 | AF140: 2250 | AG140: 0
A141: 0 | Q141: 6403 | R141: 6726++8600 | S141: 2018-02-26T09:02:03 | T141: БАЯЗИТОВА ЖУЛДЫЗ КАЙЫРЖАНОВНА | U141: БАЛХАШ | V141: 7-747-549-43-91 ---- ---- | W141: Логин | X141: ОТПРАВЛЕНО | Y141: 7000 | AA141: 0 | AB141: 0 | AC141: 2231247 | AD141: 2018-02-26 | AE141: ОПЛАТИТЬ= 2025 | AF141: 2025 | AG141: 0
A142: 0 | Q142: 27048 | R142: 191217_3++30100 | S142: 2017-12-19 | T142: КАДИРОВ АБЛИКИН | U142: Алматы | V142: 8-707-834-89-62 3-039-201-- ---- | W142: Логин | X142: ОТПРАВЛЕНО | Y142: 27000 | AA142: 0 | AB142: 0 | AC142: 2103273 | AD142: 2017-12-20 | AE142: ОПЛАТИТЬ= 2450 | AF142: 2450 | AG142: 0
A143: 0 | Q143: 4482 | R143: 201217++5900 | S143: 2017-12-20 | T143: АБДУЛЛИНА ГУЛЬНАРА | U143: Кызылорда | V143: 8-778-998-82-22 0---- ---- | W143: Логин | X143: ОТПРАВЛЕНО | Y143: 4480 | AA143: 0 | AB143: 0 | AC143: 2103274 | AD143: 2017-12-20 | AE143: ОПЛАТИТЬ= 1300 | AF143: 1300 | AG143: 0
A144: 0 | Q144: 2808 | R144: +QIWI+2115677++0 | S144: 2017-12-13 | T144: ВОРОНИН ОЛЕГ | U144: Караганда | V144: 7-702-813-24-39 0---- ---- | W144: Логин | X144: ОТПРАВЛЕНО | Y144: 2808 | Z144: 43091 | AA144: 4108 | AB144: QIWI | AC144: 2103275 | AD144: 2017-12-20 | AE144: ОПЛАТИТЬ= 1300 | AF144: 1300 | AG144: 0
A145: 0 | Q145: 11542 | R145: 6323++12900 | S145: 2017-12-20T10:12:52 | T145: КОРОЛЬ МИХАИЛ | U145: АЛМАТЫ | V145: 7-708-333-49-75 ---- ---- | W145: Логин | X145: ОТПРАВЛЕНО | Y145: 11500 | AA145: 0 | AB145: 0 | AC145: 2103276 | AD145: 2017-12-20 | AE145: ОПЛАТИТЬ= 1100 | AF145: 1100 | AG145: 0
A146: 0 | Q146: 13200 | R146: +ККБ+201217_2++0 | S146: 43089 | T146: РЛСАЛДИН ЖАНДОС | U146: Караганда | V146: 8-777-051-11-84 0---- ---- | W146: Логин | X146: ОТПРАВЛЕНО | Y146: 12600 | Z146: 43091 | AA146: 13900 | AB146: ККБ | AC146: 2103277 | AD146: 2017-12-20 | AE146: ОПЛАТИТЬ= 700 | AF146: 700 | AG146: 0
A147: 0 | Q147: 7034 | R147: 6322++8300 | S147: 2017-12-20T09:12:33 | T147: БУКАРЕВ ВИКТОР | U147: АЛМАТЫ | V147: 7-707-655-58-32 8-701-720-43-81 ---- | W147: Логин | X147: ОТПРАВЛЕНО | Y147: 7000 | AA147: 0 | AB147: 0 | AC147: 2103278 | AD147: 2017-12-20 | AE147: ОПЛАТИТЬ= 1100 | AF147: 1100 | AG147: 0
A148: 0 | Q148: 6818 | R148: 201217_3++9100 | S148: 2017-12-20 | T148: ДЕНИСК КАШКЕВИЧ | U148: Щучинск | V148: 8-747-993-53-10 8-707-696-99-46 ---- | W148: Логин | X148: ОТПРАВЛЕНО | Y148: 6800 | AA148: 0 | AB148: 0 | AC148: 2103279 | AD148: 2017-12-20 | AE148: ОПЛАТИТЬ= 2100 | AF148: 2100 | AG148: 0
A149: 0 | Q149: 25925 | R149: 6333++28750 | S149: 2017-12-20T12:12:46 | T149: МЕНЬЖУКОВА ПОЛИНА | U149: ШЫМКЕНТ | V149: 7-747-467-11-60 ---- ---- | W149: Логин | X149: ОТПРАВЛЕНО | Y149: 25935 | AA149: 0 | AB149: 0 | AC149: 2103280 | AD149: 2017-12-20 | AE149: ОПЛАТИТЬ= 2250 | AF149: 2250 | AG149: 0
A150: 0 | Q150: 8010 | R150: 211217_4++9500 | S150: 43090 | T150: АЛИКУЛОВ ФАРХАД | U150: Шымкент | V150: 8-777-252-48-18 0---- ---- | W150: Логин | X150: ОТПРАВЛЕНО | Y150: 8000 | AA150: 0 | AB150: 0 | AC150: 2231030 | AD150: 2017-12-21 | AE150: ОПЛАТИТЬ= 1300 | AF150: 1300 | AG150: 0
A151: 0 | Q151: 19731 | R151: 211217_3++22200 | S151: 2017-12-21 | T151: ВИКТОР МИЛЕНТЬЕВ | U151: Астана | V151: 8-701-353-42-58 0---- ---- | W151: Логин | X151: ОТПРАВЛЕНО | Y151: 19700 | AA151: 0 | AB151: 0 | AC151: 2231029 | AD151: 2017-12-21 | AE151: ОПЛАТИТЬ= 2025 | AF151: 2025 | AG151: 0
A152: 0 | Q152: 2500 | R152: +ККБ+191217++0 | S152: 2017-12-18 | T152: ПОЛОСОВА ЖАННА | U152: Шымкент | V152: 8-777-380-92-22 0---- ---- | W152: Логин | X152: ОТПРАВЛЕНО | Y152: 2500 | Z152: 43091 | AA152: 3800 | AB152: ККБ | AC152: 2231022 | AD152: 2017-12-21 | AE152: ОПЛАТИТЬ= 1300 | AF152: 1300 | AG152: 0
A153: 0 | Q153: 4000 | R153: +QIWI+201217_5++0 | S153: 43089 | T153: ЕВГЕНИЯ СПОТАРЬ | U153: Актау | V153: 8-777-630-04-98 0---- ---- | W153: Логин | X153: ОТПРАВЛЕНО | Y153: 4000 | Z153: 43091 | AA153: 5300 | AB153: QIWI | AC153: 2231023 | AD153: 2017-12-21 | AE153: ОПЛАТИТЬ= 1300 | AF153: 1300 | AG153: 0
A154: 0 | Q154: 7800 | R154: +ККБ+ 6290++0 | S154: 2017-12-14T20:12:17 | T154: КАЗБЕКОВ АРМАН КАЗБЕКОВИЧ | U154: Караганда | V154: 7-700-996-82-52 ---- ---- | W154: Логин | X154: ОТПРАВЛЕНО | Y154: 7000 | Z154: 43091 | AA154: 9100 | AB154: ККБ | AC154: 2231025 | AD154: 2017-12-21 | AE154: ОПЛАТИТЬ= 1300 | AF154: 1300 | AG154: 0
A155: 0 | Q155: 16007 | R155: 6340++18400 | S155: 2017-12-21T11:12:43 | T155: КАДИР АЛЬ ФАРАБИ | U155: ШЫМКЕНТ | V155: 7-707-155-71-22 ---- ---- | W155: Логин | X155: ОТПРАВЛЕНО | Y155: 16000 | AA155: 0 | AB155: 0 | AC155: 2231026 | AD155: 2017-12-21 | AE155: ОПЛАТИТЬ= 2025 | AF155: 2025 | AG155: 0
A156: 0 | Q156: 7030 | R156: 6342++8500 | S156: 2017-12-21T11:12:39 | T156: МАМЕДОВ АЛИМ НАДИРОВИЧ | U156: АКТАУ | V156: 7-701-138-99-99 ---- ---- | W156: Логин | X156: ОТПРАВЛЕНО | Y156: 7000 | AA156: 0 | AB156: 0 | AC156: 2231027 | AD156: 2017-12-21 | AE156: ОПЛАТИТЬ= 1300 | AF156: 1300 | AG156: 0
A157: 0 | Q157: 35991 | R157: 211217_2++37950 | S157: 43090 | T157: БАГЛАН СУЕНДИКОВ | U157: Шымкент | V157: 8-777-604-78-43 8-701-355-19-58 ---- | W157: Логин | X157: ОТПРАВЛЕНО | Y157: 36000 | AA157: 0 | AB157: 0 | AC157: 2231028 | AD157: 2017-12-21 | AE157: ОПЛАТИТЬ= 1200 | AF157: 1200 | AG157: 0
A158: 0 | Q158: 44029 | R158: 211217_5++46050 | S158: 2017-12-21 | T158: АМАНТАЙ МУЛЬДЫР | U158: Алматы | V158: 8-707-784-77-44 8-777-583-69-58 0---- | W158: Логин | X158: ОТПРАВЛЕНО | Y158: 44000 | AA158: 0 | AB158: 0 | AC158: 2103281 | AD158: 2017-12-22 | AE158: ОПЛАТИТЬ= 1100 | AF158: 1100 | AG158: 0
A159: 0 | Q159: 16001 | R159: 2131859++17450 | S159: 2017-12-21 | T159: КУАНЫШ ДЮСЕМБЕКОВ | U159: Караганда | V159: 7-778-108-25-82 0---- ---- | W159: Логин | X159: ОТПРАВЛЕНО | Y159: 16000 | AA159: 0 | AB159: 0 | AC159: 2103282 | AD159: 2017-12-22 | AE159: ОПЛАТИТЬ= 1100 | AF159: 1100 | AG159: 0
A160: 0 | Q160: -1100 | R160: 6338++0 | S160: 2017-12-21T11:12:44 | T160: БЕРСЕНЁВА ИННА | U160: АЛМАТЫ | V160: 7-777-398-08-65 8-707-419-96-68 0---- | W160: Логин | X160: ОТПРАВЛЕНО | Y160: 1440 | AA160: 0 | AB160: 0 | AC160: 2103283 | AD160: 2017-12-22 | AE160: ОПЛАТИТЬ= 1100 | AF160: 1100 | AG160: 0
A161: 0 | Q161: 63462 | R161: 221217++66900 | S161: 2017-12-22 | T161: ТАСИБЕКОВА ГУЛБАГДА КАНАЛБЕКОВНА | U161: Шу | V161: 7-707-791-29-48 8-707-880-95-55 ---- | W161: Логин | X161: ОТПРАВЛЕНО | Y161: 63480 | AA161: 0 | AB161: 0 | AC161: 2103284 | AD161: 2017-12-22 | AE161: ОПЛАТИТЬ= 2100 | AF161: 2100 | AG161: 0
A162: 0 | Q162: 10509 | R162: 6345++12050 | S162: 2017-12-21T23:12:16 | T162: МАРАТ АБДУРЕЙМОВ | U162: АКТАУ | V162: 7-708-963-44-20 ---- ---- | W162: Логин | X162: ОТПРАВЛЕНО | Y162: 10500 | AA162: 0 | AB162: 0 | AC162: 2103285 | AD162: 2017-12-22 | AE162: ОПЛАТИТЬ= 1300 | AF162: 1300 | AG162: 0
A163: 0 | Q163: 19927 | R163: 6347++22400 | S163: 2017-12-22T10:12:36 | T163: ЕВГЕНИЙ ПИЛЮГИН | U163: АЛМАТЫ | V163: 7-707-419-08-57 ---- ---- | W163: Логин | X163: ОТПРАВЛЕНО | Y163: 19890 | AA163: 0 | AB163: 0 | AC163: 2103286 | AD163: 2017-12-22 | AE163: ОПЛАТИТЬ= 2025 | AF163: 2025 | AG163: 0
A164: 0 | Q164: 9043 | R164: 2132550++10350 | S164: 43091 | T164: ПОНОМАРЕНКО КОНСТАНТИН | U164: Алматы | V164: 7-700-424-20-30 8-778-200-52-03 ---- | W164: Логин | X164: ОТПРАВЛЕНО | Y164: 9000 | AA164: 0 | AB164: 0 | AC164: 2103287 | AD164: 2017-12-22 | AE164: ОПЛАТИТЬ= 1100 | AF164: 1100 | AG164: 0
A165: 0 | Q165: 8010 | R165: 211216_5++9500 | S165: 2016-12-21 | T165: САТПАЕВ ИСКАНДЕР | U165: Шымкент | V165: 8-775-289-61-21 0---- ---- | W165: Логин | X165: ОТПРАВЛЕНО | Y165: 8000 | AA165: 0 | AB165: 0 | AC165: 1715713 | AD165: 2016-12-22 | AE165: ОПЛАТИТЬ= 1300 | AF165: 1300 | AG165: 0
A166: 0 | Q166: 11550 | R166: +QIWI+211216_6++0 | S166: 2016-12-21 | T166: НИКОЛАЙ ВАСИЛЬЕВ | U166: Алматы | V166: 8-700-789-07-86 0---- ---- | W166: Логин | X166: ОТПРАВЛЕНО | Y166: 11260 | Z166: 42726 | AA166: 12650 | AB166: QIWI | AC166: 1715712 | AD166: 2016-12-22 | AE166: ОПЛАТИТЬ= 1100 | AF166: 1100 | AG166: 0
A167: 0 | Q167: 1280 | R167: +QIWI+ 4554++0 | S167: 2016-12-21T15:12:33 | T167: ГУРЬЯНОВ ОЛЕГ | U167: АЛМАТЫ | V167: 7-701-439-74-78 ---- ---- | W167: Логин | X167: ОТПРАВЛЕНО | Y167: 1280 | Z167: 42726 | AA167: 2380 | AB167: QIWI | AC167: 1715715 | AD167: 2016-12-22 | AE167: ОПЛАТИТЬ= 1100 | AF167: 1100 | AG167: 0
A168: 0 | Q168: 21593 | R168: 221216++24100 | S168: 2016-12-22 | T168: ВИКТОР МИЛЕНТЬЕВ | U168: Астана | V168: 8-701-353-42-58 0---- ---- | W168: Логин | X168: ОТПРАВЛЕНО | Y168: 21600 | AA168: 0 | AB168: 0 | AC168: 1715711 | AD168: 2016-12-22 | AE168: ОПЛАТИТЬ= 2025 | AF168: 2025 | AG168: 0
A169: 0 | Q169: 8010 | R169: 221216_2++9500 | S169: 2016-12-22 | T169: МИРМАН РАХИМЖАНОВ | U169: Шымкент | V169: 8-778-229-56-86 0---- ---- | W169: Логин | X169: ОТПРАВЛЕНО | Y169: 8000 | AA169: 0 | AB169: 0 | AC169: 1715710 | AD169: 2016-12-22 | AE169: ОПЛАТИТЬ= 1300 | AF169: 1300 | AG169: 0
A170: 0 | Q170: 0 | AG170: 0
A171: 0 | Q171: 0 | AG171: 0
A172: 0 | Q172: 0 | AG172: 0
A173: 0 | Q173: 0 | AG173: 0
A174: 0 | Q174: 0 | AG174: 0
A175: 0 | Q175: 0 | AG175: 0
A176: 0 | Q176: 0 | AG176: 0
A177: 0 | Q177: 0 | AG177: 0
A178: 0 | Q178: 0 | AG178: 0
A179: 0 | Q179: 0 | AG179: 0
A180: 0 | Q180: 0 | AG180: 0
A181: 0 | Q181: 0 | AG181: 0
A182: 0 | Q182: 0 | AG182: 0
A183: 0 | Q183: 0 | AG183: 0
A184: 0 | Q184: 0 | AG184: 0
A185: 0 | Q185: 0 | AG185: 0
A186: 0 | Q186: 0 | AG186: 0
A187: 0 | Q187: 0 | AG187: 0
A188: 0 | Q188: 0 | AG188: 0
A189: 0 | Q189: 0 | AG189: 0
A190: 0 | Q190: 0 | AG190: 0
A191: 0 | Q191: 0 | AG191: 0
A192: 0 | Q192: 0 | AG192: 0
A193: 0 | Q193: 0 | AG193: 0
A194: 0 | B194: =IFERROR(HYPERLINK( SUBSTITUTE(INDEX(ЛИСТЫ, ROW()), "]", "]'") & "'!A1", INDEX(ЛИСТ.ИМЯ, ROW()) ),"") ->  | Q194: 0 | AG194: 0
A195: 0 | F195: =IFERROR(INDIRECT("'"&$B195&"'!B4"),"") ->  | G195: =IFERROR(INDIRECT("'"&$B195&"'!K3"),"") ->  | H195: =IFERROR(INDIRECT("'"&$B195&"'!C1"),"") ->  | J195: =IFERROR(INDIRECT("'"&$B195&"'!G6"),"") ->  | K195: =IFERROR(INDIRECT("'"&$B195&"'!I6"),"") ->  | L195: =IFERROR(INDIRECT("'"&$B195&"'!h6"),"") ->  | M195: =IFERROR(INDIRECT("'"&$B195&"'!E2"),"") ->  | O195: =IFERROR(INDIRECT("'"&$B195&"'!E4"),"") ->  | Q195: 0 | AG195: 0
A196: =IF(LEN(B196)>0,1,0) -> 0 | C196: =IFERROR(INDIRECT("'"&B196&"'!B1"),"") ->  | D196: =IFERROR(INDIRECT("'"&$B196&"'!B3"),"") ->  | E196: =IFERROR(INDIRECT("'"&$B196&"'!B34"),"") ->  | I196: =IFERROR(INDIRECT("'"&$B196&"'!F24"),"") ->  | N196: =IFERROR(IF(M196>0,INDIRECT("'"&$B196&"'!E1"),""),"") ->  | P196: =IF(LEFT(O196,8)="оплачено",0,IF(LEFT(O196,8)="ОПЛАТИТЬ",(ПоискСКонца(O196,"= "))*1,"")) ->  | Q196: =IFERROR((0.98*MID(R196,SEARCH("++",R196)+2,99)-AF196+AA196),0) -> 0 | AG196: 0
A197: 0 | Q197: 0 | AG197: 0
A198: 0 | Q198: 0 | AG198: 0
A199: 0 | Q199: 0 | AG199: 0
A200: 0 | Q200: 0 | AG200: 0
... 300 more rows

Sheet ТАРИФЫ ТК
A1: ТАРИФЫ ТК | K1: 210516_2
A2: AVIS LOGISTICS | I2: EXLINE
A3: АВИС ЭКОНОМ до 3кг идо 30 см. | E3: АВИС ЭКСПРЕСС до 1,0 кг | I3: Вес (кг) | J3: Зона 1 | K3: Зона 2
A4: Астана | B4: =LEFT(A4,4) -> Аста | C4: 1300 | D4: Акмолинская область | E4: Астана | F4: =LEFT(E4,4) -> Аста | G4: 1400 | I4: 5 | J4: 1100 | K4: 1400
A5: Нур-Султан | B5: Нур- | C5: 1300 | E5: Нур-Султан | F5: Нур- | G5: 1400
A6: Кокшетау | B6: Кокш | C6: 1300 | E6: Алматы | F6: Алма | G6: 1400 | I6: 5.5 | J6: 1150 | K6: 1540
A7: Акколь | B7: =LEFT(A7,4) -> Акко | C7: 2100 | E7: Актау | F7: Акта | G7: 1400 | I7: 6 | J7: 1200 | K7: 1680
A8: Атбасар | B8: Атба | C8: 2100 | D8: 1 | E8: Атырау | F8: Атыр | G8: 1400 | I8: 6.5 | J8: 1250 | K8: 1820
A9: Державинск | B9: Держ | C9: 1400 | E9: Актобе | F9: Акто | G9: 1400 | I9: 7 | J9: 1300 | K9: 1960
A10: Ерментау | B10: Ерме | C10: 2100 | E10: Караганда | F10: Кара | G10: 1400 | I10: 7.5 | J10: 1350
A11: Есиль | B11: Есил | C11: 1400 | E11: Кокшетау | F11: Кокш | G11: 1400 | I11: 8 | J11: 1400 | K11: 2240
A12: Макинск | B12: Маки | C12: 2100 | E12: Кызылорда | F12: Кызы | G12: 1400 | I12: 8.5 | J12: 1450 | K12: 2380
A13: Степногорск | B13: Степ | C13: 2100 | E13: Павлодар | F13: Павл | G13: 1400 | I13: 9 | J13: 1500 | K13: 2520
A14: Боровое | B14: Боро | C14: 2100 | E14: Петропавловск | F14: Петр | G14: 1400 | I14: 9.5 | J14: 1550 | K14: 2660
A15: Щучинск | B15: Щучи | C15: 2100 | E15: Талдыкорган | F15: Талд | G15: 1400 | I15: 10 | J15: 1600 | K15: 2800
E16: Тараз | F16: Тара | G16: 1400 | I16: + 0,5 кг | J16: 80 | K16: 140
A17: Актобе | B17: =LEFT(A17,4) -> Акто | C17: 1300 | D17: Актюбинская область | E17: Уральск | F17: Урал | G17: 1400 | I17: Зона 1 | J17: Актау | K17: =LEFT(J17,4) -> Акта | L17: 1550
A18: Хромтау | B18: =LEFT(A18,4) -> Хром | C18: 1400 | E18: Усть-Каменогорск | F18: Усть | G18: 1400 | J18: Актобе | K18: Акто | L18: 1550
E19: Туркестан | F19: Турк | G19: 1400
E20: Шымкент | F20: Шымк | G20: 1400 | J20: Алматы | K20: Алма | L20: 1550
A21: Алматы | B21: =LEFT(A21,4) -> Алма | C21: 1300 | D21: Алматинская область | J21: Астана | K21: Аста | L21: 1550
A22: Талдыкорган | B22: =LEFT(A22,4) -> Талд | C22: 1200 | J22: Атырау | K22: Атыр | L22: 1550
A23: Есик | B23: =LEFT(A23,4) -> Есик | C23: 1400 | J23: Караганда | K23: Кара | L23: 1550
A24: Жаркент | B24: Жарк | C24: 2100 | J24: Кокшетау | K24: Кокш | L24: 1550
A25: Капшагай | B25: Капш | C25: 1400 | J25: Костанай | K25: Кост | L25: 1550
A26: Каскелен | B26: Каск | C26: 1300 | J26: Кызылорда | K26: Кызы | L26: 1550
A27: Отеген Батыр | B27: Отег | C27: 1400 | E27: =D29 -> 0 | J27: Павлодар | K27: Павл | L27: 1550
A28: Сарыозек | B28: Сары | C28: 1400 | J28: Петропавловск | K28: Петр | L28: 1550
A29: Талгар | B29: Талг | C29: 1400 | J29: Талдыкорган | K29: Талд | L29: 1550
A30: Узынагаш | B30: Узын | C30: 1400 | J30: Тараз | K30: Тара | L30: 1550
A31: Уштобе | B31: Ушто | C31: 2100 | J31: Уральск | K31: Урал | L31: 1550
J32: Усть-Каменогорск | K32: Усть | L32: 1550
J33: Оскемен | K33: Оске | L33: 1550
A34: Атырау | B34: =LEFT(A34,4) -> Атыр | C34: 1300 | D34: Атырауская область | J34: Шымкент | K34: Шымк | L34: 1550
A35: Кульсары | B35: =LEFT(A35,4) -> Куль | C35: 2100
A36: Махамбет | B36: Маха | C36: 1650
I37: Зона 2
A38: Усть-Каменогорск | B38: Усть | C38: 1300 | D38: ВКО | I38: Акмолинская область
A39: Семей | B39: Семе | C39: 1200 | J39: Акколь | K39: =LEFT(J39,4) -> Акко | L39: 2100
A40: Семипалатинск | B40: Семи | C40: 1200 | J40: Акмол | K40: Акмо | L40: 2100
A41: Бородулиха | B41: =LEFT(A41,4) -> Боро | C41: 1400 | J41: Малиновка | K41: Мали | L41: 2100
A42: Зайсан | B42: Зайс | C42: 2100 | J42: Аршалы | K42: Арша | L42: 2100
A43: Зыряновск | B43: Зыря | C43: 2100 | J43: Астраханка | K43: Астр | L43: 2100
A44: Курчатов | B44: Курч | C44: 2100 | J44: Атбасар | K44: Атба | L44: 2100
A45: Риддер | B45: Ридд | C45: 2100 | J45: Балкашино | K45: Балк | L45: 2100
A46: Жаскент | B46: Жаск | C46: 2100 | J46: Викторовка | K46: Викт | L46: 2100
A47: Шемонаиха | B47: Шемо | C47: 2100 | J47: Державинск | K47: Держ | L47: 2100
A49: Тараз | B49: =LEFT(A49,4) -> Тара | C49: 1300 | D49: Жамбыльская область
A50: Аса | B50: Аса | C50: 2100 | J50: Егиндыколь | K50: Егин | L50: 2100
A51: Бауржан Момышулы | B51: Баур | C51: 2100 | J51: Ерментау | K51: Ерме | L51: 2100
A52: Жанатас | B52: Жана | C52: 4900 | J52: Есиль | K52: Есил | L52: 2100
A53: Каратау | B53: Кара | C53: 2100 | J53: Жаксы | K53: Жакс | L53: 2100
A54: Кордай | B54: Корд | C54: 2100 | J54: Зеренда | K54: Зере | L54: 2100
A55: Кулан | B55: Кула | C55: 2100 | J55: Коргалжын | K55: Корг | L55: 2100
A56: Мерке | B56: Мерк | C56: 2100 | J56: Макинск | K56: Маки | L56: 2100
A57: Мойынкум | B57: Мойы | C57: 3500 | J57: Сандыктау | K57: Санд | L57: 2100
A58: Сарыкемер | B58: Сары | C58: 2100 | J58: Степногорск | K58: Степ | L58: 2100
A59: Толе би | B59: Толе | C59: 2100 | J59: Степняк | K59: Степ | L59: 2100
A60: Шу | B60: Шу | C60: 2100 | J60: Шортанды | K60: Шорт | L60: 2100
J61: Щучинск | K61: Щучи | L61: 2100
A62: Уральск | B62: =LEFT(A62,4) -> Урал | C62: 1300 | D62: ЗКО
A63: Аксай | B63: Акса | C63: 2100 | I63: Актюбинская область
A64: Зачаганск | B64: Зача | C64: 1400 | J64: Алга | K64: =LEFT(J64,4) -> Алга | L64: 2100
A65: Мичурино | B65: Мичу | C65: 1400 | J65: Бадамша | K65: Бада | L65: 2100
A66: Плодоовощной | B66: Плод | C66: 1400 | J66: Иргиз | K66: Ирги | L66: 2100
A67: Селекционная | B67: Селе | C67: 1400 | J67: Кандыагаш | K67: Канд | L67: 2100
J68: Карауылкельды | K68: Кара | L68: 2100
A69: Караганда | B69: =LEFT(A69,4) -> Кара | C69: 1300 | D69: Карагандинская область | J69: Кобда | K69: Кобд | L69: 2100
A70: Абай | B70: =LEFT(A70,4) -> Абай | C70: 1400 | J70: Новоалексеевка | K70: Ново | L70: 2100
A71: Актас | B71: Акта | C71: 1400 | J71: Комсомольское | K71: Комс | L71: 2100
J72: Мартук | K72: Март | L72: 2100
A73: Балхаш | B73: Балх | C73: 1300 | J73: Уил | K73: Уил | L73: 2100
A74: Долинка | B74: Доли | C74: 1400 | J74: Хромтау | K74: Хром | L74: 2100
A75: Жезказган | B75: Жезк | C75: 1400 | J75: Шалкар | K75: Шалк | L75: 2100
A76: Сарань | B76: Сара | C76: 1400 | J76: Шубаркудук | K76: Шуба | L76: 2100
A77: Сатпаев | B77: Сатп | C77: 1400 | J77: Эмба | K77: Эмба | L77: 2100
A78: Темиртау | B78: Теми | C78: 1400
A79: Шахан | B79: Шаха | C79: 1400 | I79: Алматинская область
A80: Шахтинск | B80: Шахт | C80: 1400 | J80: Баканас | K80: =LEFT(J80,4) -> Бака | L80: 2100
J81: Балпык би | K81: Балп | L81: 2100
A82: Кызылорда | B82: =LEFT(A82,4) -> Кызы | C82: 1200 | D82: Кызылординская область | J82: Есик | K82: Есик | L82: 2100
J83: Жансугуров | K83: Жанс | L83: 2100
A84: Актау | B84: =LEFT(A84,4) -> Акта | C84: 1300 | D84: Мангистауская область | J84: Жаркент | K84: Жарк | L84: 2100
A85: Жанаозен | B85: =LEFT(A85,4) -> Жана | C85: 1400 | J85: Капшагай | K85: Капш | L85: 2100
A86: Курык | B86: Куры | C86: 1400 | J86: Карабулак | K86: Кара | L86: 2100
A87: Мангистау (ст.Мангышлак) | B87: Манг | C87: 1400 | J87: Каскелен | K87: Каск | L87: 2100
A88: Форт Шевченко | B88: Форт | C88: 1400 | J88: Кеген | K88: Кеге | L88: 2100
A89: Шетпе | B89: Шетп | C89: 1400 | J89: Отеген Батыра | K89: Отег | L89: 2100
A90: Баранколь (опорный) | B90: Бара | C90: 2500 | J90: Саркан | K90: Сарк | L90: 2100
A91: Бейнеу | B91: Бейн | C91: 2100 | J91: Сарыозек | K91: Сары | L91: 2100
J92: Талгар | K92: Талг | L92: 2100
A93: Павлодар | B93: =LEFT(A93,4) -> Павл | C93: 1200 | D93: Павлодарская область | J93: Текели | K93: Теке | L93: 2100
A94: Аксу | B94: =LEFT(A94,4) -> Аксу | C94: 1400 | J94: Узынагаш | K94: Узын | L94: 2100
A95: Экибастуз | B95: =LEFT(A95,4) -> Экиб | C95: 1300 | J95: Ушарал | K95: Ушар | L95: 2100
J96: Уштобе | K96: Ушто | L96: 2100
A97: Петропавловск | B97: =LEFT(A97,4) -> Петр | C97: 1300 | D97: СКО | J97: Шонжа | K97: Шонж | L97: 2100
A98: Бесколь (Бишкуль) | B98: =LEFT(A98,4) -> Беск | C98: 1400
A99: Булаево | B99: Була | C99: 2500 | I99: Атырауская область
A100: Кишкенеколь | B100: Кишк | C100: 3000 | J100: Аккыстау | K100: =LEFT(J100,4) -> Аккы | L100: 2100
A101: Мамлютка | B101: Мамл | C101: 3000 | J101: Ганюшкино | K101: Ганю | L101: 2100
A102: Новоишимский | B102: Ново | C102: 3000 | J102: Индерборский | K102: Инде | L102: 2100
A103: Саумалколь | B103: Саум | C103: 3000 | J103: Кульсары | K103: Куль | L103: 2100
A104: Сергеевка | B104: Серг | C104: 3000 | J104: Макат | K104: Мака | L104: 2100
A105: Смирново | B105: Смир | C105: 3000 | J105: Махамбет | K105: Маха | L105: 2100
A106: Тайынша | B106: Тайы | C106: 3000 | J106: Миялы | K106: Миял | L106: 2100
A107: Талшык | B107: Талш | C107: 3000
A108: Тимирязево | B108: Тими | C108: 3000 | I108: Восточно-Казахстанская область
A109: Явленка | B109: Явле | C109: 3000 | J109: Аксуат | K109: =LEFT(J109,4) -> Аксу | L109: 2100
J110: Аякоз | K110: Аяко | L110: 2100
A111: Костанай | B111: =LEFT(A111,4) -> Кост | C111: 0 | D111: Костанайская область | J111: Бескарагай | K111: Беск | L111: 2100
A112: Аркалык | B112: =LEFT(A112,4) -> Арка | C112: 2100 | J112: Большая Владимировка | K112: Боль | L112: 2100
A113: Аулиеколь | B113: Аули | C113: 1400 | J113: Большенарымское | K113: Боль | L113: 2100
A114: Боровское | B114: Боро | C114: 1400 | J114: Бородулиха | K114: Боро | L114: 2100
A115: Жетыгара | B115: Жеты | C115: 1400 | J115: Глубокое | K115: Глуб | L115: 2100
A116: Затобольск | B116: Зато | C116: 1400 | J116: Зайсан | K116: Зайс | L116: 2100
A117: Карабалык | B117: Кара | C117: 1400 | J117: Зыряновск | K117: Зыря | L117: 2100
A118: Караменды | B118: Кара | C118: 2800 | J118: Калбатау (Георгиевка) | K118: Калб | L118: 2100
A119: Карасу | B119: Кара | C119: 1400 | J119: Карааул | K119: Кара | L119: 2100
A120: Качар | B120: Кача | C120: 1400 | J120: Касыма Кайсенова | K120: Касы | L120: 2100
A121: Лисаковск | B121: Лиса | C121: 1400 | J121: Молодежное | K121: Моло | L121: 2100
A122: Рудный | B122: Рудн | C122: 1400 | J122: Кокпекты | K122: Кокп | L122: 2100
A123: Тобол | B123: Тобо | C123: 1400 | J123: Курчатов | K123: Курч | L123: 2100
A124: Узынколь | B124: Узын | C124: 1400 | J124: Курчум | K124: Курч | L124: 2100
A125: Федоровка | B125: Федо | C125: 1400 | J125: Риддер | K125: Ридд | L125: 2100
J126: Семей | K126: Семе | L126: 2100
A127: Шымкент | B127: =LEFT(A127,4) -> Шымк | C127: 1300 | D127: ЮКО | J127: Семипалатинск | K127: Семи | L127: 2100
A128: Аксукент | B128: =LEFT(A128,4) -> Аксу | C128: 2100 | J128: Урджар | K128: Урдж | L128: 2100
A129: Кентау | B129: Кент | C129: 2100 | J129: Шемонаиха | K129: Шемо | L129: 2100
A130: Ленгер | B130: Ленг | C130: 2100
A131: Сары агаш | B131: Сары | C131: 2800 | I131: Жамбыльская область
A132: Туркестан | B132: Турк | C132: 1300 | J132: Аса | K132: =LEFT(J132,4) -> Аса | L132: 2100
A133: Сайрам | B133: Сайр | C133: 2100 | J133: Бауржан Момышулы | K133: Баур | L133: 2100
A134: Тасай | B134: Таса | C134: 2100 | J134: Жанатас | K134: Жана | L134: 2100
J135: Каратау | K135: Кара | L135: 2100
J136: Кордай | K136: Корд | L136: 2100
J137: Кулан | K137: Кула | L137: 2100
J138: Мерке | K138: Мерк | L138: 2100
J139: Мойынкум | K139: Мойы | L139: 2100
J140: Сарыкемер | K140: Сары | L140: 2100
J141: Толе би | K141: Толе | L141: 2100
J142: Шу | K142: Шу | L142: 2100
I144: Западно-Казахстанская область | L144: 2100
J145: Аксай | K145: =LEFT(J145,4) -> Акса | L145: 2100
J146: Жангала | K146: Жанг | L146: 2100
J147: Жаныбек | K147: Жаны | L147: 2100
J148: Жимпиты | K148: Жимп | L148: 2100
J149: Казталовка | K149: Казт | L149: 2100
J150: Каратобе | K150: Кара | L150: 2100
J151: Переметное | K151: Пере | L151: 2100
J152: Сайхин | K152: Сайх | L152: 2100
J153: Таскала | K153: Таск | L153: 2100
J154: Федоровка | K154: Федо | L154: 2100
J155: Чапаев | K155: Чапа | L155: 2100
J156: Чингерлау | K156: Чинг | L156: 2100
I158: Западно-Казахстанская область (В черте Уральска) | L158: 2100
J159: Зачаганск | K159: =LEFT(J159,4) -> Зача | L159: 2100
J160: Маштаково | K160: =LEFT(J160,4) -> Машт | L160: 2100
J161: Мичурино | K161: =LEFT(J161,4) -> Мичу | L161: 2100
J162: Плодовощной | K162: =LEFT(J162,4) -> Плод | L162: 2100
J163: Селекционная | K163: =LEFT(J163,4) -> Селе | L163: 2100
I165: Карагандинская область
J166: Абай | K166: =LEFT(J166,4) -> Абай | L166: 2100
J167: Аксу-Аюлы | K167: Аксу | L167: 2100
J168: Актогай? | K168: Акто | L168: 2100
J169: Атасу | K169: Атас | L169: 2100
J170: Балхаш | K170: Балх | L170: 2100
J171: Ботакара | K171: Бота | L171: 2100
J172: Жезказган | K172: Жезк | L172: 2100
J173: Каражал | K173: Кара | L173: 2100
J174: Каркаралинск | K174: Карк | L174: 2100
J175: Киевка | K175: Киев | L175: 2100
J176: Осакаровка | K176: Осак | L176: 2100
J177: Приозерск | K177: Прио | L177: 2100
J178: Сарань | K178: Сара | L178: 2100
J179: Сатпаев | K179: Сатп | L179: 2100
J180: Темиртау | K180: Теми | L180: 2100
J181: Улытау | K181: Улыт | L181: 2100
J182: Шахтинск | K182: Шахт | L182: 2100
I184: Костанайская область
J185: Амангельды | K185: =LEFT(J185,4) -> Аман | L185: 2100
J186: Аркалык? | K186: Арка | L186: 2100
J187: Аулиеколь | K187: Аули | L187: 2100
J188: Боровское | K188: Боро | L188: 2100
J189: Денисовка | K189: Дени | L189: 2100
J190: Жетикара | K190: Жети | L190: 2100
J191: Затобольск | K191: Зато | L191: 2100
J192: Камысты | K192: Камы | L192: 2100
J193: Карабалык | K193: Кара | L193: 2100
J194: Караменды | K194: Кара | L194: 2100
J195: Карасу | K195: Кара | L195: 2100
J196: Лисаковск | K196: Лиса | L196: 2100
J197: Рудный | K197: Рудн | L197: 2100
J198: Сарыколь | K198: Сары | L198: 2100
J199: Тарановское | K199: Тара | L199: 2100
J200: Торгай | K200: Торг | L200: 2100
J201: Узынколь | K201: Узын | L201: 2100
J202: Федоровка | K202: Федо | L202: 2100
I204: Кызылординская область
J205: Айтеке би | K205: =LEFT(J205,4) -> Айте | L205: 2100
J206: Казалинск | K206: Каза | L206: 2100
... 58 more rows

Sheet +KASPI+ 9641++0
A1: =IF(LEFT(C29,2)="сп",P1&" ► СП",IF(E25=D26,P1,IF(H6<>0,P1&"++"&"0",IF(E25=D27,P1&"++"&"0",IF(E25=D28,P1&"++"&"0",IF(E25=D27,P1&"++"&"0",IF(E25=D28,P1&"++"&"0",IF(LEFT(C25,2)="AV",P1&"++"&F29,P1)))))))) -> +KASPI+ 9641++0 | B1: =L4 -> 2020-08-16T18:08:28 | C1: =IF(E2>0,"ОТПРАВЛЕНО",IF(LEFT(C29,3)="ЗАК","ЗАКАЗАНО в СПБ",IF(G24>=0,"ОПЛОЧЕНО","ОЖИДАНИЕ ОПЛАТЫ"))) -> ОТПРАВЛЕНО | D1: ='СПИСОК ЗАКАЗОВ'!B1 -> 21 | E1: 2020-08-18 | I1: =A1 -> +KASPI+ 9641++0 | K1: Заказ № 9641 | P1: =IF(G24>0,"+"&H6&"+"&Q1,Q1) -> +KASPI+ 9641 | Q1: =ПоискСКонца(K1,"№") -> 9641
A2: Логин | B2: =L3 -> 0 | C2: Номер накл-ой | E2: 3611555 | K2: Примечание
A3: ФИО | B3: =IF(C32=0,UPPER((P9)),UPPER(C33)) -> КУЗНЕЦОВА ЛАРИСА | K3: Логин
A4: Телефон | B4: =R12 -> 7-771-835-95-68 0---- ---- | E4: =IF(F4>0.5,"оплачено",IF(F4<0,"ОПЛАТИТЬ= "&G4,"ОПЛАТИТЬ= "&Q25)) -> ОПЛАТИТЬ= 1400 | F4: 0 | G4: 1100 | K4: Дата заказа | L4: 2020-08-16T18:08:28
A5: e-mail: | B5: =L11 -> -
A6: Вес | B6: ПРИМЕЧАНИЯ | C6: Наименование | D6: Кол-во | E6: Цена | F6: Всего | G6: =IF(MAX(G7:G25)>0,MAX(G7:G25),"") -> 2020-08-21 | H6: =IF(I7>0,"НАЛ",IF(I8>0,"ПЕРЕВОД",IF(I9>0,"Beeline",IF(I10>0,"KASPI",IF(I11>0,"QIWI",IF(I12>0,"СЧЁТ Альфа-Банк",0)))))) -> KASPI | I6: =SUM(I7:I28) -> 4880
A7: =IF(L24>0,Q24*1/100,"") ->  | B7: списано | C7: =IF(L26<>"",K26,"") -> Неодимовый магнит D20x10mm(Аксиал)`42 (сила притяжения 14 кг) | D7: =IF(L26>0,L26,"") -> 4 | E7: =IF(M26="уточняйте",0,IF(L26>0,M26,"")) -> 870 | F7: =IF(D7<>"",E7*D7,"") -> 3480 | G7: =IF(I7 >0,TODAY(),"") ->  | H7: НАЛ | J7: =IFERROR(IFERROR(VLOOKUP(C7,#REF!,3,0)*D7,VLOOKUP(C7,#REF!,7,0)*D7),"нет веса") -> нет веса | K7: Заказ №9641
A8: =IF(L25>0,Q25*1/100,"") -> 14 | C8: =IF(L27<>"",K27,"") ->  | D8: =IF(L27>0,L27,"") ->  | E8: =IF(M27="уточняйте",0,IF(L27>0,M27,"")) ->  | H8: ПЕРЕВОД | J8: =IFERROR(IFERROR(VLOOKUP(C8,#REF!,3,0)*D8,VLOOKUP(C8,#REF!,7,0)*D8),"нет веса") -> нет веса
A9: =IF(L26>0,Q26*1/100,"") -> 0.94 | H9: Beeline | J9: =IFERROR(IFERROR(VLOOKUP(C9,#REF!,3,0)*D9,VLOOKUP(C9,#REF!,7,0)*D9),"нет веса") -> нет веса | K9: Здравствуйте, Кузнецова Лариса | P9: =MID(K9,15,70) -> Кузнецова Лариса | Q9: =TEXT(SUM(MID(0&L9,LARGE(ISNUMBER(-MID(L9,ROW($1:$96),1))*ROW($1:$96),ROW($1:$23)+15)+1,1)*10^ROW($1:$23)/10),REPT(0,MIN(MAX(COUNT(1/(MID(L9,ROW($1:$96),1)+1))-15,),15)))&TEXT(SUM(MID(0&L9,LARGE(ISNUMBER(-MID(L9,ROW($1:$96),1))*ROW($1:$96),ROW($1:$23))+1,1)*10^ROW($1:$23)/10),REPT(0,MIN(COUNT(1/(MID(L9,ROW($1:$96),1)+1)),15))) -> 
G10: 2020-08-21 | H10: KASPI | I10: =F29 -> 4880 | J10: =IFERROR(IFERROR(VLOOKUP(C10,#REF!,3,0)*D10,VLOOKUP(C10,#REF!,7,0)*D10),"нет веса") -> нет веса | K10: Мы получили Ваш заказ номер, 9641
H11: QIWI | J11: =IFERROR(IFERROR(VLOOKUP(C11,#REF!,3,0)*D11,VLOOKUP(C11,#REF!,7,0)*D11),"нет веса") -> нет веса | K11: Электронная почта: | L11: -
H12: СЧЁТ Альфа-Банк | J12: =IFERROR(IFERROR(VLOOKUP(C12,#REF!,3,0)*D12,VLOOKUP(C12,#REF!,7,0)*D12),"нет веса") -> нет веса | K12: Контактный телефон: | L12: +7 (771) 835-95-68 | P12: =(L12&" "&P13) -> +7 (771) 835-95-68 0 | Q12: =TEXT(SUM(MID(0&P12,LARGE(ISNUMBER(-MID(P12,ROW($1:$99),1))*ROW($1:$99),ROW($1:$15)+30)+1,1)*10^ROW($1:$15)/10),REPT(0,MIN(MAX(COUNT(1/(MID(P12,ROW($1:$99),1)+1))-30,),15)))&TEXT(SUM(MID(0&P12,LARGE(ISNUMBER(-MID(P12,ROW($1:$99),1))*ROW($1:$99),ROW($1:$15)+15)+1,1)*10^ROW($1:$15)/10),REPT(0,MIN(MAX(COUNT(1/(MID(P12,ROW($1:$99),1)+1))-15,),15)))&TEXT(SUM(MID(0&P12,LARGE(ISNUMBER(-MID(P12,ROW($1:$99),1))*ROW($1:$99),ROW($1:$15))+1,1)*10^ROW($1:$15)/10),REPT(0,MIN(COUNT(1/(MID(P12,ROW($1:$99),1)+1)),15))) -> 777183595680 | R12: =(MID(Q12,1,1))&"-"&(MID(Q12,2,3))&"-"&(MID(Q12,5,3))&"-"&(MID(Q12,8,2))&"-"&(MID(Q12,10,2))&" "&(MID(Q12,12,1))&"-"&(MID(Q12,13,3))&"-"&(MID(Q12,16,3))&"-"&(MID(Q12,19,2))&"-"&(MID(Q12,21,2))&" "&(MID(Q12,23,1))&"-"&(MID(Q12,24,3))&"-"&(MID(Q12,27,3))&"-"&(MID(Q12,30,2))&"-"&(MID(Q12,32,2)) -> 7-771-835-95-68 0---- ----
J13: =IFERROR(IFERROR(VLOOKUP(C13,#REF!,3,0)*D13,VLOOKUP(C13,#REF!,7,0)*D13),"нет веса") -> нет веса | K13: Доставка: | L13: - | P13: =IF(L13="-",IFERROR(НайтиСтрокуПоСлову("Комментарий",K27:K60),0),L13) -> 0
J14: =IFERROR(IFERROR(VLOOKUP(C14,#REF!,3,0)*D14,VLOOKUP(C14,#REF!,7,0)*D14),"нет веса") -> нет веса | K14: Оплата: | L14: - | P14: =MID(L14,23,70) -> 
J15: =IFERROR(IFERROR(VLOOKUP(C15,#REF!,3,0)*D15,VLOOKUP(C15,#REF!,7,0)*D15),"нет веса") -> нет веса | P15: =IF(LEFT(P14,2)="EX",MID(L15,11,70),L15) -> 0 | Q15: =TEXT(SUM(MID(0&P15,LARGE(ISNUMBER(-MID(P15,ROW($1:$88),1))*ROW($1:$88),ROW($1:$15)+15)+1,1)*10^ROW($1:$15)/10),REPT(0,MIN(MAX(COUNT(1/(MID(P15,ROW($1:$88),1)+1))-15,),15)))&TEXT(SUM(MID(0&P15,LARGE(ISNUMBER(-MID(P15,ROW($1:$88),1))*ROW($1:$88),ROW($1:$15))+1,1)*10^ROW($1:$15)/10),REPT(0,MIN(COUNT(1/(MID(P15,ROW($1:$88),1)+1)),15))) -> 0 | R15: =SUMPRODUCT(--SUBSTITUTE(Q15:Q15,CHAR(160),)) -> 0 | S15: =LEN(Q15) -> 1 | T15: =FLOOR(S15/3,1) -> 0
J16: =IFERROR(IFERROR(VLOOKUP(C16,#REF!,3,0)*D16,VLOOKUP(C16,#REF!,7,0)*D16),"нет веса") -> нет веса | K16: Адрес доставки: | L16: Индекс: | P16: =MID(L16,9,70) -> 
J17: =IFERROR(IFERROR(VLOOKUP(C17,#REF!,3,0)*D17,VLOOKUP(C17,#REF!,7,0)*D17),"нет веса") -> нет веса | L17: Страна: | P17: =MID(L17,9,70) ->  | Q17: =IF(LEFT(K17,4)="ваша",VALUE(MID(K17,13,20))*100,0) -> 0
J18: =IFERROR(IFERROR(VLOOKUP(C18,#REF!,3,0)*D18,VLOOKUP(C18,#REF!,7,0)*D18),"нет веса") -> нет веса | L18: Область: | P18: =MID(L18,10,70) -> 
J19: =IFERROR(IFERROR(VLOOKUP(C19,#REF!,3,0)*D19,VLOOKUP(C19,#REF!,7,0)*D19),"нет веса") -> нет веса | L19: Город: Тараз | P19: =MID(L19,8,70) -> Тараз | Q19: =IF(LEFT(K19,4)="ваша",VALUE(MID(K19,13,20))*100,0) -> 0
J20: =IFERROR(IFERROR(VLOOKUP(C20,#REF!,3,0)*D20,VLOOKUP(C20,#REF!,7,0)*D20),"нет веса") -> нет веса | L20: Улица: Перепелкина | P20: =MID(L20,8,70) -> Перепелкина | Q20: =IF(LEFT(K31,4)="ваша",VALUE(MID(K31,13,20))*100,0) -> 0
J21: =IFERROR(IFERROR(VLOOKUP(C21,#REF!,3,0)*D21,VLOOKUP(C21,#REF!,7,0)*D21),"нет веса") -> нет веса | L21: Здание: 36 | P21: =MID(L21,9,70) -> 36 | Q21: =IF(LEFT(K32,4)="ваша",VALUE(MID(K32,13,20))*100,0) -> 0
J22: =IFERROR(IFERROR(VLOOKUP(C22,#REF!,3,0)*D22,VLOOKUP(C22,#REF!,7,0)*D22),"нет веса") -> нет веса | L22: Квартира: - | P22: =MID(L22,11,70) -> - | Q22: =IF(LEFT(#REF!,4)="ваша",VALUE(MID(#REF!,13,20))*100,0) -> 
E23: Итого: | F23: =SUM(F7:F22) -> 3480 | J23: =IF(K40>0,M40,"") ->  | K23: Комментарий : | Q23: =IF(LEFT(K33,4)="ваша",VALUE(MID(K33,13,20))*100,0) -> 0
A24: =IF(L41>0,N41,"") ->  | D24: скидка: | E24: =IF(F23>150000,10,IF(F23>100000,8,IF(F23>60000,5,IF(F23>30000,3,0)))) -> 0 | F24: =F23-(F23*E24/100) -> 3480 | G24: =IFERROR(SUM(I7:I22)-F29+1,0) -> 1 | P24: =N24 -> 0 | Q24: =TEXT(SUM(MID(0&P24,LARGE(ISNUMBER(-MID(P24,ROW($1:$88),1))*ROW($1:$88),ROW($1:$15)+15)+1,1)*10^ROW($1:$15)/10),REPT(0,MIN(MAX(COUNT(1/(MID(P24,ROW($1:$88),1)+1))-15,),15)))&TEXT(SUM(MID(0&P24,LARGE(ISNUMBER(-MID(P24,ROW($1:$88),1))*ROW($1:$88),ROW($1:$15))+1,1)*10^ROW($1:$15)/10),REPT(0,MIN(COUNT(1/(MID(P24,ROW($1:$88),1)+1)),15))) -> 0
A25: =SUM(A7:A23)/1000*1.3 -> 0.019422 | C25: =IF(E25=F26,"Доставка БЕСПЛАТНО",IF(E25=D26,C26,IF(E25=D27,C27,IF(E25=D28,C28,IF(E25=F27,C27&" + НПл",IF(E25=F28,C28&" + НПл","Укажите ТК")))))) -> AVIS EXPRESS Тараз | D25: 2 | E25: =D28 -> 1400 | G25: =IF(I25 >0,TODAY(),"") ->  | J25: =SUM(J7:J22)/1000 -> 0 | K25: Наименование | L25: Количество | M25: Цена | N25: Вес | O25: Всего | P25: =E25 -> 1400 | Q25: =TEXT(SUM(MID(0&P25,LARGE(ISNUMBER(-MID(P25,ROW($1:$88),1))*ROW($1:$88),ROW($1:$15)+15)+1,1)*10^ROW($1:$15)/10),REPT(0,MIN(MAX(COUNT(1/(MID(P25,ROW($1:$88),1)+1))-15,),15)))&TEXT(SUM(MID(0&P25,LARGE(ISNUMBER(-MID(P25,ROW($1:$88),1))*ROW($1:$88),ROW($1:$15))+1,1)*10^ROW($1:$15)/10),REPT(0,MIN(COUNT(1/(MID(P25,ROW($1:$88),1)+1)),15))) -> 1400 | R25: =E25 -> 1400 | S25: =TEXT(SUM(MID(0&R25,LARGE(ISNUMBER(-MID(R25,ROW($1:$88),1))*ROW($1:$88),ROW($1:$15)+15)+1,1)*10^ROW($1:$15)/10),REPT(0,MIN(MAX(COUNT(1/(MID(R25,ROW($1:$88),1)+1))-15,),15)))&TEXT(SUM(MID(0&R25,LARGE(ISNUMBER(-MID(R25,ROW($1:$88),1))*ROW($1:$88),ROW($1:$15))+1,1)*10^ROW($1:$15)/10),REPT(0,MIN(COUNT(1/(MID(R25,ROW($1:$88),1)+1)),15))) -> 1400 | U25: =TEXT(SUM(MID(0&E25,LARGE(ISNUMBER(-MID(E25,ROW($1:$88),1))*ROW($1:$88),ROW($1:$15)+15)+1,1)*10^ROW($1:$15)/10),REPT(0,MIN(MAX(COUNT(1/(MID(E25,ROW($1:$88),1)+1))-15,),15)))&TEXT(SUM(MID(0&E25,LARGE(ISNUMBER(-MID(E25,ROW($1:$88),1))*ROW($1:$88),ROW($1:$15))+1,1)*10^ROW($1:$15)/10),REPT(0,MIN(COUNT(1/(MID(E25,ROW($1:$88),1)+1)),15))) -> 
C26: =IFERROR("AVIS С А М О В Ы В О З "&" "&VLOOKUP((LEFT(B34,(LEN(B34)))),'ТАРИФЫ ТК'!J17:L268,1,0),"НЕТ ДОСТАВКИ") -> AVIS С А М О В Ы В О З Тараз | D26: =IFERROR(VLOOKUP((LEFT(B34,(LEN(B34)))),'ТАРИФЫ ТК'!J17:L268,3,0)+0.001,"НЕТ ДОСТАВКИ") -> 1550.001 | E26: =IFERROR(F24+D26,"НЕТ ДОСТАВКИ") -> 5030.001 | F26: =IFERROR(D26&" + НПл","НЕТ ДОСТАВКИ") -> 1550,001 + НПл | G26: =IFERROR(CEILING((F24+D26)*(1+$D$25/100),50),0) -> 5150 | K26: Неодимовый магнит D20x10mm(Аксиал)`42 (сила притяжения 14 кг) | L26: 4 | M26: 870 | N26: 94 | O26: 3480 | P26: =N26 -> 94 | Q26: =TEXT(SUM(MID(0&P26,LARGE(ISNUMBER(-MID(P26,ROW($1:$88),1))*ROW($1:$88),ROW($1:$15)+15)+1,1)*10^ROW($1:$15)/10),REPT(0,MIN(MAX(COUNT(1/(MID(P26,ROW($1:$88),1)+1))-15,),15)))&TEXT(SUM(MID(0&P26,LARGE(ISNUMBER(-MID(P26,ROW($1:$88),1))*ROW($1:$88),ROW($1:$15))+1,1)*10^ROW($1:$15)/10),REPT(0,MIN(COUNT(1/(MID(P26,ROW($1:$88),1)+1)),15))) -> 94
C27: =IFERROR("AVIS Econom"&" "&VLOOKUP((LEFT(B34,(LEN(B34)))),'ТАРИФЫ ТК'!A4:A134,1,0),"НЕТ ДОСТАВКИ") -> AVIS Econom Тараз | D27: =IFERROR(VLOOKUP((LEFT(B34,(LEN(B34)))),'ТАРИФЫ ТК'!A4:C134,3,0),"НЕТ ДОСТАВКИ") -> 1300 | E27: =IFERROR(F24+D27,"НЕТ ДОСТАВКИ") -> 4780 | F27: =IFERROR(D27&" + НПл","НЕТ ДОСТАВКИ") -> 1300 + НПл | G27: =IFERROR(CEILING((F24+D27)*(1+$D$25/100),50),0) -> 4900 | K27: Общий вес:94 | P27: 0 | Q27: =TEXT(SUM(MID(0&P27,LARGE(ISNUMBER(-MID(P27,ROW($1:$88),1))*ROW($1:$88),ROW($1:$15)+15)+1,1)*10^ROW($1:$15)/10),REPT(0,MIN(MAX(COUNT(1/(MID(P27,ROW($1:$88),1)+1))-15,),15)))&TEXT(SUM(MID(0&P27,LARGE(ISNUMBER(-MID(P27,ROW($1:$88),1))*ROW($1:$88),ROW($1:$15))+1,1)*10^ROW($1:$15)/10),REPT(0,MIN(COUNT(1/(MID(P27,ROW($1:$88),1)+1)),15))) -> 0
C28: =IFERROR(IF(A29<1,"AVIS EXPRESS"&" "&VLOOKUP((LEFT(B34,(LEN(B34)))),'ТАРИФЫ ТК'!E4:G20,1,0),"AV ВИМАНИЕ: В Е С П О С Ы Л К И Б О Л Ь Ш Е 0,5 КГ !!!"),"НЕТ ДОСТАВКИ") -> AVIS EXPRESS Тараз | D28: =IFERROR(VLOOKUP((LEFT(B34,(LEN(B34)))),'ТАРИФЫ ТК'!E4:G20,3,0),"НЕТ ДОСТАВКИ") -> 1400 | E28: =IFERROR(F24+D28,"НЕТ ДОСТАВКИ") -> 4880 | F28: =D28&" + НПл" -> 1400 + НПл | G28: =IFERROR(CEILING((F24+D28)*(1+$D$25/100),50),"НЕТ ДОСТАВКИ") -> 5000 | K28: Итого:3500 | P28: 0 | Q28: =TEXT(SUM(MID(0&P28,LARGE(ISNUMBER(-MID(P28,ROW($1:$88),1))*ROW($1:$88),ROW($1:$15)+15)+1,1)*10^ROW($1:$15)/10),REPT(0,MIN(MAX(COUNT(1/(MID(P28,ROW($1:$88),1)+1))-15,),15)))&TEXT(SUM(MID(0&P28,LARGE(ISNUMBER(-MID(P28,ROW($1:$88),1))*ROW($1:$88),ROW($1:$15))+1,1)*10^ROW($1:$15)/10),REPT(0,MIN(COUNT(1/(MID(P28,ROW($1:$88),1)+1)),15))) -> 0
A29: =IFERROR(A25*1.5,"Количество ??") -> 0.029133 | D29: К ОПЛАТЕ: | E29: =IFERROR(F24+E25,0) -> 4880 | F29: =IF(E25=C29,"Доставка БЕСПЛАТНО",IF(E25=D26,E26,IF(E25=D27,E27,IF(E25=D28,E28,IF(E25=F27,G27,IF(E25=F28,G28,IF(E25=F26,G26,"Укажите ТК"))))))) -> 4880 | G29: =IFERROR(CEILING((F24+E25)*1.03,50),0) -> 5050 | J29: =IFERROR(J25*1.5,"Количество ??") -> 0 | P29: 0 | Q29: =TEXT(SUM(MID(0&P29,LARGE(ISNUMBER(-MID(P29,ROW($1:$88),1))*ROW($1:$88),ROW($1:$15)+15)+1,1)*10^ROW($1:$15)/10),REPT(0,MIN(MAX(COUNT(1/(MID(P29,ROW($1:$88),1)+1))-15,),15)))&TEXT(SUM(MID(0&P29,LARGE(ISNUMBER(-MID(P29,ROW($1:$88),1))*ROW($1:$88),ROW($1:$15))+1,1)*10^ROW($1:$15)/10),REPT(0,MIN(COUNT(1/(MID(P29,ROW($1:$88),1)+1)),15))) -> 0
A30: rc11091kz | C30: =IFERROR((P14&" "&LEFT(P15,8)&" = "&TEXT(R15,"### ### ###")&" т."),"НЕТ ДОСТАВКИ") -> 0 = т. | E30: =IFERROR("QIWI = "&CEILING((E26*1.02),10),0) -> QIWI = 5140 | F30: =IFERROR(F29-F24,"УКАЖИТЕ ТК") -> 1400 | P30: 0 | Q30: =TEXT(SUM(MID(0&P30,LARGE(ISNUMBER(-MID(P30,ROW($1:$88),1))*ROW($1:$88),ROW($1:$15)+15)+1,1)*10^ROW($1:$15)/10),REPT(0,MIN(MAX(COUNT(1/(MID(P30,ROW($1:$88),1)+1))-15,),15)))&TEXT(SUM(MID(0&P30,LARGE(ISNUMBER(-MID(P30,ROW($1:$88),1))*ROW($1:$88),ROW($1:$15))+1,1)*10^ROW($1:$15)/10),REPT(0,MIN(COUNT(1/(MID(P30,ROW($1:$88),1)+1)),15))) -> 0
A31: =A1 -> +KASPI+ 9641++0 | B31: ПОЛУЧАТЕЛЬ: | C31: rc11091kz | P31: 0 | Q31: =TEXT(SUM(MID(0&P31,LARGE(ISNUMBER(-MID(P31,ROW($1:$88),1))*ROW($1:$88),ROW($1:$15)+15)+1,1)*10^ROW($1:$15)/10),REPT(0,MIN(MAX(COUNT(1/(MID(P31,ROW($1:$88),1)+1))-15,),15)))&TEXT(SUM(MID(0&P31,LARGE(ISNUMBER(-MID(P31,ROW($1:$88),1))*ROW($1:$88),ROW($1:$15))+1,1)*10^ROW($1:$15)/10),REPT(0,MIN(COUNT(1/(MID(P31,ROW($1:$88),1)+1)),15))) -> 0
A32: =UPPER((B3)) -> КУЗНЕЦОВА ЛАРИСА | C32: =IFERROR(MID(НайтиСтрокуПоСлову("Комментарий: Имя :",K1:K45),20,99),0) -> 0 | K32: Назад | P32: 0 | Q32: =TEXT(SUM(MID(0&P32,LARGE(ISNUMBER(-MID(P32,ROW($1:$88),1))*ROW($1:$88),ROW($1:$15)+15)+1,1)*10^ROW($1:$15)/10),REPT(0,MIN(MAX(COUNT(1/(MID(P32,ROW($1:$88),1)+1))-15,),15)))&TEXT(SUM(MID(0&P32,LARGE(ISNUMBER(-MID(P32,ROW($1:$88),1))*ROW($1:$88),ROW($1:$15))+1,1)*10^ROW($1:$15)/10),REPT(0,MIN(COUNT(1/(MID(P32,ROW($1:$88),1)+1)),15))) -> 0
A33: Область: | B33: =UPPER((P18)) ->  | C33: =IFERROR(ПоискСНачала(C32,"Телефон"),0) -> 0 | E33: =IFERROR(ПоискМежду(C32,"Телефон :","Примечание"),0) -> 0 | F33: =IFERROR(IF(LEFT(ПоискСКонца(C32,"Примечание : "),2)="г ",MID(ПоискСКонца(C32,"Примечание : "),3,99),IF(LEFT(ПоискСКонца(C32,"Примечание : "),3)="г. ",MID(ПоискСКонца(C32,"Примечание : "),4,99),IF(LEFT(ПоискСКонца(C32,"Примечание : "),3)="гор",MID(ПоискСКонца(C32,"Примечание : "),6,99),0))),0) -> 0 | P33: 0 | Q33: =TEXT(SUM(MID(0&P33,LARGE(ISNUMBER(-MID(P33,ROW($1:$88),1))*ROW($1:$88),ROW($1:$15)+15)+1,1)*10^ROW($1:$15)/10),REPT(0,MIN(MAX(COUNT(1/(MID(P33,ROW($1:$88),1)+1))-15,),15)))&TEXT(SUM(MID(0&P33,LARGE(ISNUMBER(-MID(P33,ROW($1:$88),1))*ROW($1:$88),ROW($1:$15))+1,1)*10^ROW($1:$15)/10),REPT(0,MIN(COUNT(1/(MID(P33,ROW($1:$88),1)+1)),15))) -> 0
A34: Город: | B34: =UPPER((P19)) -> ТАРАЗ | P34: 0 | Q34: =TEXT(SUM(MID(0&P34,LARGE(ISNUMBER(-MID(P34,ROW($1:$88),1))*ROW($1:$88),ROW($1:$15)+15)+1,1)*10^ROW($1:$15)/10),REPT(0,MIN(MAX(COUNT(1/(MID(P34,ROW($1:$88),1)+1))-15,),15)))&TEXT(SUM(MID(0&P34,LARGE(ISNUMBER(-MID(P34,ROW($1:$88),1))*ROW($1:$88),ROW($1:$15))+1,1)*10^ROW($1:$15)/10),REPT(0,MIN(COUNT(1/(MID(P34,ROW($1:$88),1)+1)),15))) -> 0
A35: Улица: | B35: =UPPER((P20)) -> ПЕРЕПЕЛКИНА | P35: 0 | Q35: =TEXT(SUM(MID(0&P35,LARGE(ISNUMBER(-MID(P35,ROW($1:$88),1))*ROW($1:$88),ROW($1:$15)+15)+1,1)*10^ROW($1:$15)/10),REPT(0,MIN(MAX(COUNT(1/(MID(P35,ROW($1:$88),1)+1))-15,),15)))&TEXT(SUM(MID(0&P35,LARGE(ISNUMBER(-MID(P35,ROW($1:$88),1))*ROW($1:$88),ROW($1:$15))+1,1)*10^ROW($1:$15)/10),REPT(0,MIN(COUNT(1/(MID(P35,ROW($1:$88),1)+1)),15))) -> 0
A36: Здание: | B36: =P21 -> 36 | P36: 0 | Q36: =TEXT(SUM(MID(0&P36,LARGE(ISNUMBER(-MID(P36,ROW($1:$88),1))*ROW($1:$88),ROW($1:$15)+15)+1,1)*10^ROW($1:$15)/10),REPT(0,MIN(MAX(COUNT(1/(MID(P36,ROW($1:$88),1)+1))-15,),15)))&TEXT(SUM(MID(0&P36,LARGE(ISNUMBER(-MID(P36,ROW($1:$88),1))*ROW($1:$88),ROW($1:$15))+1,1)*10^ROW($1:$15)/10),REPT(0,MIN(COUNT(1/(MID(P36,ROW($1:$88),1)+1)),15))) -> 0
A37: Квартира: | B37: =P22 -> - | P37: 0 | Q37: =TEXT(SUM(MID(0&P37,LARGE(ISNUMBER(-MID(P37,ROW($1:$88),1))*ROW($1:$88),ROW($1:$15)+15)+1,1)*10^ROW($1:$15)/10),REPT(0,MIN(MAX(COUNT(1/(MID(P37,ROW($1:$88),1)+1))-15,),15)))&TEXT(SUM(MID(0&P37,LARGE(ISNUMBER(-MID(P37,ROW($1:$88),1))*ROW($1:$88),ROW($1:$15))+1,1)*10^ROW($1:$15)/10),REPT(0,MIN(COUNT(1/(MID(P37,ROW($1:$88),1)+1)),15))) -> 0
A38: Телефон: | B38: =B4 -> 7-771-835-95-68 0---- ---- | P38: 0 | Q38: =TEXT(SUM(MID(0&P38,LARGE(ISNUMBER(-MID(P38,ROW($1:$88),1))*ROW($1:$88),ROW($1:$15)+15)+1,1)*10^ROW($1:$15)/10),REPT(0,MIN(MAX(COUNT(1/(MID(P38,ROW($1:$88),1)+1))-15,),15)))&TEXT(SUM(MID(0&P38,LARGE(ISNUMBER(-MID(P38,ROW($1:$88),1))*ROW($1:$88),ROW($1:$15))+1,1)*10^ROW($1:$15)/10),REPT(0,MIN(COUNT(1/(MID(P38,ROW($1:$88),1)+1)),15))) -> 0
A39: Индекс: | B39: =P16 ->  | Q39: =IF(LEFT(#REF!,4)="ваша",VALUE(MID(#REF!,13,20))*100,0) -> 
A40: Компания: | Q40: =IF(LEFT(#REF!,4)="ваша",VALUE(MID(#REF!,13,20))*100,0) -> 
A41: ИИН: | B41: =F29 -> 4880 | Q41: =IF(LEFT(#REF!,4)="ваша",VALUE(MID(#REF!,13,20))*100,0) -> 
A42: ------------------------ | B42: ---------------------------------------------------- | C42: ---------------------------------------------------- | D42: ------------------------ | E42: ------------------------ | F42: --------------------------- | G42: ------------------------------ | H42: ------------------------ | I42: ------------------------ | Q42: =SUM(Q19:Q41) -> 

Sheet +KASPI+1200820_2++0
A1: =IF(LEFT(C29,2)="сп",P1&" ► СП",IF(E25=D26,P1,IF(H6<>0,P1&"++"&"0",IF(E25=D27,P1&"++"&"0",IF(E25=D28,P1&"++"&"0",IF(E25=D27,P1&"++"&"0",IF(E25=D28,P1&"++"&"0",IF(LEFT(C25,2)="AV",P1&"++"&F29,P1)))))))) -> +KASPI+1200820_2++0 | B1: 2020-08-12 | C1: =IF(E2>0,"ОТПРАВЛЕНО",IF(LEFT(C29,3)="ЗАК","ЗАКАЗАНО в СПБ",IF(G24>=0,"ОПЛОЧЕНО","ОЖИДАНИЕ ОПЛАТЫ"))) -> ОТПРАВЛЕНО | D1: ='СПИСОК ЗАКАЗОВ'!B1 -> 21 | E1: 2020-08-17 | I1: =A1 -> +KASPI+1200820_2++0 | K1: 1200820_2 | P1: =IF(G24>0,"+"&H6&"+"&Q1,Q1) -> +KASPI+1200820_2 | Q1: =ПоискСКонца(K1,"№") -> 1200820_2
A2: Логин | B2: =L3 -> Логин | C2: Номер накл-ой | E2: 3611551 | K2: Примечание
A3: ФИО | B3: =IF(C32=0,UPPER((P9)),UPPER(C33)) -> АДИЛХАНОВ БАХТИАР | K3: Логин | L3: Логин
A4: Телефон | B4: =R12 -> 8-776-640-42-21 0---- ---- | E4: =IF(F4>0.5,"оплачено",IF(F4<0,"ОПЛАТИТЬ= "&G4,"ОПЛАТИТЬ= "&Q25)) -> ОПЛАТИТЬ= 1400 | F4: 0 | G4: 1100 | K4: Дата заказа | L4: дата заказа
A5: e-mail: | B5: =L11 -> мыло
A6: Вес | B6: ПРИМЕЧАНИЯ | C6: Наименование | D6: Кол-во | E6: Цена | F6: Всего | G6: =IF(MAX(G7:G25)>0,MAX(G7:G25),"") -> 2020-08-21 | H6: =IF(I7>0,"НАЛ",IF(I8>0,"ПЕРЕВОД",IF(I9>0,"Beeline",IF(I10>0,"KASPI",IF(I11>0,"QIWI",IF(I12>0,"СЧЁТ Альфа-Банк",0)))))) -> KASPI | I6: =SUM(I7:I28) -> 19400
A7: =IF(L24>0,Q24*1/100,"") ->  | B7: списано | C7: Неодимовый магнит D5x1mm(Аксиал)`42 (сила притяжения 0,2 кг) | D7: 1000 | E7: 18 | F7: =IF(D7<>"",E7*D7,"") -> 18000 | G7: =IF(I7 >0,TODAY(),"") ->  | H7: НАЛ | J7: =IFERROR(IFERROR(VLOOKUP(C7,#REF!,3,0)*D7,VLOOKUP(C7,#REF!,7,0)*D7),"нет веса") -> нет веса | K7: Заказ №2080
A8: =IF(L25>0,Q25*1/100,"") ->  | C8: =IF(L27<>"",K27,"") ->  | D8: =IF(L27>0,L27,"") ->  | E8: =IF(M27="уточняйте",0,IF(L27>0,M27,"")) ->  | H8: ПЕРЕВОД | J8: =IFERROR(IFERROR(VLOOKUP(C8,#REF!,3,0)*D8,VLOOKUP(C8,#REF!,7,0)*D8),"нет веса") -> нет веса
A9: =IF(L26>0,Q26*1/100,"") ->  | H9: Beeline | J9: =IFERROR(IFERROR(VLOOKUP(C9,#REF!,3,0)*D9,VLOOKUP(C9,#REF!,7,0)*D9),"нет веса") -> нет веса | K9: Здравствуйте, Адилханов Бахтиар | P9: =MID(K9,15,70) -> Адилханов Бахтиар | Q9: =TEXT(SUM(MID(0&L9,LARGE(ISNUMBER(-MID(L9,ROW($1:$96),1))*ROW($1:$96),ROW($1:$23)+15)+1,1)*10^ROW($1:$23)/10),REPT(0,MIN(MAX(COUNT(1/(MID(L9,ROW($1:$96),1)+1))-15,),15)))&TEXT(SUM(MID(0&L9,LARGE(ISNUMBER(-MID(L9,ROW($1:$96),1))*ROW($1:$96),ROW($1:$23))+1,1)*10^ROW($1:$23)/10),REPT(0,MIN(COUNT(1/(MID(L9,ROW($1:$96),1)+1)),15))) -> 
G10: 2020-08-21 | H10: KASPI | I10: =F29 -> 19400 | J10: =IFERROR(IFERROR(VLOOKUP(C10,#REF!,3,0)*D10,VLOOKUP(C10,#REF!,7,0)*D10),"нет веса") -> нет веса | K10: Мы получили Ваш заказ номер, 2080
H11: QIWI | J11: =IFERROR(IFERROR(VLOOKUP(C11,#REF!,3,0)*D11,VLOOKUP(C11,#REF!,7,0)*D11),"нет веса") -> нет веса | K11: Электронная почта | L11: мыло
H12: СЧЁТ Альфа-Банк | J12: =IFERROR(IFERROR(VLOOKUP(C12,#REF!,3,0)*D12,VLOOKUP(C12,#REF!,7,0)*D12),"нет веса") -> нет веса | K12: Контактный телефон | L12: 87766404221 | P12: =(L12&" "&P13) -> 87766404221 0 | Q12: =TEXT(SUM(MID(0&P12,LARGE(ISNUMBER(-MID(P12,ROW($1:$99),1))*ROW($1:$99),ROW($1:$15)+30)+1,1)*10^ROW($1:$15)/10),REPT(0,MIN(MAX(COUNT(1/(MID(P12,ROW($1:$99),1)+1))-30,),15)))&TEXT(SUM(MID(0&P12,LARGE(ISNUMBER(-MID(P12,ROW($1:$99),1))*ROW($1:$99),ROW($1:$15)+15)+1,1)*10^ROW($1:$15)/10),REPT(0,MIN(MAX(COUNT(1/(MID(P12,ROW($1:$99),1)+1))-15,),15)))&TEXT(SUM(MID(0&P12,LARGE(ISNUMBER(-MID(P12,ROW($1:$99),1))*ROW($1:$99),ROW($1:$15))+1,1)*10^ROW($1:$15)/10),REPT(0,MIN(COUNT(1/(MID(P12,ROW($1:$99),1)+1)),15))) -> 877664042210 | R12: =(MID(Q12,1,1))&"-"&(MID(Q12,2,3))&"-"&(MID(Q12,5,3))&"-"&(MID(Q12,8,2))&"-"&(MID(Q12,10,2))&" "&(MID(Q12,12,1))&"-"&(MID(Q12,13,3))&"-"&(MID(Q12,16,3))&"-"&(MID(Q12,19,2))&"-"&(MID(Q12,21,2))&" "&(MID(Q12,23,1))&"-"&(MID(Q12,24,3))&"-"&(MID(Q12,27,3))&"-"&(MID(Q12,30,2))&"-"&(MID(Q12,32,2)) -> 8-776-640-42-21 0---- ----
J13: =IFERROR(IFERROR(VLOOKUP(C13,#REF!,3,0)*D13,VLOOKUP(C13,#REF!,7,0)*D13),"нет веса") -> нет веса | P13: =IF(L13="-",IFERROR(НайтиСтрокуПоСлову("Комментарий",K27:K60),0),L13) -> 0
J14: =IFERROR(IFERROR(VLOOKUP(C14,#REF!,3,0)*D14,VLOOKUP(C14,#REF!,7,0)*D14),"нет веса") -> нет веса | K14: Доставка: | P14: =MID(L14,23,70) -> 
J15: =IFERROR(IFERROR(VLOOKUP(C15,#REF!,3,0)*D15,VLOOKUP(C15,#REF!,7,0)*D15),"нет веса") -> нет веса | K15: Оплата: | P15: =IF(LEFT(P14,2)="EX",MID(L15,11,70),L15) -> 0 | Q15: =TEXT(SUM(MID(0&P15,LARGE(ISNUMBER(-MID(P15,ROW($1:$88),1))*ROW($1:$88),ROW($1:$15)+15)+1,1)*10^ROW($1:$15)/10),REPT(0,MIN(MAX(COUNT(1/(MID(P15,ROW($1:$88),1)+1))-15,),15)))&TEXT(SUM(MID(0&P15,LARGE(ISNUMBER(-MID(P15,ROW($1:$88),1))*ROW($1:$88),ROW($1:$15))+1,1)*10^ROW($1:$15)/10),REPT(0,MIN(COUNT(1/(MID(P15,ROW($1:$88),1)+1)),15))) -> 0 | R15: =SUMPRODUCT(--SUBSTITUTE(Q15:Q15,CHAR(160),)) -> 0 | S15: =LEN(Q15) -> 1 | T15: =FLOOR(S15/3,1) -> 0
J16: =IFERROR(IFERROR(VLOOKUP(C16,#REF!,3,0)*D16,VLOOKUP(C16,#REF!,7,0)*D16),"нет веса") -> нет веса | K16: Адрес доставки | L16: Индекс: | P16: =MID(L16,9,70) -> 
J17: =IFERROR(IFERROR(VLOOKUP(C17,#REF!,3,0)*D17,VLOOKUP(C17,#REF!,7,0)*D17),"нет веса") -> нет веса | L17: Страна: | P17: =MID(L17,9,70) ->  | Q17: =IF(LEFT(K17,4)="ваша",VALUE(MID(K17,13,20))*100,0) -> 0
J18: =IFERROR(IFERROR(VLOOKUP(C18,#REF!,3,0)*D18,VLOOKUP(C18,#REF!,7,0)*D18),"нет веса") -> нет веса | L18: Область: | P18: =MID(L18,10,70) -> 
J19: =IFERROR(IFERROR(VLOOKUP(C19,#REF!,3,0)*D19,VLOOKUP(C19,#REF!,7,0)*D19),"нет веса") -> нет веса | L19: Город: | P19: =MID(L19,8,70) ->  | Q19: =IF(LEFT(K19,4)="ваша",VALUE(MID(K19,13,20))*100,0) -> 0
J20: =IFERROR(IFERROR(VLOOKUP(C20,#REF!,3,0)*D20,VLOOKUP(C20,#REF!,7,0)*D20),"нет веса") -> нет веса | L20: Улица: | P20: =MID(L20,8,70) ->  | Q20: =IF(LEFT(K31,4)="ваша",VALUE(MID(K31,13,20))*100,0) -> 0
J21: =IFERROR(IFERROR(VLOOKUP(C21,#REF!,3,0)*D21,VLOOKUP(C21,#REF!,7,0)*D21),"нет веса") -> нет веса | L21: Здание: | P21: =MID(L21,9,70) ->  | Q21: =IF(LEFT(K32,4)="ваша",VALUE(MID(K32,13,20))*100,0) -> 0
J22: =IFERROR(IFERROR(VLOOKUP(C22,#REF!,3,0)*D22,VLOOKUP(C22,#REF!,7,0)*D22),"нет веса") -> нет веса | L22: Квартира: | P22: =MID(L22,11,70) ->  | Q22: =IF(LEFT(#REF!,4)="ваша",VALUE(MID(#REF!,13,20))*100,0) -> 
E23: Итого: | F23: =SUM(F7:F22) -> 18000 | J23: =IF(K40>0,M40,"") ->  | K23: Наименование | L23: Количество | M23: Цена | N23: Вес | O23: Всего | Q23: =IF(LEFT(K33,4)="ваша",VALUE(MID(K33,13,20))*100,0) -> 0
A24: =IF(L41>0,N41,"") ->  | D24: скидка: | E24: =IF(F23>150000,10,IF(F23>100000,8,IF(F23>60000,5,IF(F23>30000,3,0)))) -> 0 | F24: =F23-(F23*E24/100) -> 18000 | G24: =IFERROR(SUM(I7:I22)-F29+1,0) -> 1 | P24: =N24 -> 0 | Q24: =TEXT(SUM(MID(0&P24,LARGE(ISNUMBER(-MID(P24,ROW($1:$88),1))*ROW($1:$88),ROW($1:$15)+15)+1,1)*10^ROW($1:$15)/10),REPT(0,MIN(MAX(COUNT(1/(MID(P24,ROW($1:$88),1)+1))-15,),15)))&TEXT(SUM(MID(0&P24,LARGE(ISNUMBER(-MID(P24,ROW($1:$88),1))*ROW($1:$88),ROW($1:$15))+1,1)*10^ROW($1:$15)/10),REPT(0,MIN(COUNT(1/(MID(P24,ROW($1:$88),1)+1)),15))) -> 0
A25: =SUM(A7:A23)/1000*1.3 -> 0 | C25: =IF(E25=F26,"Доставка БЕСПЛАТНО",IF(E25=D26,C26,IF(E25=D27,C27,IF(E25=D28,C28,IF(E25=F27,C27&" + НПл",IF(E25=F28,C28&" + НПл","Укажите ТК")))))) -> AVIS EXPRESS Тараз | D25: 2 | E25: =D28 -> 1400 | G25: =IF(I25 >0,TODAY(),"") ->  | J25: =SUM(J7:J22)/1000 -> 0 | P25: =E25 -> 1400 | Q25: =TEXT(SUM(MID(0&P25,LARGE(ISNUMBER(-MID(P25,ROW($1:$88),1))*ROW($1:$88),ROW($1:$15)+15)+1,1)*10^ROW($1:$15)/10),REPT(0,MIN(MAX(COUNT(1/(MID(P25,ROW($1:$88),1)+1))-15,),15)))&TEXT(SUM(MID(0&P25,LARGE(ISNUMBER(-MID(P25,ROW($1:$88),1))*ROW($1:$88),ROW($1:$15))+1,1)*10^ROW($1:$15)/10),REPT(0,MIN(COUNT(1/(MID(P25,ROW($1:$88),1)+1)),15))) -> 1400 | R25: =E25 -> 1400 | S25: =TEXT(SUM(MID(0&R25,LARGE(ISNUMBER(-MID(R25,ROW($1:$88),1))*ROW($1:$88),ROW($1:$15)+15)+1,1)*10^ROW($1:$15)/10),REPT(0,MIN(MAX(COUNT(1/(MID(R25,ROW($1:$88),1)+1))-15,),15)))&TEXT(SUM(MID(0&R25,LARGE(ISNUMBER(-MID(R25,ROW($1:$88),1))*ROW($1:$88),ROW($1:$15))+1,1)*10^ROW($1:$15)/10),REPT(0,MIN(COUNT(1/(MID(R25,ROW($1:$88),1)+1)),15))) -> 1400 | U25: =TEXT(SUM(MID(0&E25,LARGE(ISNUMBER(-MID(E25,ROW($1:$88),1))*ROW($1:$88),ROW($1:$15)+15)+1,1)*10^ROW($1:$15)/10),REPT(0,MIN(MAX(COUNT(1/(MID(E25,ROW($1:$88),1)+1))-15,),15)))&TEXT(SUM(MID(0&E25,LARGE(ISNUMBER(-MID(E25,ROW($1:$88),1))*ROW($1:$88),ROW($1:$15))+1,1)*10^ROW($1:$15)/10),REPT(0,MIN(COUNT(1/(MID(E25,ROW($1:$88),1)+1)),15))) -> 
C26: =IFERROR("AVIS С А М О В Ы В О З "&" "&VLOOKUP((LEFT(B34,(LEN(B34)))),'ТАРИФЫ ТК'!J17:L268,1,0),"НЕТ ДОСТАВКИ") -> AVIS С А М О В Ы В О З Тараз | D26: =IFERROR(VLOOKUP((LEFT(B34,(LEN(B34)))),'ТАРИФЫ ТК'!J17:L268,3,0)+0.001,"НЕТ ДОСТАВКИ") -> 1550.001 | E26: =IFERROR(F24+D26,"НЕТ ДОСТАВКИ") -> 19550.001 | F26: =IFERROR(D26&" + НПл","НЕТ ДОСТАВКИ") -> 1550,001 + НПл | G26: =IFERROR(CEILING((F24+D26)*(1+$D$25/100),50),0) -> 19950 | P26: =N26 -> 0 | Q26: =TEXT(SUM(MID(0&P26,LARGE(ISNUMBER(-MID(P26,ROW($1:$88),1))*ROW($1:$88),ROW($1:$15)+15)+1,1)*10^ROW($1:$15)/10),REPT(0,MIN(MAX(COUNT(1/(MID(P26,ROW($1:$88),1)+1))-15,),15)))&TEXT(SUM(MID(0&P26,LARGE(ISNUMBER(-MID(P26,ROW($1:$88),1))*ROW($1:$88),ROW($1:$15))+1,1)*10^ROW($1:$15)/10),REPT(0,MIN(COUNT(1/(MID(P26,ROW($1:$88),1)+1)),15))) -> 0
C27: =IFERROR("AVIS Econom"&" "&VLOOKUP((LEFT(B34,(LEN(B34)))),'ТАРИФЫ ТК'!A4:A134,1,0),"НЕТ ДОСТАВКИ") -> AVIS Econom Тараз | D27: =IFERROR(VLOOKUP((LEFT(B34,(LEN(B34)))),'ТАРИФЫ ТК'!A4:C134,3,0),"НЕТ ДОСТАВКИ") -> 1300 | E27: =IFERROR(F24+D27,"НЕТ ДОСТАВКИ") -> 19300 | F27: =IFERROR(D27&" + НПл","НЕТ ДОСТАВКИ") -> 1300 + НПл | G27: =IFERROR(CEILING((F24+D27)*(1+$D$25/100),50),0) -> 19700 | P27: 0 | Q27: =TEXT(SUM(MID(0&P27,LARGE(ISNUMBER(-MID(P27,ROW($1:$88),1))*ROW($1:$88),ROW($1:$15)+15)+1,1)*10^ROW($1:$15)/10),REPT(0,MIN(MAX(COUNT(1/(MID(P27,ROW($1:$88),1)+1))-15,),15)))&TEXT(SUM(MID(0&P27,LARGE(ISNUMBER(-MID(P27,ROW($1:$88),1))*ROW($1:$88),ROW($1:$15))+1,1)*10^ROW($1:$15)/10),REPT(0,MIN(COUNT(1/(MID(P27,ROW($1:$88),1)+1)),15))) -> 0
C28: =IFERROR(IF(A29<1,"AVIS EXPRESS"&" "&VLOOKUP((LEFT(B34,(LEN(B34)))),'ТАРИФЫ ТК'!E4:G20,1,0),"AV ВИМАНИЕ: В Е С П О С Ы Л К И Б О Л Ь Ш Е 0,5 КГ !!!"),"НЕТ ДОСТАВКИ") -> AVIS EXPRESS Тараз | D28: =IFERROR(VLOOKUP((LEFT(B34,(LEN(B34)))),'ТАРИФЫ ТК'!E4:G20,3,0),"НЕТ ДОСТАВКИ") -> 1400 | E28: =IFERROR(F24+D28,"НЕТ ДОСТАВКИ") -> 19400 | F28: =D28&" + НПл" -> 1400 + НПл | G28: =IFERROR(CEILING((F24+D28)*(1+$D$25/100),50),"НЕТ ДОСТАВКИ") -> 19800 | P28: 0 | Q28: =TEXT(SUM(MID(0&P28,LARGE(ISNUMBER(-MID(P28,ROW($1:$88),1))*ROW($1:$88),ROW($1:$15)+15)+1,1)*10^ROW($1:$15)/10),REPT(0,MIN(MAX(COUNT(1/(MID(P28,ROW($1:$88),1)+1))-15,),15)))&TEXT(SUM(MID(0&P28,LARGE(ISNUMBER(-MID(P28,ROW($1:$88),1))*ROW($1:$88),ROW($1:$15))+1,1)*10^ROW($1:$15)/10),REPT(0,MIN(COUNT(1/(MID(P28,ROW($1:$88),1)+1)),15))) -> 0
A29: =IFERROR(A25*1.5,"Количество ??") -> 0 | D29: К ОПЛАТЕ: | E29: =IFERROR(F24+E25,0) -> 19400 | F29: =IF(E25=C29,"Доставка БЕСПЛАТНО",IF(E25=D26,E26,IF(E25=D27,E27,IF(E25=D28,E28,IF(E25=F27,G27,IF(E25=F28,G28,IF(E25=F26,G26,"Укажите ТК"))))))) -> 19400 | G29: =IFERROR(CEILING((F24+E25)*1.03,50),0) -> 20000 | J29: =IFERROR(J25*1.5,"Количество ??") -> 0 | P29: 0 | Q29: =TEXT(SUM(MID(0&P29,LARGE(ISNUMBER(-MID(P29,ROW($1:$88),1))*ROW($1:$88),ROW($1:$15)+15)+1,1)*10^ROW($1:$15)/10),REPT(0,MIN(MAX(COUNT(1/(MID(P29,ROW($1:$88),1)+1))-15,),15)))&TEXT(SUM(MID(0&P29,LARGE(ISNUMBER(-MID(P29,ROW($1:$88),1))*ROW($1:$88),ROW($1:$15))+1,1)*10^ROW($1:$15)/10),REPT(0,MIN(COUNT(1/(MID(P29,ROW($1:$88),1)+1)),15))) -> 0
A30: rc11091kz | C30: =IFERROR((P14&" "&LEFT(P15,8)&" = "&TEXT(R15,"### ### ###")&" т."),"НЕТ ДОСТАВКИ") -> 0 = т. | E30: =IFERROR("QIWI = "&CEILING((E26*1.02),10),0) -> QIWI = 19950 | F30: =IFERROR(F29-F24,"УКАЖИТЕ ТК") -> 1400 | P30: 0 | Q30: =TEXT(SUM(MID(0&P30,LARGE(ISNUMBER(-MID(P30,ROW($1:$88),1))*ROW($1:$88),ROW($1:$15)+15)+1,1)*10^ROW($1:$15)/10),REPT(0,MIN(MAX(COUNT(1/(MID(P30,ROW($1:$88),1)+1))-15,),15)))&TEXT(SUM(MID(0&P30,LARGE(ISNUMBER(-MID(P30,ROW($1:$88),1))*ROW($1:$88),ROW($1:$15))+1,1)*10^ROW($1:$15)/10),REPT(0,MIN(COUNT(1/(MID(P30,ROW($1:$88),1)+1)),15))) -> 0
A31: =A1 -> +KASPI+1200820_2++0 | B31: ПОЛУЧАТЕЛЬ: | C31: rc11091kz | P31: 0 | Q31: =TEXT(SUM(MID(0&P31,LARGE(ISNUMBER(-MID(P31,ROW($1:$88),1))*ROW($1:$88),ROW($1:$15)+15)+1,1)*10^ROW($1:$15)/10),REPT(0,MIN(MAX(COUNT(1/(MID(P31,ROW($1:$88),1)+1))-15,),15)))&TEXT(SUM(MID(0&P31,LARGE(ISNUMBER(-MID(P31,ROW($1:$88),1))*ROW($1:$88),ROW($1:$15))+1,1)*10^ROW($1:$15)/10),REPT(0,MIN(COUNT(1/(MID(P31,ROW($1:$88),1)+1)),15))) -> 0
A32: =UPPER((B3)) -> АДИЛХАНОВ БАХТИАР | C32: =IFERROR(MID(НайтиСтрокуПоСлову("Комментарий: Имя :",K1:K45),20,99),0) -> 0 | P32: 0 | Q32: =TEXT(SUM(MID(0&P32,LARGE(ISNUMBER(-MID(P32,ROW($1:$88),1))*ROW($1:$88),ROW($1:$15)+15)+1,1)*10^ROW($1:$15)/10),REPT(0,MIN(MAX(COUNT(1/(MID(P32,ROW($1:$88),1)+1))-15,),15)))&TEXT(SUM(MID(0&P32,LARGE(ISNUMBER(-MID(P32,ROW($1:$88),1))*ROW($1:$88),ROW($1:$15))+1,1)*10^ROW($1:$15)/10),REPT(0,MIN(COUNT(1/(MID(P32,ROW($1:$88),1)+1)),15))) -> 0
A33: Область: | B33: =UPPER((P18)) ->  | C33: =IFERROR(ПоискСНачала(C32,"Телефон"),0) -> 0 | E33: =IFERROR(ПоискМежду(C32,"Телефон :","Примечание"),0) -> 0 | F33: =IFERROR(IF(LEFT(ПоискСКонца(C32,"Примечание : "),2)="г ",MID(ПоискСКонца(C32,"Примечание : "),3,99),IF(LEFT(ПоискСКонца(C32,"Примечание : "),3)="г. ",MID(ПоискСКонца(C32,"Примечание : "),4,99),IF(LEFT(ПоискСКонца(C32,"Примечание : "),3)="гор",MID(ПоискСКонца(C32,"Примечание : "),6,99),0))),0) -> 0 | P33: 0 | Q33: =TEXT(SUM(MID(0&P33,LARGE(ISNUMBER(-MID(P33,ROW($1:$88),1))*ROW($1:$88),ROW($1:$15)+15)+1,1)*10^ROW($1:$15)/10),REPT(0,MIN(MAX(COUNT(1/(MID(P33,ROW($1:$88),1)+1))-15,),15)))&TEXT(SUM(MID(0&P33,LARGE(ISNUMBER(-MID(P33,ROW($1:$88),1))*ROW($1:$88),ROW($1:$15))+1,1)*10^ROW($1:$15)/10),REPT(0,MIN(COUNT(1/(MID(P33,ROW($1:$88),1)+1)),15))) -> 0
A34: Город: | B34: Тараз | P34: 0 | Q34: =TEXT(SUM(MID(0&P34,LARGE(ISNUMBER(-MID(P34,ROW($1:$88),1))*ROW($1:$88),ROW($1:$15)+15)+1,1)*10^ROW($1:$15)/10),REPT(0,MIN(MAX(COUNT(1/(MID(P34,ROW($1:$88),1)+1))-15,),15)))&TEXT(SUM(MID(0&P34,LARGE(ISNUMBER(-MID(P34,ROW($1:$88),1))*ROW($1:$88),ROW($1:$15))+1,1)*10^ROW($1:$15)/10),REPT(0,MIN(COUNT(1/(MID(P34,ROW($1:$88),1)+1)),15))) -> 0
A35: Улица: | B35: Жансая | P35: 0 | Q35: =TEXT(SUM(MID(0&P35,LARGE(ISNUMBER(-MID(P35,ROW($1:$88),1))*ROW($1:$88),ROW($1:$15)+15)+1,1)*10^ROW($1:$15)/10),REPT(0,MIN(MAX(COUNT(1/(MID(P35,ROW($1:$88),1)+1))-15,),15)))&TEXT(SUM(MID(0&P35,LARGE(ISNUMBER(-MID(P35,ROW($1:$88),1))*ROW($1:$88),ROW($1:$15))+1,1)*10^ROW($1:$15)/10),REPT(0,MIN(COUNT(1/(MID(P35,ROW($1:$88),1)+1)),15))) -> 0
A36: Здание: | B36: 43 | P36: 0 | Q36: =TEXT(SUM(MID(0&P36,LARGE(ISNUMBER(-MID(P36,ROW($1:$88),1))*ROW($1:$88),ROW($1:$15)+15)+1,1)*10^ROW($1:$15)/10),REPT(0,MIN(MAX(COUNT(1/(MID(P36,ROW($1:$88),1)+1))-15,),15)))&TEXT(SUM(MID(0&P36,LARGE(ISNUMBER(-MID(P36,ROW($1:$88),1))*ROW($1:$88),ROW($1:$15))+1,1)*10^ROW($1:$15)/10),REPT(0,MIN(COUNT(1/(MID(P36,ROW($1:$88),1)+1)),15))) -> 0
A37: Квартира: | B37: 87 | P37: 0 | Q37: =TEXT(SUM(MID(0&P37,LARGE(ISNUMBER(-MID(P37,ROW($1:$88),1))*ROW($1:$88),ROW($1:$15)+15)+1,1)*10^ROW($1:$15)/10),REPT(0,MIN(MAX(COUNT(1/(MID(P37,ROW($1:$88),1)+1))-15,),15)))&TEXT(SUM(MID(0&P37,LARGE(ISNUMBER(-MID(P37,ROW($1:$88),1))*ROW($1:$88),ROW($1:$15))+1,1)*10^ROW($1:$15)/10),REPT(0,MIN(COUNT(1/(MID(P37,ROW($1:$88),1)+1)),15))) -> 0
A38: Телефон: | B38: =B4 -> 8-776-640-42-21 0---- ---- | P38: 0 | Q38: =TEXT(SUM(MID(0&P38,LARGE(ISNUMBER(-MID(P38,ROW($1:$88),1))*ROW($1:$88),ROW($1:$15)+15)+1,1)*10^ROW($1:$15)/10),REPT(0,MIN(MAX(COUNT(1/(MID(P38,ROW($1:$88),1)+1))-15,),15)))&TEXT(SUM(MID(0&P38,LARGE(ISNUMBER(-MID(P38,ROW($1:$88),1))*ROW($1:$88),ROW($1:$15))+1,1)*10^ROW($1:$15)/10),REPT(0,MIN(COUNT(1/(MID(P38,ROW($1:$88),1)+1)),15))) -> 0
A39: Индекс: | B39: =P16 ->  | Q39: =IF(LEFT(#REF!,4)="ваша",VALUE(MID(#REF!,13,20))*100,0) -> 
A40: Компания: | Q40: =IF(LEFT(#REF!,4)="ваша",VALUE(MID(#REF!,13,20))*100,0) -> 
A41: ИИН: | B41: =F29 -> 19400 | Q41: =IF(LEFT(#REF!,4)="ваша",VALUE(MID(#REF!,13,20))*100,0) -> 
A42: ------------------------ | B42: ---------------------------------------------------- | C42: ---------------------------------------------------- | D42: ------------------------ | E42: ------------------------ | F42: --------------------------- | G42: ------------------------------ | H42: ------------------------ | I42: ------------------------ | Q42: =SUM(Q19:Q41) -> 

Sheet 9639++11550
A1: =IF(LEFT(C29,2)="сп",P1&" ► СП",IF(E25=D26,P1,IF(H6<>0,P1&"++"&"0",IF(E25=D27,P1&"++"&"0",IF(E25=D28,P1&"++"&"0",IF(E25=D27,P1&"++"&"0",IF(E25=D28,P1&"++"&"0",IF(LEFT(C25,2)="AV",P1&"++"&F29,P1)))))))) -> 9639++11550 | B1: =L4 -> 2020-08-15T15:08:12 | C1: =IF(E2>0,"ОТПРАВЛЕНО",IF(LEFT(C29,3)="ЗАК","ЗАКАЗАНО в СПБ",IF(G24>=0,"ОПЛОЧЕНО","ОЖИДАНИЕ ОПЛАТЫ"))) -> ОТПРАВЛЕНО | D1: ='СПИСОК ЗАКАЗОВ'!B1 -> 21 | E1: 2020-08-17 | I1: =A1 -> 9639++11550 | K1: Заказ № 9639 | P1: =IF(G24>0,"+"&H6&"+"&Q1,Q1) -> 9639 | Q1: =ПоискСКонца(K1,"№") -> 9639
A2: Логин | B2: =L3 -> 0 | C2: Номер накл-ой | E2: 3611552 | K2: Примечание
A3: ФИО | B3: =IF(C32=0,UPPER((P9)),UPPER(C33)) -> НУРЖАН ИСАБАЕВ | K3: Логин
A4: Телефон | B4: =R12 -> 7-700-404-04-50 0---- ---- | E4: =IF(F4>0.5,"оплачено",IF(F4<0,"ОПЛАТИТЬ= "&G4,"ОПЛАТИТЬ= "&Q25)) -> ОПЛАТИТЬ= 1400 | F4: 0 | G4: 1100 | K4: Дата заказа | L4: 2020-08-15T15:08:12
A5: e-mail: | B5: =L11 -> -
A6: Вес | B6: ПРИМЕЧАНИЯ | C6: Наименование | D6: Кол-во | E6: Цена | F6: Всего | G6: =IF(MAX(G7:G25)>0,MAX(G7:G25),"") ->  | H6: =IF(I7>0,"НАЛ",IF(I8>0,"ПЕРЕВОД",IF(I9>0,"Beeline",IF(I10>0,"KASPI",IF(I11>0,"QIWI",IF(I12>0,"СЧЁТ Альфа-Банк",0)))))) -> 0 | I6: =SUM(I7:I28) -> 0
A7: =IF(L24>0,Q24*1/100,"") ->  | B7: списано | C7: =IF(L26<>"",K26,"") -> Неодимовый магнит D50x30mm(Аксиал)`42 (сила притяжения 120 кг) | D7: =IF(L26>0,L26,"") -> 1 | E7: =IF(M26="уточняйте",0,IF(L26>0,M26,"")) -> 9900 | F7: =IF(D7<>"",E7*D7,"") -> 9900 | G7: =IF(I7 >0,TODAY(),"") ->  | H7: НАЛ | J7: =IFERROR(IFERROR(VLOOKUP(C7,#REF!,3,0)*D7,VLOOKUP(C7,#REF!,7,0)*D7),"нет веса") -> нет веса | K7: Заказ №9639
A8: =IF(L25>0,Q25*1/100,"") -> 14 | C8: =IF(L27<>"",K27,"") ->  | D8: =IF(L27>0,L27,"") ->  | E8: =IF(M27="уточняйте",0,IF(L27>0,M27,"")) ->  | H8: ПЕРЕВОД | J8: =IFERROR(IFERROR(VLOOKUP(C8,#REF!,3,0)*D8,VLOOKUP(C8,#REF!,7,0)*D8),"нет веса") -> нет веса
A9: =IF(L26>0,Q26*1/100,"") -> 4.42 | H9: Beeline | J9: =IFERROR(IFERROR(VLOOKUP(C9,#REF!,3,0)*D9,VLOOKUP(C9,#REF!,7,0)*D9),"нет веса") -> нет веса | K9: Здравствуйте, Нуржан Исабаев | P9: =MID(K9,15,70) -> Нуржан Исабаев | Q9: =TEXT(SUM(MID(0&L9,LARGE(ISNUMBER(-MID(L9,ROW($1:$96),1))*ROW($1:$96),ROW($1:$23)+15)+1,1)*10^ROW($1:$23)/10),REPT(0,MIN(MAX(COUNT(1/(MID(L9,ROW($1:$96),1)+1))-15,),15)))&TEXT(SUM(MID(0&L9,LARGE(ISNUMBER(-MID(L9,ROW($1:$96),1))*ROW($1:$96),ROW($1:$23))+1,1)*10^ROW($1:$23)/10),REPT(0,MIN(COUNT(1/(MID(L9,ROW($1:$96),1)+1)),15))) -> 
H10: KASPI | J10: =IFERROR(IFERROR(VLOOKUP(C10,#REF!,3,0)*D10,VLOOKUP(C10,#REF!,7,0)*D10),"нет веса") -> нет веса | K10: Мы получили Ваш заказ номер, 9639
H11: QIWI | J11: =IFERROR(IFERROR(VLOOKUP(C11,#REF!,3,0)*D11,VLOOKUP(C11,#REF!,7,0)*D11),"нет веса") -> нет веса | K11: Электронная почта: | L11: -
H12: СЧЁТ Альфа-Банк | J12: =IFERROR(IFERROR(VLOOKUP(C12,#REF!,3,0)*D12,VLOOKUP(C12,#REF!,7,0)*D12),"нет веса") -> нет веса | K12: Контактный телефон: | L12: +7 (700) 404-04-50 | P12: =(L12&" "&P13) -> +7 (700) 404-04-50 0 | Q12: =TEXT(SUM(MID(0&P12,LARGE(ISNUMBER(-MID(P12,ROW($1:$99),1))*ROW($1:$99),ROW($1:$15)+30)+1,1)*10^ROW($1:$15)/10),REPT(0,MIN(MAX(COUNT(1/(MID(P12,ROW($1:$99),1)+1))-30,),15)))&TEXT(SUM(MID(0&P12,LARGE(ISNUMBER(-MID(P12,ROW($1:$99),1))*ROW($1:$99),ROW($1:$15)+15)+1,1)*10^ROW($1:$15)/10),REPT(0,MIN(MAX(COUNT(1/(MID(P12,ROW($1:$99),1)+1))-15,),15)))&TEXT(SUM(MID(0&P12,LARGE(ISNUMBER(-MID(P12,ROW($1:$99),1))*ROW($1:$99),ROW($1:$15))+1,1)*10^ROW($1:$15)/10),REPT(0,MIN(COUNT(1/(MID(P12,ROW($1:$99),1)+1)),15))) -> 770040404500 | R12: =(MID(Q12,1,1))&"-"&(MID(Q12,2,3))&"-"&(MID(Q12,5,3))&"-"&(MID(Q12,8,2))&"-"&(MID(Q12,10,2))&" "&(MID(Q12,12,1))&"-"&(MID(Q12,13,3))&"-"&(MID(Q12,16,3))&"-"&(MID(Q12,19,2))&"-"&(MID(Q12,21,2))&" "&(MID(Q12,23,1))&"-"&(MID(Q12,24,3))&"-"&(MID(Q12,27,3))&"-"&(MID(Q12,30,2))&"-"&(MID(Q12,32,2)) -> 7-700-404-04-50 0---- ----
J13: =IFERROR(IFERROR(VLOOKUP(C13,#REF!,3,0)*D13,VLOOKUP(C13,#REF!,7,0)*D13),"нет веса") -> нет веса | K13: Доставка: | L13: - | P13: =IF(L13="-",IFERROR(НайтиСтрокуПоСлову("Комментарий",K27:K60),0),L13) -> 0
J14: =IFERROR(IFERROR(VLOOKUP(C14,#REF!,3,0)*D14,VLOOKUP(C14,#REF!,7,0)*D14),"нет веса") -> нет веса | K14: Оплата: | L14: - | P14: =MID(L14,23,70) -> 
J15: =IFERROR(IFERROR(VLOOKUP(C15,#REF!,3,0)*D15,VLOOKUP(C15,#REF!,7,0)*D15),"нет веса") -> нет веса | P15: =IF(LEFT(P14,2)="EX",MID(L15,11,70),L15) -> 0 | Q15: =TEXT(SUM(MID(0&P15,LARGE(ISNUMBER(-MID(P15,ROW($1:$88),1))*ROW($1:$88),ROW($1:$15)+15)+1,1)*10^ROW($1:$15)/10),REPT(0,MIN(MAX(COUNT(1/(MID(P15,ROW($1:$88),1)+1))-15,),15)))&TEXT(SUM(MID(0&P15,LARGE(ISNUMBER(-MID(P15,ROW($1:$88),1))*ROW($1:$88),ROW($1:$15))+1,1)*10^ROW($1:$15)/10),REPT(0,MIN(COUNT(1/(MID(P15,ROW($1:$88),1)+1)),15))) -> 0 | R15: =SUMPRODUCT(--SUBSTITUTE(Q15:Q15,CHAR(160),)) -> 0 | S15: =LEN(Q15) -> 1 | T15: =FLOOR(S15/3,1) -> 0
J16: =IFERROR(IFERROR(VLOOKUP(C16,#REF!,3,0)*D16,VLOOKUP(C16,#REF!,7,0)*D16),"нет веса") -> нет веса | K16: Адрес доставки: | L16: Индекс: | P16: =MID(L16,9,70) -> 
J17: =IFERROR(IFERROR(VLOOKUP(C17,#REF!,3,0)*D17,VLOOKUP(C17,#REF!,7,0)*D17),"нет веса") -> нет веса | L17: Страна: | P17: =MID(L17,9,70) ->  | Q17: =IF(LEFT(K17,4)="ваша",VALUE(MID(K17,13,20))*100,0) -> 0
J18: =IFERROR(IFERROR(VLOOKUP(C18,#REF!,3,0)*D18,VLOOKUP(C18,#REF!,7,0)*D18),"нет веса") -> нет веса | L18: Область: | P18: =MID(L18,10,70) -> 
J19: =IFERROR(IFERROR(VLOOKUP(C19,#REF!,3,0)*D19,VLOOKUP(C19,#REF!,7,0)*D19),"нет веса") -> нет веса | L19: Город: Караганда | P19: =MID(L19,8,70) -> Караганда | Q19: =IF(LEFT(K19,4)="ваша",VALUE(MID(K19,13,20))*100,0) -> 0
J20: =IFERROR(IFERROR(VLOOKUP(C20,#REF!,3,0)*D20,VLOOKUP(C20,#REF!,7,0)*D20),"нет веса") -> нет веса | L20: Улица: Н. Назарбаева | P20: =MID(L20,8,70) -> Н. Назарбаева | Q20: =IF(LEFT(K31,4)="ваша",VALUE(MID(K31,13,20))*100,0) -> 0
J21: =IFERROR(IFERROR(VLOOKUP(C21,#REF!,3,0)*D21,VLOOKUP(C21,#REF!,7,0)*D21),"нет веса") -> нет веса | L21: Здание: 59 | P21: =MID(L21,9,70) -> 59 | Q21: =IF(LEFT(K32,4)="ваша",VALUE(MID(K32,13,20))*100,0) -> 0
J22: =IFERROR(IFERROR(VLOOKUP(C22,#REF!,3,0)*D22,VLOOKUP(C22,#REF!,7,0)*D22),"нет веса") -> нет веса | L22: Квартира: 130 | P22: =MID(L22,11,70) -> 130 | Q22: =IF(LEFT(#REF!,4)="ваша",VALUE(MID(#REF!,13,20))*100,0) -> 
E23: Итого: | F23: =SUM(F7:F22) -> 9900 | J23: =IF(K40>0,M40,"") ->  | K23: Комментарий : | Q23: =IF(LEFT(K33,4)="ваша",VALUE(MID(K33,13,20))*100,0) -> 0
A24: =IF(L41>0,N41,"") ->  | D24: скидка: | E24: =IF(F23>150000,10,IF(F23>100000,8,IF(F23>60000,5,IF(F23>30000,3,0)))) -> 0 | F24: =F23-(F23*E24/100) -> 9900 | G24: =IFERROR(SUM(I7:I22)-F29+1,0) -> -11549 | P24: =N24 -> 0 | Q24: =TEXT(SUM(MID(0&P24,LARGE(ISNUMBER(-MID(P24,ROW($1:$88),1))*ROW($1:$88),ROW($1:$15)+15)+1,1)*10^ROW($1:$15)/10),REPT(0,MIN(MAX(COUNT(1/(MID(P24,ROW($1:$88),1)+1))-15,),15)))&TEXT(SUM(MID(0&P24,LARGE(ISNUMBER(-MID(P24,ROW($1:$88),1))*ROW($1:$88),ROW($1:$15))+1,1)*10^ROW($1:$15)/10),REPT(0,MIN(COUNT(1/(MID(P24,ROW($1:$88),1)+1)),15))) -> 0
A25: =SUM(A7:A23)/1000*1.3 -> 0.023946 | C25: =IF(E25=F26,"Доставка БЕСПЛАТНО",IF(E25=D26,C26,IF(E25=D27,C27,IF(E25=D28,C28,IF(E25=F27,C27&" + НПл",IF(E25=F28,C28&" + НПл","Укажите ТК")))))) -> AVIS EXPRESS Караганда + НПл | D25: 2 | E25: =F28 -> 1400 + НПл | G25: =IF(I25 >0,TODAY(),"") ->  | J25: =SUM(J7:J22)/1000 -> 0 | K25: Наименование | L25: Количество | M25: Цена | N25: Вес | O25: Всего | P25: =E25 -> 1400 + НПл | Q25: =TEXT(SUM(MID(0&P25,LARGE(ISNUMBER(-MID(P25,ROW($1:$88),1))*ROW($1:$88),ROW($1:$15)+15)+1,1)*10^ROW($1:$15)/10),REPT(0,MIN(MAX(COUNT(1/(MID(P25,ROW($1:$88),1)+1))-15,),15)))&TEXT(SUM(MID(0&P25,LARGE(ISNUMBER(-MID(P25,ROW($1:$88),1))*ROW($1:$88),ROW($1:$15))+1,1)*10^ROW($1:$15)/10),REPT(0,MIN(COUNT(1/(MID(P25,ROW($1:$88),1)+1)),15))) -> 1400 | R25: =E25 -> 1400 + НПл | S25: =TEXT(SUM(MID(0&R25,LARGE(ISNUMBER(-MID(R25,ROW($1:$88),1))*ROW($1:$88),ROW($1:$15)+15)+1,1)*10^ROW($1:$15)/10),REPT(0,MIN(MAX(COUNT(1/(MID(R25,ROW($1:$88),1)+1))-15,),15)))&TEXT(SUM(MID(0&R25,LARGE(ISNUMBER(-MID(R25,ROW($1:$88),1))*ROW($1:$88),ROW($1:$15))+1,1)*10^ROW($1:$15)/10),REPT(0,MIN(COUNT(1/(MID(R25,ROW($1:$88),1)+1)),15))) -> 1400 | U25: =TEXT(SUM(MID(0&E25,LARGE(ISNUMBER(-MID(E25,ROW($1:$88),1))*ROW($1:$88),ROW($1:$15)+15)+1,1)*10^ROW($1:$15)/10),REPT(0,MIN(MAX(COUNT(1/(MID(E25,ROW($1:$88),1)+1))-15,),15)))&TEXT(SUM(MID(0&E25,LARGE(ISNUMBER(-MID(E25,ROW($1:$88),1))*ROW($1:$88),ROW($1:$15))+1,1)*10^ROW($1:$15)/10),REPT(0,MIN(COUNT(1/(MID(E25,ROW($1:$88),1)+1)),15))) -> 
C26: =IFERROR("AVIS С А М О В Ы В О З "&" "&VLOOKUP((LEFT(B34,(LEN(B34)))),'ТАРИФЫ ТК'!J17:L268,1,0),"НЕТ ДОСТАВКИ") -> AVIS С А М О В Ы В О З Караганда | D26: =IFERROR(VLOOKUP((LEFT(B34,(LEN(B34)))),'ТАРИФЫ ТК'!J17:L268,3,0)+0.001,"НЕТ ДОСТАВКИ") -> 1550.001 | E26: =IFERROR(F24+D26,"НЕТ ДОСТАВКИ") -> 11450.001 | F26: =IFERROR(D26&" + НПл","НЕТ ДОСТАВКИ") -> 1550,001 + НПл | G26: =IFERROR(CEILING((F24+D26)*(1+$D$25/100),50),0) -> 11700 | K26: Неодимовый магнит D50x30mm(Аксиал)`42 (сила притяжения 120 кг) | L26: 1 | M26: 9900 | N26: 442 | O26: 9900 | P26: =N26 -> 442 | Q26: =TEXT(SUM(MID(0&P26,LARGE(ISNUMBER(-MID(P26,ROW($1:$88),1))*ROW($1:$88),ROW($1:$15)+15)+1,1)*10^ROW($1:$15)/10),REPT(0,MIN(MAX(COUNT(1/(MID(P26,ROW($1:$88),1)+1))-15,),15)))&TEXT(SUM(MID(0&P26,LARGE(ISNUMBER(-MID(P26,ROW($1:$88),1))*ROW($1:$88),ROW($1:$15))+1,1)*10^ROW($1:$15)/10),REPT(0,MIN(COUNT(1/(MID(P26,ROW($1:$88),1)+1)),15))) -> 442
C27: =IFERROR("AVIS Econom"&" "&VLOOKUP((LEFT(B34,(LEN(B34)))),'ТАРИФЫ ТК'!A4:A134,1,0),"НЕТ ДОСТАВКИ") -> AVIS Econom Караганда | D27: =IFERROR(VLOOKUP((LEFT(B34,(LEN(B34)))),'ТАРИФЫ ТК'!A4:C134,3,0),"НЕТ ДОСТАВКИ") -> 1300 | E27: =IFERROR(F24+D27,"НЕТ ДОСТАВКИ") -> 11200 | F27: =IFERROR(D27&" + НПл","НЕТ ДОСТАВКИ") -> 1300 + НПл | G27: =IFERROR(CEILING((F24+D27)*(1+$D$25/100),50),0) -> 11450 | K27: Общий вес:442 | P27: 0 | Q27: =TEXT(SUM(MID(0&P27,LARGE(ISNUMBER(-MID(P27,ROW($1:$88),1))*ROW($1:$88),ROW($1:$15)+15)+1,1)*10^ROW($1:$15)/10),REPT(0,MIN(MAX(COUNT(1/(MID(P27,ROW($1:$88),1)+1))-15,),15)))&TEXT(SUM(MID(0&P27,LARGE(ISNUMBER(-MID(P27,ROW($1:$88),1))*ROW($1:$88),ROW($1:$15))+1,1)*10^ROW($1:$15)/10),REPT(0,MIN(COUNT(1/(MID(P27,ROW($1:$88),1)+1)),15))) -> 0
C28: =IFERROR(IF(A29<1,"AVIS EXPRESS"&" "&VLOOKUP((LEFT(B34,(LEN(B34)))),'ТАРИФЫ ТК'!E4:G20,1,0),"AV ВИМАНИЕ: В Е С П О С Ы Л К И Б О Л Ь Ш Е 0,5 КГ !!!"),"НЕТ ДОСТАВКИ") -> AVIS EXPRESS Караганда | D28: =IFERROR(VLOOKUP((LEFT(B34,(LEN(B34)))),'ТАРИФЫ ТК'!E4:G20,3,0),"НЕТ ДОСТАВКИ") -> 1400 | E28: =IFERROR(F24+D28,"НЕТ ДОСТАВКИ") -> 11300 | F28: =D28&" + НПл" -> 1400 + НПл | G28: =IFERROR(CEILING((F24+D28)*(1+$D$25/100),50),"НЕТ ДОСТАВКИ") -> 11550 | K28: Итого:9900 | P28: 0 | Q28: =TEXT(SUM(MID(0&P28,LARGE(ISNUMBER(-MID(P28,ROW($1:$88),1))*ROW($1:$88),ROW($1:$15)+15)+1,1)*10^ROW($1:$15)/10),REPT(0,MIN(MAX(COUNT(1/(MID(P28,ROW($1:$88),1)+1))-15,),15)))&TEXT(SUM(MID(0&P28,LARGE(ISNUMBER(-MID(P28,ROW($1:$88),1))*ROW($1:$88),ROW($1:$15))+1,1)*10^ROW($1:$15)/10),REPT(0,MIN(COUNT(1/(MID(P28,ROW($1:$88),1)+1)),15))) -> 0
A29: =IFERROR(A25*1.5,"Количество ??") -> 0.035919 | D29: К ОПЛАТЕ: | E29: =IFERROR(F24+E25,0) -> 0 | F29: =IF(E25=C29,"Доставка БЕСПЛАТНО",IF(E25=D26,E26,IF(E25=D27,E27,IF(E25=D28,E28,IF(E25=F27,G27,IF(E25=F28,G28,IF(E25=F26,G26,"Укажите ТК"))))))) -> 11550 | G29: =IFERROR(CEILING((F24+E25)*1.03,50),0) -> 0 | J29: =IFERROR(J25*1.5,"Количество ??") -> 0 | P29: 0 | Q29: =TEXT(SUM(MID(0&P29,LARGE(ISNUMBER(-MID(P29,ROW($1:$88),1))*ROW($1:$88),ROW($1:$15)+15)+1,1)*10^ROW($1:$15)/10),REPT(0,MIN(MAX(COUNT(1/(MID(P29,ROW($1:$88),1)+1))-15,),15)))&TEXT(SUM(MID(0&P29,LARGE(ISNUMBER(-MID(P29,ROW($1:$88),1))*ROW($1:$88),ROW($1:$15))+1,1)*10^ROW($1:$15)/10),REPT(0,MIN(COUNT(1/(MID(P29,ROW($1:$88),1)+1)),15))) -> 0
A30: rc11091kz | C30: =IFERROR((P14&" "&LEFT(P15,8)&" = "&TEXT(R15,"### ### ###")&" т."),"НЕТ ДОСТАВКИ") -> 0 = т. | E30: =IFERROR("QIWI = "&CEILING((E26*1.02),10),0) -> QIWI = 11680 | F30: =IFERROR(F29-F24,"УКАЖИТЕ ТК") -> 1650 | P30: 0 | Q30: =TEXT(SUM(MID(0&P30,LARGE(ISNUMBER(-MID(P30,ROW($1:$88),1))*ROW($1:$88),ROW($1:$15)+15)+1,1)*10^ROW($1:$15)/10),REPT(0,MIN(MAX(COUNT(1/(MID(P30,ROW($1:$88),1)+1))-15,),15)))&TEXT(SUM(MID(0&P30,LARGE(ISNUMBER(-MID(P30,ROW($1:$88),1))*ROW($1:$88),ROW($1:$15))+1,1)*10^ROW($1:$15)/10),REPT(0,MIN(COUNT(1/(MID(P30,ROW($1:$88),1)+1)),15))) -> 0
A31: =A1 -> 9639++11550 | B31: ПОЛУЧАТЕЛЬ: | C31: rc11091kz | P31: 0 | Q31: =TEXT(SUM(MID(0&P31,LARGE(ISNUMBER(-MID(P31,ROW($1:$88),1))*ROW($1:$88),ROW($1:$15)+15)+1,1)*10^ROW($1:$15)/10),REPT(0,MIN(MAX(COUNT(1/(MID(P31,ROW($1:$88),1)+1))-15,),15)))&TEXT(SUM(MID(0&P31,LARGE(ISNUMBER(-MID(P31,ROW($1:$88),1))*ROW($1:$88),ROW($1:$15))+1,1)*10^ROW($1:$15)/10),REPT(0,MIN(COUNT(1/(MID(P31,ROW($1:$88),1)+1)),15))) -> 0
A32: =UPPER((B3)) -> НУРЖАН ИСАБАЕВ | C32: =IFERROR(MID(НайтиСтрокуПоСлову("Комментарий: Имя :",K1:K45),20,99),0) -> 0 | K32: Назад | P32: 0 | Q32: =TEXT(SUM(MID(0&P32,LARGE(ISNUMBER(-MID(P32,ROW($1:$88),1))*ROW($1:$88),ROW($1:$15)+15)+1,1)*10^ROW($1:$15)/10),REPT(0,MIN(MAX(COUNT(1/(MID(P32,ROW($1:$88),1)+1))-15,),15)))&TEXT(SUM(MID(0&P32,LARGE(ISNUMBER(-MID(P32,ROW($1:$88),1))*ROW($1:$88),ROW($1:$15))+1,1)*10^ROW($1:$15)/10),REPT(0,MIN(COUNT(1/(MID(P32,ROW($1:$88),1)+1)),15))) -> 0
A33: Область: | B33: =UPPER((P18)) ->  | C33: =IFERROR(ПоискСНачала(C32,"Телефон"),0) -> 0 | E33: =IFERROR(ПоискМежду(C32,"Телефон :","Примечание"),0) -> 0 | F33: =IFERROR(IF(LEFT(ПоискСКонца(C32,"Примечание : "),2)="г ",MID(ПоискСКонца(C32,"Примечание : "),3,99),IF(LEFT(ПоискСКонца(C32,"Примечание : "),3)="г. ",MID(ПоискСКонца(C32,"Примечание : "),4,99),IF(LEFT(ПоискСКонца(C32,"Примечание : "),3)="гор",MID(ПоискСКонца(C32,"Примечание : "),6,99),0))),0) -> 0 | P33: 0 | Q33: =TEXT(SUM(MID(0&P33,LARGE(ISNUMBER(-MID(P33,ROW($1:$88),1))*ROW($1:$88),ROW($1:$15)+15)+1,1)*10^ROW($1:$15)/10),REPT(0,MIN(MAX(COUNT(1/(MID(P33,ROW($1:$88),1)+1))-15,),15)))&TEXT(SUM(MID(0&P33,LARGE(ISNUMBER(-MID(P33,ROW($1:$88),1))*ROW($1:$88),ROW($1:$15))+1,1)*10^ROW($1:$15)/10),REPT(0,MIN(COUNT(1/(MID(P33,ROW($1:$88),1)+1)),15))) -> 0
A34: Город: | B34: =UPPER((P19)) -> КАРАГАНДА | P34: 0 | Q34: =TEXT(SUM(MID(0&P34,LARGE(ISNUMBER(-MID(P34,ROW($1:$88),1))*ROW($1:$88),ROW($1:$15)+15)+1,1)*10^ROW($1:$15)/10),REPT(0,MIN(MAX(COUNT(1/(MID(P34,ROW($1:$88),1)+1))-15,),15)))&TEXT(SUM(MID(0&P34,LARGE(ISNUMBER(-MID(P34,ROW($1:$88),1))*ROW($1:$88),ROW($1:$15))+1,1)*10^ROW($1:$15)/10),REPT(0,MIN(COUNT(1/(MID(P34,ROW($1:$88),1)+1)),15))) -> 0
A35: Улица: | B35: =UPPER((P20)) -> Н. НАЗАРБАЕВА | P35: 0 | Q35: =TEXT(SUM(MID(0&P35,LARGE(ISNUMBER(-MID(P35,ROW($1:$88),1))*ROW($1:$88),ROW($1:$15)+15)+1,1)*10^ROW($1:$15)/10),REPT(0,MIN(MAX(COUNT(1/(MID(P35,ROW($1:$88),1)+1))-15,),15)))&TEXT(SUM(MID(0&P35,LARGE(ISNUMBER(-MID(P35,ROW($1:$88),1))*ROW($1:$88),ROW($1:$15))+1,1)*10^ROW($1:$15)/10),REPT(0,MIN(COUNT(1/(MID(P35,ROW($1:$88),1)+1)),15))) -> 0
A36: Здание: | B36: =P21 -> 59 | P36: 0 | Q36: =TEXT(SUM(MID(0&P36,LARGE(ISNUMBER(-MID(P36,ROW($1:$88),1))*ROW($1:$88),ROW($1:$15)+15)+1,1)*10^ROW($1:$15)/10),REPT(0,MIN(MAX(COUNT(1/(MID(P36,ROW($1:$88),1)+1))-15,),15)))&TEXT(SUM(MID(0&P36,LARGE(ISNUMBER(-MID(P36,ROW($1:$88),1))*ROW($1:$88),ROW($1:$15))+1,1)*10^ROW($1:$15)/10),REPT(0,MIN(COUNT(1/(MID(P36,ROW($1:$88),1)+1)),15))) -> 0
A37: Квартира: | B37: =P22 -> 130 | P37: 0 | Q37: =TEXT(SUM(MID(0&P37,LARGE(ISNUMBER(-MID(P37,ROW($1:$88),1))*ROW($1:$88),ROW($1:$15)+15)+1,1)*10^ROW($1:$15)/10),REPT(0,MIN(MAX(COUNT(1/(MID(P37,ROW($1:$88),1)+1))-15,),15)))&TEXT(SUM(MID(0&P37,LARGE(ISNUMBER(-MID(P37,ROW($1:$88),1))*ROW($1:$88),ROW($1:$15))+1,1)*10^ROW($1:$15)/10),REPT(0,MIN(COUNT(1/(MID(P37,ROW($1:$88),1)+1)),15))) -> 0
A38: Телефон: | B38: =B4 -> 7-700-404-04-50 0---- ---- | P38: 0 | Q38: =TEXT(SUM(MID(0&P38,LARGE(ISNUMBER(-MID(P38,ROW($1:$88),1))*ROW($1:$88),ROW($1:$15)+15)+1,1)*10^ROW($1:$15)/10),REPT(0,MIN(MAX(COUNT(1/(MID(P38,ROW($1:$88),1)+1))-15,),15)))&TEXT(SUM(MID(0&P38,LARGE(ISNUMBER(-MID(P38,ROW($1:$88),1))*ROW($1:$88),ROW($1:$15))+1,1)*10^ROW($1:$15)/10),REPT(0,MIN(COUNT(1/(MID(P38,ROW($1:$88),1)+1)),15))) -> 0
A39: Индекс: | B39: =P16 ->  | Q39: =IF(LEFT(#REF!,4)="ваша",VALUE(MID(#REF!,13,20))*100,0) -> 
A40: Компания: | Q40: =IF(LEFT(#REF!,4)="ваша",VALUE(MID(#REF!,13,20))*100,0) -> 
A41: ИИН: | B41: =F29 -> 11550 | Q41: =IF(LEFT(#REF!,4)="ваша",VALUE(MID(#REF!,13,20))*100,0) -> 
A42: ------------------------ | B42: ---------------------------------------------------- | C42: ---------------------------------------------------- | D42: ------------------------ | E42: ------------------------ | F42: --------------------------- | G42: ------------------------------ | H42: ------------------------ | I42: ------------------------ | Q42: =SUM(Q19:Q41) -> 

Sheet 9640++25950
A1: =IF(LEFT(C29,2)="сп",P1&" ► СП",IF(E25=D26,P1,IF(H6<>0,P1&"++"&"0",IF(E25=D27,P1&"++"&"0",IF(E25=D28,P1&"++"&"0",IF(E25=D27,P1&"++"&"0",IF(E25=D28,P1&"++"&"0",IF(LEFT(C25,2)="AV",P1&"++"&F29,P1)))))))) -> 9640++25950 | B1: =L4 -> 2020-08-16T18:08:49 | C1: =IF(E2>0,"ОТПРАВЛЕНО",IF(LEFT(C29,3)="ЗАК","ЗАКАЗАНО в СПБ",IF(G24>=0,"ОПЛОЧЕНО","ОЖИДАНИЕ ОПЛАТЫ"))) -> ОТПРАВЛЕНО | D1: ='СПИСОК ЗАКАЗОВ'!B1 -> 21 | E1: 2020-08-17 | I1: =A1 -> 9640++25950 | K1: Заказ № 9640 | P1: =IF(G24>0,"+"&H6&"+"&Q1,Q1) -> 9640 | Q1: =ПоискСКонца(K1,"№") -> 9640
A2: Логин | B2: =L3 -> 0 | C2: Номер накл-ой | E2: 3611553 | K2: Примечание
A3: ФИО | B3: =IF(C32=0,UPPER((P9)),UPPER(C33)) -> ОСТАПЕНКО НИКОЛАЙ | K3: Логин
A4: Телефон | B4: =R12 -> 7-775-974-53-71 0---- ---- | E4: =IF(F4>0.5,"оплачено",IF(F4<0,"ОПЛАТИТЬ= "&G4,"ОПЛАТИТЬ= "&Q25)) -> ОПЛАТИТЬ= 1400 | F4: 0 | G4: 1100 | K4: Дата заказа | L4: 2020-08-16T18:08:49
A5: e-mail: | B5: =L11 -> -
A6: Вес | B6: ПРИМЕЧАНИЯ | C6: Наименование | D6: Кол-во | E6: Цена | F6: Всего | G6: =IF(MAX(G7:G25)>0,MAX(G7:G25),"") ->  | H6: =IF(I7>0,"НАЛ",IF(I8>0,"ПЕРЕВОД",IF(I9>0,"Beeline",IF(I10>0,"KASPI",IF(I11>0,"QIWI",IF(I12>0,"СЧЁТ Альфа-Банк",0)))))) -> 0 | I6: =SUM(I7:I28) -> 0
A7: =IF(L24>0,Q24*1/100,"") ->  | B7: 11:48 нет ответа | C7: =IF(L26<>"",K26,"") -> Неодимовый магнит D5x2mm(Аксиал)`42 (сила притяжения 0,35 кг) | D7: =IF(L26>0,L26,"") -> 1000 | E7: =IF(M26="уточняйте",0,IF(L26>0,M26,"")) -> 24 | F7: =IF(D7<>"",E7*D7,"") -> 24000 | G7: =IF(I7 >0,TODAY(),"") ->  | H7: НАЛ | J7: =IFERROR(IFERROR(VLOOKUP(C7,#REF!,3,0)*D7,VLOOKUP(C7,#REF!,7,0)*D7),"нет веса") -> нет веса | K7: Заказ №9640
A8: =IF(L25>0,Q25*1/100,"") -> 14 | C8: =IF(L27<>"",K27,"") ->  | D8: =IF(L27>0,L27,"") ->  | E8: =IF(M27="уточняйте",0,IF(L27>0,M27,"")) ->  | H8: ПЕРЕВОД | J8: =IFERROR(IFERROR(VLOOKUP(C8,#REF!,3,0)*D8,VLOOKUP(C8,#REF!,7,0)*D8),"нет веса") -> нет веса
A9: =IF(L26>0,Q26*1/100,"") -> 2.9 | H9: Beeline | J9: =IFERROR(IFERROR(VLOOKUP(C9,#REF!,3,0)*D9,VLOOKUP(C9,#REF!,7,0)*D9),"нет веса") -> нет веса | K9: Здравствуйте, Остапенко Николай | P9: =MID(K9,15,70) -> Остапенко Николай | Q9: =TEXT(SUM(MID(0&L9,LARGE(ISNUMBER(-MID(L9,ROW($1:$96),1))*ROW($1:$96),ROW($1:$23)+15)+1,1)*10^ROW($1:$23)/10),REPT(0,MIN(MAX(COUNT(1/(MID(L9,ROW($1:$96),1)+1))-15,),15)))&TEXT(SUM(MID(0&L9,LARGE(ISNUMBER(-MID(L9,ROW($1:$96),1))*ROW($1:$96),ROW($1:$23))+1,1)*10^ROW($1:$23)/10),REPT(0,MIN(COUNT(1/(MID(L9,ROW($1:$96),1)+1)),15))) -> 
H10: KASPI | J10: =IFERROR(IFERROR(VLOOKUP(C10,#REF!,3,0)*D10,VLOOKUP(C10,#REF!,7,0)*D10),"нет веса") -> нет веса | K10: Мы получили Ваш заказ номер, 9640
H11: QIWI | J11: =IFERROR(IFERROR(VLOOKUP(C11,#REF!,3,0)*D11,VLOOKUP(C11,#REF!,7,0)*D11),"нет веса") -> нет веса | K11: Электронная почта: | L11: -
H12: СЧЁТ Альфа-Банк | J12: =IFERROR(IFERROR(VLOOKUP(C12,#REF!,3,0)*D12,VLOOKUP(C12,#REF!,7,0)*D12),"нет веса") -> нет веса | K12: Контактный телефон: | L12: +7 (775) 974-53-71 | P12: =(L12&" "&P13) -> +7 (775) 974-53-71 0 | Q12: =TEXT(SUM(MID(0&P12,LARGE(ISNUMBER(-MID(P12,ROW($1:$99),1))*ROW($1:$99),ROW($1:$15)+30)+1,1)*10^ROW($1:$15)/10),REPT(0,MIN(MAX(COUNT(1/(MID(P12,ROW($1:$99),1)+1))-30,),15)))&TEXT(SUM(MID(0&P12,LARGE(ISNUMBER(-MID(P12,ROW($1:$99),1))*ROW($1:$99),ROW($1:$15)+15)+1,1)*10^ROW($1:$15)/10),REPT(0,MIN(MAX(COUNT(1/(MID(P12,ROW($1:$99),1)+1))-15,),15)))&TEXT(SUM(MID(0&P12,LARGE(ISNUMBER(-MID(P12,ROW($1:$99),1))*ROW($1:$99),ROW($1:$15))+1,1)*10^ROW($1:$15)/10),REPT(0,MIN(COUNT(1/(MID(P12,ROW($1:$99),1)+1)),15))) -> 777597453710 | R12: =(MID(Q12,1,1))&"-"&(MID(Q12,2,3))&"-"&(MID(Q12,5,3))&"-"&(MID(Q12,8,2))&"-"&(MID(Q12,10,2))&" "&(MID(Q12,12,1))&"-"&(MID(Q12,13,3))&"-"&(MID(Q12,16,3))&"-"&(MID(Q12,19,2))&"-"&(MID(Q12,21,2))&" "&(MID(Q12,23,1))&"-"&(MID(Q12,24,3))&"-"&(MID(Q12,27,3))&"-"&(MID(Q12,30,2))&"-"&(MID(Q12,32,2)) -> 7-775-974-53-71 0---- ----
J13: =IFERROR(IFERROR(VLOOKUP(C13,#REF!,3,0)*D13,VLOOKUP(C13,#REF!,7,0)*D13),"нет веса") -> нет веса | K13: Доставка: | L13: - | P13: =IF(L13="-",IFERROR(НайтиСтрокуПоСлову("Комментарий",K27:K60),0),L13) -> 0
J14: =IFERROR(IFERROR(VLOOKUP(C14,#REF!,3,0)*D14,VLOOKUP(C14,#REF!,7,0)*D14),"нет веса") -> нет веса | K14: Оплата: | L14: - | P14: =MID(L14,23,70) -> 
J15: =IFERROR(IFERROR(VLOOKUP(C15,#REF!,3,0)*D15,VLOOKUP(C15,#REF!,7,0)*D15),"нет веса") -> нет веса | P15: =IF(LEFT(P14,2)="EX",MID(L15,11,70),L15) -> 0 | Q15: =TEXT(SUM(MID(0&P15,LARGE(ISNUMBER(-MID(P15,ROW($1:$88),1))*ROW($1:$88),ROW($1:$15)+15)+1,1)*10^ROW($1:$15)/10),REPT(0,MIN(MAX(COUNT(1/(MID(P15,ROW($1:$88),1)+1))-15,),15)))&TEXT(SUM(MID(0&P15,LARGE(ISNUMBER(-MID(P15,ROW($1:$88),1))*ROW($1:$88),ROW($1:$15))+1,1)*10^ROW($1:$15)/10),REPT(0,MIN(COUNT(1/(MID(P15,ROW($1:$88),1)+1)),15))) -> 0 | R15: =SUMPRODUCT(--SUBSTITUTE(Q15:Q15,CHAR(160),)) -> 0 | S15: =LEN(Q15) -> 1 | T15: =FLOOR(S15/3,1) -> 0
J16: =IFERROR(IFERROR(VLOOKUP(C16,#REF!,3,0)*D16,VLOOKUP(C16,#REF!,7,0)*D16),"нет веса") -> нет веса | K16: Адрес доставки: | L16: Индекс: | P16: =MID(L16,9,70) -> 
J17: =IFERROR(IFERROR(VLOOKUP(C17,#REF!,3,0)*D17,VLOOKUP(C17,#REF!,7,0)*D17),"нет веса") -> нет веса | L17: Страна: | P17: =MID(L17,9,70) ->  | Q17: =IF(LEFT(K17,4)="ваша",VALUE(MID(K17,13,20))*100,0) -> 0
J18: =IFERROR(IFERROR(VLOOKUP(C18,#REF!,3,0)*D18,VLOOKUP(C18,#REF!,7,0)*D18),"нет веса") -> нет веса | L18: Область: | P18: =MID(L18,10,70) -> 
J19: =IFERROR(IFERROR(VLOOKUP(C19,#REF!,3,0)*D19,VLOOKUP(C19,#REF!,7,0)*D19),"нет веса") -> нет веса | L19: Город: Нур-Султан | P19: =MID(L19,8,70) -> Нур-Султан | Q19: =IF(LEFT(K19,4)="ваша",VALUE(MID(K19,13,20))*100,0) -> 0
J20: =IFERROR(IFERROR(VLOOKUP(C20,#REF!,3,0)*D20,VLOOKUP(C20,#REF!,7,0)*D20),"нет веса") -> нет веса | L20: Улица: Улица Косшыгулулы дом 20 | P20: =MID(L20,8,70) -> Улица Косшыгулулы дом 20 | Q20: =IF(LEFT(K31,4)="ваша",VALUE(MID(K31,13,20))*100,0) -> 0
J21: =IFERROR(IFERROR(VLOOKUP(C21,#REF!,3,0)*D21,VLOOKUP(C21,#REF!,7,0)*D21),"нет веса") -> нет веса | L21: Здание: 20 | P21: =MID(L21,9,70) -> 20 | Q21: =IF(LEFT(K32,4)="ваша",VALUE(MID(K32,13,20))*100,0) -> 0
J22: =IFERROR(IFERROR(VLOOKUP(C22,#REF!,3,0)*D22,VLOOKUP(C22,#REF!,7,0)*D22),"нет веса") -> нет веса | L22: Квартира: 63 | P22: =MID(L22,11,70) -> 63 | Q22: =IF(LEFT(#REF!,4)="ваша",VALUE(MID(#REF!,13,20))*100,0) -> 
E23: Итого: | F23: =SUM(F7:F22) -> 24000 | J23: =IF(K40>0,M40,"") ->  | K23: Комментарий : | Q23: =IF(LEFT(K33,4)="ваша",VALUE(MID(K33,13,20))*100,0) -> 0
A24: =IF(L41>0,N41,"") ->  | D24: скидка: | E24: =IF(F23>150000,10,IF(F23>100000,8,IF(F23>60000,5,IF(F23>30000,3,0)))) -> 0 | F24: =F23-(F23*E24/100) -> 24000 | G24: =IFERROR(SUM(I7:I22)-F29+1,0) -> -25949 | P24: =N24 -> 0 | Q24: =TEXT(SUM(MID(0&P24,LARGE(ISNUMBER(-MID(P24,ROW($1:$88),1))*ROW($1:$88),ROW($1:$15)+15)+1,1)*10^ROW($1:$15)/10),REPT(0,MIN(MAX(COUNT(1/(MID(P24,ROW($1:$88),1)+1))-15,),15)))&TEXT(SUM(MID(0&P24,LARGE(ISNUMBER(-MID(P24,ROW($1:$88),1))*ROW($1:$88),ROW($1:$15))+1,1)*10^ROW($1:$15)/10),REPT(0,MIN(COUNT(1/(MID(P24,ROW($1:$88),1)+1)),15))) -> 0
A25: =SUM(A7:A23)/1000*1.3 -> 0.02197 | C25: =IF(E25=F26,"Доставка БЕСПЛАТНО",IF(E25=D26,C26,IF(E25=D27,C27,IF(E25=D28,C28,IF(E25=F27,C27&" + НПл",IF(E25=F28,C28&" + НПл","Укажите ТК")))))) -> AVIS EXPRESS Нур-Султан + НПл | D25: 2 | E25: =F28 -> 1400 + НПл | G25: =IF(I25 >0,TODAY(),"") ->  | J25: =SUM(J7:J22)/1000 -> 0 | K25: Наименование | L25: Количество | M25: Цена | N25: Вес | O25: Всего | P25: =E25 -> 1400 + НПл | Q25: =TEXT(SUM(MID(0&P25,LARGE(ISNUMBER(-MID(P25,ROW($1:$88),1))*ROW($1:$88),ROW($1:$15)+15)+1,1)*10^ROW($1:$15)/10),REPT(0,MIN(MAX(COUNT(1/(MID(P25,ROW($1:$88),1)+1))-15,),15)))&TEXT(SUM(MID(0&P25,LARGE(ISNUMBER(-MID(P25,ROW($1:$88),1))*ROW($1:$88),ROW($1:$15))+1,1)*10^ROW($1:$15)/10),REPT(0,MIN(COUNT(1/(MID(P25,ROW($1:$88),1)+1)),15))) -> 1400 | R25: =E25 -> 1400 + НПл | S25: =TEXT(SUM(MID(0&R25,LARGE(ISNUMBER(-MID(R25,ROW($1:$88),1))*ROW($1:$88),ROW($1:$15)+15)+1,1)*10^ROW($1:$15)/10),REPT(0,MIN(MAX(COUNT(1/(MID(R25,ROW($1:$88),1)+1))-15,),15)))&TEXT(SUM(MID(0&R25,LARGE(ISNUMBER(-MID(R25,ROW($1:$88),1))*ROW($1:$88),ROW($1:$15))+1,1)*10^ROW($1:$15)/10),REPT(0,MIN(COUNT(1/(MID(R25,ROW($1:$88),1)+1)),15))) -> 1400 | U25: =TEXT(SUM(MID(0&E25,LARGE(ISNUMBER(-MID(E25,ROW($1:$88),1))*ROW($1:$88),ROW($1:$15)+15)+1,1)*10^ROW($1:$15)/10),REPT(0,MIN(MAX(COUNT(1/(MID(E25,ROW($1:$88),1)+1))-15,),15)))&TEXT(SUM(MID(0&E25,LARGE(ISNUMBER(-MID(E25,ROW($1:$88),1))*ROW($1:$88),ROW($1:$15))+1,1)*10^ROW($1:$15)/10),REPT(0,MIN(COUNT(1/(MID(E25,ROW($1:$88),1)+1)),15))) -> 
C26: =IFERROR("AVIS С А М О В Ы В О З "&" "&VLOOKUP((LEFT(B34,(LEN(B34)))),'ТАРИФЫ ТК'!J17:L268,1,0),"НЕТ ДОСТАВКИ") -> НЕТ ДОСТАВКИ | D26: =IFERROR(VLOOKUP((LEFT(B34,(LEN(B34)))),'ТАРИФЫ ТК'!J17:L268,3,0)+0.001,"НЕТ ДОСТАВКИ") -> НЕТ ДОСТАВКИ | E26: =IFERROR(F24+D26,"НЕТ ДОСТАВКИ") -> НЕТ ДОСТАВКИ | F26: =IFERROR(D26&" + НПл","НЕТ ДОСТАВКИ") -> НЕТ ДОСТАВКИ + НПл | G26: =IFERROR(CEILING((F24+D26)*(1+$D$25/100),50),0) -> 0 | K26: Неодимовый магнит D5x2mm(Аксиал)`42 (сила притяжения 0,35 кг) | L26: 1000 | M26: 24 | N26: 290 | O26: 24000 | P26: =N26 -> 290 | Q26: =TEXT(SUM(MID(0&P26,LARGE(ISNUMBER(-MID(P26,ROW($1:$88),1))*ROW($1:$88),ROW($1:$15)+15)+1,1)*10^ROW($1:$15)/10),REPT(0,MIN(MAX(COUNT(1/(MID(P26,ROW($1:$88),1)+1))-15,),15)))&TEXT(SUM(MID(0&P26,LARGE(ISNUMBER(-MID(P26,ROW($1:$88),1))*ROW($1:$88),ROW($1:$15))+1,1)*10^ROW($1:$15)/10),REPT(0,MIN(COUNT(1/(MID(P26,ROW($1:$88),1)+1)),15))) -> 290
C27: =IFERROR("AVIS Econom"&" "&VLOOKUP((LEFT(B34,(LEN(B34)))),'ТАРИФЫ ТК'!A4:A134,1,0),"НЕТ ДОСТАВКИ") -> AVIS Econom Нур-Султан | D27: =IFERROR(VLOOKUP((LEFT(B34,(LEN(B34)))),'ТАРИФЫ ТК'!A4:C134,3,0),"НЕТ ДОСТАВКИ") -> 1300 | E27: =IFERROR(F24+D27,"НЕТ ДОСТАВКИ") -> 25300 | F27: =IFERROR(D27&" + НПл","НЕТ ДОСТАВКИ") -> 1300 + НПл | G27: =IFERROR(CEILING((F24+D27)*(1+$D$25/100),50),0) -> 25850 | K27: Общий вес:290 | P27: 0 | Q27: =TEXT(SUM(MID(0&P27,LARGE(ISNUMBER(-MID(P27,ROW($1:$88),1))*ROW($1:$88),ROW($1:$15)+15)+1,1)*10^ROW($1:$15)/10),REPT(0,MIN(MAX(COUNT(1/(MID(P27,ROW($1:$88),1)+1))-15,),15)))&TEXT(SUM(MID(0&P27,LARGE(ISNUMBER(-MID(P27,ROW($1:$88),1))*ROW($1:$88),ROW($1:$15))+1,1)*10^ROW($1:$15)/10),REPT(0,MIN(COUNT(1/(MID(P27,ROW($1:$88),1)+1)),15))) -> 0
C28: =IFERROR(IF(A29<1,"AVIS EXPRESS"&" "&VLOOKUP((LEFT(B34,(LEN(B34)))),'ТАРИФЫ ТК'!E4:G20,1,0),"AV ВИМАНИЕ: В Е С П О С Ы Л К И Б О Л Ь Ш Е 0,5 КГ !!!"),"НЕТ ДОСТАВКИ") -> AVIS EXPRESS Нур-Султан | D28: =IFERROR(VLOOKUP((LEFT(B34,(LEN(B34)))),'ТАРИФЫ ТК'!E4:G20,3,0),"НЕТ ДОСТАВКИ") -> 1400 | E28: =IFERROR(F24+D28,"НЕТ ДОСТАВКИ") -> 25400 | F28: =D28&" + НПл" -> 1400 + НПл | G28: =IFERROR(CEILING((F24+D28)*(1+$D$25/100),50),"НЕТ ДОСТАВКИ") -> 25950 | K28: Итого:24000 | P28: 0 | Q28: =TEXT(SUM(MID(0&P28,LARGE(ISNUMBER(-MID(P28,ROW($1:$88),1))*ROW($1:$88),ROW($1:$15)+15)+1,1)*10^ROW($1:$15)/10),REPT(0,MIN(MAX(COUNT(1/(MID(P28,ROW($1:$88),1)+1))-15,),15)))&TEXT(SUM(MID(0&P28,LARGE(ISNUMBER(-MID(P28,ROW($1:$88),1))*ROW($1:$88),ROW($1:$15))+1,1)*10^ROW($1:$15)/10),REPT(0,MIN(COUNT(1/(MID(P28,ROW($1:$88),1)+1)),15))) -> 0
A29: =IFERROR(A25*1.5,"Количество ??") -> 0.032955 | D29: К ОПЛАТЕ: | E29: =IFERROR(F24+E25,0) -> 0 | F29: =IF(E25=C29,"Доставка БЕСПЛАТНО",IF(E25=D26,E26,IF(E25=D27,E27,IF(E25=D28,E28,IF(E25=F27,G27,IF(E25=F28,G28,IF(E25=F26,G26,"Укажите ТК"))))))) -> 25950 | G29: =IFERROR(CEILING((F24+E25)*1.03,50),0) -> 0 | J29: =IFERROR(J25*1.5,"Количество ??") -> 0 | P29: 0 | Q29: =TEXT(SUM(MID(0&P29,LARGE(ISNUMBER(-MID(P29,ROW($1:$88),1))*ROW($1:$88),ROW($1:$15)+15)+1,1)*10^ROW($1:$15)/10),REPT(0,MIN(MAX(COUNT(1/(MID(P29,ROW($1:$88),1)+1))-15,),15)))&TEXT(SUM(MID(0&P29,LARGE(ISNUMBER(-MID(P29,ROW($1:$88),1))*ROW($1:$88),ROW($1:$15))+1,1)*10^ROW($1:$15)/10),REPT(0,MIN(COUNT(1/(MID(P29,ROW($1:$88),1)+1)),15))) -> 0
A30: rc11091kz | C30: =IFERROR((P14&" "&LEFT(P15,8)&" = "&TEXT(R15,"### ### ###")&" т."),"НЕТ ДОСТАВКИ") -> 0 = т. | E30: =IFERROR("QIWI = "&CEILING((E26*1.02),10),0) -> 0 | F30: =IFERROR(F29-F24,"УКАЖИТЕ ТК") -> 1950 | P30: 0 | Q30: =TEXT(SUM(MID(0&P30,LARGE(ISNUMBER(-MID(P30,ROW($1:$88),1))*ROW($1:$88),ROW($1:$15)+15)+1,1)*10^ROW($1:$15)/10),REPT(0,MIN(MAX(COUNT(1/(MID(P30,ROW($1:$88),1)+1))-15,),15)))&TEXT(SUM(MID(0&P30,LARGE(ISNUMBER(-MID(P30,ROW($1:$88),1))*ROW($1:$88),ROW($1:$15))+1,1)*10^ROW($1:$15)/10),REPT(0,MIN(COUNT(1/(MID(P30,ROW($1:$88),1)+1)),15))) -> 0
A31: =A1 -> 9640++25950 | B31: ПОЛУЧАТЕЛЬ: | C31: rc11091kz | P31: 0 | Q31: =TEXT(SUM(MID(0&P31,LARGE(ISNUMBER(-MID(P31,ROW($1:$88),1))*ROW($1:$88),ROW($1:$15)+15)+1,1)*10^ROW($1:$15)/10),REPT(0,MIN(MAX(COUNT(1/(MID(P31,ROW($1:$88),1)+1))-15,),15)))&TEXT(SUM(MID(0&P31,LARGE(ISNUMBER(-MID(P31,ROW($1:$88),1))*ROW($1:$88),ROW($1:$15))+1,1)*10^ROW($1:$15)/10),REPT(0,MIN(COUNT(1/(MID(P31,ROW($1:$88),1)+1)),15))) -> 0
A32: =UPPER((B3)) -> ОСТАПЕНКО НИКОЛАЙ | C32: =IFERROR(MID(НайтиСтрокуПоСлову("Комментарий: Имя :",K1:K45),20,99),0) -> 0 | K32: Назад | P32: 0 | Q32: =TEXT(SUM(MID(0&P32,LARGE(ISNUMBER(-MID(P32,ROW($1:$88),1))*ROW($1:$88),ROW($1:$15)+15)+1,1)*10^ROW($1:$15)/10),REPT(0,MIN(MAX(COUNT(1/(MID(P32,ROW($1:$88),1)+1))-15,),15)))&TEXT(SUM(MID(0&P32,LARGE(ISNUMBER(-MID(P32,ROW($1:$88),1))*ROW($1:$88),ROW($1:$15))+1,1)*10^ROW($1:$15)/10),REPT(0,MIN(COUNT(1/(MID(P32,ROW($1:$88),1)+1)),15))) -> 0
A33: Область: | B33: =UPPER((P18)) ->  | C33: =IFERROR(ПоискСНачала(C32,"Телефон"),0) -> 0 | E33: =IFERROR(ПоискМежду(C32,"Телефон :","Примечание"),0) -> 0 | F33: =IFERROR(IF(LEFT(ПоискСКонца(C32,"Примечание : "),2)="г ",MID(ПоискСКонца(C32,"Примечание : "),3,99),IF(LEFT(ПоискСКонца(C32,"Примечание : "),3)="г. ",MID(ПоискСКонца(C32,"Примечание : "),4,99),IF(LEFT(ПоискСКонца(C32,"Примечание : "),3)="гор",MID(ПоискСКонца(C32,"Примечание : "),6,99),0))),0) -> 0 | P33: 0 | Q33: =TEXT(SUM(MID(0&P33,LARGE(ISNUMBER(-MID(P33,ROW($1:$88),1))*ROW($1:$88),ROW($1:$15)+15)+1,1)*10^ROW($1:$15)/10),REPT(0,MIN(MAX(COUNT(1/(MID(P33,ROW($1:$88),1)+1))-15,),15)))&TEXT(SUM(MID(0&P33,LARGE(ISNUMBER(-MID(P33,ROW($1:$88),1))*ROW($1:$88),ROW($1:$15))+1,1)*10^ROW($1:$15)/10),REPT(0,MIN(COUNT(1/(MID(P33,ROW($1:$88),1)+1)),15))) -> 0
A34: Город: | B34: =UPPER((P19)) -> НУР-СУЛТАН | P34: 0 | Q34: =TEXT(SUM(MID(0&P34,LARGE(ISNUMBER(-MID(P34,ROW($1:$88),1))*ROW($1:$88),ROW($1:$15)+15)+1,1)*10^ROW($1:$15)/10),REPT(0,MIN(MAX(COUNT(1/(MID(P34,ROW($1:$88),1)+1))-15,),15)))&TEXT(SUM(MID(0&P34,LARGE(ISNUMBER(-MID(P34,ROW($1:$88),1))*ROW($1:$88),ROW($1:$15))+1,1)*10^ROW($1:$15)/10),REPT(0,MIN(COUNT(1/(MID(P34,ROW($1:$88),1)+1)),15))) -> 0
A35: Улица: | B35: =UPPER((P20)) -> УЛИЦА КОСШЫГУЛУЛЫ ДОМ 20 | P35: 0 | Q35: =TEXT(SUM(MID(0&P35,LARGE(ISNUMBER(-MID(P35,ROW($1:$88),1))*ROW($1:$88),ROW($1:$15)+15)+1,1)*10^ROW($1:$15)/10),REPT(0,MIN(MAX(COUNT(1/(MID(P35,ROW($1:$88),1)+1))-15,),15)))&TEXT(SUM(MID(0&P35,LARGE(ISNUMBER(-MID(P35,ROW($1:$88),1))*ROW($1:$88),ROW($1:$15))+1,1)*10^ROW($1:$15)/10),REPT(0,MIN(COUNT(1/(MID(P35,ROW($1:$88),1)+1)),15))) -> 0
A36: Здание: | B36: 20 | P36: 0 | Q36: =TEXT(SUM(MID(0&P36,LARGE(ISNUMBER(-MID(P36,ROW($1:$88),1))*ROW($1:$88),ROW($1:$15)+15)+1,1)*10^ROW($1:$15)/10),REPT(0,MIN(MAX(COUNT(1/(MID(P36,ROW($1:$88),1)+1))-15,),15)))&TEXT(SUM(MID(0&P36,LARGE(ISNUMBER(-MID(P36,ROW($1:$88),1))*ROW($1:$88),ROW($1:$15))+1,1)*10^ROW($1:$15)/10),REPT(0,MIN(COUNT(1/(MID(P36,ROW($1:$88),1)+1)),15))) -> 0
A37: Квартира: | P37: 0 | Q37: =TEXT(SUM(MID(0&P37,LARGE(ISNUMBER(-MID(P37,ROW($1:$88),1))*ROW($1:$88),ROW($1:$15)+15)+1,1)*10^ROW($1:$15)/10),REPT(0,MIN(MAX(COUNT(1/(MID(P37,ROW($1:$88),1)+1))-15,),15)))&TEXT(SUM(MID(0&P37,LARGE(ISNUMBER(-MID(P37,ROW($1:$88),1))*ROW($1:$88),ROW($1:$15))+1,1)*10^ROW($1:$15)/10),REPT(0,MIN(COUNT(1/(MID(P37,ROW($1:$88),1)+1)),15))) -> 0
A38: Телефон: | B38: =B4 -> 7-775-974-53-71 0---- ---- | P38: 0 | Q38: =TEXT(SUM(MID(0&P38,LARGE(ISNUMBER(-MID(P38,ROW($1:$88),1))*ROW($1:$88),ROW($1:$15)+15)+1,1)*10^ROW($1:$15)/10),REPT(0,MIN(MAX(COUNT(1/(MID(P38,ROW($1:$88),1)+1))-15,),15)))&TEXT(SUM(MID(0&P38,LARGE(ISNUMBER(-MID(P38,ROW($1:$88),1))*ROW($1:$88),ROW($1:$15))+1,1)*10^ROW($1:$15)/10),REPT(0,MIN(COUNT(1/(MID(P38,ROW($1:$88),1)+1)),15))) -> 0
A39: Индекс: | B39: =P16 ->  | Q39: =IF(LEFT(#REF!,4)="ваша",VALUE(MID(#REF!,13,20))*100,0) -> 
A40: Компания: | Q40: =IF(LEFT(#REF!,4)="ваша",VALUE(MID(#REF!,13,20))*100,0) -> 
A41: ИИН: | B41: =F29 -> 25950 | Q41: =IF(LEFT(#REF!,4)="ваша",VALUE(MID(#REF!,13,20))*100,0) -> 
A42: ------------------------ | B42: ---------------------------------------------------- | C42: ---------------------------------------------------- | D42: ------------------------ | E42: ------------------------ | F42: --------------------------- | G42: ------------------------------ | H42: ------------------------ | I42: ------------------------ | Q42: =SUM(Q19:Q41) -> 

Sheet 170820++29000
A1: =IF(LEFT(C29,2)="сп",P1&" ► СП",IF(E25=D26,P1,IF(H6<>0,P1&"++"&"0",IF(E25=D27,P1&"++"&"0",IF(E25=D28,P1&"++"&"0",IF(E25=D27,P1&"++"&"0",IF(E25=D28,P1&"++"&"0",IF(LEFT(C25,2)="AV",P1&"++"&F29,P1)))))))) -> 170820++29000 | B1: 2020-08-17 | C1: =IF(E2>0,"ОТПРАВЛЕНО",IF(LEFT(C29,3)="ЗАК","ЗАКАЗАНО в СПБ",IF(G24>=0,"ОПЛОЧЕНО","ОЖИДАНИЕ ОПЛАТЫ"))) -> ОТПРАВЛЕНО | D1: ='СПИСОК ЗАКАЗОВ'!B1 -> 21 | E1: 2020-08-17 | I1: =A1 -> 170820++29000 | K1: 170820 | P1: =IF(G24>0,"+"&H6&"+"&Q1,Q1) -> 170820 | Q1: =ПоискСКонца(K1,"№") -> 170820
A2: Логин | B2: =L3 -> Логин | C2: Номер накл-ой | E2: 3611554 | K2: Примечание
A3: ФИО | B3: =IF(C32=0,UPPER((P9)),UPPER(C33)) -> РАКИШЕВ АБЗАЛ | K3: Логин | L3: Логин
A4: Телефон | B4: =R12 -> 8-701-105-64-80 0---- ---- | E4: =IF(F4>0.5,"оплачено",IF(F4<0,"ОПЛАТИТЬ= "&G4,"ОПЛАТИТЬ= "&Q25)) -> ОПЛАТИТЬ= 1400 | F4: 0 | G4: 1100 | K4: Дата заказа | L4: дата заказа
A5: e-mail: | B5: =L11 -> мыло
A6: Вес | B6: ПРИМЕЧАНИЯ | C6: Наименование | D6: Кол-во | E6: Цена | F6: Всего | G6: =IF(MAX(G7:G25)>0,MAX(G7:G25),"") ->  | H6: =IF(I7>0,"НАЛ",IF(I8>0,"ПЕРЕВОД",IF(I9>0,"Beeline",IF(I10>0,"KASPI",IF(I11>0,"QIWI",IF(I12>0,"СЧЁТ Альфа-Банк",0)))))) -> 0 | I6: =SUM(I7:I28) -> 0
A7: =IF(L24>0,Q24*1/100,"") ->  | B7: списано | C7: Неодимовый магнит D10x2mm(Аксиал)`42 (сила притяжения 1,8 кг) | D7: 500 | E7: 54 | F7: =IF(D7<>"",E7*D7,"") -> 27000 | G7: =IF(I7 >0,TODAY(),"") ->  | H7: НАЛ | J7: =IFERROR(IFERROR(VLOOKUP(C7,#REF!,3,0)*D7,VLOOKUP(C7,#REF!,7,0)*D7),"нет веса") -> нет веса | K7: Заказ №2080
A8: =IF(L25>0,Q25*1/100,"") ->  | C8: =IF(L27<>"",K27,"") ->  | D8: =IF(L27>0,L27,"") ->  | E8: =IF(M27="уточняйте",0,IF(L27>0,M27,"")) ->  | H8: ПЕРЕВОД | J8: =IFERROR(IFERROR(VLOOKUP(C8,#REF!,3,0)*D8,VLOOKUP(C8,#REF!,7,0)*D8),"нет веса") -> нет веса
A9: =IF(L26>0,Q26*1/100,"") ->  | H9: Beeline | J9: =IFERROR(IFERROR(VLOOKUP(C9,#REF!,3,0)*D9,VLOOKUP(C9,#REF!,7,0)*D9),"нет веса") -> нет веса | K9: Здравствуйте, Ракишев Абзал | P9: =MID(K9,15,70) -> Ракишев Абзал | Q9: =TEXT(SUM(MID(0&L9,LARGE(ISNUMBER(-MID(L9,ROW($1:$96),1))*ROW($1:$96),ROW($1:$23)+15)+1,1)*10^ROW($1:$23)/10),REPT(0,MIN(MAX(COUNT(1/(MID(L9,ROW($1:$96),1)+1))-15,),15)))&TEXT(SUM(MID(0&L9,LARGE(ISNUMBER(-MID(L9,ROW($1:$96),1))*ROW($1:$96),ROW($1:$23))+1,1)*10^ROW($1:$23)/10),REPT(0,MIN(COUNT(1/(MID(L9,ROW($1:$96),1)+1)),15))) -> 
H10: KASPI | J10: =IFERROR(IFERROR(VLOOKUP(C10,#REF!,3,0)*D10,VLOOKUP(C10,#REF!,7,0)*D10),"нет веса") -> нет веса | K10: Мы получили Ваш заказ номер, 2080
H11: QIWI | J11: =IFERROR(IFERROR(VLOOKUP(C11,#REF!,3,0)*D11,VLOOKUP(C11,#REF!,7,0)*D11),"нет веса") -> нет веса | K11: Электронная почта | L11: мыло
H12: СЧЁТ Альфа-Банк | J12: =IFERROR(IFERROR(VLOOKUP(C12,#REF!,3,0)*D12,VLOOKUP(C12,#REF!,7,0)*D12),"нет веса") -> нет веса | K12: Контактный телефон | L12: 87011056480 | P12: =(L12&" "&P13) -> 87011056480 0 | Q12: =TEXT(SUM(MID(0&P12,LARGE(ISNUMBER(-MID(P12,ROW($1:$99),1))*ROW($1:$99),ROW($1:$15)+30)+1,1)*10^ROW($1:$15)/10),REPT(0,MIN(MAX(COUNT(1/(MID(P12,ROW($1:$99),1)+1))-30,),15)))&TEXT(SUM(MID(0&P12,LARGE(ISNUMBER(-MID(P12,ROW($1:$99),1))*ROW($1:$99),ROW($1:$15)+15)+1,1)*10^ROW($1:$15)/10),REPT(0,MIN(MAX(COUNT(1/(MID(P12,ROW($1:$99),1)+1))-15,),15)))&TEXT(SUM(MID(0&P12,LARGE(ISNUMBER(-MID(P12,ROW($1:$99),1))*ROW($1:$99),ROW($1:$15))+1,1)*10^ROW($1:$15)/10),REPT(0,MIN(COUNT(1/(MID(P12,ROW($1:$99),1)+1)),15))) -> 870110564800 | R12: =(MID(Q12,1,1))&"-"&(MID(Q12,2,3))&"-"&(MID(Q12,5,3))&"-"&(MID(Q12,8,2))&"-"&(MID(Q12,10,2))&" "&(MID(Q12,12,1))&"-"&(MID(Q12,13,3))&"-"&(MID(Q12,16,3))&"-"&(MID(Q12,19,2))&"-"&(MID(Q12,21,2))&" "&(MID(Q12,23,1))&"-"&(MID(Q12,24,3))&"-"&(MID(Q12,27,3))&"-"&(MID(Q12,30,2))&"-"&(MID(Q12,32,2)) -> 8-701-105-64-80 0---- ----
J13: =IFERROR(IFERROR(VLOOKUP(C13,#REF!,3,0)*D13,VLOOKUP(C13,#REF!,7,0)*D13),"нет веса") -> нет веса | P13: =IF(L13="-",IFERROR(НайтиСтрокуПоСлову("Комментарий",K27:K60),0),L13) -> 0
J14: =IFERROR(IFERROR(VLOOKUP(C14,#REF!,3,0)*D14,VLOOKUP(C14,#REF!,7,0)*D14),"нет веса") -> нет веса | K14: Доставка: | P14: =MID(L14,23,70) -> 
J15: =IFERROR(IFERROR(VLOOKUP(C15,#REF!,3,0)*D15,VLOOKUP(C15,#REF!,7,0)*D15),"нет веса") -> нет веса | K15: Оплата: | P15: =IF(LEFT(P14,2)="EX",MID(L15,11,70),L15) -> 0 | Q15: =TEXT(SUM(MID(0&P15,LARGE(ISNUMBER(-MID(P15,ROW($1:$88),1))*ROW($1:$88),ROW($1:$15)+15)+1,1)*10^ROW($1:$15)/10),REPT(0,MIN(MAX(COUNT(1/(MID(P15,ROW($1:$88),1)+1))-15,),15)))&TEXT(SUM(MID(0&P15,LARGE(ISNUMBER(-MID(P15,ROW($1:$88),1))*ROW($1:$88),ROW($1:$15))+1,1)*10^ROW($1:$15)/10),REPT(0,MIN(COUNT(1/(MID(P15,ROW($1:$88),1)+1)),15))) -> 0 | R15: =SUMPRODUCT(--SUBSTITUTE(Q15:Q15,CHAR(160),)) -> 0 | S15: =LEN(Q15) -> 1 | T15: =FLOOR(S15/3,1) -> 0
J16: =IFERROR(IFERROR(VLOOKUP(C16,#REF!,3,0)*D16,VLOOKUP(C16,#REF!,7,0)*D16),"нет веса") -> нет веса | K16: Адрес доставки | L16: Индекс: | P16: =MID(L16,9,70) -> 
J17: =IFERROR(IFERROR(VLOOKUP(C17,#REF!,3,0)*D17,VLOOKUP(C17,#REF!,7,0)*D17),"нет веса") -> нет веса | L17: Страна: | P17: =MID(L17,9,70) ->  | Q17: =IF(LEFT(K17,4)="ваша",VALUE(MID(K17,13,20))*100,0) -> 0
J18: =IFERROR(IFERROR(VLOOKUP(C18,#REF!,3,0)*D18,VLOOKUP(C18,#REF!,7,0)*D18),"нет веса") -> нет веса | L18: Область: | P18: =MID(L18,10,70) -> 
J19: =IFERROR(IFERROR(VLOOKUP(C19,#REF!,3,0)*D19,VLOOKUP(C19,#REF!,7,0)*D19),"нет веса") -> нет веса | L19: Город: | P19: =MID(L19,8,70) ->  | Q19: =IF(LEFT(K19,4)="ваша",VALUE(MID(K19,13,20))*100,0) -> 0
J20: =IFERROR(IFERROR(VLOOKUP(C20,#REF!,3,0)*D20,VLOOKUP(C20,#REF!,7,0)*D20),"нет веса") -> нет веса | L20: Улица: | P20: =MID(L20,8,70) ->  | Q20: =IF(LEFT(K31,4)="ваша",VALUE(MID(K31,13,20))*100,0) -> 0
J21: =IFERROR(IFERROR(VLOOKUP(C21,#REF!,3,0)*D21,VLOOKUP(C21,#REF!,7,0)*D21),"нет веса") -> нет веса | L21: Здание: | P21: =MID(L21,9,70) ->  | Q21: =IF(LEFT(K32,4)="ваша",VALUE(MID(K32,13,20))*100,0) -> 0
J22: =IFERROR(IFERROR(VLOOKUP(C22,#REF!,3,0)*D22,VLOOKUP(C22,#REF!,7,0)*D22),"нет веса") -> нет веса | L22: Квартира: | P22: =MID(L22,11,70) ->  | Q22: =IF(LEFT(#REF!,4)="ваша",VALUE(MID(#REF!,13,20))*100,0) -> 
E23: Итого: | F23: =SUM(F7:F22) -> 27000 | J23: =IF(K40>0,M40,"") ->  | K23: Наименование | L23: Количество | M23: Цена | N23: Вес | O23: Всего | Q23: =IF(LEFT(K33,4)="ваша",VALUE(MID(K33,13,20))*100,0) -> 0
A24: =IF(L41>0,N41,"") ->  | D24: скидка: | E24: =IF(F23>150000,10,IF(F23>100000,8,IF(F23>60000,5,IF(F23>30000,3,0)))) -> 0 | F24: =F23-(F23*E24/100) -> 27000 | G24: =IFERROR(SUM(I7:I22)-F29+1,0) -> -28999 | P24: =N24 -> 0 | Q24: =TEXT(SUM(MID(0&P24,LARGE(ISNUMBER(-MID(P24,ROW($1:$88),1))*ROW($1:$88),ROW($1:$15)+15)+1,1)*10^ROW($1:$15)/10),REPT(0,MIN(MAX(COUNT(1/(MID(P24,ROW($1:$88),1)+1))-15,),15)))&TEXT(SUM(MID(0&P24,LARGE(ISNUMBER(-MID(P24,ROW($1:$88),1))*ROW($1:$88),ROW($1:$15))+1,1)*10^ROW($1:$15)/10),REPT(0,MIN(COUNT(1/(MID(P24,ROW($1:$88),1)+1)),15))) -> 0
A25: =SUM(A7:A23)/1000*1.3 -> 0 | C25: =IF(E25=F26,"Доставка БЕСПЛАТНО",IF(E25=D26,C26,IF(E25=D27,C27,IF(E25=D28,C28,IF(E25=F27,C27&" + НПл",IF(E25=F28,C28&" + НПл","Укажите ТК")))))) -> AVIS EXPRESS Кокшетау + НПл | D25: 2 | E25: =F28 -> 1400 + НПл | G25: =IF(I25 >0,TODAY(),"") ->  | J25: =SUM(J7:J22)/1000 -> 0 | P25: =E25 -> 1400 + НПл | Q25: =TEXT(SUM(MID(0&P25,LARGE(ISNUMBER(-MID(P25,ROW($1:$88),1))*ROW($1:$88),ROW($1:$15)+15)+1,1)*10^ROW($1:$15)/10),REPT(0,MIN(MAX(COUNT(1/(MID(P25,ROW($1:$88),1)+1))-15,),15)))&TEXT(SUM(MID(0&P25,LARGE(ISNUMBER(-MID(P25,ROW($1:$88),1))*ROW($1:$88),ROW($1:$15))+1,1)*10^ROW($1:$15)/10),REPT(0,MIN(COUNT(1/(MID(P25,ROW($1:$88),1)+1)),15))) -> 1400 | R25: =E25 -> 1400 + НПл | S25: =TEXT(SUM(MID(0&R25,LARGE(ISNUMBER(-MID(R25,ROW($1:$88),1))*ROW($1:$88),ROW($1:$15)+15)+1,1)*10^ROW($1:$15)/10),REPT(0,MIN(MAX(COUNT(1/(MID(R25,ROW($1:$88),1)+1))-15,),15)))&TEXT(SUM(MID(0&R25,LARGE(ISNUMBER(-MID(R25,ROW($1:$88),1))*ROW($1:$88),ROW($1:$15))+1,1)*10^ROW($1:$15)/10),REPT(0,MIN(COUNT(1/(MID(R25,ROW($1:$88),1)+1)),15))) -> 1400 | U25: =TEXT(SUM(MID(0&E25,LARGE(ISNUMBER(-MID(E25,ROW($1:$88),1))*ROW($1:$88),ROW($1:$15)+15)+1,1)*10^ROW($1:$15)/10),REPT(0,MIN(MAX(COUNT(1/(MID(E25,ROW($1:$88),1)+1))-15,),15)))&TEXT(SUM(MID(0&E25,LARGE(ISNUMBER(-MID(E25,ROW($1:$88),1))*ROW($1:$88),ROW($1:$15))+1,1)*10^ROW($1:$15)/10),REPT(0,MIN(COUNT(1/(MID(E25,ROW($1:$88),1)+1)),15))) -> 
C26: =IFERROR("AVIS С А М О В Ы В О З "&" "&VLOOKUP((LEFT(B34,(LEN(B34)))),'ТАРИФЫ ТК'!J17:L268,1,0),"НЕТ ДОСТАВКИ") -> AVIS С А М О В Ы В О З Кокшетау | D26: =IFERROR(VLOOKUP((LEFT(B34,(LEN(B34)))),'ТАРИФЫ ТК'!J17:L268,3,0)+0.001,"НЕТ ДОСТАВКИ") -> 1550.001 | E26: =IFERROR(F24+D26,"НЕТ ДОСТАВКИ") -> 28550.001 | F26: =IFERROR(D26&" + НПл","НЕТ ДОСТАВКИ") -> 1550,001 + НПл | G26: =IFERROR(CEILING((F24+D26)*(1+$D$25/100),50),0) -> 29150 | P26: =N26 -> 0 | Q26: =TEXT(SUM(MID(0&P26,LARGE(ISNUMBER(-MID(P26,ROW($1:$88),1))*ROW($1:$88),ROW($1:$15)+15)+1,1)*10^ROW($1:$15)/10),REPT(0,MIN(MAX(COUNT(1/(MID(P26,ROW($1:$88),1)+1))-15,),15)))&TEXT(SUM(MID(0&P26,LARGE(ISNUMBER(-MID(P26,ROW($1:$88),1))*ROW($1:$88),ROW($1:$15))+1,1)*10^ROW($1:$15)/10),REPT(0,MIN(COUNT(1/(MID(P26,ROW($1:$88),1)+1)),15))) -> 0
C27: =IFERROR("AVIS Econom"&" "&VLOOKUP((LEFT(B34,(LEN(B34)))),'ТАРИФЫ ТК'!A4:A134,1,0),"НЕТ ДОСТАВКИ") -> AVIS Econom Кокшетау | D27: =IFERROR(VLOOKUP((LEFT(B34,(LEN(B34)))),'ТАРИФЫ ТК'!A4:C134,3,0),"НЕТ ДОСТАВКИ") -> 1300 | E27: =IFERROR(F24+D27,"НЕТ ДОСТАВКИ") -> 28300 | F27: =IFERROR(D27&" + НПл","НЕТ ДОСТАВКИ") -> 1300 + НПл | G27: =IFERROR(CEILING((F24+D27)*(1+$D$25/100),50),0) -> 28900 | P27: 0 | Q27: =TEXT(SUM(MID(0&P27,LARGE(ISNUMBER(-MID(P27,ROW($1:$88),1))*ROW($1:$88),ROW($1:$15)+15)+1,1)*10^ROW($1:$15)/10),REPT(0,MIN(MAX(COUNT(1/(MID(P27,ROW($1:$88),1)+1))-15,),15)))&TEXT(SUM(MID(0&P27,LARGE(ISNUMBER(-MID(P27,ROW($1:$88),1))*ROW($1:$88),ROW($1:$15))+1,1)*10^ROW($1:$15)/10),REPT(0,MIN(COUNT(1/(MID(P27,ROW($1:$88),1)+1)),15))) -> 0
C28: =IFERROR(IF(A29<1,"AVIS EXPRESS"&" "&VLOOKUP((LEFT(B34,(LEN(B34)))),'ТАРИФЫ ТК'!E4:G20,1,0),"AV ВИМАНИЕ: В Е С П О С Ы Л К И Б О Л Ь Ш Е 0,5 КГ !!!"),"НЕТ ДОСТАВКИ") -> AVIS EXPRESS Кокшетау | D28: =IFERROR(VLOOKUP((LEFT(B34,(LEN(B34)))),'ТАРИФЫ ТК'!E4:G20,3,0),"НЕТ ДОСТАВКИ") -> 1400 | E28: =IFERROR(F24+D28,"НЕТ ДОСТАВКИ") -> 28400 | F28: =D28&" + НПл" -> 1400 + НПл | G28: =IFERROR(CEILING((F24+D28)*(1+$D$25/100),50),"НЕТ ДОСТАВКИ") -> 29000 | P28: 0 | Q28: =TEXT(SUM(MID(0&P28,LARGE(ISNUMBER(-MID(P28,ROW($1:$88),1))*ROW($1:$88),ROW($1:$15)+15)+1,1)*10^ROW($1:$15)/10),REPT(0,MIN(MAX(COUNT(1/(MID(P28,ROW($1:$88),1)+1))-15,),15)))&TEXT(SUM(MID(0&P28,LARGE(ISNUMBER(-MID(P28,ROW($1:$88),1))*ROW($1:$88),ROW($1:$15))+1,1)*10^ROW($1:$15)/10),REPT(0,MIN(COUNT(1/(MID(P28,ROW($1:$88),1)+1)),15))) -> 0
A29: =IFERROR(A25*1.5,"Количество ??") -> 0 | D29: К ОПЛАТЕ: | E29: =IFERROR(F24+E25,0) -> 0 | F29: =IF(E25=C29,"Доставка БЕСПЛАТНО",IF(E25=D26,E26,IF(E25=D27,E27,IF(E25=D28,E28,IF(E25=F27,G27,IF(E25=F28,G28,IF(E25=F26,G26,"Укажите ТК"))))))) -> 29000 | G29: =IFERROR(CEILING((F24+E25)*1.03,50),0) -> 0 | J29: =IFERROR(J25*1.5,"Количество ??") -> 0 | P29: 0 | Q29: =TEXT(SUM(MID(0&P29,LARGE(ISNUMBER(-MID(P29,ROW($1:$88),1))*ROW($1:$88),ROW($1:$15)+15)+1,1)*10^ROW($1:$15)/10),REPT(0,MIN(MAX(COUNT(1/(MID(P29,ROW($1:$88),1)+1))-15,),15)))&TEXT(SUM(MID(0&P29,LARGE(ISNUMBER(-MID(P29,ROW($1:$88),1))*ROW($1:$88),ROW($1:$15))+1,1)*10^ROW($1:$15)/10),REPT(0,MIN(COUNT(1/(MID(P29,ROW($1:$88),1)+1)),15))) -> 0
A30: rc11091kz | C30: =IFERROR((P14&" "&LEFT(P15,8)&" = "&TEXT(R15,"### ### ###")&" т."),"НЕТ ДОСТАВКИ") -> 0 = т. | E30: =IFERROR("QIWI = "&CEILING((E26*1.02),10),0) -> QIWI = 29130 | F30: =IFERROR(F29-F24,"УКАЖИТЕ ТК") -> 2000 | P30: 0 | Q30: =TEXT(SUM(MID(0&P30,LARGE(ISNUMBER(-MID(P30,ROW($1:$88),1))*ROW($1:$88),ROW($1:$15)+15)+1,1)*10^ROW($1:$15)/10),REPT(0,MIN(MAX(COUNT(1/(MID(P30,ROW($1:$88),1)+1))-15,),15)))&TEXT(SUM(MID(0&P30,LARGE(ISNUMBER(-MID(P30,ROW($1:$88),1))*ROW($1:$88),ROW($1:$15))+1,1)*10^ROW($1:$15)/10),REPT(0,MIN(COUNT(1/(MID(P30,ROW($1:$88),1)+1)),15))) -> 0
A31: =A1 -> 170820++29000 | B31: ПОЛУЧАТЕЛЬ: | C31: rc11091kz | P31: 0 | Q31: =TEXT(SUM(MID(0&P31,LARGE(ISNUMBER(-MID(P31,ROW($1:$88),1))*ROW($1:$88),ROW($1:$15)+15)+1,1)*10^ROW($1:$15)/10),REPT(0,MIN(MAX(COUNT(1/(MID(P31,ROW($1:$88),1)+1))-15,),15)))&TEXT(SUM(MID(0&P31,LARGE(ISNUMBER(-MID(P31,ROW($1:$88),1))*ROW($1:$88),ROW($1:$15))+1,1)*10^ROW($1:$15)/10),REPT(0,MIN(COUNT(1/(MID(P31,ROW($1:$88),1)+1)),15))) -> 0
A32: =UPPER((B3)) -> РАКИШЕВ АБЗАЛ | C32: =IFERROR(MID(НайтиСтрокуПоСлову("Комментарий: Имя :",K1:K45),20,99),0) -> 0 | P32: 0 | Q32: =TEXT(SUM(MID(0&P32,LARGE(ISNUMBER(-MID(P32,ROW($1:$88),1))*ROW($1:$88),ROW($1:$15)+15)+1,1)*10^ROW($1:$15)/10),REPT(0,MIN(MAX(COUNT(1/(MID(P32,ROW($1:$88),1)+1))-15,),15)))&TEXT(SUM(MID(0&P32,LARGE(ISNUMBER(-MID(P32,ROW($1:$88),1))*ROW($1:$88),ROW($1:$15))+1,1)*10^ROW($1:$15)/10),REPT(0,MIN(COUNT(1/(MID(P32,ROW($1:$88),1)+1)),15))) -> 0
A33: Область: | B33: =UPPER((P18)) ->  | C33: =IFERROR(ПоискСНачала(C32,"Телефон"),0) -> 0 | E33: =IFERROR(ПоискМежду(C32,"Телефон :","Примечание"),0) -> 0 | F33: =IFERROR(IF(LEFT(ПоискСКонца(C32,"Примечание : "),2)="г ",MID(ПоискСКонца(C32,"Примечание : "),3,99),IF(LEFT(ПоискСКонца(C32,"Примечание : "),3)="г. ",MID(ПоискСКонца(C32,"Примечание : "),4,99),IF(LEFT(ПоискСКонца(C32,"Примечание : "),3)="гор",MID(ПоискСКонца(C32,"Примечание : "),6,99),0))),0) -> 0 | P33: 0 | Q33: =TEXT(SUM(MID(0&P33,LARGE(ISNUMBER(-MID(P33,ROW($1:$88),1))*ROW($1:$88),ROW($1:$15)+15)+1,1)*10^ROW($1:$15)/10),REPT(0,MIN(MAX(COUNT(1/(MID(P33,ROW($1:$88),1)+1))-15,),15)))&TEXT(SUM(MID(0&P33,LARGE(ISNUMBER(-MID(P33,ROW($1:$88),1))*ROW($1:$88),ROW($1:$15))+1,1)*10^ROW($1:$15)/10),REPT(0,MIN(COUNT(1/(MID(P33,ROW($1:$88),1)+1)),15))) -> 0
A34: Город: | B34: Кокшетау | P34: 0 | Q34: =TEXT(SUM(MID(0&P34,LARGE(ISNUMBER(-MID(P34,ROW($1:$88),1))*ROW($1:$88),ROW($1:$15)+15)+1,1)*10^ROW($1:$15)/10),REPT(0,MIN(MAX(COUNT(1/(MID(P34,ROW($1:$88),1)+1))-15,),15)))&TEXT(SUM(MID(0&P34,LARGE(ISNUMBER(-MID(P34,ROW($1:$88),1))*ROW($1:$88),ROW($1:$15))+1,1)*10^ROW($1:$15)/10),REPT(0,MIN(COUNT(1/(MID(P34,ROW($1:$88),1)+1)),15))) -> 0
A35: Улица: | B35: Акан-Сере | P35: 0 | Q35: =TEXT(SUM(MID(0&P35,LARGE(ISNUMBER(-MID(P35,ROW($1:$88),1))*ROW($1:$88),ROW($1:$15)+15)+1,1)*10^ROW($1:$15)/10),REPT(0,MIN(MAX(COUNT(1/(MID(P35,ROW($1:$88),1)+1))-15,),15)))&TEXT(SUM(MID(0&P35,LARGE(ISNUMBER(-MID(P35,ROW($1:$88),1))*ROW($1:$88),ROW($1:$15))+1,1)*10^ROW($1:$15)/10),REPT(0,MIN(COUNT(1/(MID(P35,ROW($1:$88),1)+1)),15))) -> 0
A36: Здание: | B36: 113 | P36: 0 | Q36: =TEXT(SUM(MID(0&P36,LARGE(ISNUMBER(-MID(P36,ROW($1:$88),1))*ROW($1:$88),ROW($1:$15)+15)+1,1)*10^ROW($1:$15)/10),REPT(0,MIN(MAX(COUNT(1/(MID(P36,ROW($1:$88),1)+1))-15,),15)))&TEXT(SUM(MID(0&P36,LARGE(ISNUMBER(-MID(P36,ROW($1:$88),1))*ROW($1:$88),ROW($1:$15))+1,1)*10^ROW($1:$15)/10),REPT(0,MIN(COUNT(1/(MID(P36,ROW($1:$88),1)+1)),15))) -> 0
A37: Квартира: | B37: 68 | P37: 0 | Q37: =TEXT(SUM(MID(0&P37,LARGE(ISNUMBER(-MID(P37,ROW($1:$88),1))*ROW($1:$88),ROW($1:$15)+15)+1,1)*10^ROW($1:$15)/10),REPT(0,MIN(MAX(COUNT(1/(MID(P37,ROW($1:$88),1)+1))-15,),15)))&TEXT(SUM(MID(0&P37,LARGE(ISNUMBER(-MID(P37,ROW($1:$88),1))*ROW($1:$88),ROW($1:$15))+1,1)*10^ROW($1:$15)/10),REPT(0,MIN(COUNT(1/(MID(P37,ROW($1:$88),1)+1)),15))) -> 0
A38: Телефон: | B38: =B4 -> 8-701-105-64-80 0---- ---- | P38: 0 | Q38: =TEXT(SUM(MID(0&P38,LARGE(ISNUMBER(-MID(P38,ROW($1:$88),1))*ROW($1:$88),ROW($1:$15)+15)+1,1)*10^ROW($1:$15)/10),REPT(0,MIN(MAX(COUNT(1/(MID(P38,ROW($1:$88),1)+1))-15,),15)))&TEXT(SUM(MID(0&P38,LARGE(ISNUMBER(-MID(P38,ROW($1:$88),1))*ROW($1:$88),ROW($1:$15))+1,1)*10^ROW($1:$15)/10),REPT(0,MIN(COUNT(1/(MID(P38,ROW($1:$88),1)+1)),15))) -> 0
A39: Индекс: | B39: =P16 ->  | Q39: =IF(LEFT(#REF!,4)="ваша",VALUE(MID(#REF!,13,20))*100,0) -> 
A40: Компания: | Q40: =IF(LEFT(#REF!,4)="ваша",VALUE(MID(#REF!,13,20))*100,0) -> 
A41: ИИН: | B41: =F29 -> 29000 | Q41: =IF(LEFT(#REF!,4)="ваша",VALUE(MID(#REF!,13,20))*100,0) -> 
A42: ------------------------ | B42: ---------------------------------------------------- | C42: ---------------------------------------------------- | D42: ------------------------ | E42: ------------------------ | F42: --------------------------- | G42: ------------------------------ | H42: ------------------------ | I42: ------------------------ | Q42: =SUM(Q19:Q41) -> 

Sheet 140820++29300
A1: =IF(LEFT(C29,2)="сп",P1&" ► СП",IF(E25=D26,P1,IF(H6<>0,P1&"++"&"0",IF(E25=D27,P1&"++"&"0",IF(E25=D28,P1&"++"&"0",IF(E25=D27,P1&"++"&"0",IF(E25=D28,P1&"++"&"0",IF(LEFT(C25,2)="AV",P1&"++"&F29,P1)))))))) -> 140820++29300 | B1: 2020-08-14 | C1: =IF(E2>0,"ОТПРАВЛЕНО",IF(LEFT(C29,3)="ЗАК","ЗАКАЗАНО в СПБ",IF(G24>=0,"ОПЛОЧЕНО","ОЖИДАНИЕ ОПЛАТЫ"))) -> ОТПРАВЛЕНО | D1: ='СПИСОК ЗАКАЗОВ'!B1 -> 21 | E1: 2020-08-14 | I1: =A1 -> 140820++29300 | K1: 140820 | P1: =IF(G24>0,"+"&H6&"+"&Q1,Q1) -> 140820 | Q1: =ПоискСКонца(K1,"№") -> 140820
A2: Логин | B2: =L3 -> Логин | C2: Номер накл-ой | E2: 3611550 | K2: Примечание
A3: ФИО | B3: =IF(C32=0,UPPER((P9)),UPPER(C33)) -> АБУЛКАСИМОВ БАУЫРЖАН | K3: Логин | L3: Логин
A4: Телефон | B4: =R12 -> 8-702-673-12-82 0---- ---- | E4: =IF(F4>0.5,"оплачено",IF(F4<0,"ОПЛАТИТЬ= "&G4,"ОПЛАТИТЬ= "&Q25)) -> ОПЛАТИТЬ= 1400 | F4: 0 | G4: 1100 | K4: Дата заказа | L4: дата заказа
A5: e-mail: | B5: =L11 -> мыло
A6: Вес | B6: ПРИМЕЧАНИЯ | C6: Наименование | D6: Кол-во | E6: Цена | F6: Всего | G6: =IF(MAX(G7:G25)>0,MAX(G7:G25),"") ->  | H6: =IF(I7>0,"НАЛ",IF(I8>0,"ПЕРЕВОД",IF(I9>0,"Beeline",IF(I10>0,"KASPI",IF(I11>0,"QIWI",IF(I12>0,"СЧЁТ Альфа-Банк",0)))))) -> 0 | I6: =SUM(I7:I28) -> 0
A7: =IF(L24>0,Q24*1/100,"") ->  | B7: списано | C7: Неодимовый магнит D50x20mm(Аксиал)`35 (сила притяжения 100 кг) | D7: 3 | E7: 9100 | F7: =IF(D7<>"",E7*D7,"") -> 27300 | G7: =IF(I7 >0,TODAY(),"") ->  | H7: НАЛ | J7: =IFERROR(IFERROR(VLOOKUP(C7,#REF!,3,0)*D7,VLOOKUP(C7,#REF!,7,0)*D7),"нет веса") -> нет веса | K7: Заказ №2080
A8: =IF(L25>0,Q25*1/100,"") ->  | C8: =IF(L27<>"",K27,"") ->  | D8: =IF(L27>0,L27,"") ->  | E8: =IF(M27="уточняйте",0,IF(L27>0,M27,"")) ->  | H8: ПЕРЕВОД | J8: =IFERROR(IFERROR(VLOOKUP(C8,#REF!,3,0)*D8,VLOOKUP(C8,#REF!,7,0)*D8),"нет веса") -> нет веса
A9: =IF(L26>0,Q26*1/100,"") ->  | H9: Beeline | J9: =IFERROR(IFERROR(VLOOKUP(C9,#REF!,3,0)*D9,VLOOKUP(C9,#REF!,7,0)*D9),"нет веса") -> нет веса | K9: Здравствуйте, Абулкасимов Бауыржан | P9: =MID(K9,15,70) -> Абулкасимов Бауыржан | Q9: =TEXT(SUM(MID(0&L9,LARGE(ISNUMBER(-MID(L9,ROW($1:$96),1))*ROW($1:$96),ROW($1:$23)+15)+1,1)*10^ROW($1:$23)/10),REPT(0,MIN(MAX(COUNT(1/(MID(L9,ROW($1:$96),1)+1))-15,),15)))&TEXT(SUM(MID(0&L9,LARGE(ISNUMBER(-MID(L9,ROW($1:$96),1))*ROW($1:$96),ROW($1:$23))+1,1)*10^ROW($1:$23)/10),REPT(0,MIN(COUNT(1/(MID(L9,ROW($1:$96),1)+1)),15))) -> 
H10: KASPI | J10: =IFERROR(IFERROR(VLOOKUP(C10,#REF!,3,0)*D10,VLOOKUP(C10,#REF!,7,0)*D10),"нет веса") -> нет веса | K10: Мы получили Ваш заказ номер, 2080
H11: QIWI | J11: =IFERROR(IFERROR(VLOOKUP(C11,#REF!,3,0)*D11,VLOOKUP(C11,#REF!,7,0)*D11),"нет веса") -> нет веса | K11: Электронная почта | L11: мыло
H12: СЧЁТ Альфа-Банк | J12: =IFERROR(IFERROR(VLOOKUP(C12,#REF!,3,0)*D12,VLOOKUP(C12,#REF!,7,0)*D12),"нет веса") -> нет веса | K12: Контактный телефон | L12: 87026731282 | P12: =(L12&" "&P13) -> 87026731282 0 | Q12: =TEXT(SUM(MID(0&P12,LARGE(ISNUMBER(-MID(P12,ROW($1:$99),1))*ROW($1:$99),ROW($1:$15)+30)+1,1)*10^ROW($1:$15)/10),REPT(0,MIN(MAX(COUNT(1/(MID(P12,ROW($1:$99),1)+1))-30,),15)))&TEXT(SUM(MID(0&P12,LARGE(ISNUMBER(-MID(P12,ROW($1:$99),1))*ROW($1:$99),ROW($1:$15)+15)+1,1)*10^ROW($1:$15)/10),REPT(0,MIN(MAX(COUNT(1/(MID(P12,ROW($1:$99),1)+1))-15,),15)))&TEXT(SUM(MID(0&P12,LARGE(ISNUMBER(-MID(P12,ROW($1:$99),1))*ROW($1:$99),ROW($1:$15))+1,1)*10^ROW($1:$15)/10),REPT(0,MIN(COUNT(1/(MID(P12,ROW($1:$99),1)+1)),15))) -> 870267312820 | R12: =(MID(Q12,1,1))&"-"&(MID(Q12,2,3))&"-"&(MID(Q12,5,3))&"-"&(MID(Q12,8,2))&"-"&(MID(Q12,10,2))&" "&(MID(Q12,12,1))&"-"&(MID(Q12,13,3))&"-"&(MID(Q12,16,3))&"-"&(MID(Q12,19,2))&"-"&(MID(Q12,21,2))&" "&(MID(Q12,23,1))&"-"&(MID(Q12,24,3))&"-"&(MID(Q12,27,3))&"-"&(MID(Q12,30,2))&"-"&(MID(Q12,32,2)) -> 8-702-673-12-82 0---- ----
J13: =IFERROR(IFERROR(VLOOKUP(C13,#REF!,3,0)*D13,VLOOKUP(C13,#REF!,7,0)*D13),"нет веса") -> нет веса | P13: =IF(L13="-",IFERROR(НайтиСтрокуПоСлову("Комментарий",K27:K60),0),L13) -> 0
J14: =IFERROR(IFERROR(VLOOKUP(C14,#REF!,3,0)*D14,VLOOKUP(C14,#REF!,7,0)*D14),"нет веса") -> нет веса | K14: Доставка: | P14: =MID(L14,23,70) -> 
J15: =IFERROR(IFERROR(VLOOKUP(C15,#REF!,3,0)*D15,VLOOKUP(C15,#REF!,7,0)*D15),"нет веса") -> нет веса | K15: Оплата: | P15: =IF(LEFT(P14,2)="EX",MID(L15,11,70),L15) -> 0 | Q15: =TEXT(SUM(MID(0&P15,LARGE(ISNUMBER(-MID(P15,ROW($1:$88),1))*ROW($1:$88),ROW($1:$15)+15)+1,1)*10^ROW($1:$15)/10),REPT(0,MIN(MAX(COUNT(1/(MID(P15,ROW($1:$88),1)+1))-15,),15)))&TEXT(SUM(MID(0&P15,LARGE(ISNUMBER(-MID(P15,ROW($1:$88),1))*ROW($1:$88),ROW($1:$15))+1,1)*10^ROW($1:$15)/10),REPT(0,MIN(COUNT(1/(MID(P15,ROW($1:$88),1)+1)),15))) -> 0 | R15: =SUMPRODUCT(--SUBSTITUTE(Q15:Q15,CHAR(160),)) -> 0 | S15: =LEN(Q15) -> 1 | T15: =FLOOR(S15/3,1) -> 0
J16: =IFERROR(IFERROR(VLOOKUP(C16,#REF!,3,0)*D16,VLOOKUP(C16,#REF!,7,0)*D16),"нет веса") -> нет веса | K16: Адрес доставки | L16: Индекс: | P16: =MID(L16,9,70) -> 
J17: =IFERROR(IFERROR(VLOOKUP(C17,#REF!,3,0)*D17,VLOOKUP(C17,#REF!,7,0)*D17),"нет веса") -> нет веса | L17: Страна: | P17: =MID(L17,9,70) ->  | Q17: =IF(LEFT(K17,4)="ваша",VALUE(MID(K17,13,20))*100,0) -> 0
J18: =IFERROR(IFERROR(VLOOKUP(C18,#REF!,3,0)*D18,VLOOKUP(C18,#REF!,7,0)*D18),"нет веса") -> нет веса | L18: Область: | P18: =MID(L18,10,70) -> 
J19: =IFERROR(IFERROR(VLOOKUP(C19,#REF!,3,0)*D19,VLOOKUP(C19,#REF!,7,0)*D19),"нет веса") -> нет веса | L19: Город: | P19: =MID(L19,8,70) ->  | Q19: =IF(LEFT(K19,4)="ваша",VALUE(MID(K19,13,20))*100,0) -> 0
J20: =IFERROR(IFERROR(VLOOKUP(C20,#REF!,3,0)*D20,VLOOKUP(C20,#REF!,7,0)*D20),"нет веса") -> нет веса | L20: Улица: | P20: =MID(L20,8,70) ->  | Q20: =IF(LEFT(K31,4)="ваша",VALUE(MID(K31,13,20))*100,0) -> 0
J21: =IFERROR(IFERROR(VLOOKUP(C21,#REF!,3,0)*D21,VLOOKUP(C21,#REF!,7,0)*D21),"нет веса") -> нет веса | L21: Здание: | P21: =MID(L21,9,70) ->  | Q21: =IF(LEFT(K32,4)="ваша",VALUE(MID(K32,13,20))*100,0) -> 0
J22: =IFERROR(IFERROR(VLOOKUP(C22,#REF!,3,0)*D22,VLOOKUP(C22,#REF!,7,0)*D22),"нет веса") -> нет веса | L22: Квартира: | P22: =MID(L22,11,70) ->  | Q22: =IF(LEFT(#REF!,4)="ваша",VALUE(MID(#REF!,13,20))*100,0) -> 
E23: Итого: | F23: =SUM(F7:F22) -> 27300 | J23: =IF(K40>0,M40,"") ->  | K23: Наименование | L23: Количество | M23: Цена | N23: Вес | O23: Всего | Q23: =IF(LEFT(K33,4)="ваша",VALUE(MID(K33,13,20))*100,0) -> 0
A24: =IF(L41>0,N41,"") ->  | D24: скидка: | E24: =IF(F23>150000,10,IF(F23>100000,8,IF(F23>60000,5,IF(F23>30000,3,0)))) -> 0 | F24: =F23-(F23*E24/100) -> 27300 | G24: =IFERROR(SUM(I7:I22)-F29+1,0) -> -29299 | P24: =N24 -> 0 | Q24: =TEXT(SUM(MID(0&P24,LARGE(ISNUMBER(-MID(P24,ROW($1:$88),1))*ROW($1:$88),ROW($1:$15)+15)+1,1)*10^ROW($1:$15)/10),REPT(0,MIN(MAX(COUNT(1/(MID(P24,ROW($1:$88),1)+1))-15,),15)))&TEXT(SUM(MID(0&P24,LARGE(ISNUMBER(-MID(P24,ROW($1:$88),1))*ROW($1:$88),ROW($1:$15))+1,1)*10^ROW($1:$15)/10),REPT(0,MIN(COUNT(1/(MID(P24,ROW($1:$88),1)+1)),15))) -> 0
A25: =SUM(A7:A23)/1000*1.3 -> 0 | C25: =IF(E25=F26,"Доставка БЕСПЛАТНО",IF(E25=D26,C26,IF(E25=D27,C27,IF(E25=D28,C28,IF(E25=F27,C27&" + НПл",IF(E25=F28,C28&" + НПл","Укажите ТК")))))) -> AVIS Econom Семей + НПл | D25: 2 | E25: =F27 -> 1400 + НПл | G25: =IF(I25 >0,TODAY(),"") ->  | J25: =SUM(J7:J22)/1000 -> 0 | P25: =E25 -> 1400 + НПл | Q25: =TEXT(SUM(MID(0&P25,LARGE(ISNUMBER(-MID(P25,ROW($1:$88),1))*ROW($1:$88),ROW($1:$15)+15)+1,1)*10^ROW($1:$15)/10),REPT(0,MIN(MAX(COUNT(1/(MID(P25,ROW($1:$88),1)+1))-15,),15)))&TEXT(SUM(MID(0&P25,LARGE(ISNUMBER(-MID(P25,ROW($1:$88),1))*ROW($1:$88),ROW($1:$15))+1,1)*10^ROW($1:$15)/10),REPT(0,MIN(COUNT(1/(MID(P25,ROW($1:$88),1)+1)),15))) -> 1400 | R25: =E25 -> 1400 + НПл | S25: =TEXT(SUM(MID(0&R25,LARGE(ISNUMBER(-MID(R25,ROW($1:$88),1))*ROW($1:$88),ROW($1:$15)+15)+1,1)*10^ROW($1:$15)/10),REPT(0,MIN(MAX(COUNT(1/(MID(R25,ROW($1:$88),1)+1))-15,),15)))&TEXT(SUM(MID(0&R25,LARGE(ISNUMBER(-MID(R25,ROW($1:$88),1))*ROW($1:$88),ROW($1:$15))+1,1)*10^ROW($1:$15)/10),REPT(0,MIN(COUNT(1/(MID(R25,ROW($1:$88),1)+1)),15))) -> 1400 | U25: =TEXT(SUM(MID(0&E25,LARGE(ISNUMBER(-MID(E25,ROW($1:$88),1))*ROW($1:$88),ROW($1:$15)+15)+1,1)*10^ROW($1:$15)/10),REPT(0,MIN(MAX(COUNT(1/(MID(E25,ROW($1:$88),1)+1))-15,),15)))&TEXT(SUM(MID(0&E25,LARGE(ISNUMBER(-MID(E25,ROW($1:$88),1))*ROW($1:$88),ROW($1:$15))+1,1)*10^ROW($1:$15)/10),REPT(0,MIN(COUNT(1/(MID(E25,ROW($1:$88),1)+1)),15))) -> 
C26: =IFERROR("AVIS С А М О В Ы В О З "&" "&VLOOKUP((LEFT(B34,(LEN(B34)))),'ТАРИФЫ ТК'!J17:L268,1,0),"НЕТ ДОСТАВКИ") -> AVIS С А М О В Ы В О З Семей | D26: =IFERROR(VLOOKUP((LEFT(B34,(LEN(B34)))),'ТАРИФЫ ТК'!J17:L268,3,0)+0.001,"НЕТ ДОСТАВКИ") -> 2100.001 | E26: =IFERROR(F24+D26,"НЕТ ДОСТАВКИ") -> 29400.001 | F26: =IFERROR(D26&" + НПл","НЕТ ДОСТАВКИ") -> 2100,001 + НПл | G26: =IFERROR(CEILING((F24+D26)*(1+$D$25/100),50),0) -> 30000 | P26: =N26 -> 0 | Q26: =TEXT(SUM(MID(0&P26,LARGE(ISNUMBER(-MID(P26,ROW($1:$88),1))*ROW($1:$88),ROW($1:$15)+15)+1,1)*10^ROW($1:$15)/10),REPT(0,MIN(MAX(COUNT(1/(MID(P26,ROW($1:$88),1)+1))-15,),15)))&TEXT(SUM(MID(0&P26,LARGE(ISNUMBER(-MID(P26,ROW($1:$88),1))*ROW($1:$88),ROW($1:$15))+1,1)*10^ROW($1:$15)/10),REPT(0,MIN(COUNT(1/(MID(P26,ROW($1:$88),1)+1)),15))) -> 0
C27: =IFERROR("AVIS Econom"&" "&VLOOKUP((LEFT(B34,(LEN(B34)))),'ТАРИФЫ ТК'!A4:A134,1,0),"НЕТ ДОСТАВКИ") -> AVIS Econom Семей | D27: 1400 | E27: =IFERROR(F24+D27,"НЕТ ДОСТАВКИ") -> 28700 | F27: =IFERROR(D27&" + НПл","НЕТ ДОСТАВКИ") -> 1400 + НПл | G27: =IFERROR(CEILING((F24+D27)*(1+$D$25/100),50),0) -> 29300 | P27: 0 | Q27: =TEXT(SUM(MID(0&P27,LARGE(ISNUMBER(-MID(P27,ROW($1:$88),1))*ROW($1:$88),ROW($1:$15)+15)+1,1)*10^ROW($1:$15)/10),REPT(0,MIN(MAX(COUNT(1/(MID(P27,ROW($1:$88),1)+1))-15,),15)))&TEXT(SUM(MID(0&P27,LARGE(ISNUMBER(-MID(P27,ROW($1:$88),1))*ROW($1:$88),ROW($1:$15))+1,1)*10^ROW($1:$15)/10),REPT(0,MIN(COUNT(1/(MID(P27,ROW($1:$88),1)+1)),15))) -> 0
C28: =IFERROR(IF(A29<1,"AVIS EXPRESS"&" "&VLOOKUP((LEFT(B34,(LEN(B34)))),'ТАРИФЫ ТК'!E4:G20,1,0),"AV ВИМАНИЕ: В Е С П О С Ы Л К И Б О Л Ь Ш Е 0,5 КГ !!!"),"НЕТ ДОСТАВКИ") -> НЕТ ДОСТАВКИ | D28: =IFERROR(VLOOKUP((LEFT(B34,(LEN(B34)))),'ТАРИФЫ ТК'!E4:G20,3,0),"НЕТ ДОСТАВКИ") -> НЕТ ДОСТАВКИ | E28: =IFERROR(F24+D28,"НЕТ ДОСТАВКИ") -> НЕТ ДОСТАВКИ | F28: =D28&" + НПл" -> НЕТ ДОСТАВКИ + НПл | G28: =IFERROR(CEILING((F24+D28)*(1+$D$25/100),50),"НЕТ ДОСТАВКИ") -> НЕТ ДОСТАВКИ | P28: 0 | Q28: =TEXT(SUM(MID(0&P28,LARGE(ISNUMBER(-MID(P28,ROW($1:$88),1))*ROW($1:$88),ROW($1:$15)+15)+1,1)*10^ROW($1:$15)/10),REPT(0,MIN(MAX(COUNT(1/(MID(P28,ROW($1:$88),1)+1))-15,),15)))&TEXT(SUM(MID(0&P28,LARGE(ISNUMBER(-MID(P28,ROW($1:$88),1))*ROW($1:$88),ROW($1:$15))+1,1)*10^ROW($1:$15)/10),REPT(0,MIN(COUNT(1/(MID(P28,ROW($1:$88),1)+1)),15))) -> 0
A29: =IFERROR(A25*1.5,"Количество ??") -> 0 | D29: К ОПЛАТЕ: | E29: =IFERROR(F24+E25,0) -> 0 | F29: =IF(E25=C29,"Доставка БЕСПЛАТНО",IF(E25=D26,E26,IF(E25=D27,E27,IF(E25=D28,E28,IF(E25=F27,G27,IF(E25=F28,G28,IF(E25=F26,G26,"Укажите ТК"))))))) -> 29300 | G29: =IFERROR(CEILING((F24+E25)*1.03,50),0) -> 0 | J29: =IFERROR(J25*1.5,"Количество ??") -> 0 | P29: 0 | Q29: =TEXT(SUM(MID(0&P29,LARGE(ISNUMBER(-MID(P29,ROW($1:$88),1))*ROW($1:$88),ROW($1:$15)+15)+1,1)*10^ROW($1:$15)/10),REPT(0,MIN(MAX(COUNT(1/(MID(P29,ROW($1:$88),1)+1))-15,),15)))&TEXT(SUM(MID(0&P29,LARGE(ISNUMBER(-MID(P29,ROW($1:$88),1))*ROW($1:$88),ROW($1:$15))+1,1)*10^ROW($1:$15)/10),REPT(0,MIN(COUNT(1/(MID(P29,ROW($1:$88),1)+1)),15))) -> 0
A30: rc11091kz | C30: =IFERROR((P14&" "&LEFT(P15,8)&" = "&TEXT(R15,"### ### ###")&" т."),"НЕТ ДОСТАВКИ") -> 0 = т. | E30: =IFERROR("QIWI = "&CEILING((E26*1.02),10),0) -> QIWI = 29990 | F30: =IFERROR(F29-F24,"УКАЖИТЕ ТК") -> 2000 | P30: 0 | Q30: =TEXT(SUM(MID(0&P30,LARGE(ISNUMBER(-MID(P30,ROW($1:$88),1))*ROW($1:$88),ROW($1:$15)+15)+1,1)*10^ROW($1:$15)/10),REPT(0,MIN(MAX(COUNT(1/(MID(P30,ROW($1:$88),1)+1))-15,),15)))&TEXT(SUM(MID(0&P30,LARGE(ISNUMBER(-MID(P30,ROW($1:$88),1))*ROW($1:$88),ROW($1:$15))+1,1)*10^ROW($1:$15)/10),REPT(0,MIN(COUNT(1/(MID(P30,ROW($1:$88),1)+1)),15))) -> 0
A31: =A1 -> 140820++29300 | B31: ПОЛУЧАТЕЛЬ: | C31: rc11091kz | P31: 0 | Q31: =TEXT(SUM(MID(0&P31,LARGE(ISNUMBER(-MID(P31,ROW($1:$88),1))*ROW($1:$88),ROW($1:$15)+15)+1,1)*10^ROW($1:$15)/10),REPT(0,MIN(MAX(COUNT(1/(MID(P31,ROW($1:$88),1)+1))-15,),15)))&TEXT(SUM(MID(0&P31,LARGE(ISNUMBER(-MID(P31,ROW($1:$88),1))*ROW($1:$88),ROW($1:$15))+1,1)*10^ROW($1:$15)/10),REPT(0,MIN(COUNT(1/(MID(P31,ROW($1:$88),1)+1)),15))) -> 0
A32: =UPPER((B3)) -> АБУЛКАСИМОВ БАУЫРЖАН | C32: =IFERROR(MID(НайтиСтрокуПоСлову("Комментарий: Имя :",K1:K45),20,99),0) -> 0 | P32: 0 | Q32: =TEXT(SUM(MID(0&P32,LARGE(ISNUMBER(-MID(P32,ROW($1:$88),1))*ROW($1:$88),ROW($1:$15)+15)+1,1)*10^ROW($1:$15)/10),REPT(0,MIN(MAX(COUNT(1/(MID(P32,ROW($1:$88),1)+1))-15,),15)))&TEXT(SUM(MID(0&P32,LARGE(ISNUMBER(-MID(P32,ROW($1:$88),1))*ROW($1:$88),ROW($1:$15))+1,1)*10^ROW($1:$15)/10),REPT(0,MIN(COUNT(1/(MID(P32,ROW($1:$88),1)+1)),15))) -> 0
A33: Область: | B33: =UPPER((P18)) ->  | C33: =IFERROR(ПоискСНачала(C32,"Телефон"),0) -> 0 | E33: =IFERROR(ПоискМежду(C32,"Телефон :","Примечание"),0) -> 0 | F33: =IFERROR(IF(LEFT(ПоискСКонца(C32,"Примечание : "),2)="г ",MID(ПоискСКонца(C32,"Примечание : "),3,99),IF(LEFT(ПоискСКонца(C32,"Примечание : "),3)="г. ",MID(ПоискСКонца(C32,"Примечание : "),4,99),IF(LEFT(ПоискСКонца(C32,"Примечание : "),3)="гор",MID(ПоискСКонца(C32,"Примечание : "),6,99),0))),0) -> 0 | P33: 0 | Q33: =TEXT(SUM(MID(0&P33,LARGE(ISNUMBER(-MID(P33,ROW($1:$88),1))*ROW($1:$88),ROW($1:$15)+15)+1,1)*10^ROW($1:$15)/10),REPT(0,MIN(MAX(COUNT(1/(MID(P33,ROW($1:$88),1)+1))-15,),15)))&TEXT(SUM(MID(0&P33,LARGE(ISNUMBER(-MID(P33,ROW($1:$88),1))*ROW($1:$88),ROW($1:$15))+1,1)*10^ROW($1:$15)/10),REPT(0,MIN(COUNT(1/(MID(P33,ROW($1:$88),1)+1)),15))) -> 0
A34: Город: | B34: Семей | P34: 0 | Q34: =TEXT(SUM(MID(0&P34,LARGE(ISNUMBER(-MID(P34,ROW($1:$88),1))*ROW($1:$88),ROW($1:$15)+15)+1,1)*10^ROW($1:$15)/10),REPT(0,MIN(MAX(COUNT(1/(MID(P34,ROW($1:$88),1)+1))-15,),15)))&TEXT(SUM(MID(0&P34,LARGE(ISNUMBER(-MID(P34,ROW($1:$88),1))*ROW($1:$88),ROW($1:$15))+1,1)*10^ROW($1:$15)/10),REPT(0,MIN(COUNT(1/(MID(P34,ROW($1:$88),1)+1)),15))) -> 0
A35: Улица: | B35: =UPPER((P20)) ->  | P35: 0 | Q35: =TEXT(SUM(MID(0&P35,LARGE(ISNUMBER(-MID(P35,ROW($1:$88),1))*ROW($1:$88),ROW($1:$15)+15)+1,1)*10^ROW($1:$15)/10),REPT(0,MIN(MAX(COUNT(1/(MID(P35,ROW($1:$88),1)+1))-15,),15)))&TEXT(SUM(MID(0&P35,LARGE(ISNUMBER(-MID(P35,ROW($1:$88),1))*ROW($1:$88),ROW($1:$15))+1,1)*10^ROW($1:$15)/10),REPT(0,MIN(COUNT(1/(MID(P35,ROW($1:$88),1)+1)),15))) -> 0
A36: Здание: | B36: =P21 ->  | P36: 0 | Q36: =TEXT(SUM(MID(0&P36,LARGE(ISNUMBER(-MID(P36,ROW($1:$88),1))*ROW($1:$88),ROW($1:$15)+15)+1,1)*10^ROW($1:$15)/10),REPT(0,MIN(MAX(COUNT(1/(MID(P36,ROW($1:$88),1)+1))-15,),15)))&TEXT(SUM(MID(0&P36,LARGE(ISNUMBER(-MID(P36,ROW($1:$88),1))*ROW($1:$88),ROW($1:$15))+1,1)*10^ROW($1:$15)/10),REPT(0,MIN(COUNT(1/(MID(P36,ROW($1:$88),1)+1)),15))) -> 0
A37: Квартира: | B37: =P22 ->  | P37: 0 | Q37: =TEXT(SUM(MID(0&P37,LARGE(ISNUMBER(-MID(P37,ROW($1:$88),1))*ROW($1:$88),ROW($1:$15)+15)+1,1)*10^ROW($1:$15)/10),REPT(0,MIN(MAX(COUNT(1/(MID(P37,ROW($1:$88),1)+1))-15,),15)))&TEXT(SUM(MID(0&P37,LARGE(ISNUMBER(-MID(P37,ROW($1:$88),1))*ROW($1:$88),ROW($1:$15))+1,1)*10^ROW($1:$15)/10),REPT(0,MIN(COUNT(1/(MID(P37,ROW($1:$88),1)+1)),15))) -> 0
A38: Телефон: | B38: =B4 -> 8-702-673-12-82 0---- ---- | P38: 0 | Q38: =TEXT(SUM(MID(0&P38,LARGE(ISNUMBER(-MID(P38,ROW($1:$88),1))*ROW($1:$88),ROW($1:$15)+15)+1,1)*10^ROW($1:$15)/10),REPT(0,MIN(MAX(COUNT(1/(MID(P38,ROW($1:$88),1)+1))-15,),15)))&TEXT(SUM(MID(0&P38,LARGE(ISNUMBER(-MID(P38,ROW($1:$88),1))*ROW($1:$88),ROW($1:$15))+1,1)*10^ROW($1:$15)/10),REPT(0,MIN(COUNT(1/(MID(P38,ROW($1:$88),1)+1)),15))) -> 0
A39: Индекс: | B39: =P16 ->  | Q39: =IF(LEFT(#REF!,4)="ваша",VALUE(MID(#REF!,13,20))*100,0) -> 
A40: Компания: | Q40: =IF(LEFT(#REF!,4)="ваша",VALUE(MID(#REF!,13,20))*100,0) -> 
A41: ИИН: | B41: =F29 -> 29300 | Q41: =IF(LEFT(#REF!,4)="ваша",VALUE(MID(#REF!,13,20))*100,0) -> 
A42: ------------------------ | B42: ---------------------------------------------------- | C42: ---------------------------------------------------- | D42: ------------------------ | E42: ------------------------ | F42: --------------------------- | G42: ------------------------------ | H42: ------------------------ | I42: ------------------------ | Q42: =SUM(Q19:Q41) -> 

Sheet +KASPI+ 9635++0
A1: =IF(LEFT(C29,2)="сп",P1&" ► СП",IF(E25=D26,P1,IF(H6<>0,P1&"++"&"0",IF(E25=D27,P1&"++"&"0",IF(E25=D28,P1&"++"&"0",IF(E25=D27,P1&"++"&"0",IF(E25=D28,P1&"++"&"0",IF(LEFT(C25,2)="AV",P1&"++"&F29,P1)))))))) -> +KASPI+ 9635++0 | B1: =L4 -> 2020-08-12T19:08:35 | C1: =IF(E2>0,"ОТПРАВЛЕНО",IF(LEFT(C29,3)="ЗАК","ЗАКАЗАНО в СПБ",IF(G24>=0,"ОПЛОЧЕНО","ОЖИДАНИЕ ОПЛАТЫ"))) -> ОТПРАВЛЕНО | D1: ='СПИСОК ЗАКАЗОВ'!B1 -> 21 | E1: 2020-08-13 | I1: =A1 -> +KASPI+ 9635++0 | K1: Заказ № 9635 | P1: =IF(G24>0,"+"&H6&"+"&Q1,Q1) -> +KASPI+ 9635 | Q1: =ПоискСКонца(K1,"№") -> 9635
A2: Логин | B2: =L3 -> sem.rtn08@megastroy.kz | C2: Номер накл-ой | E2: 3611548 | K2: Примечание
A3: ФИО | B3: =IF(C32=0,UPPER((P9)),UPPER(C33)) -> АРЦИБАШЕВА АЛЛА ЛЕОНИДОВНА | K3: Логин | L3: sem.rtn08@megastroy.kz
A4: Телефон | B4: =R12 -> 8-778-929-83-33 ---- ---- | E4: =IF(F4>0.5,"оплачено",IF(F4<0,"ОПЛАТИТЬ= "&G4,"ОПЛАТИТЬ= "&Q25)) -> ОПЛАТИТЬ= 1400 | F4: 0 | G4: 1100 | K4: Дата заказа | L4: 2020-08-12T19:08:35
A5: e-mail: | B5: =L11 -> sem.rtn08@megastroy.kz
A6: Вес | B6: ПРИМЕЧАНИЯ | C6: Наименование | D6: Кол-во | E6: Цена | F6: Всего | G6: =IF(MAX(G7:G25)>0,MAX(G7:G25),"") -> 2020-08-21 | H6: =IF(I7>0,"НАЛ",IF(I8>0,"ПЕРЕВОД",IF(I9>0,"Beeline",IF(I10>0,"KASPI",IF(I11>0,"QIWI",IF(I12>0,"СЧЁТ Альфа-Банк",0)))))) -> KASPI | I6: =SUM(I7:I28) -> 16000
A7: =IF(L24>0,Q24*1/100,"") ->  | F7: =IF(D7<>"",E7*D7,"") ->  | G7: =IF(I7 >0,TODAY(),"") ->  | H7: НАЛ | J7: =IFERROR(IFERROR(VLOOKUP(C7,#REF!,3,0)*D7,VLOOKUP(C7,#REF!,7,0)*D7),"нет веса") -> нет веса | K7: Заказ №9635
A8: =IF(L25>0,Q25*1/100,"") ->  | B8: списано | C8: =IF(L27<>"",K27,"") -> Поисковый неодимовый магнит на 120кг. f120`42 (сила притяжения 120кг.) | D8: =IF(L27>0,L27,"") -> 1 | E8: =IF(M27="уточняйте",0,IF(L27>0,M27,"")) -> 14600 | F8: 14600 | H8: ПЕРЕВОД | J8: =IFERROR(IFERROR(VLOOKUP(C8,#REF!,3,0)*D8,VLOOKUP(C8,#REF!,7,0)*D8),"нет веса") -> нет веса
H9: Beeline | J9: =IFERROR(IFERROR(VLOOKUP(C9,#REF!,3,0)*D9,VLOOKUP(C9,#REF!,7,0)*D9),"нет веса") -> нет веса | K9: Здравствуйте, Арцибашева Алла Леонидовна | P9: =MID(K9,15,70) -> Арцибашева Алла Леонидовна | Q9: =TEXT(SUM(MID(0&L9,LARGE(ISNUMBER(-MID(L9,ROW($1:$96),1))*ROW($1:$96),ROW($1:$23)+15)+1,1)*10^ROW($1:$23)/10),REPT(0,MIN(MAX(COUNT(1/(MID(L9,ROW($1:$96),1)+1))-15,),15)))&TEXT(SUM(MID(0&L9,LARGE(ISNUMBER(-MID(L9,ROW($1:$96),1))*ROW($1:$96),ROW($1:$23))+1,1)*10^ROW($1:$23)/10),REPT(0,MIN(COUNT(1/(MID(L9,ROW($1:$96),1)+1)),15))) -> 
G10: 2020-08-21 | H10: KASPI | I10: =F29 -> 16000 | J10: =IFERROR(IFERROR(VLOOKUP(C10,#REF!,3,0)*D10,VLOOKUP(C10,#REF!,7,0)*D10),"нет веса") -> нет веса | K10: Мы получили Ваш заказ номер 9635
H11: QIWI | J11: =IFERROR(IFERROR(VLOOKUP(C11,#REF!,3,0)*D11,VLOOKUP(C11,#REF!,7,0)*D11),"нет веса") -> нет веса | K11: Электронная почта | L11: sem.rtn08@megastroy.kz
A12: =IF(L29>0,Q29*1/100,"") ->  | H12: СЧЁТ Альфа-Банк | J12: =IFERROR(IFERROR(VLOOKUP(C12,#REF!,3,0)*D12,VLOOKUP(C12,#REF!,7,0)*D12),"нет веса") -> нет веса | K12: Контактный телефон | L12: 87789298333 | P12: =(L12&" "&P13) -> 87789298333 Предоплата банковской картой | Q12: =TEXT(SUM(MID(0&P12,LARGE(ISNUMBER(-MID(P12,ROW($1:$99),1))*ROW($1:$99),ROW($1:$15)+30)+1,1)*10^ROW($1:$15)/10),REPT(0,MIN(MAX(COUNT(1/(MID(P12,ROW($1:$99),1)+1))-30,),15)))&TEXT(SUM(MID(0&P12,LARGE(ISNUMBER(-MID(P12,ROW($1:$99),1))*ROW($1:$99),ROW($1:$15)+15)+1,1)*10^ROW($1:$15)/10),REPT(0,MIN(MAX(COUNT(1/(MID(P12,ROW($1:$99),1)+1))-15,),15)))&TEXT(SUM(MID(0&P12,LARGE(ISNUMBER(-MID(P12,ROW($1:$99),1))*ROW($1:$99),ROW($1:$15))+1,1)*10^ROW($1:$15)/10),REPT(0,MIN(COUNT(1/(MID(P12,ROW($1:$99),1)+1)),15))) -> 87789298333 | R12: =(MID(Q12,1,1))&"-"&(MID(Q12,2,3))&"-"&(MID(Q12,5,3))&"-"&(MID(Q12,8,2))&"-"&(MID(Q12,10,2))&" "&(MID(Q12,12,1))&"-"&(MID(Q12,13,3))&"-"&(MID(Q12,16,3))&"-"&(MID(Q12,19,2))&"-"&(MID(Q12,21,2))&" "&(MID(Q12,23,1))&"-"&(MID(Q12,24,3))&"-"&(MID(Q12,27,3))&"-"&(MID(Q12,30,2))&"-"&(MID(Q12,32,2)) -> 8-778-929-83-33 ---- ----
J13: =IFERROR(IFERROR(VLOOKUP(C13,#REF!,3,0)*D13,VLOOKUP(C13,#REF!,7,0)*D13),"нет веса") -> нет веса | K13: Оплата: | L13: Предоплата банковской картой | P13: =IF(L13="-",IFERROR(НайтиСтрокуПоСлову("Комментарий",K27:K60),0),L13) -> Предоплата банковской картой
J14: =IFERROR(IFERROR(VLOOKUP(C14,#REF!,3,0)*D14,VLOOKUP(C14,#REF!,7,0)*D14),"нет веса") -> нет веса | K14: Доставка: | L14: EMS KAZPOST | P14: =MID(L14,23,70) -> 
J15: =IFERROR(IFERROR(VLOOKUP(C15,#REF!,3,0)*D15,VLOOKUP(C15,#REF!,7,0)*D15),"нет веса") -> нет веса | K15: Адрес доставки | L15: Индекс: | P15: =IF(LEFT(P14,2)="EX",MID(L15,11,70),L15) -> Индекс: | Q15: =TEXT(SUM(MID(0&P15,LARGE(ISNUMBER(-MID(P15,ROW($1:$88),1))*ROW($1:$88),ROW($1:$15)+15)+1,1)*10^ROW($1:$15)/10),REPT(0,MIN(MAX(COUNT(1/(MID(P15,ROW($1:$88),1)+1))-15,),15)))&TEXT(SUM(MID(0&P15,LARGE(ISNUMBER(-MID(P15,ROW($1:$88),1))*ROW($1:$88),ROW($1:$15))+1,1)*10^ROW($1:$15)/10),REPT(0,MIN(COUNT(1/(MID(P15,ROW($1:$88),1)+1)),15))) ->  | R15: =SUMPRODUCT(--SUBSTITUTE(Q15:Q15,CHAR(160),)) ->  | S15: =LEN(Q15) -> 0 | T15: =FLOOR(S15/3,1) -> 0
J16: =IFERROR(IFERROR(VLOOKUP(C16,#REF!,3,0)*D16,VLOOKUP(C16,#REF!,7,0)*D16),"нет веса") -> нет веса | L16: Страна: | P16: =MID(L16,9,70) -> 
J17: =IFERROR(IFERROR(VLOOKUP(C17,#REF!,3,0)*D17,VLOOKUP(C17,#REF!,7,0)*D17),"нет веса") -> нет веса | L17: Область: | P17: =MID(L17,9,70) ->  | Q17: =IF(LEFT(K17,4)="ваша",VALUE(MID(K17,13,20))*100,0) -> 0
J18: =IFERROR(IFERROR(VLOOKUP(C18,#REF!,3,0)*D18,VLOOKUP(C18,#REF!,7,0)*D18),"нет веса") -> нет веса | L18: Город: | P18: =MID(L18,10,70) -> 
J19: =IFERROR(IFERROR(VLOOKUP(C19,#REF!,3,0)*D19,VLOOKUP(C19,#REF!,7,0)*D19),"нет веса") -> нет веса | L19: Улица: | P19: =MID(L19,8,70) ->  | Q19: =IF(LEFT(K19,4)="ваша",VALUE(MID(K19,13,20))*100,0) -> 0
J20: =IFERROR(IFERROR(VLOOKUP(C20,#REF!,3,0)*D20,VLOOKUP(C20,#REF!,7,0)*D20),"нет веса") -> нет веса | L20: Здание: | P20: =MID(L20,8,70) ->  | Q20: =IF(LEFT(K31,4)="ваша",VALUE(MID(K31,13,20))*100,0) -> 0
J21: =IFERROR(IFERROR(VLOOKUP(C21,#REF!,3,0)*D21,VLOOKUP(C21,#REF!,7,0)*D21),"нет веса") -> нет веса | L21: Квартира: | P21: =MID(L21,9,70) -> : | Q21: =IF(LEFT(K32,4)="ваша",VALUE(MID(K32,13,20))*100,0) -> 0
J22: =IFERROR(IFERROR(VLOOKUP(C22,#REF!,3,0)*D22,VLOOKUP(C22,#REF!,7,0)*D22),"нет веса") -> нет веса | K22: Комментарий: - | P22: =MID(L22,11,70) ->  | Q22: =IF(LEFT(#REF!,4)="ваша",VALUE(MID(#REF!,13,20))*100,0) -> 
E23: Итого: | F23: =SUM(F7:F22) -> 14600 | J23: =IF(K40>0,M40,"") ->  | Q23: =IF(LEFT(K33,4)="ваша",VALUE(MID(K33,13,20))*100,0) -> 0
A24: =IF(L41>0,N41,"") ->  | D24: скидка: | E24: =IF(F23>150000,10,IF(F23>100000,8,IF(F23>60000,5,IF(F23>30000,3,0)))) -> 0 | F24: =F23-(F23*E24/100) -> 14600 | G24: =IFERROR(SUM(I7:I22)-F29+1,0) -> 1 | K24: ИНСТРУКЦИЯ ПО ОПЛАТЕ | P24: =N24 -> 0 | Q24: =TEXT(SUM(MID(0&P24,LARGE(ISNUMBER(-MID(P24,ROW($1:$88),1))*ROW($1:$88),ROW($1:$15)+15)+1,1)*10^ROW($1:$15)/10),REPT(0,MIN(MAX(COUNT(1/(MID(P24,ROW($1:$88),1)+1))-15,),15)))&TEXT(SUM(MID(0&P24,LARGE(ISNUMBER(-MID(P24,ROW($1:$88),1))*ROW($1:$88),ROW($1:$15))+1,1)*10^ROW($1:$15)/10),REPT(0,MIN(COUNT(1/(MID(P24,ROW($1:$88),1)+1)),15))) -> 0
A25: =SUM(A7:A23)/1000*1.3 -> 0 | C25: =IF(E25=F26,"Доставка БЕСПЛАТНО",IF(E25=D26,C26,IF(E25=D27,C27,IF(E25=D28,C28,IF(E25=F27,C27&" + НПл",IF(E25=F28,C28&" + НПл","Укажите ТК")))))) -> AVIS Econom Семей | D25: 2 | E25: =D27 -> 1400 | G25: =IF(I25 >0,TODAY(),"") ->  | J25: =SUM(J7:J22)/1000 -> 0 | P25: =E25 -> 1400 | Q25: =TEXT(SUM(MID(0&P25,LARGE(ISNUMBER(-MID(P25,ROW($1:$88),1))*ROW($1:$88),ROW($1:$15)+15)+1,1)*10^ROW($1:$15)/10),REPT(0,MIN(MAX(COUNT(1/(MID(P25,ROW($1:$88),1)+1))-15,),15)))&TEXT(SUM(MID(0&P25,LARGE(ISNUMBER(-MID(P25,ROW($1:$88),1))*ROW($1:$88),ROW($1:$15))+1,1)*10^ROW($1:$15)/10),REPT(0,MIN(COUNT(1/(MID(P25,ROW($1:$88),1)+1)),15))) -> 1400 | R25: =E25 -> 1400 | S25: =TEXT(SUM(MID(0&R25,LARGE(ISNUMBER(-MID(R25,ROW($1:$88),1))*ROW($1:$88),ROW($1:$15)+15)+1,1)*10^ROW($1:$15)/10),REPT(0,MIN(MAX(COUNT(1/(MID(R25,ROW($1:$88),1)+1))-15,),15)))&TEXT(SUM(MID(0&R25,LARGE(ISNUMBER(-MID(R25,ROW($1:$88),1))*ROW($1:$88),ROW($1:$15))+1,1)*10^ROW($1:$15)/10),REPT(0,MIN(COUNT(1/(MID(R25,ROW($1:$88),1)+1)),15))) -> 1400 | U25: =TEXT(SUM(MID(0&E25,LARGE(ISNUMBER(-MID(E25,ROW($1:$88),1))*ROW($1:$88),ROW($1:$15)+15)+1,1)*10^ROW($1:$15)/10),REPT(0,MIN(MAX(COUNT(1/(MID(E25,ROW($1:$88),1)+1))-15,),15)))&TEXT(SUM(MID(0&E25,LARGE(ISNUMBER(-MID(E25,ROW($1:$88),1))*ROW($1:$88),ROW($1:$15))+1,1)*10^ROW($1:$15)/10),REPT(0,MIN(COUNT(1/(MID(E25,ROW($1:$88),1)+1)),15))) -> 
C26: =IFERROR("AVIS С А М О В Ы В О З "&" "&VLOOKUP((LEFT(B34,(LEN(B34)))),'ТАРИФЫ ТК'!J17:L268,1,0),"НЕТ ДОСТАВКИ") -> AVIS С А М О В Ы В О З Семей | D26: =IFERROR(VLOOKUP((LEFT(B34,(LEN(B34)))),'ТАРИФЫ ТК'!J17:L268,3,0)+0.001,"НЕТ ДОСТАВКИ") -> 2100.001 | E26: =IFERROR(F24+D26,"НЕТ ДОСТАВКИ") -> 16700.001 | F26: =IFERROR(D26&" + НПл","НЕТ ДОСТАВКИ") -> 2100,001 + НПл | G26: =IFERROR(CEILING((F24+D26)*(1+$D$25/100),50),0) -> 17050 | K26: Наименование | L26: Количество | M26: Цена | N26: Вес | O26: Всего | P26: =N26 -> Вес | Q26: =TEXT(SUM(MID(0&P26,LARGE(ISNUMBER(-MID(P26,ROW($1:$88),1))*ROW($1:$88),ROW($1:$15)+15)+1,1)*10^ROW($1:$15)/10),REPT(0,MIN(MAX(COUNT(1/(MID(P26,ROW($1:$88),1)+1))-15,),15)))&TEXT(SUM(MID(0&P26,LARGE(ISNUMBER(-MID(P26,ROW($1:$88),1))*ROW($1:$88),ROW($1:$15))+1,1)*10^ROW($1:$15)/10),REPT(0,MIN(COUNT(1/(MID(P26,ROW($1:$88),1)+1)),15))) -> 
C27: =IFERROR("AVIS Econom"&" "&VLOOKUP((LEFT(B34,(LEN(B34)))),'ТАРИФЫ ТК'!A4:A134,1,0),"НЕТ ДОСТАВКИ") -> AVIS Econom Семей | D27: 1400 | E27: =IFERROR(F24+D27,"НЕТ ДОСТАВКИ") -> 16000 | F27: =IFERROR(D27&" + НПл","НЕТ ДОСТАВКИ") -> 1400 + НПл | G27: =IFERROR(CEILING((F24+D27)*(1+$D$25/100),50),0) -> 16350 | K27: Поисковый неодимовый магнит на 120кг. f120`42 (сила притяжения 120кг.) | L27: 1 | M27: 14600 | N27: 400 гр. | O27: 14600 | P27: 400 гр. | Q27: =TEXT(SUM(MID(0&P27,LARGE(ISNUMBER(-MID(P27,ROW($1:$88),1))*ROW($1:$88),ROW($1:$15)+15)+1,1)*10^ROW($1:$15)/10),REPT(0,MIN(MAX(COUNT(1/(MID(P27,ROW($1:$88),1)+1))-15,),15)))&TEXT(SUM(MID(0&P27,LARGE(ISNUMBER(-MID(P27,ROW($1:$88),1))*ROW($1:$88),ROW($1:$15))+1,1)*10^ROW($1:$15)/10),REPT(0,MIN(COUNT(1/(MID(P27,ROW($1:$88),1)+1)),15))) -> 400
C28: =IFERROR(IF(A29<1,"AVIS EXPRESS"&" "&VLOOKUP((LEFT(B34,(LEN(B34)))),'ТАРИФЫ ТК'!E4:G20,1,0),"AV ВИМАНИЕ: В Е С П О С Ы Л К И Б О Л Ь Ш Е 0,5 КГ !!!"),"НЕТ ДОСТАВКИ") -> НЕТ ДОСТАВКИ | D28: =IFERROR(VLOOKUP((LEFT(B34,(LEN(B34)))),'ТАРИФЫ ТК'!E4:G20,3,0),"НЕТ ДОСТАВКИ") -> НЕТ ДОСТАВКИ | E28: =IFERROR(F24+D28,"НЕТ ДОСТАВКИ") -> НЕТ ДОСТАВКИ | F28: =D28&" + НПл" -> НЕТ ДОСТАВКИ + НПл | G28: =IFERROR(CEILING((F24+D28)*(1+$D$25/100),50),"НЕТ ДОСТАВКИ") -> НЕТ ДОСТАВКИ | K28: Общий вес товаров: 400 гр. | P28: 0 | Q28: =TEXT(SUM(MID(0&P28,LARGE(ISNUMBER(-MID(P28,ROW($1:$88),1))*ROW($1:$88),ROW($1:$15)+15)+1,1)*10^ROW($1:$15)/10),REPT(0,MIN(MAX(COUNT(1/(MID(P28,ROW($1:$88),1)+1))-15,),15)))&TEXT(SUM(MID(0&P28,LARGE(ISNUMBER(-MID(P28,ROW($1:$88),1))*ROW($1:$88),ROW($1:$15))+1,1)*10^ROW($1:$15)/10),REPT(0,MIN(COUNT(1/(MID(P28,ROW($1:$88),1)+1)),15))) -> 0
A29: =IFERROR(A25*1.5,"Количество ??") -> 0 | D29: К ОПЛАТЕ: | E29: =IFERROR(F24+E25,0) -> 16000 | F29: =IF(E25=C29,"Доставка БЕСПЛАТНО",IF(E25=D26,E26,IF(E25=D27,E27,IF(E25=D28,E28,IF(E25=F27,G27,IF(E25=F28,G28,IF(E25=F26,G26,"Укажите ТК"))))))) -> 16000 | G29: =IFERROR(CEILING((F24+E25)*1.03,50),0) -> 16500 | J29: =IFERROR(J25*1.5,"Количество ??") -> 0 | K29: Доставка: 1650 тг. | P29: 0 | Q29: =TEXT(SUM(MID(0&P29,LARGE(ISNUMBER(-MID(P29,ROW($1:$88),1))*ROW($1:$88),ROW($1:$15)+15)+1,1)*10^ROW($1:$15)/10),REPT(0,MIN(MAX(COUNT(1/(MID(P29,ROW($1:$88),1)+1))-15,),15)))&TEXT(SUM(MID(0&P29,LARGE(ISNUMBER(-MID(P29,ROW($1:$88),1))*ROW($1:$88),ROW($1:$15))+1,1)*10^ROW($1:$15)/10),REPT(0,MIN(COUNT(1/(MID(P29,ROW($1:$88),1)+1)),15))) -> 0
A30: rc11091kz | C30: =IFERROR((P14&" "&LEFT(P15,8)&" = "&TEXT(R15,"### ### ###")&" т."),"НЕТ ДОСТАВКИ") -> НЕТ ДОСТАВКИ | E30: =IFERROR("QIWI = "&CEILING((E26*1.02),10),0) -> QIWI = 17040 | F30: =IFERROR(F29-F24,"УКАЖИТЕ ТК") -> 1400 | K30: Итого: 16250 тг. | P30: 0 | Q30: =TEXT(SUM(MID(0&P30,LARGE(ISNUMBER(-MID(P30,ROW($1:$88),1))*ROW($1:$88),ROW($1:$15)+15)+1,1)*10^ROW($1:$15)/10),REPT(0,MIN(MAX(COUNT(1/(MID(P30,ROW($1:$88),1)+1))-15,),15)))&TEXT(SUM(MID(0&P30,LARGE(ISNUMBER(-MID(P30,ROW($1:$88),1))*ROW($1:$88),ROW($1:$15))+1,1)*10^ROW($1:$15)/10),REPT(0,MIN(COUNT(1/(MID(P30,ROW($1:$88),1)+1)),15))) -> 0
A31: =A1 -> +KASPI+ 9635++0 | B31: ПОЛУЧАТЕЛЬ: | C31: rc11091kz | P31: 0 | Q31: =TEXT(SUM(MID(0&P31,LARGE(ISNUMBER(-MID(P31,ROW($1:$88),1))*ROW($1:$88),ROW($1:$15)+15)+1,1)*10^ROW($1:$15)/10),REPT(0,MIN(MAX(COUNT(1/(MID(P31,ROW($1:$88),1)+1))-15,),15)))&TEXT(SUM(MID(0&P31,LARGE(ISNUMBER(-MID(P31,ROW($1:$88),1))*ROW($1:$88),ROW($1:$15))+1,1)*10^ROW($1:$15)/10),REPT(0,MIN(COUNT(1/(MID(P31,ROW($1:$88),1)+1)),15))) -> 0
A32: =UPPER((B3)) -> АРЦИБАШЕВА АЛЛА ЛЕОНИДОВНА | C32: =IFERROR(MID(НайтиСтрокуПоСлову("Комментарий: Имя :",K1:K45),20,99),0) -> 0 | P32: 0 | Q32: =TEXT(SUM(MID(0&P32,LARGE(ISNUMBER(-MID(P32,ROW($1:$88),1))*ROW($1:$88),ROW($1:$15)+15)+1,1)*10^ROW($1:$15)/10),REPT(0,MIN(MAX(COUNT(1/(MID(P32,ROW($1:$88),1)+1))-15,),15)))&TEXT(SUM(MID(0&P32,LARGE(ISNUMBER(-MID(P32,ROW($1:$88),1))*ROW($1:$88),ROW($1:$15))+1,1)*10^ROW($1:$15)/10),REPT(0,MIN(COUNT(1/(MID(P32,ROW($1:$88),1)+1)),15))) -> 0
A33: Область: | B33: =UPPER((P18)) ->  | C33: =IFERROR(ПоискСНачала(C32,"Телефон"),0) -> 0 | E33: =IFERROR(ПоискМежду(C32,"Телефон :","Примечание"),0) -> 0 | F33: =IFERROR(IF(LEFT(ПоискСКонца(C32,"Примечание : "),2)="г ",MID(ПоискСКонца(C32,"Примечание : "),3,99),IF(LEFT(ПоискСКонца(C32,"Примечание : "),3)="г. ",MID(ПоискСКонца(C32,"Примечание : "),4,99),IF(LEFT(ПоискСКонца(C32,"Примечание : "),3)="гор",MID(ПоискСКонца(C32,"Примечание : "),6,99),0))),0) -> 0 | K33: EMS KAZPOST - Предоплата банковской картой | P33: 0 | Q33: =TEXT(SUM(MID(0&P33,LARGE(ISNUMBER(-MID(P33,ROW($1:$88),1))*ROW($1:$88),ROW($1:$15)+15)+1,1)*10^ROW($1:$15)/10),REPT(0,MIN(MAX(COUNT(1/(MID(P33,ROW($1:$88),1)+1))-15,),15)))&TEXT(SUM(MID(0&P33,LARGE(ISNUMBER(-MID(P33,ROW($1:$88),1))*ROW($1:$88),ROW($1:$15))+1,1)*10^ROW($1:$15)/10),REPT(0,MIN(COUNT(1/(MID(P33,ROW($1:$88),1)+1)),15))) -> 0
A34: Город: | B34: Семей | K34: Назад | P34: 0 | Q34: =TEXT(SUM(MID(0&P34,LARGE(ISNUMBER(-MID(P34,ROW($1:$88),1))*ROW($1:$88),ROW($1:$15)+15)+1,1)*10^ROW($1:$15)/10),REPT(0,MIN(MAX(COUNT(1/(MID(P34,ROW($1:$88),1)+1))-15,),15)))&TEXT(SUM(MID(0&P34,LARGE(ISNUMBER(-MID(P34,ROW($1:$88),1))*ROW($1:$88),ROW($1:$15))+1,1)*10^ROW($1:$15)/10),REPT(0,MIN(COUNT(1/(MID(P34,ROW($1:$88),1)+1)),15))) -> 0
A35: Улица: | B35: Пархоменко | P35: 0 | Q35: =TEXT(SUM(MID(0&P35,LARGE(ISNUMBER(-MID(P35,ROW($1:$88),1))*ROW($1:$88),ROW($1:$15)+15)+1,1)*10^ROW($1:$15)/10),REPT(0,MIN(MAX(COUNT(1/(MID(P35,ROW($1:$88),1)+1))-15,),15)))&TEXT(SUM(MID(0&P35,LARGE(ISNUMBER(-MID(P35,ROW($1:$88),1))*ROW($1:$88),ROW($1:$15))+1,1)*10^ROW($1:$15)/10),REPT(0,MIN(COUNT(1/(MID(P35,ROW($1:$88),1)+1)),15))) -> 0
A36: Здание: | B36: 132 | P36: 0 | Q36: =TEXT(SUM(MID(0&P36,LARGE(ISNUMBER(-MID(P36,ROW($1:$88),1))*ROW($1:$88),ROW($1:$15)+15)+1,1)*10^ROW($1:$15)/10),REPT(0,MIN(MAX(COUNT(1/(MID(P36,ROW($1:$88),1)+1))-15,),15)))&TEXT(SUM(MID(0&P36,LARGE(ISNUMBER(-MID(P36,ROW($1:$88),1))*ROW($1:$88),ROW($1:$15))+1,1)*10^ROW($1:$15)/10),REPT(0,MIN(COUNT(1/(MID(P36,ROW($1:$88),1)+1)),15))) -> 0
A37: Квартира: | B37: =P22 ->  | P37: 0 | Q37: =TEXT(SUM(MID(0&P37,LARGE(ISNUMBER(-MID(P37,ROW($1:$88),1))*ROW($1:$88),ROW($1:$15)+15)+1,1)*10^ROW($1:$15)/10),REPT(0,MIN(MAX(COUNT(1/(MID(P37,ROW($1:$88),1)+1))-15,),15)))&TEXT(SUM(MID(0&P37,LARGE(ISNUMBER(-MID(P37,ROW($1:$88),1))*ROW($1:$88),ROW($1:$15))+1,1)*10^ROW($1:$15)/10),REPT(0,MIN(COUNT(1/(MID(P37,ROW($1:$88),1)+1)),15))) -> 0
A38: Телефон: | B38: =B4 -> 8-778-929-83-33 ---- ---- | P38: 0 | Q38: =TEXT(SUM(MID(0&P38,LARGE(ISNUMBER(-MID(P38,ROW($1:$88),1))*ROW($1:$88),ROW($1:$15)+15)+1,1)*10^ROW($1:$15)/10),REPT(0,MIN(MAX(COUNT(1/(MID(P38,ROW($1:$88),1)+1))-15,),15)))&TEXT(SUM(MID(0&P38,LARGE(ISNUMBER(-MID(P38,ROW($1:$88),1))*ROW($1:$88),ROW($1:$15))+1,1)*10^ROW($1:$15)/10),REPT(0,MIN(COUNT(1/(MID(P38,ROW($1:$88),1)+1)),15))) -> 0
A39: Индекс: | B39: =P16 ->  | Q39: =IF(LEFT(#REF!,4)="ваша",VALUE(MID(#REF!,13,20))*100,0) -> 
A40: Компания: | Q40: =IF(LEFT(#REF!,4)="ваша",VALUE(MID(#REF!,13,20))*100,0) -> 
A41: ИИН: | B41: =F29 -> 16000 | Q41: =IF(LEFT(#REF!,4)="ваша",VALUE(MID(#REF!,13,20))*100,0) -> 
A42: ------------------------ | B42: ---------------------------------------------------- | C42: ---------------------------------------------------- | D42: ------------------------ | E42: ------------------------ | F42: --------------------------- | G42: ------------------------------ | H42: ------------------------ | I42: ------------------------ | Q42: =SUM(Q19:Q41) -> 

Sheet +KASPI+120820++0
A1: =IF(LEFT(C29,2)="сп",P1&" ► СП",IF(E25=D26,P1,IF(H6<>0,P1&"++"&"0",IF(E25=D27,P1&"++"&"0",IF(E25=D28,P1&"++"&"0",IF(E25=D27,P1&"++"&"0",IF(E25=D28,P1&"++"&"0",IF(LEFT(C25,2)="AV",P1&"++"&F29,P1)))))))) -> +KASPI+120820++0 | B1: 2020-08-12 | C1: =IF(E2>0,"ОТПРАВЛЕНО",IF(LEFT(C29,3)="ЗАК","ЗАКАЗАНО в СПБ",IF(G24>=0,"ОПЛОЧЕНО","ОЖИДАНИЕ ОПЛАТЫ"))) -> ОТПРАВЛЕНО | D1: ='СПИСОК ЗАКАЗОВ'!B1 -> 21 | E1: 2020-08-13 | I1: =A1 -> +KASPI+120820++0 | K1: 120820 | P1: =IF(G24>0,"+"&H6&"+"&Q1,Q1) -> +KASPI+120820 | Q1: =ПоискСКонца(K1,"№") -> 120820
A2: Логин | B2: =L3 -> Логин | C2: Номер накл-ой | E2: 3611549 | K2: Примечание
A3: ФИО | B3: =IF(C32=0,UPPER((P9)),UPPER(C33)) -> ЁЛКИН АЛЕКСАНДР | K3: Логин | L3: Логин
A4: Телефон | B4: =R12 -> 8-701-072-23-33 0---- ---- | E4: =IF(F4>0.5,"оплачено",IF(F4<0,"ОПЛАТИТЬ= "&G4,"ОПЛАТИТЬ= "&Q25)) -> ОПЛАТИТЬ= 1400 | F4: 0 | G4: 1100 | K4: Дата заказа | L4: дата заказа
A5: e-mail: | B5: =L11 -> мыло
A6: Вес | B6: ПРИМЕЧАНИЯ | C6: Наименование | D6: Кол-во | E6: Цена | F6: Всего | G6: =IF(MAX(G7:G25)>0,MAX(G7:G25),"") -> 2020-08-21 | H6: =IF(I7>0,"НАЛ",IF(I8>0,"ПЕРЕВОД",IF(I9>0,"Beeline",IF(I10>0,"KASPI",IF(I11>0,"QIWI",IF(I12>0,"СЧЁТ Альфа-Банк",0)))))) -> KASPI | I6: =SUM(I7:I28) -> 16000
A7: =IF(L24>0,Q24*1/100,"") ->  | B7: списано | C7: Неодимовый магнит D60x30mm(Аксиал)`42 (сила притяжения 160 кг) | D7: 1 | E7: 14600 | F7: =IF(D7<>"",E7*D7,"") -> 14600 | G7: =IF(I7 >0,TODAY(),"") ->  | H7: НАЛ | J7: =IFERROR(IFERROR(VLOOKUP(C7,#REF!,3,0)*D7,VLOOKUP(C7,#REF!,7,0)*D7),"нет веса") -> нет веса | K7: Заказ №2080
A8: =IF(L25>0,Q25*1/100,"") ->  | H8: ПЕРЕВОД | J8: =IFERROR(IFERROR(VLOOKUP(C8,#REF!,3,0)*D8,VLOOKUP(C8,#REF!,7,0)*D8),"нет веса") -> нет веса
A9: =IF(L26>0,Q26*1/100,"") ->  | H9: Beeline | J9: =IFERROR(IFERROR(VLOOKUP(C9,#REF!,3,0)*D9,VLOOKUP(C9,#REF!,7,0)*D9),"нет веса") -> нет веса | K9: Здравствуйте, Ёлкин Александр | P9: =MID(K9,15,70) -> Ёлкин Александр | Q9: =TEXT(SUM(MID(0&L9,LARGE(ISNUMBER(-MID(L9,ROW($1:$96),1))*ROW($1:$96),ROW($1:$23)+15)+1,1)*10^ROW($1:$23)/10),REPT(0,MIN(MAX(COUNT(1/(MID(L9,ROW($1:$96),1)+1))-15,),15)))&TEXT(SUM(MID(0&L9,LARGE(ISNUMBER(-MID(L9,ROW($1:$96),1))*ROW($1:$96),ROW($1:$23))+1,1)*10^ROW($1:$23)/10),REPT(0,MIN(COUNT(1/(MID(L9,ROW($1:$96),1)+1)),15))) -> 
G10: 2020-08-21 | H10: KASPI | I10: =F29 -> 16000 | J10: =IFERROR(IFERROR(VLOOKUP(C10,#REF!,3,0)*D10,VLOOKUP(C10,#REF!,7,0)*D10),"нет веса") -> нет веса | K10: Мы получили Ваш заказ номер, 2080
H11: QIWI | J11: =IFERROR(IFERROR(VLOOKUP(C11,#REF!,3,0)*D11,VLOOKUP(C11,#REF!,7,0)*D11),"нет веса") -> нет веса | K11: Электронная почта | L11: мыло
H12: СЧЁТ Альфа-Банк | J12: =IFERROR(IFERROR(VLOOKUP(C12,#REF!,3,0)*D12,VLOOKUP(C12,#REF!,7,0)*D12),"нет веса") -> нет веса | K12: Контактный телефон | L12: 8701 07 22 333 | P12: =(L12&" "&P13) -> 8701 07 22 333 0 | Q12: =TEXT(SUM(MID(0&P12,LARGE(ISNUMBER(-MID(P12,ROW($1:$99),1))*ROW($1:$99),ROW($1:$15)+30)+1,1)*10^ROW($1:$15)/10),REPT(0,MIN(MAX(COUNT(1/(MID(P12,ROW($1:$99),1)+1))-30,),15)))&TEXT(SUM(MID(0&P12,LARGE(ISNUMBER(-MID(P12,ROW($1:$99),1))*ROW($1:$99),ROW($1:$15)+15)+1,1)*10^ROW($1:$15)/10),REPT(0,MIN(MAX(COUNT(1/(MID(P12,ROW($1:$99),1)+1))-15,),15)))&TEXT(SUM(MID(0&P12,LARGE(ISNUMBER(-MID(P12,ROW($1:$99),1))*ROW($1:$99),ROW($1:$15))+1,1)*10^ROW($1:$15)/10),REPT(0,MIN(COUNT(1/(MID(P12,ROW($1:$99),1)+1)),15))) -> 870107223330 | R12: =(MID(Q12,1,1))&"-"&(MID(Q12,2,3))&"-"&(MID(Q12,5,3))&"-"&(MID(Q12,8,2))&"-"&(MID(Q12,10,2))&" "&(MID(Q12,12,1))&"-"&(MID(Q12,13,3))&"-"&(MID(Q12,16,3))&"-"&(MID(Q12,19,2))&"-"&(MID(Q12,21,2))&" "&(MID(Q12,23,1))&"-"&(MID(Q12,24,3))&"-"&(MID(Q12,27,3))&"-"&(MID(Q12,30,2))&"-"&(MID(Q12,32,2)) -> 8-701-072-23-33 0---- ----
J13: =IFERROR(IFERROR(VLOOKUP(C13,#REF!,3,0)*D13,VLOOKUP(C13,#REF!,7,0)*D13),"нет веса") -> нет веса | P13: =IF(L13="-",IFERROR(НайтиСтрокуПоСлову("Комментарий",K27:K60),0),L13) -> 0
J14: =IFERROR(IFERROR(VLOOKUP(C14,#REF!,3,0)*D14,VLOOKUP(C14,#REF!,7,0)*D14),"нет веса") -> нет веса | K14: Доставка: | P14: =MID(L14,23,70) -> 
C15: =IF(L34<>"",K34,"") ->  | D15: =IF(L34>0,L34,"") ->  | E15: =IF(M34="уточняйте",0,IF(L34>0,M34,"")) ->  | J15: =IFERROR(IFERROR(VLOOKUP(C15,#REF!,3,0)*D15,VLOOKUP(C15,#REF!,7,0)*D15),"нет веса") -> нет веса | K15: Оплата: | P15: =IF(LEFT(P14,2)="EX",MID(L15,11,70),L15) -> 0 | Q15: =TEXT(SUM(MID(0&P15,LARGE(ISNUMBER(-MID(P15,ROW($1:$88),1))*ROW($1:$88),ROW($1:$15)+15)+1,1)*10^ROW($1:$15)/10),REPT(0,MIN(MAX(COUNT(1/(MID(P15,ROW($1:$88),1)+1))-15,),15)))&TEXT(SUM(MID(0&P15,LARGE(ISNUMBER(-MID(P15,ROW($1:$88),1))*ROW($1:$88),ROW($1:$15))+1,1)*10^ROW($1:$15)/10),REPT(0,MIN(COUNT(1/(MID(P15,ROW($1:$88),1)+1)),15))) -> 0 | R15: =SUMPRODUCT(--SUBSTITUTE(Q15:Q15,CHAR(160),)) -> 0 | S15: =LEN(Q15) -> 1 | T15: =FLOOR(S15/3,1) -> 0
J16: =IFERROR(IFERROR(VLOOKUP(C16,#REF!,3,0)*D16,VLOOKUP(C16,#REF!,7,0)*D16),"нет веса") -> нет веса | K16: Адрес доставки | L16: Индекс: | P16: =MID(L16,9,70) -> 
J17: =IFERROR(IFERROR(VLOOKUP(C17,#REF!,3,0)*D17,VLOOKUP(C17,#REF!,7,0)*D17),"нет веса") -> нет веса | L17: Страна: | P17: =MID(L17,9,70) ->  | Q17: =IF(LEFT(K17,4)="ваша",VALUE(MID(K17,13,20))*100,0) -> 0
J18: =IFERROR(IFERROR(VLOOKUP(C18,#REF!,3,0)*D18,VLOOKUP(C18,#REF!,7,0)*D18),"нет веса") -> нет веса | L18: Область: | P18: =MID(L18,10,70) -> 
J19: =IFERROR(IFERROR(VLOOKUP(C19,#REF!,3,0)*D19,VLOOKUP(C19,#REF!,7,0)*D19),"нет веса") -> нет веса | L19: Город: | P19: =MID(L19,8,70) ->  | Q19: =IF(LEFT(K19,4)="ваша",VALUE(MID(K19,13,20))*100,0) -> 0
J20: =IFERROR(IFERROR(VLOOKUP(C20,#REF!,3,0)*D20,VLOOKUP(C20,#REF!,7,0)*D20),"нет веса") -> нет веса | L20: Улица: | P20: =MID(L20,8,70) ->  | Q20: =IF(LEFT(K31,4)="ваша",VALUE(MID(K31,13,20))*100,0) -> 0
J21: =IFERROR(IFERROR(VLOOKUP(C21,#REF!,3,0)*D21,VLOOKUP(C21,#REF!,7,0)*D21),"нет веса") -> нет веса | L21: Здание: | P21: =MID(L21,9,70) ->  | Q21: =IF(LEFT(K32,4)="ваша",VALUE(MID(K32,13,20))*100,0) -> 0
J22: =IFERROR(IFERROR(VLOOKUP(C22,#REF!,3,0)*D22,VLOOKUP(C22,#REF!,7,0)*D22),"нет веса") -> нет веса | L22: Квартира: | P22: =MID(L22,11,70) ->  | Q22: =IF(LEFT(#REF!,4)="ваша",VALUE(MID(#REF!,13,20))*100,0) -> 
E23: Итого: | F23: =SUM(F7:F22) -> 14600 | J23: =IF(K40>0,M40,"") ->  | K23: Наименование | L23: Количество | M23: Цена | N23: Вес | O23: Всего | Q23: =IF(LEFT(K33,4)="ваша",VALUE(MID(K33,13,20))*100,0) -> 0
A24: =IF(L41>0,N41,"") ->  | D24: скидка: | F24: =F23-(F23*E24/100) -> 14600 | G24: =IFERROR(SUM(I7:I22)-F29+1,0) -> 1 | P24: =N24 -> 0 | Q24: =TEXT(SUM(MID(0&P24,LARGE(ISNUMBER(-MID(P24,ROW($1:$88),1))*ROW($1:$88),ROW($1:$15)+15)+1,1)*10^ROW($1:$15)/10),REPT(0,MIN(MAX(COUNT(1/(MID(P24,ROW($1:$88),1)+1))-15,),15)))&TEXT(SUM(MID(0&P24,LARGE(ISNUMBER(-MID(P24,ROW($1:$88),1))*ROW($1:$88),ROW($1:$15))+1,1)*10^ROW($1:$15)/10),REPT(0,MIN(COUNT(1/(MID(P24,ROW($1:$88),1)+1)),15))) -> 0
A25: =SUM(A7:A23)/1000*1.3 -> 0 | C25: =IF(E25=F26,"Доставка БЕСПЛАТНО",IF(E25=D26,C26,IF(E25=D27,C27,IF(E25=D28,C28,IF(E25=F27,C27&" + НПл",IF(E25=F28,C28&" + НПл","Укажите ТК")))))) -> AVIS EXPRESS Алматы | D25: 2 | E25: =D28 -> 1400 | G25: =IF(I25 >0,TODAY(),"") ->  | J25: =SUM(J7:J22)/1000 -> 0 | P25: =E25 -> 1400 | Q25: =TEXT(SUM(MID(0&P25,LARGE(ISNUMBER(-MID(P25,ROW($1:$88),1))*ROW($1:$88),ROW($1:$15)+15)+1,1)*10^ROW($1:$15)/10),REPT(0,MIN(MAX(COUNT(1/(MID(P25,ROW($1:$88),1)+1))-15,),15)))&TEXT(SUM(MID(0&P25,LARGE(ISNUMBER(-MID(P25,ROW($1:$88),1))*ROW($1:$88),ROW($1:$15))+1,1)*10^ROW($1:$15)/10),REPT(0,MIN(COUNT(1/(MID(P25,ROW($1:$88),1)+1)),15))) -> 1400 | R25: =E25 -> 1400 | S25: =TEXT(SUM(MID(0&R25,LARGE(ISNUMBER(-MID(R25,ROW($1:$88),1))*ROW($1:$88),ROW($1:$15)+15)+1,1)*10^ROW($1:$15)/10),REPT(0,MIN(MAX(COUNT(1/(MID(R25,ROW($1:$88),1)+1))-15,),15)))&TEXT(SUM(MID(0&R25,LARGE(ISNUMBER(-MID(R25,ROW($1:$88),1))*ROW($1:$88),ROW($1:$15))+1,1)*10^ROW($1:$15)/10),REPT(0,MIN(COUNT(1/(MID(R25,ROW($1:$88),1)+1)),15))) -> 1400 | U25: =TEXT(SUM(MID(0&E25,LARGE(ISNUMBER(-MID(E25,ROW($1:$88),1))*ROW($1:$88),ROW($1:$15)+15)+1,1)*10^ROW($1:$15)/10),REPT(0,MIN(MAX(COUNT(1/(MID(E25,ROW($1:$88),1)+1))-15,),15)))&TEXT(SUM(MID(0&E25,LARGE(ISNUMBER(-MID(E25,ROW($1:$88),1))*ROW($1:$88),ROW($1:$15))+1,1)*10^ROW($1:$15)/10),REPT(0,MIN(COUNT(1/(MID(E25,ROW($1:$88),1)+1)),15))) -> 
C26: =IFERROR("AVIS С А М О В Ы В О З "&" "&VLOOKUP((LEFT(B34,(LEN(B34)))),'ТАРИФЫ ТК'!J17:L268,1,0),"НЕТ ДОСТАВКИ") -> AVIS С А М О В Ы В О З Алматы | D26: =IFERROR(VLOOKUP((LEFT(B34,(LEN(B34)))),'ТАРИФЫ ТК'!J17:L268,3,0)+0.001,"НЕТ ДОСТАВКИ") -> 1550.001 | E26: =IFERROR(F24+D26,"НЕТ ДОСТАВКИ") -> 16150.001 | F26: =IFERROR(D26&" + НПл","НЕТ ДОСТАВКИ") -> 1550,001 + НПл | G26: =IFERROR(CEILING((F24+D26)*(1+$D$25/100),50),0) -> 16500 | P26: =N26 -> 0 | Q26: =TEXT(SUM(MID(0&P26,LARGE(ISNUMBER(-MID(P26,ROW($1:$88),1))*ROW($1:$88),ROW($1:$15)+15)+1,1)*10^ROW($1:$15)/10),REPT(0,MIN(MAX(COUNT(1/(MID(P26,ROW($1:$88),1)+1))-15,),15)))&TEXT(SUM(MID(0&P26,LARGE(ISNUMBER(-MID(P26,ROW($1:$88),1))*ROW($1:$88),ROW($1:$15))+1,1)*10^ROW($1:$15)/10),REPT(0,MIN(COUNT(1/(MID(P26,ROW($1:$88),1)+1)),15))) -> 0
C27: =IFERROR("AVIS Econom"&" "&VLOOKUP((LEFT(B34,(LEN(B34)))),'ТАРИФЫ ТК'!A4:A134,1,0),"НЕТ ДОСТАВКИ") -> AVIS Econom Алматы | D27: 1300 | E27: =IFERROR(F24+D27,"НЕТ ДОСТАВКИ") -> 15900 | F27: =IFERROR(D27&" + НПл","НЕТ ДОСТАВКИ") -> 1300 + НПл | G27: =IFERROR(CEILING((F24+D27)*(1+$D$25/100),50),0) -> 16250 | P27: 0 | Q27: =TEXT(SUM(MID(0&P27,LARGE(ISNUMBER(-MID(P27,ROW($1:$88),1))*ROW($1:$88),ROW($1:$15)+15)+1,1)*10^ROW($1:$15)/10),REPT(0,MIN(MAX(COUNT(1/(MID(P27,ROW($1:$88),1)+1))-15,),15)))&TEXT(SUM(MID(0&P27,LARGE(ISNUMBER(-MID(P27,ROW($1:$88),1))*ROW($1:$88),ROW($1:$15))+1,1)*10^ROW($1:$15)/10),REPT(0,MIN(COUNT(1/(MID(P27,ROW($1:$88),1)+1)),15))) -> 0
C28: =IFERROR(IF(A29<1,"AVIS EXPRESS"&" "&VLOOKUP((LEFT(B34,(LEN(B34)))),'ТАРИФЫ ТК'!E4:G20,1,0),"AV ВИМАНИЕ: В Е С П О С Ы Л К И Б О Л Ь Ш Е 0,5 КГ !!!"),"НЕТ ДОСТАВКИ") -> AVIS EXPRESS Алматы | D28: 1400 | E28: =IFERROR(F24+D28,"НЕТ ДОСТАВКИ") -> 16000 | F28: =D28&" + НПл" -> 1400 + НПл | G28: =IFERROR(CEILING((F24+D28)*(1+$D$25/100),50),"НЕТ ДОСТАВКИ") -> 16350 | P28: 0 | Q28: =TEXT(SUM(MID(0&P28,LARGE(ISNUMBER(-MID(P28,ROW($1:$88),1))*ROW($1:$88),ROW($1:$15)+15)+1,1)*10^ROW($1:$15)/10),REPT(0,MIN(MAX(COUNT(1/(MID(P28,ROW($1:$88),1)+1))-15,),15)))&TEXT(SUM(MID(0&P28,LARGE(ISNUMBER(-MID(P28,ROW($1:$88),1))*ROW($1:$88),ROW($1:$15))+1,1)*10^ROW($1:$15)/10),REPT(0,MIN(COUNT(1/(MID(P28,ROW($1:$88),1)+1)),15))) -> 0
A29: =IFERROR(A25*1.5,"Количество ??") -> 0 | D29: К ОПЛАТЕ: | E29: =IFERROR(F24+E25,0) -> 16000 | F29: =IF(E25=C29,"Доставка БЕСПЛАТНО",IF(E25=D26,E26,IF(E25=D27,E27,IF(E25=D28,E28,IF(E25=F27,G27,IF(E25=F28,G28,IF(E25=F26,G26,"Укажите ТК"))))))) -> 16000 | G29: =IFERROR(CEILING((F24+E25)*1.03,50),0) -> 16500 | J29: =IFERROR(J25*1.5,"Количество ??") -> 0 | P29: 0 | Q29: =TEXT(SUM(MID(0&P29,LARGE(ISNUMBER(-MID(P29,ROW($1:$88),1))*ROW($1:$88),ROW($1:$15)+15)+1,1)*10^ROW($1:$15)/10),REPT(0,MIN(MAX(COUNT(1/(MID(P29,ROW($1:$88),1)+1))-15,),15)))&TEXT(SUM(MID(0&P29,LARGE(ISNUMBER(-MID(P29,ROW($1:$88),1))*ROW($1:$88),ROW($1:$15))+1,1)*10^ROW($1:$15)/10),REPT(0,MIN(COUNT(1/(MID(P29,ROW($1:$88),1)+1)),15))) -> 0
A30: rc11091kz | C30: =IFERROR((P14&" "&LEFT(P15,8)&" = "&TEXT(R15,"### ### ###")&" т."),"НЕТ ДОСТАВКИ") -> 0 = т. | E30: =IFERROR("QIWI = "&CEILING((E26*1.02),10),0) -> QIWI = 16480 | F30: =IFERROR(F29-F24,"УКАЖИТЕ ТК") -> 1400 | P30: 0 | Q30: =TEXT(SUM(MID(0&P30,LARGE(ISNUMBER(-MID(P30,ROW($1:$88),1))*ROW($1:$88),ROW($1:$15)+15)+1,1)*10^ROW($1:$15)/10),REPT(0,MIN(MAX(COUNT(1/(MID(P30,ROW($1:$88),1)+1))-15,),15)))&TEXT(SUM(MID(0&P30,LARGE(ISNUMBER(-MID(P30,ROW($1:$88),1))*ROW($1:$88),ROW($1:$15))+1,1)*10^ROW($1:$15)/10),REPT(0,MIN(COUNT(1/(MID(P30,ROW($1:$88),1)+1)),15))) -> 0
A31: =A1 -> +KASPI+120820++0 | B31: ПОЛУЧАТЕЛЬ: | C31: rc11091kz | P31: 0 | Q31: =TEXT(SUM(MID(0&P31,LARGE(ISNUMBER(-MID(P31,ROW($1:$88),1))*ROW($1:$88),ROW($1:$15)+15)+1,1)*10^ROW($1:$15)/10),REPT(0,MIN(MAX(COUNT(1/(MID(P31,ROW($1:$88),1)+1))-15,),15)))&TEXT(SUM(MID(0&P31,LARGE(ISNUMBER(-MID(P31,ROW($1:$88),1))*ROW($1:$88),ROW($1:$15))+1,1)*10^ROW($1:$15)/10),REPT(0,MIN(COUNT(1/(MID(P31,ROW($1:$88),1)+1)),15))) -> 0
A32: =UPPER((B3)) -> ЁЛКИН АЛЕКСАНДР | C32: =IFERROR(MID(НайтиСтрокуПоСлову("Комментарий: Имя :",K1:K45),20,99),0) -> 0 | P32: 0 | Q32: =TEXT(SUM(MID(0&P32,LARGE(ISNUMBER(-MID(P32,ROW($1:$88),1))*ROW($1:$88),ROW($1:$15)+15)+1,1)*10^ROW($1:$15)/10),REPT(0,MIN(MAX(COUNT(1/(MID(P32,ROW($1:$88),1)+1))-15,),15)))&TEXT(SUM(MID(0&P32,LARGE(ISNUMBER(-MID(P32,ROW($1:$88),1))*ROW($1:$88),ROW($1:$15))+1,1)*10^ROW($1:$15)/10),REPT(0,MIN(COUNT(1/(MID(P32,ROW($1:$88),1)+1)),15))) -> 0
A33: Область: | B33: =UPPER((P18)) ->  | C33: =IFERROR(ПоискСНачала(C32,"Телефон"),0) -> 0 | E33: =IFERROR(ПоискМежду(C32,"Телефон :","Примечание"),0) -> 0 | F33: =IFERROR(IF(LEFT(ПоискСКонца(C32,"Примечание : "),2)="г ",MID(ПоискСКонца(C32,"Примечание : "),3,99),IF(LEFT(ПоискСКонца(C32,"Примечание : "),3)="г. ",MID(ПоискСКонца(C32,"Примечание : "),4,99),IF(LEFT(ПоискСКонца(C32,"Примечание : "),3)="гор",MID(ПоискСКонца(C32,"Примечание : "),6,99),0))),0) -> 0 | P33: 0 | Q33: =TEXT(SUM(MID(0&P33,LARGE(ISNUMBER(-MID(P33,ROW($1:$88),1))*ROW($1:$88),ROW($1:$15)+15)+1,1)*10^ROW($1:$15)/10),REPT(0,MIN(MAX(COUNT(1/(MID(P33,ROW($1:$88),1)+1))-15,),15)))&TEXT(SUM(MID(0&P33,LARGE(ISNUMBER(-MID(P33,ROW($1:$88),1))*ROW($1:$88),ROW($1:$15))+1,1)*10^ROW($1:$15)/10),REPT(0,MIN(COUNT(1/(MID(P33,ROW($1:$88),1)+1)),15))) -> 0
A34: Город: | B34: Алматы | P34: 0 | Q34: =TEXT(SUM(MID(0&P34,LARGE(ISNUMBER(-MID(P34,ROW($1:$88),1))*ROW($1:$88),ROW($1:$15)+15)+1,1)*10^ROW($1:$15)/10),REPT(0,MIN(MAX(COUNT(1/(MID(P34,ROW($1:$88),1)+1))-15,),15)))&TEXT(SUM(MID(0&P34,LARGE(ISNUMBER(-MID(P34,ROW($1:$88),1))*ROW($1:$88),ROW($1:$15))+1,1)*10^ROW($1:$15)/10),REPT(0,MIN(COUNT(1/(MID(P34,ROW($1:$88),1)+1)),15))) -> 0
A35: Улица: | B35: Жарокова, дом 39/2, кв. 2 | P35: 0 | Q35: =TEXT(SUM(MID(0&P35,LARGE(ISNUMBER(-MID(P35,ROW($1:$88),1))*ROW($1:$88),ROW($1:$15)+15)+1,1)*10^ROW($1:$15)/10),REPT(0,MIN(MAX(COUNT(1/(MID(P35,ROW($1:$88),1)+1))-15,),15)))&TEXT(SUM(MID(0&P35,LARGE(ISNUMBER(-MID(P35,ROW($1:$88),1))*ROW($1:$88),ROW($1:$15))+1,1)*10^ROW($1:$15)/10),REPT(0,MIN(COUNT(1/(MID(P35,ROW($1:$88),1)+1)),15))) -> 0
A36: Здание: | B36: =P21 ->  | P36: 0 | Q36: =TEXT(SUM(MID(0&P36,LARGE(ISNUMBER(-MID(P36,ROW($1:$88),1))*ROW($1:$88),ROW($1:$15)+15)+1,1)*10^ROW($1:$15)/10),REPT(0,MIN(MAX(COUNT(1/(MID(P36,ROW($1:$88),1)+1))-15,),15)))&TEXT(SUM(MID(0&P36,LARGE(ISNUMBER(-MID(P36,ROW($1:$88),1))*ROW($1:$88),ROW($1:$15))+1,1)*10^ROW($1:$15)/10),REPT(0,MIN(COUNT(1/(MID(P36,ROW($1:$88),1)+1)),15))) -> 0
A37: Квартира: | B37: =P22 ->  | P37: 0 | Q37: =TEXT(SUM(MID(0&P37,LARGE(ISNUMBER(-MID(P37,ROW($1:$88),1))*ROW($1:$88),ROW($1:$15)+15)+1,1)*10^ROW($1:$15)/10),REPT(0,MIN(MAX(COUNT(1/(MID(P37,ROW($1:$88),1)+1))-15,),15)))&TEXT(SUM(MID(0&P37,LARGE(ISNUMBER(-MID(P37,ROW($1:$88),1))*ROW($1:$88),ROW($1:$15))+1,1)*10^ROW($1:$15)/10),REPT(0,MIN(COUNT(1/(MID(P37,ROW($1:$88),1)+1)),15))) -> 0
A38: Телефон: | B38: =B4 -> 8-701-072-23-33 0---- ---- | P38: 0 | Q38: =TEXT(SUM(MID(0&P38,LARGE(ISNUMBER(-MID(P38,ROW($1:$88),1))*ROW($1:$88),ROW($1:$15)+15)+1,1)*10^ROW($1:$15)/10),REPT(0,MIN(MAX(COUNT(1/(MID(P38,ROW($1:$88),1)+1))-15,),15)))&TEXT(SUM(MID(0&P38,LARGE(ISNUMBER(-MID(P38,ROW($1:$88),1))*ROW($1:$88),ROW($1:$15))+1,1)*10^ROW($1:$15)/10),REPT(0,MIN(COUNT(1/(MID(P38,ROW($1:$88),1)+1)),15))) -> 0
A39: Индекс: | B39: =P16 ->  | Q39: =IF(LEFT(#REF!,4)="ваша",VALUE(MID(#REF!,13,20))*100,0) -> 
A40: Компания: | Q40: =IF(LEFT(#REF!,4)="ваша",VALUE(MID(#REF!,13,20))*100,0) -> 
A41: ИИН: | B41: =F29 -> 16000 | Q41: =IF(LEFT(#REF!,4)="ваша",VALUE(MID(#REF!,13,20))*100,0) -> 
A42: ------------------------ | B42: ---------------------------------------------------- | C42: ---------------------------------------------------- | D42: ------------------------ | E42: ------------------------ | F42: --------------------------- | G42: ------------------------------ | H42: ------------------------ | I42: ------------------------ | Q42: =SUM(Q19:Q41) -> 

Sheet 9632++10650
A1: =IF(LEFT(C29,2)="сп",P1&" ► СП",IF(E25=D26,P1,IF(H6<>0,P1&"++"&"0",IF(E25=D27,P1&"++"&"0",IF(E25=D28,P1&"++"&"0",IF(E25=D27,P1&"++"&"0",IF(E25=D28,P1&"++"&"0",IF(LEFT(C25,2)="AV",P1&"++"&F29,P1)))))))) -> 9632++10650 | B1: =L4 -> 2020-08-09T18:08:34 | C1: =IF(E2>0,"ОТПРАВЛЕНО",IF(LEFT(C29,3)="ЗАК","ЗАКАЗАНО в СПБ",IF(G24>=0,"ОПЛОЧЕНО","ОЖИДАНИЕ ОПЛАТЫ"))) -> ОТПРАВЛЕНО | D1: ='СПИСОК ЗАКАЗОВ'!B1 -> 21 | E1: 2020-08-11 | I1: =A1 -> 9632++10650 | K1: Заказ № 9632 | P1: =IF(G24>0,"+"&H6&"+"&Q1,Q1) -> 9632 | Q1: =ПоискСКонца(K1,"№") -> 9632
A2: Логин | B2: =L3 -> 0 | C2: Номер накл-ой | E2: 3611546 | K2: Примечание
A3: ФИО | B3: =IF(C32=0,UPPER((P9)),UPPER(C33)) -> АНАТОЛИ ЕЛИМГИРЕЙ | K3: Логин
A4: Телефон | B4: =R12 -> 7-707-695-04-76 0---- ---- | E4: =IF(F4>0.5,"оплачено",IF(F4<0,"ОПЛАТИТЬ= "&G4,"ОПЛАТИТЬ= "&Q25)) -> ОПЛАТИТЬ= 1400 | F4: 0 | G4: 1100 | K4: Дата заказа | L4: 2020-08-09T18:08:34
A5: e-mail: | B5: =L11 -> -
A6: Вес | B6: ПРИМЕЧАНИЯ | C6: Наименование | D6: Кол-во | E6: Цена | F6: Всего | G6: =IF(MAX(G7:G25)>0,MAX(G7:G25),"") ->  | H6: =IF(I7>0,"НАЛ",IF(I8>0,"ПЕРЕВОД",IF(I9>0,"Beeline",IF(I10>0,"KASPI",IF(I11>0,"QIWI",IF(I12>0,"СЧЁТ Альфа-Банк",0)))))) -> 0 | I6: =SUM(I7:I28) -> 0
A7: =IF(L24>0,Q24*1/100,"") ->  | B7: списано | C7: =IF(L26<>"",K26,"") -> Неодимовый магнит D5x1mm(Аксиал)`42 (сила притяжения 0,2 кг) | D7: 500 | E7: =IF(M26="уточняйте",0,IF(L26>0,M26,"")) -> 18 | F7: =IF(D7<>"",E7*D7,"") -> 9000 | G7: =IF(I7 >0,TODAY(),"") ->  | H7: НАЛ | J7: =IFERROR(IFERROR(VLOOKUP(C7,#REF!,3,0)*D7,VLOOKUP(C7,#REF!,7,0)*D7),"нет веса") -> нет веса | K7: Заказ №9632
A8: =IF(L25>0,Q25*1/100,"") -> 14 | C8: =IF(L27<>"",K27,"") ->  | D8: =IF(L27>0,L27,"") ->  | E8: =IF(M27="уточняйте",0,IF(L27>0,M27,"")) ->  | H8: ПЕРЕВОД | J8: =IFERROR(IFERROR(VLOOKUP(C8,#REF!,3,0)*D8,VLOOKUP(C8,#REF!,7,0)*D8),"нет веса") -> нет веса
A9: =IF(L26>0,Q26*1/100,"") -> 0 | H9: Beeline | J9: =IFERROR(IFERROR(VLOOKUP(C9,#REF!,3,0)*D9,VLOOKUP(C9,#REF!,7,0)*D9),"нет веса") -> нет веса | K9: Здравствуйте, Анатоли Елимгирей | P9: =MID(K9,15,70) -> Анатоли Елимгирей | Q9: =TEXT(SUM(MID(0&L9,LARGE(ISNUMBER(-MID(L9,ROW($1:$96),1))*ROW($1:$96),ROW($1:$23)+15)+1,1)*10^ROW($1:$23)/10),REPT(0,MIN(MAX(COUNT(1/(MID(L9,ROW($1:$96),1)+1))-15,),15)))&TEXT(SUM(MID(0&L9,LARGE(ISNUMBER(-MID(L9,ROW($1:$96),1))*ROW($1:$96),ROW($1:$23))+1,1)*10^ROW($1:$23)/10),REPT(0,MIN(COUNT(1/(MID(L9,ROW($1:$96),1)+1)),15))) -> 
H10: KASPI | J10: =IFERROR(IFERROR(VLOOKUP(C10,#REF!,3,0)*D10,VLOOKUP(C10,#REF!,7,0)*D10),"нет веса") -> нет веса | K10: Мы получили Ваш заказ номер, 9632
H11: QIWI | J11: =IFERROR(IFERROR(VLOOKUP(C11,#REF!,3,0)*D11,VLOOKUP(C11,#REF!,7,0)*D11),"нет веса") -> нет веса | K11: Электронная почта: | L11: -
H12: СЧЁТ Альфа-Банк | J12: =IFERROR(IFERROR(VLOOKUP(C12,#REF!,3,0)*D12,VLOOKUP(C12,#REF!,7,0)*D12),"нет веса") -> нет веса | K12: Контактный телефон: | L12: +7 (707) 695-04-76 | P12: =(L12&" "&P13) -> +7 (707) 695-04-76 0 | Q12: =TEXT(SUM(MID(0&P12,LARGE(ISNUMBER(-MID(P12,ROW($1:$99),1))*ROW($1:$99),ROW($1:$15)+30)+1,1)*10^ROW($1:$15)/10),REPT(0,MIN(MAX(COUNT(1/(MID(P12,ROW($1:$99),1)+1))-30,),15)))&TEXT(SUM(MID(0&P12,LARGE(ISNUMBER(-MID(P12,ROW($1:$99),1))*ROW($1:$99),ROW($1:$15)+15)+1,1)*10^ROW($1:$15)/10),REPT(0,MIN(MAX(COUNT(1/(MID(P12,ROW($1:$99),1)+1))-15,),15)))&TEXT(SUM(MID(0&P12,LARGE(ISNUMBER(-MID(P12,ROW($1:$99),1))*ROW($1:$99),ROW($1:$15))+1,1)*10^ROW($1:$15)/10),REPT(0,MIN(COUNT(1/(MID(P12,ROW($1:$99),1)+1)),15))) -> 770769504760 | R12: =(MID(Q12,1,1))&"-"&(MID(Q12,2,3))&"-"&(MID(Q12,5,3))&"-"&(MID(Q12,8,2))&"-"&(MID(Q12,10,2))&" "&(MID(Q12,12,1))&"-"&(MID(Q12,13,3))&"-"&(MID(Q12,16,3))&"-"&(MID(Q12,19,2))&"-"&(MID(Q12,21,2))&" "&(MID(Q12,23,1))&"-"&(MID(Q12,24,3))&"-"&(MID(Q12,27,3))&"-"&(MID(Q12,30,2))&"-"&(MID(Q12,32,2)) -> 7-707-695-04-76 0---- ----
J13: =IFERROR(IFERROR(VLOOKUP(C13,#REF!,3,0)*D13,VLOOKUP(C13,#REF!,7,0)*D13),"нет веса") -> нет веса | K13: Доставка: | L13: - | P13: =IF(L13="-",IFERROR(НайтиСтрокуПоСлову("Комментарий",K27:K60),0),L13) -> 0
J14: =IFERROR(IFERROR(VLOOKUP(C14,#REF!,3,0)*D14,VLOOKUP(C14,#REF!,7,0)*D14),"нет веса") -> нет веса | K14: Оплата: | L14: - | P14: =MID(L14,23,70) -> 
J15: =IFERROR(IFERROR(VLOOKUP(C15,#REF!,3,0)*D15,VLOOKUP(C15,#REF!,7,0)*D15),"нет веса") -> нет веса | P15: =IF(LEFT(P14,2)="EX",MID(L15,11,70),L15) -> 0 | Q15: =TEXT(SUM(MID(0&P15,LARGE(ISNUMBER(-MID(P15,ROW($1:$88),1))*ROW($1:$88),ROW($1:$15)+15)+1,1)*10^ROW($1:$15)/10),REPT(0,MIN(MAX(COUNT(1/(MID(P15,ROW($1:$88),1)+1))-15,),15)))&TEXT(SUM(MID(0&P15,LARGE(ISNUMBER(-MID(P15,ROW($1:$88),1))*ROW($1:$88),ROW($1:$15))+1,1)*10^ROW($1:$15)/10),REPT(0,MIN(COUNT(1/(MID(P15,ROW($1:$88),1)+1)),15))) -> 0 | R15: =SUMPRODUCT(--SUBSTITUTE(Q15:Q15,CHAR(160),)) -> 0 | S15: =LEN(Q15) -> 1 | T15: =FLOOR(S15/3,1) -> 0
J16: =IFERROR(IFERROR(VLOOKUP(C16,#REF!,3,0)*D16,VLOOKUP(C16,#REF!,7,0)*D16),"нет веса") -> нет веса | K16: Адрес доставки: | L16: Индекс: | P16: =MID(L16,9,70) -> 
J17: =IFERROR(IFERROR(VLOOKUP(C17,#REF!,3,0)*D17,VLOOKUP(C17,#REF!,7,0)*D17),"нет веса") -> нет веса | L17: Страна: | P17: =MID(L17,9,70) ->  | Q17: =IF(LEFT(K17,4)="ваша",VALUE(MID(K17,13,20))*100,0) -> 0
J18: =IFERROR(IFERROR(VLOOKUP(C18,#REF!,3,0)*D18,VLOOKUP(C18,#REF!,7,0)*D18),"нет веса") -> нет веса | L18: Область: | P18: =MID(L18,10,70) -> 
J19: =IFERROR(IFERROR(VLOOKUP(C19,#REF!,3,0)*D19,VLOOKUP(C19,#REF!,7,0)*D19),"нет веса") -> нет веса | L19: Город: Астана (Ильинка) | P19: =MID(L19,8,70) -> Астана (Ильинка) | Q19: =IF(LEFT(K19,4)="ваша",VALUE(MID(K19,13,20))*100,0) -> 0
J20: =IFERROR(IFERROR(VLOOKUP(C20,#REF!,3,0)*D20,VLOOKUP(C20,#REF!,7,0)*D20),"нет веса") -> нет веса | L20: Улица: Әбілхан Қастеев, 7 | P20: =MID(L20,8,70) -> Әбілхан Қастеев, 7 | Q20: =IF(LEFT(K31,4)="ваша",VALUE(MID(K31,13,20))*100,0) -> 0
J21: =IFERROR(IFERROR(VLOOKUP(C21,#REF!,3,0)*D21,VLOOKUP(C21,#REF!,7,0)*D21),"нет веса") -> нет веса | L21: Здание: 7 | P21: =MID(L21,9,70) -> 7 | Q21: =IF(LEFT(K32,4)="ваша",VALUE(MID(K32,13,20))*100,0) -> 0
J22: =IFERROR(IFERROR(VLOOKUP(C22,#REF!,3,0)*D22,VLOOKUP(C22,#REF!,7,0)*D22),"нет веса") -> нет веса | L22: Квартира: Нету | P22: =MID(L22,11,70) -> Нету | Q22: =IF(LEFT(#REF!,4)="ваша",VALUE(MID(#REF!,13,20))*100,0) -> 
E23: Итого: | F23: =SUM(F7:F22) -> 9000 | J23: =IF(K40>0,M40,"") ->  | K23: Комментарий : Перед тем как подойти позвоните +7 (707) 695-04-76 мы выйдем встретим курьера | Q23: =IF(LEFT(K33,4)="ваша",VALUE(MID(K33,13,20))*100,0) -> 0
A24: =IF(L41>0,N41,"") ->  | D24: скидка: | E24: =IF(F23>150000,10,IF(F23>100000,8,IF(F23>60000,5,IF(F23>30000,3,0)))) -> 0 | F24: =F23-(F23*E24/100) -> 9000 | G24: =IFERROR(SUM(I7:I22)-F29+1,0) -> -10649 | P24: =N24 -> 0 | Q24: =TEXT(SUM(MID(0&P24,LARGE(ISNUMBER(-MID(P24,ROW($1:$88),1))*ROW($1:$88),ROW($1:$15)+15)+1,1)*10^ROW($1:$15)/10),REPT(0,MIN(MAX(COUNT(1/(MID(P24,ROW($1:$88),1)+1))-15,),15)))&TEXT(SUM(MID(0&P24,LARGE(ISNUMBER(-MID(P24,ROW($1:$88),1))*ROW($1:$88),ROW($1:$15))+1,1)*10^ROW($1:$15)/10),REPT(0,MIN(COUNT(1/(MID(P24,ROW($1:$88),1)+1)),15))) -> 0
A25: =SUM(A7:A23)/1000*1.3 -> 0.0182 | C25: =IF(E25=F26,"Доставка БЕСПЛАТНО",IF(E25=D26,C26,IF(E25=D27,C27,IF(E25=D28,C28,IF(E25=F27,C27&" + НПл",IF(E25=F28,C28&" + НПл","Укажите ТК")))))) -> AVIS EXPRESS Астана + НПл | D25: 2 | E25: =F28 -> 1400 + НПл | G25: =IF(I25 >0,TODAY(),"") ->  | J25: =SUM(J7:J22)/1000 -> 0 | K25: Наименование | L25: Количество | M25: Цена | N25: Вес | O25: Всего | P25: =E25 -> 1400 + НПл | Q25: =TEXT(SUM(MID(0&P25,LARGE(ISNUMBER(-MID(P25,ROW($1:$88),1))*ROW($1:$88),ROW($1:$15)+15)+1,1)*10^ROW($1:$15)/10),REPT(0,MIN(MAX(COUNT(1/(MID(P25,ROW($1:$88),1)+1))-15,),15)))&TEXT(SUM(MID(0&P25,LARGE(ISNUMBER(-MID(P25,ROW($1:$88),1))*ROW($1:$88),ROW($1:$15))+1,1)*10^ROW($1:$15)/10),REPT(0,MIN(COUNT(1/(MID(P25,ROW($1:$88),1)+1)),15))) -> 1400 | R25: =E25 -> 1400 + НПл | S25: =TEXT(SUM(MID(0&R25,LARGE(ISNUMBER(-MID(R25,ROW($1:$88),1))*ROW($1:$88),ROW($1:$15)+15)+1,1)*10^ROW($1:$15)/10),REPT(0,MIN(MAX(COUNT(1/(MID(R25,ROW($1:$88),1)+1))-15,),15)))&TEXT(SUM(MID(0&R25,LARGE(ISNUMBER(-MID(R25,ROW($1:$88),1))*ROW($1:$88),ROW($1:$15))+1,1)*10^ROW($1:$15)/10),REPT(0,MIN(COUNT(1/(MID(R25,ROW($1:$88),1)+1)),15))) -> 1400 | U25: =TEXT(SUM(MID(0&E25,LARGE(ISNUMBER(-MID(E25,ROW($1:$88),1))*ROW($1:$88),ROW($1:$15)+15)+1,1)*10^ROW($1:$15)/10),REPT(0,MIN(MAX(COUNT(1/(MID(E25,ROW($1:$88),1)+1))-15,),15)))&TEXT(SUM(MID(0&E25,LARGE(ISNUMBER(-MID(E25,ROW($1:$88),1))*ROW($1:$88),ROW($1:$15))+1,1)*10^ROW($1:$15)/10),REPT(0,MIN(COUNT(1/(MID(E25,ROW($1:$88),1)+1)),15))) -> 
C26: =IFERROR("AVIS С А М О В Ы В О З "&" "&VLOOKUP((LEFT(B34,(LEN(B34)))),'ТАРИФЫ ТК'!J17:L268,1,0),"НЕТ ДОСТАВКИ") -> AVIS С А М О В Ы В О З Астана | D26: =IFERROR(VLOOKUP((LEFT(B34,(LEN(B34)))),'ТАРИФЫ ТК'!J17:L268,3,0)+0.001,"НЕТ ДОСТАВКИ") -> 1550.001 | E26: =IFERROR(F24+D26,"НЕТ ДОСТАВКИ") -> 10550.001 | F26: =IFERROR(D26&" + НПл","НЕТ ДОСТАВКИ") -> 1550,001 + НПл | G26: =IFERROR(CEILING((F24+D26)*(1+$D$25/100),50),0) -> 10800 | K26: Неодимовый магнит D5x1mm(Аксиал)`42 (сила притяжения 0,2 кг) | L26: 1 | M26: 18 | N26: 0 | O26: 18 | P26: =N26 -> 0 | Q26: =TEXT(SUM(MID(0&P26,LARGE(ISNUMBER(-MID(P26,ROW($1:$88),1))*ROW($1:$88),ROW($1:$15)+15)+1,1)*10^ROW($1:$15)/10),REPT(0,MIN(MAX(COUNT(1/(MID(P26,ROW($1:$88),1)+1))-15,),15)))&TEXT(SUM(MID(0&P26,LARGE(ISNUMBER(-MID(P26,ROW($1:$88),1))*ROW($1:$88),ROW($1:$15))+1,1)*10^ROW($1:$15)/10),REPT(0,MIN(COUNT(1/(MID(P26,ROW($1:$88),1)+1)),15))) -> 0
C27: =IFERROR("AVIS Econom"&" "&VLOOKUP((LEFT(B34,(LEN(B34)))),'ТАРИФЫ ТК'!A4:A134,1,0),"НЕТ ДОСТАВКИ") -> AVIS Econom Астана | D27: =IFERROR(VLOOKUP((LEFT(B34,(LEN(B34)))),'ТАРИФЫ ТК'!A4:C134,3,0),"НЕТ ДОСТАВКИ") -> 1300 | E27: =IFERROR(F24+D27,"НЕТ ДОСТАВКИ") -> 10300 | F27: =IFERROR(D27&" + НПл","НЕТ ДОСТАВКИ") -> 1300 + НПл | G27: =IFERROR(CEILING((F24+D27)*(1+$D$25/100),50),0) -> 10550 | K27: Общий вес:0 | P27: 0 | Q27: =TEXT(SUM(MID(0&P27,LARGE(ISNUMBER(-MID(P27,ROW($1:$88),1))*ROW($1:$88),ROW($1:$15)+15)+1,1)*10^ROW($1:$15)/10),REPT(0,MIN(MAX(COUNT(1/(MID(P27,ROW($1:$88),1)+1))-15,),15)))&TEXT(SUM(MID(0&P27,LARGE(ISNUMBER(-MID(P27,ROW($1:$88),1))*ROW($1:$88),ROW($1:$15))+1,1)*10^ROW($1:$15)/10),REPT(0,MIN(COUNT(1/(MID(P27,ROW($1:$88),1)+1)),15))) -> 0
C28: =IFERROR(IF(A29<1,"AVIS EXPRESS"&" "&VLOOKUP((LEFT(B34,(LEN(B34)))),'ТАРИФЫ ТК'!E4:G20,1,0),"AV ВИМАНИЕ: В Е С П О С Ы Л К И Б О Л Ь Ш Е 0,5 КГ !!!"),"НЕТ ДОСТАВКИ") -> AVIS EXPRESS Астана | D28: =IFERROR(VLOOKUP((LEFT(B34,(LEN(B34)))),'ТАРИФЫ ТК'!E4:G20,3,0),"НЕТ ДОСТАВКИ") -> 1400 | E28: =IFERROR(F24+D28,"НЕТ ДОСТАВКИ") -> 10400 | F28: =D28&" + НПл" -> 1400 + НПл | G28: =IFERROR(CEILING((F24+D28)*(1+$D$25/100),50),"НЕТ ДОСТАВКИ") -> 10650 | K28: Итого:50 | P28: 0 | Q28: =TEXT(SUM(MID(0&P28,LARGE(ISNUMBER(-MID(P28,ROW($1:$88),1))*ROW($1:$88),ROW($1:$15)+15)+1,1)*10^ROW($1:$15)/10),REPT(0,MIN(MAX(COUNT(1/(MID(P28,ROW($1:$88),1)+1))-15,),15)))&TEXT(SUM(MID(0&P28,LARGE(ISNUMBER(-MID(P28,ROW($1:$88),1))*ROW($1:$88),ROW($1:$15))+1,1)*10^ROW($1:$15)/10),REPT(0,MIN(COUNT(1/(MID(P28,ROW($1:$88),1)+1)),15))) -> 0
A29: =IFERROR(A25*1.5,"Количество ??") -> 0.0273 | D29: К ОПЛАТЕ: | E29: =IFERROR(F24+E25,0) -> 0 | F29: =IF(E25=C29,"Доставка БЕСПЛАТНО",IF(E25=D26,E26,IF(E25=D27,E27,IF(E25=D28,E28,IF(E25=F27,G27,IF(E25=F28,G28,IF(E25=F26,G26,"Укажите ТК"))))))) -> 10650 | G29: =IFERROR(CEILING((F24+E25)*1.03,50),0) -> 0 | J29: =IFERROR(J25*1.5,"Количество ??") -> 0 | P29: 0 | Q29: =TEXT(SUM(MID(0&P29,LARGE(ISNUMBER(-MID(P29,ROW($1:$88),1))*ROW($1:$88),ROW($1:$15)+15)+1,1)*10^ROW($1:$15)/10),REPT(0,MIN(MAX(COUNT(1/(MID(P29,ROW($1:$88),1)+1))-15,),15)))&TEXT(SUM(MID(0&P29,LARGE(ISNUMBER(-MID(P29,ROW($1:$88),1))*ROW($1:$88),ROW($1:$15))+1,1)*10^ROW($1:$15)/10),REPT(0,MIN(COUNT(1/(MID(P29,ROW($1:$88),1)+1)),15))) -> 0
A30: rc11091kz | C30: =IFERROR((P14&" "&LEFT(P15,8)&" = "&TEXT(R15,"### ### ###")&" т."),"НЕТ ДОСТАВКИ") -> 0 = т. | E30: =IFERROR("QIWI = "&CEILING((E26*1.02),10),0) -> QIWI = 10770 | F30: =IFERROR(F29-F24,"УКАЖИТЕ ТК") -> 1650 | P30: 0 | Q30: =TEXT(SUM(MID(0&P30,LARGE(ISNUMBER(-MID(P30,ROW($1:$88),1))*ROW($1:$88),ROW($1:$15)+15)+1,1)*10^ROW($1:$15)/10),REPT(0,MIN(MAX(COUNT(1/(MID(P30,ROW($1:$88),1)+1))-15,),15)))&TEXT(SUM(MID(0&P30,LARGE(ISNUMBER(-MID(P30,ROW($1:$88),1))*ROW($1:$88),ROW($1:$15))+1,1)*10^ROW($1:$15)/10),REPT(0,MIN(COUNT(1/(MID(P30,ROW($1:$88),1)+1)),15))) -> 0
A31: =A1 -> 9632++10650 | B31: ПОЛУЧАТЕЛЬ: | C31: rc11091kz | P31: 0 | Q31: =TEXT(SUM(MID(0&P31,LARGE(ISNUMBER(-MID(P31,ROW($1:$88),1))*ROW($1:$88),ROW($1:$15)+15)+1,1)*10^ROW($1:$15)/10),REPT(0,MIN(MAX(COUNT(1/(MID(P31,ROW($1:$88),1)+1))-15,),15)))&TEXT(SUM(MID(0&P31,LARGE(ISNUMBER(-MID(P31,ROW($1:$88),1))*ROW($1:$88),ROW($1:$15))+1,1)*10^ROW($1:$15)/10),REPT(0,MIN(COUNT(1/(MID(P31,ROW($1:$88),1)+1)),15))) -> 0
A32: =UPPER((B3)) -> АНАТОЛИ ЕЛИМГИРЕЙ | C32: =IFERROR(MID(НайтиСтрокуПоСлову("Комментарий: Имя :",K1:K45),20,99),0) -> 0 | K32: Назад | P32: 0 | Q32: =TEXT(SUM(MID(0&P32,LARGE(ISNUMBER(-MID(P32,ROW($1:$88),1))*ROW($1:$88),ROW($1:$15)+15)+1,1)*10^ROW($1:$15)/10),REPT(0,MIN(MAX(COUNT(1/(MID(P32,ROW($1:$88),1)+1))-15,),15)))&TEXT(SUM(MID(0&P32,LARGE(ISNUMBER(-MID(P32,ROW($1:$88),1))*ROW($1:$88),ROW($1:$15))+1,1)*10^ROW($1:$15)/10),REPT(0,MIN(COUNT(1/(MID(P32,ROW($1:$88),1)+1)),15))) -> 0
A33: Область: | B33: АСТАНА (ИЛЬИНКА) | C33: =IFERROR(ПоискСНачала(C32,"Телефон"),0) -> 0 | E33: =IFERROR(ПоискМежду(C32,"Телефон :","Примечание"),0) -> 0 | F33: =IFERROR(IF(LEFT(ПоискСКонца(C32,"Примечание : "),2)="г ",MID(ПоискСКонца(C32,"Примечание : "),3,99),IF(LEFT(ПоискСКонца(C32,"Примечание : "),3)="г. ",MID(ПоискСКонца(C32,"Примечание : "),4,99),IF(LEFT(ПоискСКонца(C32,"Примечание : "),3)="гор",MID(ПоискСКонца(C32,"Примечание : "),6,99),0))),0) -> 0 | P33: 0 | Q33: =TEXT(SUM(MID(0&P33,LARGE(ISNUMBER(-MID(P33,ROW($1:$88),1))*ROW($1:$88),ROW($1:$15)+15)+1,1)*10^ROW($1:$15)/10),REPT(0,MIN(MAX(COUNT(1/(MID(P33,ROW($1:$88),1)+1))-15,),15)))&TEXT(SUM(MID(0&P33,LARGE(ISNUMBER(-MID(P33,ROW($1:$88),1))*ROW($1:$88),ROW($1:$15))+1,1)*10^ROW($1:$15)/10),REPT(0,MIN(COUNT(1/(MID(P33,ROW($1:$88),1)+1)),15))) -> 0
A34: Город: | B34: Астана | P34: 0 | Q34: =TEXT(SUM(MID(0&P34,LARGE(ISNUMBER(-MID(P34,ROW($1:$88),1))*ROW($1:$88),ROW($1:$15)+15)+1,1)*10^ROW($1:$15)/10),REPT(0,MIN(MAX(COUNT(1/(MID(P34,ROW($1:$88),1)+1))-15,),15)))&TEXT(SUM(MID(0&P34,LARGE(ISNUMBER(-MID(P34,ROW($1:$88),1))*ROW($1:$88),ROW($1:$15))+1,1)*10^ROW($1:$15)/10),REPT(0,MIN(COUNT(1/(MID(P34,ROW($1:$88),1)+1)),15))) -> 0
A35: Улица: | B35: =UPPER((P20)) -> ӘБІЛХАН ҚАСТЕЕВ, 7 | P35: 0 | Q35: =TEXT(SUM(MID(0&P35,LARGE(ISNUMBER(-MID(P35,ROW($1:$88),1))*ROW($1:$88),ROW($1:$15)+15)+1,1)*10^ROW($1:$15)/10),REPT(0,MIN(MAX(COUNT(1/(MID(P35,ROW($1:$88),1)+1))-15,),15)))&TEXT(SUM(MID(0&P35,LARGE(ISNUMBER(-MID(P35,ROW($1:$88),1))*ROW($1:$88),ROW($1:$15))+1,1)*10^ROW($1:$15)/10),REPT(0,MIN(COUNT(1/(MID(P35,ROW($1:$88),1)+1)),15))) -> 0
A36: Здание: | B36: =P21 -> 7 | P36: 0 | Q36: =TEXT(SUM(MID(0&P36,LARGE(ISNUMBER(-MID(P36,ROW($1:$88),1))*ROW($1:$88),ROW($1:$15)+15)+1,1)*10^ROW($1:$15)/10),REPT(0,MIN(MAX(COUNT(1/(MID(P36,ROW($1:$88),1)+1))-15,),15)))&TEXT(SUM(MID(0&P36,LARGE(ISNUMBER(-MID(P36,ROW($1:$88),1))*ROW($1:$88),ROW($1:$15))+1,1)*10^ROW($1:$15)/10),REPT(0,MIN(COUNT(1/(MID(P36,ROW($1:$88),1)+1)),15))) -> 0
A37: Квартира: | B37: =P22 -> Нету | P37: 0 | Q37: =TEXT(SUM(MID(0&P37,LARGE(ISNUMBER(-MID(P37,ROW($1:$88),1))*ROW($1:$88),ROW($1:$15)+15)+1,1)*10^ROW($1:$15)/10),REPT(0,MIN(MAX(COUNT(1/(MID(P37,ROW($1:$88),1)+1))-15,),15)))&TEXT(SUM(MID(0&P37,LARGE(ISNUMBER(-MID(P37,ROW($1:$88),1))*ROW($1:$88),ROW($1:$15))+1,1)*10^ROW($1:$15)/10),REPT(0,MIN(COUNT(1/(MID(P37,ROW($1:$88),1)+1)),15))) -> 0
A38: Телефон: | B38: =B4 -> 7-707-695-04-76 0---- ---- | P38: 0 | Q38: =TEXT(SUM(MID(0&P38,LARGE(ISNUMBER(-MID(P38,ROW($1:$88),1))*ROW($1:$88),ROW($1:$15)+15)+1,1)*10^ROW($1:$15)/10),REPT(0,MIN(MAX(COUNT(1/(MID(P38,ROW($1:$88),1)+1))-15,),15)))&TEXT(SUM(MID(0&P38,LARGE(ISNUMBER(-MID(P38,ROW($1:$88),1))*ROW($1:$88),ROW($1:$15))+1,1)*10^ROW($1:$15)/10),REPT(0,MIN(COUNT(1/(MID(P38,ROW($1:$88),1)+1)),15))) -> 0
A39: Индекс: | B39: =P16 ->  | Q39: =IF(LEFT(#REF!,4)="ваша",VALUE(MID(#REF!,13,20))*100,0) -> 
A40: Компания: | Q40: =IF(LEFT(#REF!,4)="ваша",VALUE(MID(#REF!,13,20))*100,0) -> 
A41: ИИН: | B41: =F29 -> 10650 | Q41: =IF(LEFT(#REF!,4)="ваша",VALUE(MID(#REF!,13,20))*100,0) -> 
A42: ------------------------ | B42: ---------------------------------------------------- | C42: ---------------------------------------------------- | D42: ------------------------ | E42: ------------------------ | F42: --------------------------- | G42: ------------------------------ | H42: ------------------------ | I42: ------------------------ | Q42: =SUM(Q19:Q41) -> 

Sheet +KASPI+ 9633++0
A1: =IF(LEFT(C29,2)="сп",P1&" ► СП",IF(E25=D26,P1,IF(H6<>0,P1&"++"&"0",IF(E25=D27,P1&"++"&"0",IF(E25=D28,P1&"++"&"0",IF(E25=D27,P1&"++"&"0",IF(E25=D28,P1&"++"&"0",IF(LEFT(C25,2)="AV",P1&"++"&F29,P1)))))))) -> +KASPI+ 9633++0 | B1: =L4 -> 2020-08-11T13:08:02 | C1: =IF(E2>0,"ОТПРАВЛЕНО",IF(LEFT(C29,3)="ЗАК","ЗАКАЗАНО в СПБ",IF(G24>=0,"ОПЛОЧЕНО","ОЖИДАНИЕ ОПЛАТЫ"))) -> ОТПРАВЛЕНО | D1: ='СПИСОК ЗАКАЗОВ'!B1 -> 21 | E1: 2020-08-11 | I1: =A1 -> +KASPI+ 9633++0 | K1: Заказ № 9633 | P1: =IF(G24>0,"+"&H6&"+"&Q1,Q1) -> +KASPI+ 9633 | Q1: =ПоискСКонца(K1,"№") -> 9633
A2: Логин | B2: =L3 -> 0 | C2: Номер накл-ой | E2: 3611547 | K2: Примечание
A3: ФИО | B3: =IF(C32=0,UPPER((P9)),UPPER(C33)) -> СКРЕБЦОВ МАКСИМ | K3: Логин
A4: Телефон | B4: =R12 -> 7-776-900-77-99 0---- ---- | E4: =IF(F4>0.5,"оплачено",IF(F4<0,"ОПЛАТИТЬ= "&G4,"ОПЛАТИТЬ= "&Q25)) -> ОПЛАТИТЬ= 1400 | F4: 0 | G4: 1100 | K4: Дата заказа | L4: 2020-08-11T13:08:02
A5: e-mail: | B5: =L11 -> -
A6: Вес | B6: ПРИМЕЧАНИЯ | C6: Наименование | D6: Кол-во | E6: Цена | F6: Всего | G6: =IF(MAX(G7:G25)>0,MAX(G7:G25),"") -> 2020-08-21 | H6: =IF(I7>0,"НАЛ",IF(I8>0,"ПЕРЕВОД",IF(I9>0,"Beeline",IF(I10>0,"KASPI",IF(I11>0,"QIWI",IF(I12>0,"СЧЁТ Альфа-Банк",0)))))) -> KASPI | I6: =SUM(I7:I28) -> 6500
A7: =IF(L24>0,Q24*1/100,"") ->  | B7: списано | C7: =IF(L26<>"",K26,"") -> Неодимовый магнит D40x20mm(Аксиал)`42 (сила притяжения 60 кг) | D7: =IF(L26>0,L26,"") -> 1 | E7: =IF(M26="уточняйте",0,IF(L26>0,M26,"")) -> 5100 | F7: =IF(D7<>"",E7*D7,"") -> 5100 | G7: =IF(I7 >0,TODAY(),"") ->  | H7: НАЛ | J7: =IFERROR(IFERROR(VLOOKUP(C7,#REF!,3,0)*D7,VLOOKUP(C7,#REF!,7,0)*D7),"нет веса") -> нет веса | K7: Заказ №9633
A8: =IF(L25>0,Q25*1/100,"") -> 14 | C8: =IF(L27<>"",K27,"") ->  | D8: =IF(L27>0,L27,"") ->  | E8: =IF(M27="уточняйте",0,IF(L27>0,M27,"")) ->  | H8: ПЕРЕВОД | J8: =IFERROR(IFERROR(VLOOKUP(C8,#REF!,3,0)*D8,VLOOKUP(C8,#REF!,7,0)*D8),"нет веса") -> нет веса
A9: =IF(L26>0,Q26*1/100,"") -> 1.88 | H9: Beeline | J9: =IFERROR(IFERROR(VLOOKUP(C9,#REF!,3,0)*D9,VLOOKUP(C9,#REF!,7,0)*D9),"нет веса") -> нет веса | K9: Здравствуйте, Скребцов Максим | P9: =MID(K9,15,70) -> Скребцов Максим | Q9: =TEXT(SUM(MID(0&L9,LARGE(ISNUMBER(-MID(L9,ROW($1:$96),1))*ROW($1:$96),ROW($1:$23)+15)+1,1)*10^ROW($1:$23)/10),REPT(0,MIN(MAX(COUNT(1/(MID(L9,ROW($1:$96),1)+1))-15,),15)))&TEXT(SUM(MID(0&L9,LARGE(ISNUMBER(-MID(L9,ROW($1:$96),1))*ROW($1:$96),ROW($1:$23))+1,1)*10^ROW($1:$23)/10),REPT(0,MIN(COUNT(1/(MID(L9,ROW($1:$96),1)+1)),15))) -> 
G10: 2020-08-21 | H10: KASPI | I10: =F29 -> 6500 | J10: =IFERROR(IFERROR(VLOOKUP(C10,#REF!,3,0)*D10,VLOOKUP(C10,#REF!,7,0)*D10),"нет веса") -> нет веса | K10: Мы получили Ваш заказ номер, 9633
H11: QIWI | J11: =IFERROR(IFERROR(VLOOKUP(C11,#REF!,3,0)*D11,VLOOKUP(C11,#REF!,7,0)*D11),"нет веса") -> нет веса | K11: Электронная почта: | L11: -
H12: СЧЁТ Альфа-Банк | J12: =IFERROR(IFERROR(VLOOKUP(C12,#REF!,3,0)*D12,VLOOKUP(C12,#REF!,7,0)*D12),"нет веса") -> нет веса | K12: Контактный телефон: | L12: +7 (776) 900-77-99 | P12: =(L12&" "&P13) -> +7 (776) 900-77-99 0 | Q12: =TEXT(SUM(MID(0&P12,LARGE(ISNUMBER(-MID(P12,ROW($1:$99),1))*ROW($1:$99),ROW($1:$15)+30)+1,1)*10^ROW($1:$15)/10),REPT(0,MIN(MAX(COUNT(1/(MID(P12,ROW($1:$99),1)+1))-30,),15)))&TEXT(SUM(MID(0&P12,LARGE(ISNUMBER(-MID(P12,ROW($1:$99),1))*ROW($1:$99),ROW($1:$15)+15)+1,1)*10^ROW($1:$15)/10),REPT(0,MIN(MAX(COUNT(1/(MID(P12,ROW($1:$99),1)+1))-15,),15)))&TEXT(SUM(MID(0&P12,LARGE(ISNUMBER(-MID(P12,ROW($1:$99),1))*ROW($1:$99),ROW($1:$15))+1,1)*10^ROW($1:$15)/10),REPT(0,MIN(COUNT(1/(MID(P12,ROW($1:$99),1)+1)),15))) -> 777690077990 | R12: =(MID(Q12,1,1))&"-"&(MID(Q12,2,3))&"-"&(MID(Q12,5,3))&"-"&(MID(Q12,8,2))&"-"&(MID(Q12,10,2))&" "&(MID(Q12,12,1))&"-"&(MID(Q12,13,3))&"-"&(MID(Q12,16,3))&"-"&(MID(Q12,19,2))&"-"&(MID(Q12,21,2))&" "&(MID(Q12,23,1))&"-"&(MID(Q12,24,3))&"-"&(MID(Q12,27,3))&"-"&(MID(Q12,30,2))&"-"&(MID(Q12,32,2)) -> 7-776-900-77-99 0---- ----
J13: =IFERROR(IFERROR(VLOOKUP(C13,#REF!,3,0)*D13,VLOOKUP(C13,#REF!,7,0)*D13),"нет веса") -> нет веса | K13: Доставка: | L13: - | P13: =IF(L13="-",IFERROR(НайтиСтрокуПоСлову("Комментарий",K27:K60),0),L13) -> 0
J14: =IFERROR(IFERROR(VLOOKUP(C14,#REF!,3,0)*D14,VLOOKUP(C14,#REF!,7,0)*D14),"нет веса") -> нет веса | K14: Оплата: | L14: - | P14: =MID(L14,23,70) -> 
J15: =IFERROR(IFERROR(VLOOKUP(C15,#REF!,3,0)*D15,VLOOKUP(C15,#REF!,7,0)*D15),"нет веса") -> нет веса | P15: =IF(LEFT(P14,2)="EX",MID(L15,11,70),L15) -> 0 | Q15: =TEXT(SUM(MID(0&P15,LARGE(ISNUMBER(-MID(P15,ROW($1:$88),1))*ROW($1:$88),ROW($1:$15)+15)+1,1)*10^ROW($1:$15)/10),REPT(0,MIN(MAX(COUNT(1/(MID(P15,ROW($1:$88),1)+1))-15,),15)))&TEXT(SUM(MID(0&P15,LARGE(ISNUMBER(-MID(P15,ROW($1:$88),1))*ROW($1:$88),ROW($1:$15))+1,1)*10^ROW($1:$15)/10),REPT(0,MIN(COUNT(1/(MID(P15,ROW($1:$88),1)+1)),15))) -> 0 | R15: =SUMPRODUCT(--SUBSTITUTE(Q15:Q15,CHAR(160),)) -> 0 | S15: =LEN(Q15) -> 1 | T15: =FLOOR(S15/3,1) -> 0
J16: =IFERROR(IFERROR(VLOOKUP(C16,#REF!,3,0)*D16,VLOOKUP(C16,#REF!,7,0)*D16),"нет веса") -> нет веса | K16: Адрес доставки: | L16: Индекс: | P16: =MID(L16,9,70) -> 
J17: =IFERROR(IFERROR(VLOOKUP(C17,#REF!,3,0)*D17,VLOOKUP(C17,#REF!,7,0)*D17),"нет веса") -> нет веса | L17: Страна: | P17: =MID(L17,9,70) ->  | Q17: =IF(LEFT(K17,4)="ваша",VALUE(MID(K17,13,20))*100,0) -> 0
J18: =IFERROR(IFERROR(VLOOKUP(C18,#REF!,3,0)*D18,VLOOKUP(C18,#REF!,7,0)*D18),"нет веса") -> нет веса | L18: Область: | P18: =MID(L18,10,70) -> 
J19: =IFERROR(IFERROR(VLOOKUP(C19,#REF!,3,0)*D19,VLOOKUP(C19,#REF!,7,0)*D19),"нет веса") -> нет веса | L19: Город: Усть-Каменогорск | P19: =MID(L19,8,70) -> Усть-Каменогорск | Q19: =IF(LEFT(K19,4)="ваша",VALUE(MID(K19,13,20))*100,0) -> 0
J20: =IFERROR(IFERROR(VLOOKUP(C20,#REF!,3,0)*D20,VLOOKUP(C20,#REF!,7,0)*D20),"нет веса") -> нет веса | L20: Улица: Амурская | P20: =MID(L20,8,70) -> Амурская | Q20: =IF(LEFT(K31,4)="ваша",VALUE(MID(K31,13,20))*100,0) -> 0
J21: =IFERROR(IFERROR(VLOOKUP(C21,#REF!,3,0)*D21,VLOOKUP(C21,#REF!,7,0)*D21),"нет веса") -> нет веса | L21: Здание: 18 | P21: =MID(L21,9,70) -> 18 | Q21: =IF(LEFT(K32,4)="ваша",VALUE(MID(K32,13,20))*100,0) -> 0
J22: =IFERROR(IFERROR(VLOOKUP(C22,#REF!,3,0)*D22,VLOOKUP(C22,#REF!,7,0)*D22),"нет веса") -> нет веса | L22: Квартира: 62 | P22: =MID(L22,11,70) -> 62 | Q22: =IF(LEFT(#REF!,4)="ваша",VALUE(MID(#REF!,13,20))*100,0) -> 
E23: Итого: | F23: =SUM(F7:F22) -> 5100 | J23: =IF(K40>0,M40,"") ->  | K23: Комментарий : | Q23: =IF(LEFT(K33,4)="ваша",VALUE(MID(K33,13,20))*100,0) -> 0
A24: =IF(L41>0,N41,"") ->  | D24: скидка: | E24: =IF(F23>150000,10,IF(F23>100000,8,IF(F23>60000,5,IF(F23>30000,3,0)))) -> 0 | F24: =F23-(F23*E24/100) -> 5100 | G24: =IFERROR(SUM(I7:I22)-F29+1,0) -> 1 | P24: =N24 -> 0 | Q24: =TEXT(SUM(MID(0&P24,LARGE(ISNUMBER(-MID(P24,ROW($1:$88),1))*ROW($1:$88),ROW($1:$15)+15)+1,1)*10^ROW($1:$15)/10),REPT(0,MIN(MAX(COUNT(1/(MID(P24,ROW($1:$88),1)+1))-15,),15)))&TEXT(SUM(MID(0&P24,LARGE(ISNUMBER(-MID(P24,ROW($1:$88),1))*ROW($1:$88),ROW($1:$15))+1,1)*10^ROW($1:$15)/10),REPT(0,MIN(COUNT(1/(MID(P24,ROW($1:$88),1)+1)),15))) -> 0
A25: =SUM(A7:A23)/1000*1.3 -> 0.020644 | C25: =IF(E25=F26,"Доставка БЕСПЛАТНО",IF(E25=D26,C26,IF(E25=D27,C27,IF(E25=D28,C28,IF(E25=F27,C27&" + НПл",IF(E25=F28,C28&" + НПл","Укажите ТК")))))) -> AVIS EXPRESS Усть-Каменогорск | D25: 2 | E25: =D28 -> 1400 | G25: =IF(I25 >0,TODAY(),"") ->  | J25: =SUM(J7:J22)/1000 -> 0 | K25: Наименование | L25: Количество | M25: Цена | N25: Вес | O25: Всего | P25: =E25 -> 1400 | Q25: =TEXT(SUM(MID(0&P25,LARGE(ISNUMBER(-MID(P25,ROW($1:$88),1))*ROW($1:$88),ROW($1:$15)+15)+1,1)*10^ROW($1:$15)/10),REPT(0,MIN(MAX(COUNT(1/(MID(P25,ROW($1:$88),1)+1))-15,),15)))&TEXT(SUM(MID(0&P25,LARGE(ISNUMBER(-MID(P25,ROW($1:$88),1))*ROW($1:$88),ROW($1:$15))+1,1)*10^ROW($1:$15)/10),REPT(0,MIN(COUNT(1/(MID(P25,ROW($1:$88),1)+1)),15))) -> 1400 | R25: =E25 -> 1400 | S25: =TEXT(SUM(MID(0&R25,LARGE(ISNUMBER(-MID(R25,ROW($1:$88),1))*ROW($1:$88),ROW($1:$15)+15)+1,1)*10^ROW($1:$15)/10),REPT(0,MIN(MAX(COUNT(1/(MID(R25,ROW($1:$88),1)+1))-15,),15)))&TEXT(SUM(MID(0&R25,LARGE(ISNUMBER(-MID(R25,ROW($1:$88),1))*ROW($1:$88),ROW($1:$15))+1,1)*10^ROW($1:$15)/10),REPT(0,MIN(COUNT(1/(MID(R25,ROW($1:$88),1)+1)),15))) -> 1400 | U25: =TEXT(SUM(MID(0&E25,LARGE(ISNUMBER(-MID(E25,ROW($1:$88),1))*ROW($1:$88),ROW($1:$15)+15)+1,1)*10^ROW($1:$15)/10),REPT(0,MIN(MAX(COUNT(1/(MID(E25,ROW($1:$88),1)+1))-15,),15)))&TEXT(SUM(MID(0&E25,LARGE(ISNUMBER(-MID(E25,ROW($1:$88),1))*ROW($1:$88),ROW($1:$15))+1,1)*10^ROW($1:$15)/10),REPT(0,MIN(COUNT(1/(MID(E25,ROW($1:$88),1)+1)),15))) -> 
C26: =IFERROR("AVIS С А М О В Ы В О З "&" "&VLOOKUP((LEFT(B34,(LEN(B34)))),'ТАРИФЫ ТК'!J17:L268,1,0),"НЕТ ДОСТАВКИ") -> AVIS С А М О В Ы В О З Усть-Каменогорск | D26: =IFERROR(VLOOKUP((LEFT(B34,(LEN(B34)))),'ТАРИФЫ ТК'!J17:L268,3,0)+0.001,"НЕТ ДОСТАВКИ") -> 1550.001 | E26: =IFERROR(F24+D26,"НЕТ ДОСТАВКИ") -> 6650.001 | F26: =IFERROR(D26&" + НПл","НЕТ ДОСТАВКИ") -> 1550,001 + НПл | G26: =IFERROR(CEILING((F24+D26)*(1+$D$25/100),50),0) -> 6800 | K26: Неодимовый магнит D40x20mm(Аксиал)`42 (сила притяжения 60 кг) | L26: 1 | M26: 5100 | N26: 188 | O26: 5100 | P26: =N26 -> 188 | Q26: =TEXT(SUM(MID(0&P26,LARGE(ISNUMBER(-MID(P26,ROW($1:$88),1))*ROW($1:$88),ROW($1:$15)+15)+1,1)*10^ROW($1:$15)/10),REPT(0,MIN(MAX(COUNT(1/(MID(P26,ROW($1:$88),1)+1))-15,),15)))&TEXT(SUM(MID(0&P26,LARGE(ISNUMBER(-MID(P26,ROW($1:$88),1))*ROW($1:$88),ROW($1:$15))+1,1)*10^ROW($1:$15)/10),REPT(0,MIN(COUNT(1/(MID(P26,ROW($1:$88),1)+1)),15))) -> 188
C27: =IFERROR("AVIS Econom"&" "&VLOOKUP((LEFT(B34,(LEN(B34)))),'ТАРИФЫ ТК'!A4:A134,1,0),"НЕТ ДОСТАВКИ") -> AVIS Econom Усть-Каменогорск | D27: =IFERROR(VLOOKUP((LEFT(B34,(LEN(B34)))),'ТАРИФЫ ТК'!A4:C134,3,0),"НЕТ ДОСТАВКИ") -> 1300 | E27: =IFERROR(F24+D27,"НЕТ ДОСТАВКИ") -> 6400 | F27: =IFERROR(D27&" + НПл","НЕТ ДОСТАВКИ") -> 1300 + НПл | G27: =IFERROR(CEILING((F24+D27)*(1+$D$25/100),50),0) -> 6550 | K27: Общий вес:188 | P27: 0 | Q27: =TEXT(SUM(MID(0&P27,LARGE(ISNUMBER(-MID(P27,ROW($1:$88),1))*ROW($1:$88),ROW($1:$15)+15)+1,1)*10^ROW($1:$15)/10),REPT(0,MIN(MAX(COUNT(1/(MID(P27,ROW($1:$88),1)+1))-15,),15)))&TEXT(SUM(MID(0&P27,LARGE(ISNUMBER(-MID(P27,ROW($1:$88),1))*ROW($1:$88),ROW($1:$15))+1,1)*10^ROW($1:$15)/10),REPT(0,MIN(COUNT(1/(MID(P27,ROW($1:$88),1)+1)),15))) -> 0
C28: =IFERROR(IF(A29<1,"AVIS EXPRESS"&" "&VLOOKUP((LEFT(B34,(LEN(B34)))),'ТАРИФЫ ТК'!E4:G20,1,0),"AV ВИМАНИЕ: В Е С П О С Ы Л К И Б О Л Ь Ш Е 0,5 КГ !!!"),"НЕТ ДОСТАВКИ") -> AVIS EXPRESS Усть-Каменогорск | D28: =IFERROR(VLOOKUP((LEFT(B34,(LEN(B34)))),'ТАРИФЫ ТК'!E4:G20,3,0),"НЕТ ДОСТАВКИ") -> 1400 | E28: =IFERROR(F24+D28,"НЕТ ДОСТАВКИ") -> 6500 | F28: =D28&" + НПл" -> 1400 + НПл | G28: =IFERROR(CEILING((F24+D28)*(1+$D$25/100),50),"НЕТ ДОСТАВКИ") -> 6650 | K28: Итого:5100 | P28: 0 | Q28: =TEXT(SUM(MID(0&P28,LARGE(ISNUMBER(-MID(P28,ROW($1:$88),1))*ROW($1:$88),ROW($1:$15)+15)+1,1)*10^ROW($1:$15)/10),REPT(0,MIN(MAX(COUNT(1/(MID(P28,ROW($1:$88),1)+1))-15,),15)))&TEXT(SUM(MID(0&P28,LARGE(ISNUMBER(-MID(P28,ROW($1:$88),1))*ROW($1:$88),ROW($1:$15))+1,1)*10^ROW($1:$15)/10),REPT(0,MIN(COUNT(1/(MID(P28,ROW($1:$88),1)+1)),15))) -> 0
A29: =IFERROR(A25*1.5,"Количество ??") -> 0.030966 | D29: К ОПЛАТЕ: | E29: =IFERROR(F24+E25,0) -> 6500 | F29: =IF(E25=C29,"Доставка БЕСПЛАТНО",IF(E25=D26,E26,IF(E25=D27,E27,IF(E25=D28,E28,IF(E25=F27,G27,IF(E25=F28,G28,IF(E25=F26,G26,"Укажите ТК"))))))) -> 6500 | G29: =IFERROR(CEILING((F24+E25)*1.03,50),0) -> 6700 | J29: =IFERROR(J25*1.5,"Количество ??") -> 0 | P29: 0 | Q29: =TEXT(SUM(MID(0&P29,LARGE(ISNUMBER(-MID(P29,ROW($1:$88),1))*ROW($1:$88),ROW($1:$15)+15)+1,1)*10^ROW($1:$15)/10),REPT(0,MIN(MAX(COUNT(1/(MID(P29,ROW($1:$88),1)+1))-15,),15)))&TEXT(SUM(MID(0&P29,LARGE(ISNUMBER(-MID(P29,ROW($1:$88),1))*ROW($1:$88),ROW($1:$15))+1,1)*10^ROW($1:$15)/10),REPT(0,MIN(COUNT(1/(MID(P29,ROW($1:$88),1)+1)),15))) -> 0
A30: rc11091kz | C30: =IFERROR((P14&" "&LEFT(P15,8)&" = "&TEXT(R15,"### ### ###")&" т."),"НЕТ ДОСТАВКИ") -> 0 = т. | E30: =IFERROR("QIWI = "&CEILING((E26*1.02),10),0) -> QIWI = 6790 | F30: =IFERROR(F29-F24,"УКАЖИТЕ ТК") -> 1400 | P30: 0 | Q30: =TEXT(SUM(MID(0&P30,LARGE(ISNUMBER(-MID(P30,ROW($1:$88),1))*ROW($1:$88),ROW($1:$15)+15)+1,1)*10^ROW($1:$15)/10),REPT(0,MIN(MAX(COUNT(1/(MID(P30,ROW($1:$88),1)+1))-15,),15)))&TEXT(SUM(MID(0&P30,LARGE(ISNUMBER(-MID(P30,ROW($1:$88),1))*ROW($1:$88),ROW($1:$15))+1,1)*10^ROW($1:$15)/10),REPT(0,MIN(COUNT(1/(MID(P30,ROW($1:$88),1)+1)),15))) -> 0
A31: =A1 -> +KASPI+ 9633++0 | B31: ПОЛУЧАТЕЛЬ: | C31: rc11091kz | P31: 0 | Q31: =TEXT(SUM(MID(0&P31,LARGE(ISNUMBER(-MID(P31,ROW($1:$88),1))*ROW($1:$88),ROW($1:$15)+15)+1,1)*10^ROW($1:$15)/10),REPT(0,MIN(MAX(COUNT(1/(MID(P31,ROW($1:$88),1)+1))-15,),15)))&TEXT(SUM(MID(0&P31,LARGE(ISNUMBER(-MID(P31,ROW($1:$88),1))*ROW($1:$88),ROW($1:$15))+1,1)*10^ROW($1:$15)/10),REPT(0,MIN(COUNT(1/(MID(P31,ROW($1:$88),1)+1)),15))) -> 0
A32: =UPPER((B3)) -> СКРЕБЦОВ МАКСИМ | C32: =IFERROR(MID(НайтиСтрокуПоСлову("Комментарий: Имя :",K1:K45),20,99),0) -> 0 | K32: Назад | P32: 0 | Q32: =TEXT(SUM(MID(0&P32,LARGE(ISNUMBER(-MID(P32,ROW($1:$88),1))*ROW($1:$88),ROW($1:$15)+15)+1,1)*10^ROW($1:$15)/10),REPT(0,MIN(MAX(COUNT(1/(MID(P32,ROW($1:$88),1)+1))-15,),15)))&TEXT(SUM(MID(0&P32,LARGE(ISNUMBER(-MID(P32,ROW($1:$88),1))*ROW($1:$88),ROW($1:$15))+1,1)*10^ROW($1:$15)/10),REPT(0,MIN(COUNT(1/(MID(P32,ROW($1:$88),1)+1)),15))) -> 0
A33: Область: | B33: =UPPER((P18)) ->  | C33: =IFERROR(ПоискСНачала(C32,"Телефон"),0) -> 0 | E33: =IFERROR(ПоискМежду(C32,"Телефон :","Примечание"),0) -> 0 | F33: =IFERROR(IF(LEFT(ПоискСКонца(C32,"Примечание : "),2)="г ",MID(ПоискСКонца(C32,"Примечание : "),3,99),IF(LEFT(ПоискСКонца(C32,"Примечание : "),3)="г. ",MID(ПоискСКонца(C32,"Примечание : "),4,99),IF(LEFT(ПоискСКонца(C32,"Примечание : "),3)="гор",MID(ПоискСКонца(C32,"Примечание : "),6,99),0))),0) -> 0 | P33: 0 | Q33: =TEXT(SUM(MID(0&P33,LARGE(ISNUMBER(-MID(P33,ROW($1:$88),1))*ROW($1:$88),ROW($1:$15)+15)+1,1)*10^ROW($1:$15)/10),REPT(0,MIN(MAX(COUNT(1/(MID(P33,ROW($1:$88),1)+1))-15,),15)))&TEXT(SUM(MID(0&P33,LARGE(ISNUMBER(-MID(P33,ROW($1:$88),1))*ROW($1:$88),ROW($1:$15))+1,1)*10^ROW($1:$15)/10),REPT(0,MIN(COUNT(1/(MID(P33,ROW($1:$88),1)+1)),15))) -> 0
A34: Город: | B34: =UPPER((P19)) -> УСТЬ-КАМЕНОГОРСК | P34: 0 | Q34: =TEXT(SUM(MID(0&P34,LARGE(ISNUMBER(-MID(P34,ROW($1:$88),1))*ROW($1:$88),ROW($1:$15)+15)+1,1)*10^ROW($1:$15)/10),REPT(0,MIN(MAX(COUNT(1/(MID(P34,ROW($1:$88),1)+1))-15,),15)))&TEXT(SUM(MID(0&P34,LARGE(ISNUMBER(-MID(P34,ROW($1:$88),1))*ROW($1:$88),ROW($1:$15))+1,1)*10^ROW($1:$15)/10),REPT(0,MIN(COUNT(1/(MID(P34,ROW($1:$88),1)+1)),15))) -> 0
A35: Улица: | B35: =UPPER((P20)) -> АМУРСКАЯ | P35: 0 | Q35: =TEXT(SUM(MID(0&P35,LARGE(ISNUMBER(-MID(P35,ROW($1:$88),1))*ROW($1:$88),ROW($1:$15)+15)+1,1)*10^ROW($1:$15)/10),REPT(0,MIN(MAX(COUNT(1/(MID(P35,ROW($1:$88),1)+1))-15,),15)))&TEXT(SUM(MID(0&P35,LARGE(ISNUMBER(-MID(P35,ROW($1:$88),1))*ROW($1:$88),ROW($1:$15))+1,1)*10^ROW($1:$15)/10),REPT(0,MIN(COUNT(1/(MID(P35,ROW($1:$88),1)+1)),15))) -> 0
A36: Здание: | B36: =P21 -> 18 | P36: 0 | Q36: =TEXT(SUM(MID(0&P36,LARGE(ISNUMBER(-MID(P36,ROW($1:$88),1))*ROW($1:$88),ROW($1:$15)+15)+1,1)*10^ROW($1:$15)/10),REPT(0,MIN(MAX(COUNT(1/(MID(P36,ROW($1:$88),1)+1))-15,),15)))&TEXT(SUM(MID(0&P36,LARGE(ISNUMBER(-MID(P36,ROW($1:$88),1))*ROW($1:$88),ROW($1:$15))+1,1)*10^ROW($1:$15)/10),REPT(0,MIN(COUNT(1/(MID(P36,ROW($1:$88),1)+1)),15))) -> 0
A37: Квартира: | B37: =P22 -> 62 | P37: 0 | Q37: =TEXT(SUM(MID(0&P37,LARGE(ISNUMBER(-MID(P37,ROW($1:$88),1))*ROW($1:$88),ROW($1:$15)+15)+1,1)*10^ROW($1:$15)/10),REPT(0,MIN(MAX(COUNT(1/(MID(P37,ROW($1:$88),1)+1))-15,),15)))&TEXT(SUM(MID(0&P37,LARGE(ISNUMBER(-MID(P37,ROW($1:$88),1))*ROW($1:$88),ROW($1:$15))+1,1)*10^ROW($1:$15)/10),REPT(0,MIN(COUNT(1/(MID(P37,ROW($1:$88),1)+1)),15))) -> 0
A38: Телефон: | B38: =B4 -> 7-776-900-77-99 0---- ---- | P38: 0 | Q38: =TEXT(SUM(MID(0&P38,LARGE(ISNUMBER(-MID(P38,ROW($1:$88),1))*ROW($1:$88),ROW($1:$15)+15)+1,1)*10^ROW($1:$15)/10),REPT(0,MIN(MAX(COUNT(1/(MID(P38,ROW($1:$88),1)+1))-15,),15)))&TEXT(SUM(MID(0&P38,LARGE(ISNUMBER(-MID(P38,ROW($1:$88),1))*ROW($1:$88),ROW($1:$15))+1,1)*10^ROW($1:$15)/10),REPT(0,MIN(COUNT(1/(MID(P38,ROW($1:$88),1)+1)),15))) -> 0
A39: Индекс: | B39: =P16 ->  | Q39: =IF(LEFT(#REF!,4)="ваша",VALUE(MID(#REF!,13,20))*100,0) -> 
A40: Компания: | Q40: =IF(LEFT(#REF!,4)="ваша",VALUE(MID(#REF!,13,20))*100,0) -> 
A41: ИИН: | B41: =F29 -> 6500 | Q41: =IF(LEFT(#REF!,4)="ваша",VALUE(MID(#REF!,13,20))*100,0) -> 
A42: ------------------------ | B42: ---------------------------------------------------- | C42: ---------------------------------------------------- | D42: ------------------------ | E42: ------------------------ | F42: --------------------------- | G42: ------------------------------ | H42: ------------------------ | I42: ------------------------ | Q42: =SUM(Q19:Q41) -> 

Sheet +СЧЁТ Альфа-Банк+Сч0608++0
A1: =IF(LEFT(C29,2)="сп",P1&" ► СП",IF(E25=D26,P1,IF(H6<>0,P1&"++"&"0",IF(E25=D27,P1&"++"&"0",IF(E25=D28,P1&"++"&"0",IF(E25=D27,P1&"++"&"0",IF(E25=D28,P1&"++"&"0",IF(LEFT(C25,2)="AV",P1&"++"&F29,P1)))))))) -> +СЧЁТ Альфа-Банк+Сч0608++0 | B1: 2020-08-06 | C1: =IF(E2>0,"ОТПРАВЛЕНО",IF(LEFT(C29,3)="ЗАК","ЗАКАЗАНО в СПБ",IF(G24>=0,"ОПЛОЧЕНО","ОЖИДАНИЕ ОПЛАТЫ"))) -> ОТПРАВЛЕНО | D1: ='СПИСОК ЗАКАЗОВ'!B1 -> 21 | E1: 2020-08-10 | I1: =A1 -> +СЧЁТ Альфа-Банк+Сч0608++0 | K1: Сч0608 | P1: =IF(G24>0,"+"&H6&"+"&Q1,Q1) -> +СЧЁТ Альфа-Банк+Сч0608 | Q1: =ПоискСКонца(K1,"№") -> Сч0608
A2: Логин | B2: =L3 -> Логин | C2: Номер накл-ой | E2: 3611544 | K2: Примечание
A3: ФИО | B3: =IF(C32=0,UPPER((P9)),UPPER(C33)) -> ТОО «РОДАМИН» | K3: Логин | L3: Логин
A4: Телефон | B4: =R12 -> 8-701-517-14-04 0---- ---- | E4: =IF(F4>0.5,"оплачено",IF(F4<0,"ОПЛАТИТЬ= "&G4,"ОПЛАТИТЬ= "&Q25)) -> ОПЛАТИТЬ= 3300 | F4: 0 | G4: 1100 | K4: Дата заказа | L4: дата заказа
A5: e-mail: | B5: =L11 -> мыло
A6: Вес | B6: ПРИМЕЧАНИЯ | C6: Наименование | D6: Кол-во | E6: Цена | F6: Всего | G6: =IF(MAX(G7:G25)>0,MAX(G7:G25),"") -> 2020-08-21 | H6: =IF(I7>0,"НАЛ",IF(I8>0,"ПЕРЕВОД",IF(I9>0,"Beeline",IF(I10>0,"KASPI",IF(I11>0,"QIWI",IF(I12>0,"СЧЁТ Альфа-Банк",0)))))) -> СЧЁТ Альфа-Банк | I6: =SUM(I7:I28) -> 220400
A7: =IF(L24>0,Q24*1/100,"") ->  | B7: списано | C7: Неодимовый магнит D10x1mm(Аксиал)`42 (сила притяжения 1 кг) | D7: 8000 | E7: 30 | F7: =IF(D7<>"",E7*D7,"") -> 240000 | G7: =IF(I7 >0,TODAY(),"") ->  | H7: НАЛ | J7: =IFERROR(IFERROR(VLOOKUP(C7,#REF!,3,0)*D7,VLOOKUP(C7,#REF!,7,0)*D7),"нет веса") -> нет веса | K7: Заказ №2080
A8: =IF(L25>0,Q25*1/100,"") ->  | C8: =IF(L27<>"",K27,"") ->  | D8: =IF(L27>0,L27,"") ->  | E8: =IF(M27="уточняйте",0,IF(L27>0,M27,"")) ->  | H8: ПЕРЕВОД | J8: =IFERROR(IFERROR(VLOOKUP(C8,#REF!,3,0)*D8,VLOOKUP(C8,#REF!,7,0)*D8),"нет веса") -> нет веса
A9: =IF(L26>0,Q26*1/100,"") ->  | H9: Beeline | J9: =IFERROR(IFERROR(VLOOKUP(C9,#REF!,3,0)*D9,VLOOKUP(C9,#REF!,7,0)*D9),"нет веса") -> нет веса | K9: Здравствуйте, ТОО «РОДАМИН» | P9: =MID(K9,15,70) -> ТОО «РОДАМИН» | Q9: =TEXT(SUM(MID(0&L9,LARGE(ISNUMBER(-MID(L9,ROW($1:$96),1))*ROW($1:$96),ROW($1:$23)+15)+1,1)*10^ROW($1:$23)/10),REPT(0,MIN(MAX(COUNT(1/(MID(L9,ROW($1:$96),1)+1))-15,),15)))&TEXT(SUM(MID(0&L9,LARGE(ISNUMBER(-MID(L9,ROW($1:$96),1))*ROW($1:$96),ROW($1:$23))+1,1)*10^ROW($1:$23)/10),REPT(0,MIN(COUNT(1/(MID(L9,ROW($1:$96),1)+1)),15))) -> 
H10: KASPI | J10: =IFERROR(IFERROR(VLOOKUP(C10,#REF!,3,0)*D10,VLOOKUP(C10,#REF!,7,0)*D10),"нет веса") -> нет веса | K10: Мы получили Ваш заказ номер, 2080
H11: QIWI | J11: =IFERROR(IFERROR(VLOOKUP(C11,#REF!,3,0)*D11,VLOOKUP(C11,#REF!,7,0)*D11),"нет веса") -> нет веса | K11: Электронная почта | L11: мыло
G12: 2020-08-21 | H12: СЧЁТ Альфа-Банк | I12: =F29 -> 220400 | J12: =IFERROR(IFERROR(VLOOKUP(C12,#REF!,3,0)*D12,VLOOKUP(C12,#REF!,7,0)*D12),"нет веса") -> нет веса | K12: Контактный телефон | L12: 87015171404 | P12: =(L12&" "&P13) -> 87015171404 0 | Q12: =TEXT(SUM(MID(0&P12,LARGE(ISNUMBER(-MID(P12,ROW($1:$99),1))*ROW($1:$99),ROW($1:$15)+30)+1,1)*10^ROW($1:$15)/10),REPT(0,MIN(MAX(COUNT(1/(MID(P12,ROW($1:$99),1)+1))-30,),15)))&TEXT(SUM(MID(0&P12,LARGE(ISNUMBER(-MID(P12,ROW($1:$99),1))*ROW($1:$99),ROW($1:$15)+15)+1,1)*10^ROW($1:$15)/10),REPT(0,MIN(MAX(COUNT(1/(MID(P12,ROW($1:$99),1)+1))-15,),15)))&TEXT(SUM(MID(0&P12,LARGE(ISNUMBER(-MID(P12,ROW($1:$99),1))*ROW($1:$99),ROW($1:$15))+1,1)*10^ROW($1:$15)/10),REPT(0,MIN(COUNT(1/(MID(P12,ROW($1:$99),1)+1)),15))) -> 870151714040 | R12: =(MID(Q12,1,1))&"-"&(MID(Q12,2,3))&"-"&(MID(Q12,5,3))&"-"&(MID(Q12,8,2))&"-"&(MID(Q12,10,2))&" "&(MID(Q12,12,1))&"-"&(MID(Q12,13,3))&"-"&(MID(Q12,16,3))&"-"&(MID(Q12,19,2))&"-"&(MID(Q12,21,2))&" "&(MID(Q12,23,1))&"-"&(MID(Q12,24,3))&"-"&(MID(Q12,27,3))&"-"&(MID(Q12,30,2))&"-"&(MID(Q12,32,2)) -> 8-701-517-14-04 0---- ----
J13: =IFERROR(IFERROR(VLOOKUP(C13,#REF!,3,0)*D13,VLOOKUP(C13,#REF!,7,0)*D13),"нет веса") -> нет веса | P13: =IF(L13="-",IFERROR(НайтиСтрокуПоСлову("Комментарий",K27:K60),0),L13) -> 0
J14: =IFERROR(IFERROR(VLOOKUP(C14,#REF!,3,0)*D14,VLOOKUP(C14,#REF!,7,0)*D14),"нет веса") -> нет веса | K14: Доставка: | P14: =MID(L14,23,70) -> 
J15: =IFERROR(IFERROR(VLOOKUP(C15,#REF!,3,0)*D15,VLOOKUP(C15,#REF!,7,0)*D15),"нет веса") -> нет веса | K15: Оплата: | P15: =IF(LEFT(P14,2)="EX",MID(L15,11,70),L15) -> 0 | Q15: =TEXT(SUM(MID(0&P15,LARGE(ISNUMBER(-MID(P15,ROW($1:$88),1))*ROW($1:$88),ROW($1:$15)+15)+1,1)*10^ROW($1:$15)/10),REPT(0,MIN(MAX(COUNT(1/(MID(P15,ROW($1:$88),1)+1))-15,),15)))&TEXT(SUM(MID(0&P15,LARGE(ISNUMBER(-MID(P15,ROW($1:$88),1))*ROW($1:$88),ROW($1:$15))+1,1)*10^ROW($1:$15)/10),REPT(0,MIN(COUNT(1/(MID(P15,ROW($1:$88),1)+1)),15))) -> 0 | R15: =SUMPRODUCT(--SUBSTITUTE(Q15:Q15,CHAR(160),)) -> 0 | S15: =LEN(Q15) -> 1 | T15: =FLOOR(S15/3,1) -> 0
J16: =IFERROR(IFERROR(VLOOKUP(C16,#REF!,3,0)*D16,VLOOKUP(C16,#REF!,7,0)*D16),"нет веса") -> нет веса | K16: Адрес доставки | L16: Индекс: | P16: =MID(L16,9,70) -> 
J17: =IFERROR(IFERROR(VLOOKUP(C17,#REF!,3,0)*D17,VLOOKUP(C17,#REF!,7,0)*D17),"нет веса") -> нет веса | L17: Страна: | P17: =MID(L17,9,70) ->  | Q17: =IF(LEFT(K17,4)="ваша",VALUE(MID(K17,13,20))*100,0) -> 0
J18: =IFERROR(IFERROR(VLOOKUP(C18,#REF!,3,0)*D18,VLOOKUP(C18,#REF!,7,0)*D18),"нет веса") -> нет веса | L18: Область: | P18: =MID(L18,10,70) -> 
J19: =IFERROR(IFERROR(VLOOKUP(C19,#REF!,3,0)*D19,VLOOKUP(C19,#REF!,7,0)*D19),"нет веса") -> нет веса | L19: Город: | P19: =MID(L19,8,70) ->  | Q19: =IF(LEFT(K19,4)="ваша",VALUE(MID(K19,13,20))*100,0) -> 0
J20: =IFERROR(IFERROR(VLOOKUP(C20,#REF!,3,0)*D20,VLOOKUP(C20,#REF!,7,0)*D20),"нет веса") -> нет веса | L20: Улица: | P20: =MID(L20,8,70) ->  | Q20: =IF(LEFT(K31,4)="ваша",VALUE(MID(K31,13,20))*100,0) -> 0
J21: =IFERROR(IFERROR(VLOOKUP(C21,#REF!,3,0)*D21,VLOOKUP(C21,#REF!,7,0)*D21),"нет веса") -> нет веса | L21: Здание: | P21: =MID(L21,9,70) ->  | Q21: =IF(LEFT(K32,4)="ваша",VALUE(MID(K32,13,20))*100,0) -> 0
J22: =IFERROR(IFERROR(VLOOKUP(C22,#REF!,3,0)*D22,VLOOKUP(C22,#REF!,7,0)*D22),"нет веса") -> нет веса | L22: Квартира: | P22: =MID(L22,11,70) ->  | Q22: =IF(LEFT(#REF!,4)="ваша",VALUE(MID(#REF!,13,20))*100,0) -> 
E23: Итого: | F23: =SUM(F7:F22) -> 240000 | J23: =IF(K40>0,M40,"") ->  | K23: Наименование | L23: Количество | M23: Цена | N23: Вес | O23: Всего | Q23: =IF(LEFT(K33,4)="ваша",VALUE(MID(K33,13,20))*100,0) -> 0
A24: =IF(L41>0,N41,"") ->  | D24: скидка: | E24: =IF(F23>150000,10,IF(F23>100000,8,IF(F23>60000,5,IF(F23>30000,3,0)))) -> 10 | F24: =F23-(F23*E24/100) -> 216000 | G24: =IFERROR(SUM(I7:I22)-F29+1,0) -> 1 | P24: =N24 -> 0 | Q24: =TEXT(SUM(MID(0&P24,LARGE(ISNUMBER(-MID(P24,ROW($1:$88),1))*ROW($1:$88),ROW($1:$15)+15)+1,1)*10^ROW($1:$15)/10),REPT(0,MIN(MAX(COUNT(1/(MID(P24,ROW($1:$88),1)+1))-15,),15)))&TEXT(SUM(MID(0&P24,LARGE(ISNUMBER(-MID(P24,ROW($1:$88),1))*ROW($1:$88),ROW($1:$15))+1,1)*10^ROW($1:$15)/10),REPT(0,MIN(COUNT(1/(MID(P24,ROW($1:$88),1)+1)),15))) -> 0
A25: =SUM(A7:A23)/1000*1.3 -> 0 | C25: =IF(E25=F26,"Доставка БЕСПЛАТНО",IF(E25=D26,C26,IF(E25=D27,C27,IF(E25=D28,C28,IF(E25=F27,C27&" + НПл",IF(E25=F28,C28&" + НПл","Укажите ТК")))))) -> AVIS EXPRESS Алматы | D25: 2 | E25: =D28 -> 3300 | G25: =IF(I25 >0,TODAY(),"") ->  | J25: =SUM(J7:J22)/1000 -> 0 | P25: =E25 -> 3300 | Q25: =TEXT(SUM(MID(0&P25,LARGE(ISNUMBER(-MID(P25,ROW($1:$88),1))*ROW($1:$88),ROW($1:$15)+15)+1,1)*10^ROW($1:$15)/10),REPT(0,MIN(MAX(COUNT(1/(MID(P25,ROW($1:$88),1)+1))-15,),15)))&TEXT(SUM(MID(0&P25,LARGE(ISNUMBER(-MID(P25,ROW($1:$88),1))*ROW($1:$88),ROW($1:$15))+1,1)*10^ROW($1:$15)/10),REPT(0,MIN(COUNT(1/(MID(P25,ROW($1:$88),1)+1)),15))) -> 3300 | R25: =E25 -> 3300 | S25: =TEXT(SUM(MID(0&R25,LARGE(ISNUMBER(-MID(R25,ROW($1:$88),1))*ROW($1:$88),ROW($1:$15)+15)+1,1)*10^ROW($1:$15)/10),REPT(0,MIN(MAX(COUNT(1/(MID(R25,ROW($1:$88),1)+1))-15,),15)))&TEXT(SUM(MID(0&R25,LARGE(ISNUMBER(-MID(R25,ROW($1:$88),1))*ROW($1:$88),ROW($1:$15))+1,1)*10^ROW($1:$15)/10),REPT(0,MIN(COUNT(1/(MID(R25,ROW($1:$88),1)+1)),15))) -> 3300 | U25: =TEXT(SUM(MID(0&E25,LARGE(ISNUMBER(-MID(E25,ROW($1:$88),1))*ROW($1:$88),ROW($1:$15)+15)+1,1)*10^ROW($1:$15)/10),REPT(0,MIN(MAX(COUNT(1/(MID(E25,ROW($1:$88),1)+1))-15,),15)))&TEXT(SUM(MID(0&E25,LARGE(ISNUMBER(-MID(E25,ROW($1:$88),1))*ROW($1:$88),ROW($1:$15))+1,1)*10^ROW($1:$15)/10),REPT(0,MIN(COUNT(1/(MID(E25,ROW($1:$88),1)+1)),15))) -> 
C26: =IFERROR("AVIS С А М О В Ы В О З "&" "&VLOOKUP((LEFT(B34,(LEN(B34)))),'ТАРИФЫ ТК'!J17:L268,1,0),"НЕТ ДОСТАВКИ") -> AVIS С А М О В Ы В О З Алматы | D26: =IFERROR(VLOOKUP((LEFT(B34,(LEN(B34)))),'ТАРИФЫ ТК'!J17:L268,3,0)+0.001,"НЕТ ДОСТАВКИ") -> 1550.001 | E26: =IFERROR(F24+D26,"НЕТ ДОСТАВКИ") -> 217550.001 | F26: =IFERROR(D26&" + НПл","НЕТ ДОСТАВКИ") -> 1550,001 + НПл | G26: =IFERROR(CEILING((F24+D26)*(1+$D$25/100),50),0) -> 221950 | P26: =N26 -> 0 | Q26: =TEXT(SUM(MID(0&P26,LARGE(ISNUMBER(-MID(P26,ROW($1:$88),1))*ROW($1:$88),ROW($1:$15)+15)+1,1)*10^ROW($1:$15)/10),REPT(0,MIN(MAX(COUNT(1/(MID(P26,ROW($1:$88),1)+1))-15,),15)))&TEXT(SUM(MID(0&P26,LARGE(ISNUMBER(-MID(P26,ROW($1:$88),1))*ROW($1:$88),ROW($1:$15))+1,1)*10^ROW($1:$15)/10),REPT(0,MIN(COUNT(1/(MID(P26,ROW($1:$88),1)+1)),15))) -> 0
C27: =IFERROR("AVIS Econom"&" "&VLOOKUP((LEFT(B34,(LEN(B34)))),'ТАРИФЫ ТК'!A4:A134,1,0),"НЕТ ДОСТАВКИ") -> AVIS Econom Алматы | D27: =IFERROR(VLOOKUP((LEFT(B34,(LEN(B34)))),'ТАРИФЫ ТК'!A4:C134,3,0),"НЕТ ДОСТАВКИ") -> 1300 | E27: =IFERROR(F24+D27,"НЕТ ДОСТАВКИ") -> 217300 | F27: =IFERROR(D27&" + НПл","НЕТ ДОСТАВКИ") -> 1300 + НПл | G27: =IFERROR(CEILING((F24+D27)*(1+$D$25/100),50),0) -> 221650 | P27: 0 | Q27: =TEXT(SUM(MID(0&P27,LARGE(ISNUMBER(-MID(P27,ROW($1:$88),1))*ROW($1:$88),ROW($1:$15)+15)+1,1)*10^ROW($1:$15)/10),REPT(0,MIN(MAX(COUNT(1/(MID(P27,ROW($1:$88),1)+1))-15,),15)))&TEXT(SUM(MID(0&P27,LARGE(ISNUMBER(-MID(P27,ROW($1:$88),1))*ROW($1:$88),ROW($1:$15))+1,1)*10^ROW($1:$15)/10),REPT(0,MIN(COUNT(1/(MID(P27,ROW($1:$88),1)+1)),15))) -> 0
C28: =IFERROR(IF(A29<1,"AVIS EXPRESS"&" "&VLOOKUP((LEFT(B34,(LEN(B34)))),'ТАРИФЫ ТК'!E4:G20,1,0),"AV ВИМАНИЕ: В Е С П О С Ы Л К И Б О Л Ь Ш Е 0,5 КГ !!!"),"НЕТ ДОСТАВКИ") -> AVIS EXPRESS Алматы | D28: 3300 | E28: =IFERROR(F24+D28,"НЕТ ДОСТАВКИ") -> 219300 | F28: =D28&" + НПл" -> 3300 + НПл | G28: =IFERROR(CEILING((F24+D28)*(1+$D$25/100),50),"НЕТ ДОСТАВКИ") -> 223700 | P28: 0 | Q28: =TEXT(SUM(MID(0&P28,LARGE(ISNUMBER(-MID(P28,ROW($1:$88),1))*ROW($1:$88),ROW($1:$15)+15)+1,1)*10^ROW($1:$15)/10),REPT(0,MIN(MAX(COUNT(1/(MID(P28,ROW($1:$88),1)+1))-15,),15)))&TEXT(SUM(MID(0&P28,LARGE(ISNUMBER(-MID(P28,ROW($1:$88),1))*ROW($1:$88),ROW($1:$15))+1,1)*10^ROW($1:$15)/10),REPT(0,MIN(COUNT(1/(MID(P28,ROW($1:$88),1)+1)),15))) -> 0
A29: =IFERROR(A25*1.5,"Количество ??") -> 0 | D29: К ОПЛАТЕ: | E29: =IFERROR(F24+E25,0) -> 219300 | F29: 220400 | G29: =IFERROR(CEILING((F24+E25)*1.03,50),0) -> 225900 | J29: =IFERROR(J25*1.5,"Количество ??") -> 0 | P29: 0 | Q29: =TEXT(SUM(MID(0&P29,LARGE(ISNUMBER(-MID(P29,ROW($1:$88),1))*ROW($1:$88),ROW($1:$15)+15)+1,1)*10^ROW($1:$15)/10),REPT(0,MIN(MAX(COUNT(1/(MID(P29,ROW($1:$88),1)+1))-15,),15)))&TEXT(SUM(MID(0&P29,LARGE(ISNUMBER(-MID(P29,ROW($1:$88),1))*ROW($1:$88),ROW($1:$15))+1,1)*10^ROW($1:$15)/10),REPT(0,MIN(COUNT(1/(MID(P29,ROW($1:$88),1)+1)),15))) -> 0
A30: rc11091kz | C30: =IFERROR((P14&" "&LEFT(P15,8)&" = "&TEXT(R15,"### ### ###")&" т."),"НЕТ ДОСТАВКИ") -> 0 = т. | E30: =IFERROR("QIWI = "&CEILING((E26*1.02),10),0) -> QIWI = 221910 | F30: =IFERROR(F29-F24,"УКАЖИТЕ ТК") -> 4400 | P30: 0 | Q30: =TEXT(SUM(MID(0&P30,LARGE(ISNUMBER(-MID(P30,ROW($1:$88),1))*ROW($1:$88),ROW($1:$15)+15)+1,1)*10^ROW($1:$15)/10),REPT(0,MIN(MAX(COUNT(1/(MID(P30,ROW($1:$88),1)+1))-15,),15)))&TEXT(SUM(MID(0&P30,LARGE(ISNUMBER(-MID(P30,ROW($1:$88),1))*ROW($1:$88),ROW($1:$15))+1,1)*10^ROW($1:$15)/10),REPT(0,MIN(COUNT(1/(MID(P30,ROW($1:$88),1)+1)),15))) -> 0
A31: =A1 -> +СЧЁТ Альфа-Банк+Сч0608++0 | B31: ПОЛУЧАТЕЛЬ: | C31: rc11091kz | P31: 0 | Q31: =TEXT(SUM(MID(0&P31,LARGE(ISNUMBER(-MID(P31,ROW($1:$88),1))*ROW($1:$88),ROW($1:$15)+15)+1,1)*10^ROW($1:$15)/10),REPT(0,MIN(MAX(COUNT(1/(MID(P31,ROW($1:$88),1)+1))-15,),15)))&TEXT(SUM(MID(0&P31,LARGE(ISNUMBER(-MID(P31,ROW($1:$88),1))*ROW($1:$88),ROW($1:$15))+1,1)*10^ROW($1:$15)/10),REPT(0,MIN(COUNT(1/(MID(P31,ROW($1:$88),1)+1)),15))) -> 0
A32: =UPPER((B3)) -> ТОО «РОДАМИН» | C32: =IFERROR(MID(НайтиСтрокуПоСлову("Комментарий: Имя :",K1:K45),20,99),0) -> 0 | P32: 0 | Q32: =TEXT(SUM(MID(0&P32,LARGE(ISNUMBER(-MID(P32,ROW($1:$88),1))*ROW($1:$88),ROW($1:$15)+15)+1,1)*10^ROW($1:$15)/10),REPT(0,MIN(MAX(COUNT(1/(MID(P32,ROW($1:$88),1)+1))-15,),15)))&TEXT(SUM(MID(0&P32,LARGE(ISNUMBER(-MID(P32,ROW($1:$88),1))*ROW($1:$88),ROW($1:$15))+1,1)*10^ROW($1:$15)/10),REPT(0,MIN(COUNT(1/(MID(P32,ROW($1:$88),1)+1)),15))) -> 0
A33: Область: | B33: =UPPER((P18)) ->  | C33: =IFERROR(ПоискСНачала(C32,"Телефон"),0) -> 0 | E33: =IFERROR(ПоискМежду(C32,"Телефон :","Примечание"),0) -> 0 | F33: =IFERROR(IF(LEFT(ПоискСКонца(C32,"Примечание : "),2)="г ",MID(ПоискСКонца(C32,"Примечание : "),3,99),IF(LEFT(ПоискСКонца(C32,"Примечание : "),3)="г. ",MID(ПоискСКонца(C32,"Примечание : "),4,99),IF(LEFT(ПоискСКонца(C32,"Примечание : "),3)="гор",MID(ПоискСКонца(C32,"Примечание : "),6,99),0))),0) -> 0 | P33: 0 | Q33: =TEXT(SUM(MID(0&P33,LARGE(ISNUMBER(-MID(P33,ROW($1:$88),1))*ROW($1:$88),ROW($1:$15)+15)+1,1)*10^ROW($1:$15)/10),REPT(0,MIN(MAX(COUNT(1/(MID(P33,ROW($1:$88),1)+1))-15,),15)))&TEXT(SUM(MID(0&P33,LARGE(ISNUMBER(-MID(P33,ROW($1:$88),1))*ROW($1:$88),ROW($1:$15))+1,1)*10^ROW($1:$15)/10),REPT(0,MIN(COUNT(1/(MID(P33,ROW($1:$88),1)+1)),15))) -> 0
A34: Город: | B34: Алматы | P34: 0 | Q34: =TEXT(SUM(MID(0&P34,LARGE(ISNUMBER(-MID(P34,ROW($1:$88),1))*ROW($1:$88),ROW($1:$15)+15)+1,1)*10^ROW($1:$15)/10),REPT(0,MIN(MAX(COUNT(1/(MID(P34,ROW($1:$88),1)+1))-15,),15)))&TEXT(SUM(MID(0&P34,LARGE(ISNUMBER(-MID(P34,ROW($1:$88),1))*ROW($1:$88),ROW($1:$15))+1,1)*10^ROW($1:$15)/10),REPT(0,MIN(COUNT(1/(MID(P34,ROW($1:$88),1)+1)),15))) -> 0
A35: Улица: | B35: Помяловского | P35: 0 | Q35: =TEXT(SUM(MID(0&P35,LARGE(ISNUMBER(-MID(P35,ROW($1:$88),1))*ROW($1:$88),ROW($1:$15)+15)+1,1)*10^ROW($1:$15)/10),REPT(0,MIN(MAX(COUNT(1/(MID(P35,ROW($1:$88),1)+1))-15,),15)))&TEXT(SUM(MID(0&P35,LARGE(ISNUMBER(-MID(P35,ROW($1:$88),1))*ROW($1:$88),ROW($1:$15))+1,1)*10^ROW($1:$15)/10),REPT(0,MIN(COUNT(1/(MID(P35,ROW($1:$88),1)+1)),15))) -> 0
A36: Здание: | B36: 29 А/1 | P36: 0 | Q36: =TEXT(SUM(MID(0&P36,LARGE(ISNUMBER(-MID(P36,ROW($1:$88),1))*ROW($1:$88),ROW($1:$15)+15)+1,1)*10^ROW($1:$15)/10),REPT(0,MIN(MAX(COUNT(1/(MID(P36,ROW($1:$88),1)+1))-15,),15)))&TEXT(SUM(MID(0&P36,LARGE(ISNUMBER(-MID(P36,ROW($1:$88),1))*ROW($1:$88),ROW($1:$15))+1,1)*10^ROW($1:$15)/10),REPT(0,MIN(COUNT(1/(MID(P36,ROW($1:$88),1)+1)),15))) -> 0
A37: Квартира: | B37: =P22 ->  | P37: 0 | Q37: =TEXT(SUM(MID(0&P37,LARGE(ISNUMBER(-MID(P37,ROW($1:$88),1))*ROW($1:$88),ROW($1:$15)+15)+1,1)*10^ROW($1:$15)/10),REPT(0,MIN(MAX(COUNT(1/(MID(P37,ROW($1:$88),1)+1))-15,),15)))&TEXT(SUM(MID(0&P37,LARGE(ISNUMBER(-MID(P37,ROW($1:$88),1))*ROW($1:$88),ROW($1:$15))+1,1)*10^ROW($1:$15)/10),REPT(0,MIN(COUNT(1/(MID(P37,ROW($1:$88),1)+1)),15))) -> 0
A38: Телефон: | B38: =B4 -> 8-701-517-14-04 0---- ---- | P38: 0 | Q38: =TEXT(SUM(MID(0&P38,LARGE(ISNUMBER(-MID(P38,ROW($1:$88),1))*ROW($1:$88),ROW($1:$15)+15)+1,1)*10^ROW($1:$15)/10),REPT(0,MIN(MAX(COUNT(1/(MID(P38,ROW($1:$88),1)+1))-15,),15)))&TEXT(SUM(MID(0&P38,LARGE(ISNUMBER(-MID(P38,ROW($1:$88),1))*ROW($1:$88),ROW($1:$15))+1,1)*10^ROW($1:$15)/10),REPT(0,MIN(COUNT(1/(MID(P38,ROW($1:$88),1)+1)),15))) -> 0
A39: Индекс: | B39: =P16 ->  | Q39: =IF(LEFT(#REF!,4)="ваша",VALUE(MID(#REF!,13,20))*100,0) -> 
A40: Компания: | Q40: =IF(LEFT(#REF!,4)="ваша",VALUE(MID(#REF!,13,20))*100,0) -> 
A41: ИИН: | B41: =F29 -> 220400 | Q41: =IF(LEFT(#REF!,4)="ваша",VALUE(MID(#REF!,13,20))*100,0) -> 
A42: ------------------------ | B42: ---------------------------------------------------- | C42: ---------------------------------------------------- | D42: ------------------------ | E42: ------------------------ | F42: --------------------------- | G42: ------------------------------ | H42: ------------------------ | I42: ------------------------ | Q42: =SUM(Q19:Q41) -> 

Sheet +СЧЁТ Альфа-Банк+Сч0908++0
A1: =IF(LEFT(C29,2)="сп",P1&" ► СП",IF(E25=D26,P1,IF(H6<>0,P1&"++"&"0",IF(E25=D27,P1&"++"&"0",IF(E25=D28,P1&"++"&"0",IF(E25=D27,P1&"++"&"0",IF(E25=D28,P1&"++"&"0",IF(LEFT(C25,2)="AV",P1&"++"&F29,P1)))))))) -> +СЧЁТ Альфа-Банк+Сч0908++0 | B1: 2020-08-09 | C1: =IF(E2>0,"ОТПРАВЛЕНО",IF(LEFT(C29,3)="ЗАК","ЗАКАЗАНО в СПБ",IF(G24>=0,"ОПЛОЧЕНО","ОЖИДАНИЕ ОПЛАТЫ"))) -> ОТПРАВЛЕНО | D1: ='СПИСОК ЗАКАЗОВ'!B1 -> 21 | E1: 2020-08-10 | I1: =A1 -> +СЧЁТ Альфа-Банк+Сч0908++0 | K1: Сч0908 | P1: =IF(G24>0,"+"&H6&"+"&Q1,Q1) -> +СЧЁТ Альфа-Банк+Сч0908 | Q1: =ПоискСКонца(K1,"№") -> Сч0908
A2: Логин | B2: =L3 -> Логин | C2: Номер накл-ой | E2: 3611545 | K2: Примечание
A3: ФИО | B3: =IF(C32=0,UPPER((P9)),UPPER(C33)) -> ТОО ZZZ | K3: Логин | L3: Логин
A4: Телефон | B4: =R12 -> 8-705-767-77-77 0---- ---- | E4: =IF(F4>0.5,"оплачено",IF(F4<0,"ОПЛАТИТЬ= "&G4,"ОПЛАТИТЬ= "&Q25)) -> ОПЛАТИТЬ= 7700 | F4: 0 | G4: 1100 | K4: Дата заказа | L4: дата заказа
A5: e-mail: | B5: =L11 -> мыло
A6: Вес | B6: ПРИМЕЧАНИЯ | C6: Наименование | D6: Кол-во | E6: Цена | F6: Всего | G6: =IF(MAX(G7:G25)>0,MAX(G7:G25),"") -> 2020-08-21 | H6: =IF(I7>0,"НАЛ",IF(I8>0,"ПЕРЕВОД",IF(I9>0,"Beeline",IF(I10>0,"KASPI",IF(I11>0,"QIWI",IF(I12>0,"СЧЁТ Альфа-Банк",0)))))) -> СЧЁТ Альфа-Банк | I6: =SUM(I7:I28) -> 286720
A7: =IF(L24>0,Q24*1/100,"") ->  | B7: списано | C7: Неодимовый магнит D45x30mm(Аксиал)`42 (сила притяжения 90 кг) | D7: 32 | E7: 8700 | F7: =IF(D7<>"",E7*D7,"") -> 278400 | G7: =IF(I7 >0,TODAY(),"") ->  | H7: НАЛ | J7: =IFERROR(IFERROR(VLOOKUP(C7,#REF!,3,0)*D7,VLOOKUP(C7,#REF!,7,0)*D7),"нет веса") -> нет веса | K7: Заказ №2080
A8: =IF(L25>0,Q25*1/100,"") ->  | C8: =IF(L27<>"",K27,"") ->  | D8: =IF(L27>0,L27,"") ->  | E8: =IF(M27="уточняйте",0,IF(L27>0,M27,"")) ->  | H8: ПЕРЕВОД | J8: =IFERROR(IFERROR(VLOOKUP(C8,#REF!,3,0)*D8,VLOOKUP(C8,#REF!,7,0)*D8),"нет веса") -> нет веса
A9: =IF(L26>0,Q26*1/100,"") ->  | C9: Неодимовый магнит D50x30mm(Аксиал)`42 (сила притяжения 120 кг) | D9: 3 | E9: 9900 | F9: 29700 | H9: Beeline | J9: =IFERROR(IFERROR(VLOOKUP(C9,#REF!,3,0)*D9,VLOOKUP(C9,#REF!,7,0)*D9),"нет веса") -> нет веса | K9: Здравствуйте, ТОО ZZZ | P9: =MID(K9,15,70) -> ТОО ZZZ | Q9: =TEXT(SUM(MID(0&L9,LARGE(ISNUMBER(-MID(L9,ROW($1:$96),1))*ROW($1:$96),ROW($1:$23)+15)+1,1)*10^ROW($1:$23)/10),REPT(0,MIN(MAX(COUNT(1/(MID(L9,ROW($1:$96),1)+1))-15,),15)))&TEXT(SUM(MID(0&L9,LARGE(ISNUMBER(-MID(L9,ROW($1:$96),1))*ROW($1:$96),ROW($1:$23))+1,1)*10^ROW($1:$23)/10),REPT(0,MIN(COUNT(1/(MID(L9,ROW($1:$96),1)+1)),15))) -> 
H10: KASPI | J10: =IFERROR(IFERROR(VLOOKUP(C10,#REF!,3,0)*D10,VLOOKUP(C10,#REF!,7,0)*D10),"нет веса") -> нет веса | K10: Мы получили Ваш заказ номер, 2080
H11: QIWI | J11: =IFERROR(IFERROR(VLOOKUP(C11,#REF!,3,0)*D11,VLOOKUP(C11,#REF!,7,0)*D11),"нет веса") -> нет веса | K11: Электронная почта | L11: мыло
G12: 2020-08-21 | H12: СЧЁТ Альфа-Банк | I12: =F29 -> 286720 | J12: =IFERROR(IFERROR(VLOOKUP(C12,#REF!,3,0)*D12,VLOOKUP(C12,#REF!,7,0)*D12),"нет веса") -> нет веса | K12: Контактный телефон | L12: 87057677777 | P12: =(L12&" "&P13) -> 87057677777 0 | Q12: =TEXT(SUM(MID(0&P12,LARGE(ISNUMBER(-MID(P12,ROW($1:$99),1))*ROW($1:$99),ROW($1:$15)+30)+1,1)*10^ROW($1:$15)/10),REPT(0,MIN(MAX(COUNT(1/(MID(P12,ROW($1:$99),1)+1))-30,),15)))&TEXT(SUM(MID(0&P12,LARGE(ISNUMBER(-MID(P12,ROW($1:$99),1))*ROW($1:$99),ROW($1:$15)+15)+1,1)*10^ROW($1:$15)/10),REPT(0,MIN(MAX(COUNT(1/(MID(P12,ROW($1:$99),1)+1))-15,),15)))&TEXT(SUM(MID(0&P12,LARGE(ISNUMBER(-MID(P12,ROW($1:$99),1))*ROW($1:$99),ROW($1:$15))+1,1)*10^ROW($1:$15)/10),REPT(0,MIN(COUNT(1/(MID(P12,ROW($1:$99),1)+1)),15))) -> 870576777770 | R12: =(MID(Q12,1,1))&"-"&(MID(Q12,2,3))&"-"&(MID(Q12,5,3))&"-"&(MID(Q12,8,2))&"-"&(MID(Q12,10,2))&" "&(MID(Q12,12,1))&"-"&(MID(Q12,13,3))&"-"&(MID(Q12,16,3))&"-"&(MID(Q12,19,2))&"-"&(MID(Q12,21,2))&" "&(MID(Q12,23,1))&"-"&(MID(Q12,24,3))&"-"&(MID(Q12,27,3))&"-"&(MID(Q12,30,2))&"-"&(MID(Q12,32,2)) -> 8-705-767-77-77 0---- ----
J13: =IFERROR(IFERROR(VLOOKUP(C13,#REF!,3,0)*D13,VLOOKUP(C13,#REF!,7,0)*D13),"нет веса") -> нет веса | P13: =IF(L13="-",IFERROR(НайтиСтрокуПоСлову("Комментарий",K27:K60),0),L13) -> 0
J14: =IFERROR(IFERROR(VLOOKUP(C14,#REF!,3,0)*D14,VLOOKUP(C14,#REF!,7,0)*D14),"нет веса") -> нет веса | K14: Доставка: | P14: =MID(L14,23,70) -> 
J15: =IFERROR(IFERROR(VLOOKUP(C15,#REF!,3,0)*D15,VLOOKUP(C15,#REF!,7,0)*D15),"нет веса") -> нет веса | K15: Оплата: | P15: =IF(LEFT(P14,2)="EX",MID(L15,11,70),L15) -> 0 | Q15: =TEXT(SUM(MID(0&P15,LARGE(ISNUMBER(-MID(P15,ROW($1:$88),1))*ROW($1:$88),ROW($1:$15)+15)+1,1)*10^ROW($1:$15)/10),REPT(0,MIN(MAX(COUNT(1/(MID(P15,ROW($1:$88),1)+1))-15,),15)))&TEXT(SUM(MID(0&P15,LARGE(ISNUMBER(-MID(P15,ROW($1:$88),1))*ROW($1:$88),ROW($1:$15))+1,1)*10^ROW($1:$15)/10),REPT(0,MIN(COUNT(1/(MID(P15,ROW($1:$88),1)+1)),15))) -> 0 | R15: =SUMPRODUCT(--SUBSTITUTE(Q15:Q15,CHAR(160),)) -> 0 | S15: =LEN(Q15) -> 1 | T15: =FLOOR(S15/3,1) -> 0
J16: =IFERROR(IFERROR(VLOOKUP(C16,#REF!,3,0)*D16,VLOOKUP(C16,#REF!,7,0)*D16),"нет веса") -> нет веса | K16: Адрес доставки | L16: Индекс: | P16: =MID(L16,9,70) -> 
J17: =IFERROR(IFERROR(VLOOKUP(C17,#REF!,3,0)*D17,VLOOKUP(C17,#REF!,7,0)*D17),"нет веса") -> нет веса | L17: Страна: | P17: =MID(L17,9,70) ->  | Q17: =IF(LEFT(K17,4)="ваша",VALUE(MID(K17,13,20))*100,0) -> 0
J18: =IFERROR(IFERROR(VLOOKUP(C18,#REF!,3,0)*D18,VLOOKUP(C18,#REF!,7,0)*D18),"нет веса") -> нет веса | L18: Область: | P18: =MID(L18,10,70) -> 
J19: =IFERROR(IFERROR(VLOOKUP(C19,#REF!,3,0)*D19,VLOOKUP(C19,#REF!,7,0)*D19),"нет веса") -> нет веса | L19: Город: | P19: =MID(L19,8,70) ->  | Q19: =IF(LEFT(K19,4)="ваша",VALUE(MID(K19,13,20))*100,0) -> 0
J20: =IFERROR(IFERROR(VLOOKUP(C20,#REF!,3,0)*D20,VLOOKUP(C20,#REF!,7,0)*D20),"нет веса") -> нет веса | L20: Улица: | P20: =MID(L20,8,70) ->  | Q20: =IF(LEFT(K31,4)="ваша",VALUE(MID(K31,13,20))*100,0) -> 0
J21: =IFERROR(IFERROR(VLOOKUP(C21,#REF!,3,0)*D21,VLOOKUP(C21,#REF!,7,0)*D21),"нет веса") -> нет веса | L21: Здание: | P21: =MID(L21,9,70) ->  | Q21: =IF(LEFT(K32,4)="ваша",VALUE(MID(K32,13,20))*100,0) -> 0
J22: =IFERROR(IFERROR(VLOOKUP(C22,#REF!,3,0)*D22,VLOOKUP(C22,#REF!,7,0)*D22),"нет веса") -> нет веса | L22: Квартира: | P22: =MID(L22,11,70) ->  | Q22: =IF(LEFT(#REF!,4)="ваша",VALUE(MID(#REF!,13,20))*100,0) -> 
E23: Итого: | F23: =SUM(F7:F22) -> 308100 | J23: =IF(K40>0,M40,"") ->  | K23: Наименование | L23: Количество | M23: Цена | N23: Вес | O23: Всего | Q23: =IF(LEFT(K33,4)="ваша",VALUE(MID(K33,13,20))*100,0) -> 0
A24: =IF(L41>0,N41,"") ->  | D24: скидка: | E24: 10 | F24: =F23-(F23*E24/100) -> 277290 | G24: =IFERROR(SUM(I7:I22)-F29+1,0) -> 1 | P24: =N24 -> 0 | Q24: =TEXT(SUM(MID(0&P24,LARGE(ISNUMBER(-MID(P24,ROW($1:$88),1))*ROW($1:$88),ROW($1:$15)+15)+1,1)*10^ROW($1:$15)/10),REPT(0,MIN(MAX(COUNT(1/(MID(P24,ROW($1:$88),1)+1))-15,),15)))&TEXT(SUM(MID(0&P24,LARGE(ISNUMBER(-MID(P24,ROW($1:$88),1))*ROW($1:$88),ROW($1:$15))+1,1)*10^ROW($1:$15)/10),REPT(0,MIN(COUNT(1/(MID(P24,ROW($1:$88),1)+1)),15))) -> 0
A25: =SUM(A7:A23)/1000*1.3 -> 0 | C25: =IF(E25=F26,"Доставка БЕСПЛАТНО",IF(E25=D26,C26,IF(E25=D27,C27,IF(E25=D28,C28,IF(E25=F27,C27&" + НПл",IF(E25=F28,C28&" + НПл","Укажите ТК")))))) -> AVIS EXPRESS Шымкент | D25: 2 | E25: =D28 -> 7700 | G25: =IF(I25 >0,TODAY(),"") ->  | J25: =SUM(J7:J22)/1000 -> 0 | P25: =E25 -> 7700 | Q25: =TEXT(SUM(MID(0&P25,LARGE(ISNUMBER(-MID(P25,ROW($1:$88),1))*ROW($1:$88),ROW($1:$15)+15)+1,1)*10^ROW($1:$15)/10),REPT(0,MIN(MAX(COUNT(1/(MID(P25,ROW($1:$88),1)+1))-15,),15)))&TEXT(SUM(MID(0&P25,LARGE(ISNUMBER(-MID(P25,ROW($1:$88),1))*ROW($1:$88),ROW($1:$15))+1,1)*10^ROW($1:$15)/10),REPT(0,MIN(COUNT(1/(MID(P25,ROW($1:$88),1)+1)),15))) -> 7700 | R25: =E25 -> 7700 | S25: =TEXT(SUM(MID(0&R25,LARGE(ISNUMBER(-MID(R25,ROW($1:$88),1))*ROW($1:$88),ROW($1:$15)+15)+1,1)*10^ROW($1:$15)/10),REPT(0,MIN(MAX(COUNT(1/(MID(R25,ROW($1:$88),1)+1))-15,),15)))&TEXT(SUM(MID(0&R25,LARGE(ISNUMBER(-MID(R25,ROW($1:$88),1))*ROW($1:$88),ROW($1:$15))+1,1)*10^ROW($1:$15)/10),REPT(0,MIN(COUNT(1/(MID(R25,ROW($1:$88),1)+1)),15))) -> 7700 | U25: =TEXT(SUM(MID(0&E25,LARGE(ISNUMBER(-MID(E25,ROW($1:$88),1))*ROW($1:$88),ROW($1:$15)+15)+1,1)*10^ROW($1:$15)/10),REPT(0,MIN(MAX(COUNT(1/(MID(E25,ROW($1:$88),1)+1))-15,),15)))&TEXT(SUM(MID(0&E25,LARGE(ISNUMBER(-MID(E25,ROW($1:$88),1))*ROW($1:$88),ROW($1:$15))+1,1)*10^ROW($1:$15)/10),REPT(0,MIN(COUNT(1/(MID(E25,ROW($1:$88),1)+1)),15))) -> 
C26: =IFERROR("AVIS С А М О В Ы В О З "&" "&VLOOKUP((LEFT(B34,(LEN(B34)))),'ТАРИФЫ ТК'!J17:L268,1,0),"НЕТ ДОСТАВКИ") -> AVIS С А М О В Ы В О З Шымкент | D26: =IFERROR(VLOOKUP((LEFT(B34,(LEN(B34)))),'ТАРИФЫ ТК'!J17:L268,3,0)+0.001,"НЕТ ДОСТАВКИ") -> 1550.001 | E26: =IFERROR(F24+D26,"НЕТ ДОСТАВКИ") -> 278840.001 | F26: =IFERROR(D26&" + НПл","НЕТ ДОСТАВКИ") -> 1550,001 + НПл | G26: =IFERROR(CEILING((F24+D26)*(1+$D$25/100),50),0) -> 284450 | P26: =N26 -> 0 | Q26: =TEXT(SUM(MID(0&P26,LARGE(ISNUMBER(-MID(P26,ROW($1:$88),1))*ROW($1:$88),ROW($1:$15)+15)+1,1)*10^ROW($1:$15)/10),REPT(0,MIN(MAX(COUNT(1/(MID(P26,ROW($1:$88),1)+1))-15,),15)))&TEXT(SUM(MID(0&P26,LARGE(ISNUMBER(-MID(P26,ROW($1:$88),1))*ROW($1:$88),ROW($1:$15))+1,1)*10^ROW($1:$15)/10),REPT(0,MIN(COUNT(1/(MID(P26,ROW($1:$88),1)+1)),15))) -> 0
C27: =IFERROR("AVIS Econom"&" "&VLOOKUP((LEFT(B34,(LEN(B34)))),'ТАРИФЫ ТК'!A4:A134,1,0),"НЕТ ДОСТАВКИ") -> AVIS Econom Шымкент | D27: 3500 | E27: =IFERROR(F24+D27,"НЕТ ДОСТАВКИ") -> 280790 | F27: =IFERROR(D27&" + НПл","НЕТ ДОСТАВКИ") -> 3500 + НПл | G27: =IFERROR(CEILING((F24+D27)*(1+$D$25/100),50),0) -> 286450 | P27: 0 | Q27: =TEXT(SUM(MID(0&P27,LARGE(ISNUMBER(-MID(P27,ROW($1:$88),1))*ROW($1:$88),ROW($1:$15)+15)+1,1)*10^ROW($1:$15)/10),REPT(0,MIN(MAX(COUNT(1/(MID(P27,ROW($1:$88),1)+1))-15,),15)))&TEXT(SUM(MID(0&P27,LARGE(ISNUMBER(-MID(P27,ROW($1:$88),1))*ROW($1:$88),ROW($1:$15))+1,1)*10^ROW($1:$15)/10),REPT(0,MIN(COUNT(1/(MID(P27,ROW($1:$88),1)+1)),15))) -> 0
C28: =IFERROR(IF(A29<1,"AVIS EXPRESS"&" "&VLOOKUP((LEFT(B34,(LEN(B34)))),'ТАРИФЫ ТК'!E4:G20,1,0),"AV ВИМАНИЕ: В Е С П О С Ы Л К И Б О Л Ь Ш Е 0,5 КГ !!!"),"НЕТ ДОСТАВКИ") -> AVIS EXPRESS Шымкент | D28: 7700 | E28: =IFERROR(F24+D28,"НЕТ ДОСТАВКИ") -> 284990 | F28: =D28&" + НПл" -> 7700 + НПл | G28: =IFERROR(CEILING((F24+D28)*(1+$D$25/100),50),"НЕТ ДОСТАВКИ") -> 290700 | P28: 0 | Q28: =TEXT(SUM(MID(0&P28,LARGE(ISNUMBER(-MID(P28,ROW($1:$88),1))*ROW($1:$88),ROW($1:$15)+15)+1,1)*10^ROW($1:$15)/10),REPT(0,MIN(MAX(COUNT(1/(MID(P28,ROW($1:$88),1)+1))-15,),15)))&TEXT(SUM(MID(0&P28,LARGE(ISNUMBER(-MID(P28,ROW($1:$88),1))*ROW($1:$88),ROW($1:$15))+1,1)*10^ROW($1:$15)/10),REPT(0,MIN(COUNT(1/(MID(P28,ROW($1:$88),1)+1)),15))) -> 0
A29: =IFERROR(A25*1.5,"Количество ??") -> 0 | D29: К ОПЛАТЕ: | E29: =IFERROR(F24+E25,0) -> 284990 | F29: 286720 | G29: =IFERROR(CEILING((F24+E25)*1.03,50),0) -> 293550 | J29: =IFERROR(J25*1.5,"Количество ??") -> 0 | P29: 0 | Q29: =TEXT(SUM(MID(0&P29,LARGE(ISNUMBER(-MID(P29,ROW($1:$88),1))*ROW($1:$88),ROW($1:$15)+15)+1,1)*10^ROW($1:$15)/10),REPT(0,MIN(MAX(COUNT(1/(MID(P29,ROW($1:$88),1)+1))-15,),15)))&TEXT(SUM(MID(0&P29,LARGE(ISNUMBER(-MID(P29,ROW($1:$88),1))*ROW($1:$88),ROW($1:$15))+1,1)*10^ROW($1:$15)/10),REPT(0,MIN(COUNT(1/(MID(P29,ROW($1:$88),1)+1)),15))) -> 0
A30: rc11091kz | C30: =IFERROR((P14&" "&LEFT(P15,8)&" = "&TEXT(R15,"### ### ###")&" т."),"НЕТ ДОСТАВКИ") -> 0 = т. | E30: =IFERROR("QIWI = "&CEILING((E26*1.02),10),0) -> QIWI = 284420 | F30: =IFERROR(F29-F24,"УКАЖИТЕ ТК") -> 9430 | P30: 0 | Q30: =TEXT(SUM(MID(0&P30,LARGE(ISNUMBER(-MID(P30,ROW($1:$88),1))*ROW($1:$88),ROW($1:$15)+15)+1,1)*10^ROW($1:$15)/10),REPT(0,MIN(MAX(COUNT(1/(MID(P30,ROW($1:$88),1)+1))-15,),15)))&TEXT(SUM(MID(0&P30,LARGE(ISNUMBER(-MID(P30,ROW($1:$88),1))*ROW($1:$88),ROW($1:$15))+1,1)*10^ROW($1:$15)/10),REPT(0,MIN(COUNT(1/(MID(P30,ROW($1:$88),1)+1)),15))) -> 0
A31: =A1 -> +СЧЁТ Альфа-Банк+Сч0908++0 | B31: ПОЛУЧАТЕЛЬ: | C31: rc11091kz | P31: 0 | Q31: =TEXT(SUM(MID(0&P31,LARGE(ISNUMBER(-MID(P31,ROW($1:$88),1))*ROW($1:$88),ROW($1:$15)+15)+1,1)*10^ROW($1:$15)/10),REPT(0,MIN(MAX(COUNT(1/(MID(P31,ROW($1:$88),1)+1))-15,),15)))&TEXT(SUM(MID(0&P31,LARGE(ISNUMBER(-MID(P31,ROW($1:$88),1))*ROW($1:$88),ROW($1:$15))+1,1)*10^ROW($1:$15)/10),REPT(0,MIN(COUNT(1/(MID(P31,ROW($1:$88),1)+1)),15))) -> 0
A32: =UPPER((B3)) -> ТОО ZZZ | C32: =IFERROR(MID(НайтиСтрокуПоСлову("Комментарий: Имя :",K1:K45),20,99),0) -> 0 | P32: 0 | Q32: =TEXT(SUM(MID(0&P32,LARGE(ISNUMBER(-MID(P32,ROW($1:$88),1))*ROW($1:$88),ROW($1:$15)+15)+1,1)*10^ROW($1:$15)/10),REPT(0,MIN(MAX(COUNT(1/(MID(P32,ROW($1:$88),1)+1))-15,),15)))&TEXT(SUM(MID(0&P32,LARGE(ISNUMBER(-MID(P32,ROW($1:$88),1))*ROW($1:$88),ROW($1:$15))+1,1)*10^ROW($1:$15)/10),REPT(0,MIN(COUNT(1/(MID(P32,ROW($1:$88),1)+1)),15))) -> 0
A33: Область: | B33: =UPPER((P18)) ->  | C33: =IFERROR(ПоискСНачала(C32,"Телефон"),0) -> 0 | E33: =IFERROR(ПоискМежду(C32,"Телефон :","Примечание"),0) -> 0 | F33: =IFERROR(IF(LEFT(ПоискСКонца(C32,"Примечание : "),2)="г ",MID(ПоискСКонца(C32,"Примечание : "),3,99),IF(LEFT(ПоискСКонца(C32,"Примечание : "),3)="г. ",MID(ПоискСКонца(C32,"Примечание : "),4,99),IF(LEFT(ПоискСКонца(C32,"Примечание : "),3)="гор",MID(ПоискСКонца(C32,"Примечание : "),6,99),0))),0) -> 0 | P33: 0 | Q33: =TEXT(SUM(MID(0&P33,LARGE(ISNUMBER(-MID(P33,ROW($1:$88),1))*ROW($1:$88),ROW($1:$15)+15)+1,1)*10^ROW($1:$15)/10),REPT(0,MIN(MAX(COUNT(1/(MID(P33,ROW($1:$88),1)+1))-15,),15)))&TEXT(SUM(MID(0&P33,LARGE(ISNUMBER(-MID(P33,ROW($1:$88),1))*ROW($1:$88),ROW($1:$15))+1,1)*10^ROW($1:$15)/10),REPT(0,MIN(COUNT(1/(MID(P33,ROW($1:$88),1)+1)),15))) -> 0
A34: Город: | B34: Шымкент | P34: 0 | Q34: =TEXT(SUM(MID(0&P34,LARGE(ISNUMBER(-MID(P34,ROW($1:$88),1))*ROW($1:$88),ROW($1:$15)+15)+1,1)*10^ROW($1:$15)/10),REPT(0,MIN(MAX(COUNT(1/(MID(P34,ROW($1:$88),1)+1))-15,),15)))&TEXT(SUM(MID(0&P34,LARGE(ISNUMBER(-MID(P34,ROW($1:$88),1))*ROW($1:$88),ROW($1:$15))+1,1)*10^ROW($1:$15)/10),REPT(0,MIN(COUNT(1/(MID(P34,ROW($1:$88),1)+1)),15))) -> 0
A35: Улица: | B35: =UPPER((P20)) ->  | P35: 0 | Q35: =TEXT(SUM(MID(0&P35,LARGE(ISNUMBER(-MID(P35,ROW($1:$88),1))*ROW($1:$88),ROW($1:$15)+15)+1,1)*10^ROW($1:$15)/10),REPT(0,MIN(MAX(COUNT(1/(MID(P35,ROW($1:$88),1)+1))-15,),15)))&TEXT(SUM(MID(0&P35,LARGE(ISNUMBER(-MID(P35,ROW($1:$88),1))*ROW($1:$88),ROW($1:$15))+1,1)*10^ROW($1:$15)/10),REPT(0,MIN(COUNT(1/(MID(P35,ROW($1:$88),1)+1)),15))) -> 0
A36: Здание: | B36: =P21 ->  | P36: 0 | Q36: =TEXT(SUM(MID(0&P36,LARGE(ISNUMBER(-MID(P36,ROW($1:$88),1))*ROW($1:$88),ROW($1:$15)+15)+1,1)*10^ROW($1:$15)/10),REPT(0,MIN(MAX(COUNT(1/(MID(P36,ROW($1:$88),1)+1))-15,),15)))&TEXT(SUM(MID(0&P36,LARGE(ISNUMBER(-MID(P36,ROW($1:$88),1))*ROW($1:$88),ROW($1:$15))+1,1)*10^ROW($1:$15)/10),REPT(0,MIN(COUNT(1/(MID(P36,ROW($1:$88),1)+1)),15))) -> 0
A37: Квартира: | B37: =P22 ->  | P37: 0 | Q37: =TEXT(SUM(MID(0&P37,LARGE(ISNUMBER(-MID(P37,ROW($1:$88),1))*ROW($1:$88),ROW($1:$15)+15)+1,1)*10^ROW($1:$15)/10),REPT(0,MIN(MAX(COUNT(1/(MID(P37,ROW($1:$88),1)+1))-15,),15)))&TEXT(SUM(MID(0&P37,LARGE(ISNUMBER(-MID(P37,ROW($1:$88),1))*ROW($1:$88),ROW($1:$15))+1,1)*10^ROW($1:$15)/10),REPT(0,MIN(COUNT(1/(MID(P37,ROW($1:$88),1)+1)),15))) -> 0
A38: Телефон: | B38: =B4 -> 8-705-767-77-77 0---- ---- | P38: 0 | Q38: =TEXT(SUM(MID(0&P38,LARGE(ISNUMBER(-MID(P38,ROW($1:$88),1))*ROW($1:$88),ROW($1:$15)+15)+1,1)*10^ROW($1:$15)/10),REPT(0,MIN(MAX(COUNT(1/(MID(P38,ROW($1:$88),1)+1))-15,),15)))&TEXT(SUM(MID(0&P38,LARGE(ISNUMBER(-MID(P38,ROW($1:$88),1))*ROW($1:$88),ROW($1:$15))+1,1)*10^ROW($1:$15)/10),REPT(0,MIN(COUNT(1/(MID(P38,ROW($1:$88),1)+1)),15))) -> 0
A39: Индекс: | B39: =P16 ->  | Q39: =IF(LEFT(#REF!,4)="ваша",VALUE(MID(#REF!,13,20))*100,0) -> 
A40: Компания: | Q40: =IF(LEFT(#REF!,4)="ваша",VALUE(MID(#REF!,13,20))*100,0) -> 
A41: ИИН: | B41: =F29 -> 286720 | Q41: =IF(LEFT(#REF!,4)="ваша",VALUE(MID(#REF!,13,20))*100,0) -> 
A42: ------------------------ | B42: ---------------------------------------------------- | C42: ---------------------------------------------------- | D42: ------------------------ | E42: ------------------------ | F42: --------------------------- | G42: ------------------------------ | H42: ------------------------ | I42: ------------------------ | Q42: =SUM(Q19:Q41) -> 

Sheet +СЧЁТ Альфа-Банк+Сч0608_1++0
A1: =IF(LEFT(C29,2)="сп",P1&" ► СП",IF(E25=D26,P1,IF(H6<>0,P1&"++"&"0",IF(E25=D27,P1&"++"&"0",IF(E25=D28,P1&"++"&"0",IF(E25=D27,P1&"++"&"0",IF(E25=D28,P1&"++"&"0",IF(LEFT(C25,2)="AV",P1&"++"&F29,P1)))))))) -> +СЧЁТ Альфа-Банк+Сч0608_1++0 | B1: 2020-08-06 | C1: =IF(E2>0,"ОТПРАВЛЕНО",IF(LEFT(C29,3)="ЗАК","ЗАКАЗАНО в СПБ",IF(G24>=0,"ОПЛОЧЕНО","ОЖИДАНИЕ ОПЛАТЫ"))) -> ОТПРАВЛЕНО | D1: ='СПИСОК ЗАКАЗОВ'!B1 -> 21 | E1: 2020-08-07 | I1: =A1 -> +СЧЁТ Альфа-Банк+Сч0608_1++0 | K1: Сч0608_1 | P1: =IF(G24>0,"+"&H6&"+"&Q1,Q1) -> +СЧЁТ Альфа-Банк+Сч0608_1 | Q1: =ПоискСКонца(K1,"№") -> Сч0608_1
A2: Логин | B2: =L3 -> Логин | C2: Номер накл-ой | E2: 3611543 | K2: Примечание
A3: ФИО | B3: =IF(C32=0,UPPER((P9)),UPPER(C33)) -> ИП ОЛИМП СТАХАНОВА МАРИЯ | K3: Логин | L3: Логин
A4: Телефон | B4: =R12 -> 7-705-223-60-10 0---- ---- | E4: =IF(F4>0.5,"оплачено",IF(F4<0,"ОПЛАТИТЬ= "&G4,"ОПЛАТИТЬ= "&Q25)) -> ОПЛАТИТЬ= 1400 | F4: 0 | G4: 1100 | K4: Дата заказа | L4: дата заказа
A5: e-mail: | B5: =L11 -> -
A6: Вес | B6: ПРИМЕЧАНИЯ | C6: Наименование | D6: Кол-во | E6: Цена | F6: Всего | G6: =IF(MAX(G7:G25)>0,MAX(G7:G25),"") -> 2020-08-21 | H6: =IF(I7>0,"НАЛ",IF(I8>0,"ПЕРЕВОД",IF(I9>0,"Beeline",IF(I10>0,"KASPI",IF(I11>0,"QIWI",IF(I12>0,"СЧЁТ Альфа-Банк",0)))))) -> СЧЁТ Альфа-Банк | I6: =SUM(I7:I28) -> 8592
A7: =IF(L24>0,Q24*1/100,"") ->  | B7: списано | C7: Неодимовый магнит D10x2mm(Аксиал)`42 (сила притяжения 1,8 кг) | D7: 48 | E7: 54 | F7: =IF(D7<>"",E7*D7,"") -> 2592 | G7: =IF(I7 >0,TODAY(),"") ->  | H7: НАЛ | J7: =IFERROR(IFERROR(VLOOKUP(C7,#REF!,3,0)*D7,VLOOKUP(C7,#REF!,7,0)*D7),"нет веса") -> нет веса | K7: Заказ №2080
A8: =IF(L25>0,Q25*1/100,"") ->  | B8: списано | C8: Неодимовый магнит D10x5mm(Аксиал)`42 (сила притяжения 2,5 кг) | D8: 48 | E8: 112 | F8: 5376 | H8: ПЕРЕВОД | J8: =IFERROR(IFERROR(VLOOKUP(C8,#REF!,3,0)*D8,VLOOKUP(C8,#REF!,7,0)*D8),"нет веса") -> нет веса
A9: =IF(L26>0,Q26*1/100,"") ->  | C9: =IF(L28<>"",K28,"") ->  | D9: =IF(L28>0,L28,"") ->  | E9: =IF(M28="уточняйте",0,IF(L28>0,M28,"")) ->  | H9: Beeline | J9: =IFERROR(IFERROR(VLOOKUP(C9,#REF!,3,0)*D9,VLOOKUP(C9,#REF!,7,0)*D9),"нет веса") -> нет веса | K9: Здравствуйте, ИП Олимп Стаханова Мария | P9: =MID(K9,15,70) -> ИП Олимп Стаханова Мария | Q9: =TEXT(SUM(MID(0&L9,LARGE(ISNUMBER(-MID(L9,ROW($1:$96),1))*ROW($1:$96),ROW($1:$23)+15)+1,1)*10^ROW($1:$23)/10),REPT(0,MIN(MAX(COUNT(1/(MID(L9,ROW($1:$96),1)+1))-15,),15)))&TEXT(SUM(MID(0&L9,LARGE(ISNUMBER(-MID(L9,ROW($1:$96),1))*ROW($1:$96),ROW($1:$23))+1,1)*10^ROW($1:$23)/10),REPT(0,MIN(COUNT(1/(MID(L9,ROW($1:$96),1)+1)),15))) -> 
H10: KASPI | J10: =IFERROR(IFERROR(VLOOKUP(C10,#REF!,3,0)*D10,VLOOKUP(C10,#REF!,7,0)*D10),"нет веса") -> нет веса | K10: Мы получили Ваш заказ номер, 7638
H11: QIWI | J11: =IFERROR(IFERROR(VLOOKUP(C11,#REF!,3,0)*D11,VLOOKUP(C11,#REF!,7,0)*D11),"нет веса") -> нет веса | K11: Электронная почта | L11: -
G12: 2020-08-21 | H12: СЧЁТ Альфа-Банк | I12: =F29 -> 8592 | J12: =IFERROR(IFERROR(VLOOKUP(C12,#REF!,3,0)*D12,VLOOKUP(C12,#REF!,7,0)*D12),"нет веса") -> нет веса | K12: Контактный телефон | L12: 7-705-2236010 | P12: =(L12&" "&P13) -> 7-705-2236010 0 | Q12: =TEXT(SUM(MID(0&P12,LARGE(ISNUMBER(-MID(P12,ROW($1:$99),1))*ROW($1:$99),ROW($1:$15)+30)+1,1)*10^ROW($1:$15)/10),REPT(0,MIN(MAX(COUNT(1/(MID(P12,ROW($1:$99),1)+1))-30,),15)))&TEXT(SUM(MID(0&P12,LARGE(ISNUMBER(-MID(P12,ROW($1:$99),1))*ROW($1:$99),ROW($1:$15)+15)+1,1)*10^ROW($1:$15)/10),REPT(0,MIN(MAX(COUNT(1/(MID(P12,ROW($1:$99),1)+1))-15,),15)))&TEXT(SUM(MID(0&P12,LARGE(ISNUMBER(-MID(P12,ROW($1:$99),1))*ROW($1:$99),ROW($1:$15))+1,1)*10^ROW($1:$15)/10),REPT(0,MIN(COUNT(1/(MID(P12,ROW($1:$99),1)+1)),15))) -> 770522360100 | R12: =(MID(Q12,1,1))&"-"&(MID(Q12,2,3))&"-"&(MID(Q12,5,3))&"-"&(MID(Q12,8,2))&"-"&(MID(Q12,10,2))&" "&(MID(Q12,12,1))&"-"&(MID(Q12,13,3))&"-"&(MID(Q12,16,3))&"-"&(MID(Q12,19,2))&"-"&(MID(Q12,21,2))&" "&(MID(Q12,23,1))&"-"&(MID(Q12,24,3))&"-"&(MID(Q12,27,3))&"-"&(MID(Q12,30,2))&"-"&(MID(Q12,32,2)) -> 7-705-223-60-10 0---- ----
J13: =IFERROR(IFERROR(VLOOKUP(C13,#REF!,3,0)*D13,VLOOKUP(C13,#REF!,7,0)*D13),"нет веса") -> нет веса | P13: =IF(L13="-",IFERROR(НайтиСтрокуПоСлову("Комментарий",K27:K60),0),L13) -> 0
J14: =IFERROR(IFERROR(VLOOKUP(C14,#REF!,3,0)*D14,VLOOKUP(C14,#REF!,7,0)*D14),"нет веса") -> нет веса | K14: Доставка: | P14: =MID(L14,23,70) -> 
J15: =IFERROR(IFERROR(VLOOKUP(C15,#REF!,3,0)*D15,VLOOKUP(C15,#REF!,7,0)*D15),"нет веса") -> нет веса | K15: Оплата: | P15: =IF(LEFT(P14,2)="EX",MID(L15,11,70),L15) -> 0 | Q15: =TEXT(SUM(MID(0&P15,LARGE(ISNUMBER(-MID(P15,ROW($1:$88),1))*ROW($1:$88),ROW($1:$15)+15)+1,1)*10^ROW($1:$15)/10),REPT(0,MIN(MAX(COUNT(1/(MID(P15,ROW($1:$88),1)+1))-15,),15)))&TEXT(SUM(MID(0&P15,LARGE(ISNUMBER(-MID(P15,ROW($1:$88),1))*ROW($1:$88),ROW($1:$15))+1,1)*10^ROW($1:$15)/10),REPT(0,MIN(COUNT(1/(MID(P15,ROW($1:$88),1)+1)),15))) -> 0 | R15: =SUMPRODUCT(--SUBSTITUTE(Q15:Q15,CHAR(160),)) -> 0 | S15: =LEN(Q15) -> 1 | T15: =FLOOR(S15/3,1) -> 0
J16: =IFERROR(IFERROR(VLOOKUP(C16,#REF!,3,0)*D16,VLOOKUP(C16,#REF!,7,0)*D16),"нет веса") -> нет веса | K16: Адрес доставки | L16: Индекс: | P16: =MID(L16,9,70) -> 
J17: =IFERROR(IFERROR(VLOOKUP(C17,#REF!,3,0)*D17,VLOOKUP(C17,#REF!,7,0)*D17),"нет веса") -> нет веса | L17: Страна: | P17: =MID(L17,9,70) ->  | Q17: =IF(LEFT(K17,4)="ваша",VALUE(MID(K17,13,20))*100,0) -> 0
J18: =IFERROR(IFERROR(VLOOKUP(C18,#REF!,3,0)*D18,VLOOKUP(C18,#REF!,7,0)*D18),"нет веса") -> нет веса | L18: Область: | P18: =MID(L18,10,70) -> 
J19: =IFERROR(IFERROR(VLOOKUP(C19,#REF!,3,0)*D19,VLOOKUP(C19,#REF!,7,0)*D19),"нет веса") -> нет веса | L19: Город: | P19: =MID(L19,8,70) ->  | Q19: =IF(LEFT(K19,4)="ваша",VALUE(MID(K19,13,20))*100,0) -> 0
J20: =IFERROR(IFERROR(VLOOKUP(C20,#REF!,3,0)*D20,VLOOKUP(C20,#REF!,7,0)*D20),"нет веса") -> нет веса | L20: Улица: | P20: =MID(L20,8,70) ->  | Q20: =IF(LEFT(K31,4)="ваша",VALUE(MID(K31,13,20))*100,0) -> 0
J21: =IFERROR(IFERROR(VLOOKUP(C21,#REF!,3,0)*D21,VLOOKUP(C21,#REF!,7,0)*D21),"нет веса") -> нет веса | L21: Здание: | P21: =MID(L21,9,70) ->  | Q21: =IF(LEFT(K32,4)="ваша",VALUE(MID(K32,13,20))*100,0) -> 0
J22: =IFERROR(IFERROR(VLOOKUP(C22,#REF!,3,0)*D22,VLOOKUP(C22,#REF!,7,0)*D22),"нет веса") -> нет веса | L22: Квартира: | P22: =MID(L22,11,70) ->  | Q22: =IF(LEFT(#REF!,4)="ваша",VALUE(MID(#REF!,13,20))*100,0) -> 
E23: Итого: | F23: =SUM(F7:F22) -> 7968 | J23: =IF(K40>0,M40,"") ->  | K23: Наименование | L23: Количество | M23: Цена | N23: Вес | O23: Всего | Q23: =IF(LEFT(K33,4)="ваша",VALUE(MID(K33,13,20))*100,0) -> 0
A24: =IF(L41>0,N41,"") ->  | D24: скидка: | E24: 10 | F24: =F23-(F23*E24/100) -> 7171.2 | G24: =IFERROR(SUM(I7:I22)-F29+1,0) -> 1 | P24: =N24 -> 0 | Q24: =TEXT(SUM(MID(0&P24,LARGE(ISNUMBER(-MID(P24,ROW($1:$88),1))*ROW($1:$88),ROW($1:$15)+15)+1,1)*10^ROW($1:$15)/10),REPT(0,MIN(MAX(COUNT(1/(MID(P24,ROW($1:$88),1)+1))-15,),15)))&TEXT(SUM(MID(0&P24,LARGE(ISNUMBER(-MID(P24,ROW($1:$88),1))*ROW($1:$88),ROW($1:$15))+1,1)*10^ROW($1:$15)/10),REPT(0,MIN(COUNT(1/(MID(P24,ROW($1:$88),1)+1)),15))) -> 0
A25: =SUM(A7:A23)/1000*1.3 -> 0 | C25: =IF(E25=F26,"Доставка БЕСПЛАТНО",IF(E25=D26,C26,IF(E25=D27,C27,IF(E25=D28,C28,IF(E25=F27,C27&" + НПл",IF(E25=F28,C28&" + НПл","Укажите ТК")))))) -> AVIS EXPRESS Алматы | D25: 2 | E25: =D28 -> 1400 | G25: =IF(I25 >0,TODAY(),"") ->  | J25: =SUM(J7:J22)/1000 -> 0 | P25: =E25 -> 1400 | Q25: =TEXT(SUM(MID(0&P25,LARGE(ISNUMBER(-MID(P25,ROW($1:$88),1))*ROW($1:$88),ROW($1:$15)+15)+1,1)*10^ROW($1:$15)/10),REPT(0,MIN(MAX(COUNT(1/(MID(P25,ROW($1:$88),1)+1))-15,),15)))&TEXT(SUM(MID(0&P25,LARGE(ISNUMBER(-MID(P25,ROW($1:$88),1))*ROW($1:$88),ROW($1:$15))+1,1)*10^ROW($1:$15)/10),REPT(0,MIN(COUNT(1/(MID(P25,ROW($1:$88),1)+1)),15))) -> 1400 | R25: =E25 -> 1400 | S25: =TEXT(SUM(MID(0&R25,LARGE(ISNUMBER(-MID(R25,ROW($1:$88),1))*ROW($1:$88),ROW($1:$15)+15)+1,1)*10^ROW($1:$15)/10),REPT(0,MIN(MAX(COUNT(1/(MID(R25,ROW($1:$88),1)+1))-15,),15)))&TEXT(SUM(MID(0&R25,LARGE(ISNUMBER(-MID(R25,ROW($1:$88),1))*ROW($1:$88),ROW($1:$15))+1,1)*10^ROW($1:$15)/10),REPT(0,MIN(COUNT(1/(MID(R25,ROW($1:$88),1)+1)),15))) -> 1400 | U25: =TEXT(SUM(MID(0&E25,LARGE(ISNUMBER(-MID(E25,ROW($1:$88),1))*ROW($1:$88),ROW($1:$15)+15)+1,1)*10^ROW($1:$15)/10),REPT(0,MIN(MAX(COUNT(1/(MID(E25,ROW($1:$88),1)+1))-15,),15)))&TEXT(SUM(MID(0&E25,LARGE(ISNUMBER(-MID(E25,ROW($1:$88),1))*ROW($1:$88),ROW($1:$15))+1,1)*10^ROW($1:$15)/10),REPT(0,MIN(COUNT(1/(MID(E25,ROW($1:$88),1)+1)),15))) -> 
C26: =IFERROR("AVIS С А М О В Ы В О З "&" "&VLOOKUP((LEFT(B34,(LEN(B34)))),'ТАРИФЫ ТК'!J17:L268,1,0),"НЕТ ДОСТАВКИ") -> AVIS С А М О В Ы В О З Алматы | D26: =IFERROR(VLOOKUP((LEFT(B34,(LEN(B34)))),'ТАРИФЫ ТК'!J17:L268,3,0)+0.001,"НЕТ ДОСТАВКИ") -> 1550.001 | E26: =IFERROR(F24+D26,"НЕТ ДОСТАВКИ") -> 8721.201 | F26: =IFERROR(D26&" + НПл","НЕТ ДОСТАВКИ") -> 1550,001 + НПл | G26: =IFERROR(CEILING((F24+D26)*(1+$D$25/100),50),0) -> 8900 | P26: =N26 -> 0 | Q26: =TEXT(SUM(MID(0&P26,LARGE(ISNUMBER(-MID(P26,ROW($1:$88),1))*ROW($1:$88),ROW($1:$15)+15)+1,1)*10^ROW($1:$15)/10),REPT(0,MIN(MAX(COUNT(1/(MID(P26,ROW($1:$88),1)+1))-15,),15)))&TEXT(SUM(MID(0&P26,LARGE(ISNUMBER(-MID(P26,ROW($1:$88),1))*ROW($1:$88),ROW($1:$15))+1,1)*10^ROW($1:$15)/10),REPT(0,MIN(COUNT(1/(MID(P26,ROW($1:$88),1)+1)),15))) -> 0
C27: =IFERROR("AVIS Econom"&" "&VLOOKUP((LEFT(B34,(LEN(B34)))),'ТАРИФЫ ТК'!A4:A134,1,0),"НЕТ ДОСТАВКИ") -> AVIS Econom Алматы | D27: =IFERROR(VLOOKUP((LEFT(B34,(LEN(B34)))),'ТАРИФЫ ТК'!A4:C134,3,0),"НЕТ ДОСТАВКИ") -> 1300 | E27: =IFERROR(F24+D27,"НЕТ ДОСТАВКИ") -> 8471.2 | F27: =IFERROR(D27&" + НПл","НЕТ ДОСТАВКИ") -> 1300 + НПл | G27: =IFERROR(CEILING((F24+D27)*(1+$D$25/100),50),0) -> 8650 | P27: 0 | Q27: =TEXT(SUM(MID(0&P27,LARGE(ISNUMBER(-MID(P27,ROW($1:$88),1))*ROW($1:$88),ROW($1:$15)+15)+1,1)*10^ROW($1:$15)/10),REPT(0,MIN(MAX(COUNT(1/(MID(P27,ROW($1:$88),1)+1))-15,),15)))&TEXT(SUM(MID(0&P27,LARGE(ISNUMBER(-MID(P27,ROW($1:$88),1))*ROW($1:$88),ROW($1:$15))+1,1)*10^ROW($1:$15)/10),REPT(0,MIN(COUNT(1/(MID(P27,ROW($1:$88),1)+1)),15))) -> 0
C28: =IFERROR(IF(A29<1,"AVIS EXPRESS"&" "&VLOOKUP((LEFT(B34,(LEN(B34)))),'ТАРИФЫ ТК'!E4:G20,1,0),"AV ВИМАНИЕ: В Е С П О С Ы Л К И Б О Л Ь Ш Е 0,5 КГ !!!"),"НЕТ ДОСТАВКИ") -> AVIS EXPRESS Алматы | D28: =IFERROR(VLOOKUP((LEFT(B34,(LEN(B34)))),'ТАРИФЫ ТК'!E4:G20,3,0),"НЕТ ДОСТАВКИ") -> 1400 | E28: =IFERROR(F24+D28,"НЕТ ДОСТАВКИ") -> 8571.2 | F28: =D28&" + НПл" -> 1400 + НПл | G28: =IFERROR(CEILING((F24+D28)*(1+$D$25/100),50),"НЕТ ДОСТАВКИ") -> 8750 | P28: 0 | Q28: =TEXT(SUM(MID(0&P28,LARGE(ISNUMBER(-MID(P28,ROW($1:$88),1))*ROW($1:$88),ROW($1:$15)+15)+1,1)*10^ROW($1:$15)/10),REPT(0,MIN(MAX(COUNT(1/(MID(P28,ROW($1:$88),1)+1))-15,),15)))&TEXT(SUM(MID(0&P28,LARGE(ISNUMBER(-MID(P28,ROW($1:$88),1))*ROW($1:$88),ROW($1:$15))+1,1)*10^ROW($1:$15)/10),REPT(0,MIN(COUNT(1/(MID(P28,ROW($1:$88),1)+1)),15))) -> 0
A29: =IFERROR(A25*1.5,"Количество ??") -> 0 | D29: К ОПЛАТЕ: | E29: =IFERROR(F24+E25,0) -> 8571.2 | F29: 8592 | G29: =IFERROR(CEILING((F24+E25)*1.03,50),0) -> 8850 | J29: =IFERROR(J25*1.5,"Количество ??") -> 0 | P29: 0 | Q29: =TEXT(SUM(MID(0&P29,LARGE(ISNUMBER(-MID(P29,ROW($1:$88),1))*ROW($1:$88),ROW($1:$15)+15)+1,1)*10^ROW($1:$15)/10),REPT(0,MIN(MAX(COUNT(1/(MID(P29,ROW($1:$88),1)+1))-15,),15)))&TEXT(SUM(MID(0&P29,LARGE(ISNUMBER(-MID(P29,ROW($1:$88),1))*ROW($1:$88),ROW($1:$15))+1,1)*10^ROW($1:$15)/10),REPT(0,MIN(COUNT(1/(MID(P29,ROW($1:$88),1)+1)),15))) -> 0
A30: rc11091kz | C30: =IFERROR((P14&" "&LEFT(P15,8)&" = "&TEXT(R15,"### ### ###")&" т."),"НЕТ ДОСТАВКИ") -> 0 = т. | E30: =IFERROR("QIWI = "&CEILING((E26*1.02),10),0) -> QIWI = 8900 | F30: =IFERROR(F29-F24,"УКАЖИТЕ ТК") -> 1420.8 | P30: 0 | Q30: =TEXT(SUM(MID(0&P30,LARGE(ISNUMBER(-MID(P30,ROW($1:$88),1))*ROW($1:$88),ROW($1:$15)+15)+1,1)*10^ROW($1:$15)/10),REPT(0,MIN(MAX(COUNT(1/(MID(P30,ROW($1:$88),1)+1))-15,),15)))&TEXT(SUM(MID(0&P30,LARGE(ISNUMBER(-MID(P30,ROW($1:$88),1))*ROW($1:$88),ROW($1:$15))+1,1)*10^ROW($1:$15)/10),REPT(0,MIN(COUNT(1/(MID(P30,ROW($1:$88),1)+1)),15))) -> 0
A31: =A1 -> +СЧЁТ Альфа-Банк+Сч0608_1++0 | B31: ПОЛУЧАТЕЛЬ: | C31: rc11091kz | P31: 0 | Q31: =TEXT(SUM(MID(0&P31,LARGE(ISNUMBER(-MID(P31,ROW($1:$88),1))*ROW($1:$88),ROW($1:$15)+15)+1,1)*10^ROW($1:$15)/10),REPT(0,MIN(MAX(COUNT(1/(MID(P31,ROW($1:$88),1)+1))-15,),15)))&TEXT(SUM(MID(0&P31,LARGE(ISNUMBER(-MID(P31,ROW($1:$88),1))*ROW($1:$88),ROW($1:$15))+1,1)*10^ROW($1:$15)/10),REPT(0,MIN(COUNT(1/(MID(P31,ROW($1:$88),1)+1)),15))) -> 0
A32: =UPPER((B3)) -> ИП ОЛИМП СТАХАНОВА МАРИЯ | C32: =IFERROR(MID(НайтиСтрокуПоСлову("Комментарий: Имя :",K1:K45),20,99),0) -> 0 | P32: 0 | Q32: =TEXT(SUM(MID(0&P32,LARGE(ISNUMBER(-MID(P32,ROW($1:$88),1))*ROW($1:$88),ROW($1:$15)+15)+1,1)*10^ROW($1:$15)/10),REPT(0,MIN(MAX(COUNT(1/(MID(P32,ROW($1:$88),1)+1))-15,),15)))&TEXT(SUM(MID(0&P32,LARGE(ISNUMBER(-MID(P32,ROW($1:$88),1))*ROW($1:$88),ROW($1:$15))+1,1)*10^ROW($1:$15)/10),REPT(0,MIN(COUNT(1/(MID(P32,ROW($1:$88),1)+1)),15))) -> 0
A33: Область: | B33: =UPPER((P18)) ->  | C33: =IFERROR(ПоискСНачала(C32,"Телефон"),0) -> 0 | E33: =IFERROR(ПоискМежду(C32,"Телефон :","Примечание"),0) -> 0 | F33: =IFERROR(IF(LEFT(ПоискСКонца(C32,"Примечание : "),2)="г ",MID(ПоискСКонца(C32,"Примечание : "),3,99),IF(LEFT(ПоискСКонца(C32,"Примечание : "),3)="г. ",MID(ПоискСКонца(C32,"Примечание : "),4,99),IF(LEFT(ПоискСКонца(C32,"Примечание : "),3)="гор",MID(ПоискСКонца(C32,"Примечание : "),6,99),0))),0) -> 0 | P33: 0 | Q33: =TEXT(SUM(MID(0&P33,LARGE(ISNUMBER(-MID(P33,ROW($1:$88),1))*ROW($1:$88),ROW($1:$15)+15)+1,1)*10^ROW($1:$15)/10),REPT(0,MIN(MAX(COUNT(1/(MID(P33,ROW($1:$88),1)+1))-15,),15)))&TEXT(SUM(MID(0&P33,LARGE(ISNUMBER(-MID(P33,ROW($1:$88),1))*ROW($1:$88),ROW($1:$15))+1,1)*10^ROW($1:$15)/10),REPT(0,MIN(COUNT(1/(MID(P33,ROW($1:$88),1)+1)),15))) -> 0
A34: Город: | B34: Алматы | P34: 0 | Q34: =TEXT(SUM(MID(0&P34,LARGE(ISNUMBER(-MID(P34,ROW($1:$88),1))*ROW($1:$88),ROW($1:$15)+15)+1,1)*10^ROW($1:$15)/10),REPT(0,MIN(MAX(COUNT(1/(MID(P34,ROW($1:$88),1)+1))-15,),15)))&TEXT(SUM(MID(0&P34,LARGE(ISNUMBER(-MID(P34,ROW($1:$88),1))*ROW($1:$88),ROW($1:$15))+1,1)*10^ROW($1:$15)/10),REPT(0,MIN(COUNT(1/(MID(P34,ROW($1:$88),1)+1)),15))) -> 0
A35: Улица: | B35: Тимирязва | P35: 0 | Q35: =TEXT(SUM(MID(0&P35,LARGE(ISNUMBER(-MID(P35,ROW($1:$88),1))*ROW($1:$88),ROW($1:$15)+15)+1,1)*10^ROW($1:$15)/10),REPT(0,MIN(MAX(COUNT(1/(MID(P35,ROW($1:$88),1)+1))-15,),15)))&TEXT(SUM(MID(0&P35,LARGE(ISNUMBER(-MID(P35,ROW($1:$88),1))*ROW($1:$88),ROW($1:$15))+1,1)*10^ROW($1:$15)/10),REPT(0,MIN(COUNT(1/(MID(P35,ROW($1:$88),1)+1)),15))) -> 0
A36: Здание: | B36: 58 | P36: 0 | Q36: =TEXT(SUM(MID(0&P36,LARGE(ISNUMBER(-MID(P36,ROW($1:$88),1))*ROW($1:$88),ROW($1:$15)+15)+1,1)*10^ROW($1:$15)/10),REPT(0,MIN(MAX(COUNT(1/(MID(P36,ROW($1:$88),1)+1))-15,),15)))&TEXT(SUM(MID(0&P36,LARGE(ISNUMBER(-MID(P36,ROW($1:$88),1))*ROW($1:$88),ROW($1:$15))+1,1)*10^ROW($1:$15)/10),REPT(0,MIN(COUNT(1/(MID(P36,ROW($1:$88),1)+1)),15))) -> 0
A37: Квартира: | B37: 36 | P37: 0 | Q37: =TEXT(SUM(MID(0&P37,LARGE(ISNUMBER(-MID(P37,ROW($1:$88),1))*ROW($1:$88),ROW($1:$15)+15)+1,1)*10^ROW($1:$15)/10),REPT(0,MIN(MAX(COUNT(1/(MID(P37,ROW($1:$88),1)+1))-15,),15)))&TEXT(SUM(MID(0&P37,LARGE(ISNUMBER(-MID(P37,ROW($1:$88),1))*ROW($1:$88),ROW($1:$15))+1,1)*10^ROW($1:$15)/10),REPT(0,MIN(COUNT(1/(MID(P37,ROW($1:$88),1)+1)),15))) -> 0
A38: Телефон: | B38: =B4 -> 7-705-223-60-10 0---- ---- | P38: 0 | Q38: =TEXT(SUM(MID(0&P38,LARGE(ISNUMBER(-MID(P38,ROW($1:$88),1))*ROW($1:$88),ROW($1:$15)+15)+1,1)*10^ROW($1:$15)/10),REPT(0,MIN(MAX(COUNT(1/(MID(P38,ROW($1:$88),1)+1))-15,),15)))&TEXT(SUM(MID(0&P38,LARGE(ISNUMBER(-MID(P38,ROW($1:$88),1))*ROW($1:$88),ROW($1:$15))+1,1)*10^ROW($1:$15)/10),REPT(0,MIN(COUNT(1/(MID(P38,ROW($1:$88),1)+1)),15))) -> 0
A39: Индекс: | B39: =P16 ->  | Q39: =IF(LEFT(#REF!,4)="ваша",VALUE(MID(#REF!,13,20))*100,0) -> 
A40: Компания: | Q40: =IF(LEFT(#REF!,4)="ваша",VALUE(MID(#REF!,13,20))*100,0) -> 
A41: ИИН: | B41: =F29 -> 8592 | Q41: =IF(LEFT(#REF!,4)="ваша",VALUE(MID(#REF!,13,20))*100,0) -> 
A42: ------------------------ | B42: ---------------------------------------------------- | C42: ---------------------------------------------------- | D42: ------------------------ | E42: ------------------------ | F42: --------------------------- | G42: ------------------------------ | H42: ------------------------ | I42: ------------------------ | Q42: =SUM(Q19:Q41) -> 

Sheet +KASPI+ 9630++0
A1: =IF(LEFT(C29,2)="сп",P1&" ► СП",IF(E25=D26,P1,IF(H6<>0,P1&"++"&"0",IF(E25=D27,P1&"++"&"0",IF(E25=D28,P1&"++"&"0",IF(E25=D27,P1&"++"&"0",IF(E25=D28,P1&"++"&"0",IF(LEFT(C25,2)="AV",P1&"++"&F29,P1)))))))) -> +KASPI+ 9630++0 | B1: =L4 -> 2020-08-06T07:08:52 | C1: =IF(E2>0,"ОТПРАВЛЕНО",IF(LEFT(C29,3)="ЗАК","ЗАКАЗАНО в СПБ",IF(G24>=0,"ОПЛОЧЕНО","ОЖИДАНИЕ ОПЛАТЫ"))) -> ОТПРАВЛЕНО | D1: ='СПИСОК ЗАКАЗОВ'!B1 -> 21 | E1: 2020-08-06 | I1: =A1 -> +KASPI+ 9630++0 | K1: Заказ № 9630 | P1: =IF(G24>0,"+"&H6&"+"&Q1,Q1) -> +KASPI+ 9630 | Q1: =ПоискСКонца(K1,"№") -> 9630
A2: Логин | B2: =L3 -> asc_84@mail.ru | C2: Номер накл-ой | E2: 3611541 | K2: Примечание
A3: ФИО | B3: =IF(C32=0,UPPER((P9)),UPPER(C33)) -> ШЕЛОМЕНЦЕВ АНТОН | K3: Логин | L3: asc_84@mail.ru
A4: Телефон | B4: =R12 -> 8-707-998-85-08 8-777-602-92-11 ---- | E4: =IF(F4>0.5,"оплачено",IF(F4<0,"ОПЛАТИТЬ= "&G4,"ОПЛАТИТЬ= "&Q25)) -> ОПЛАТИТЬ= 1400 | F4: 0 | G4: 1100 | K4: Дата заказа | L4: 2020-08-06T07:08:52
A5: e-mail: | B5: =L11 -> asc_84@mail.ru
A6: Вес | B6: ПРИМЕЧАНИЯ | C6: Наименование | D6: Кол-во | E6: Цена | F6: Всего | G6: =IF(MAX(G7:G25)>0,MAX(G7:G25),"") -> 2020-08-21 | H6: =IF(I7>0,"НАЛ",IF(I8>0,"ПЕРЕВОД",IF(I9>0,"Beeline",IF(I10>0,"KASPI",IF(I11>0,"QIWI",IF(I12>0,"СЧЁТ Альфа-Банк",0)))))) -> KASPI | I6: =SUM(I7:I28) -> 5600
A7: =IF(L24>0,Q24*1/100,"") ->  | C7: =IF(L26<>"",K26,"") ->  | D7: =IF(L26>0,L26,"") ->  | E7: =IF(M26="уточняйте",0,IF(L26>0,M26,"")) ->  | F7: =IF(D7<>"",E7*D7,"") ->  | G7: =IF(I7 >0,TODAY(),"") ->  | H7: НАЛ | J7: =IFERROR(IFERROR(VLOOKUP(C7,#REF!,3,0)*D7,VLOOKUP(C7,#REF!,7,0)*D7),"нет веса") -> нет веса | K7: Заказ №9630
A8: =IF(L25>0,Q25*1/100,"") ->  | H8: ПЕРЕВОД | J8: =IFERROR(IFERROR(VLOOKUP(C8,#REF!,3,0)*D8,VLOOKUP(C8,#REF!,7,0)*D8),"нет веса") -> нет веса
A9: =IF(L26>0,Q26*1/100,"") ->  | B9: списано | C9: =IF(L28<>"",K28,"") -> Неодимовый магнит D8x2mm(Аксиал)`42 (сила притяжения 1,4 кг) | D9: =IF(L28>0,L28,"") -> 100 | E9: =IF(M28="уточняйте",0,IF(L28>0,M28,"")) -> 42 | F9: 4200 | H9: Beeline | J9: =IFERROR(IFERROR(VLOOKUP(C9,#REF!,3,0)*D9,VLOOKUP(C9,#REF!,7,0)*D9),"нет веса") -> нет веса | K9: Здравствуйте, Шеломенцев Антон | P9: =MID(K9,15,70) -> Шеломенцев Антон | Q9: =TEXT(SUM(MID(0&L9,LARGE(ISNUMBER(-MID(L9,ROW($1:$96),1))*ROW($1:$96),ROW($1:$23)+15)+1,1)*10^ROW($1:$23)/10),REPT(0,MIN(MAX(COUNT(1/(MID(L9,ROW($1:$96),1)+1))-15,),15)))&TEXT(SUM(MID(0&L9,LARGE(ISNUMBER(-MID(L9,ROW($1:$96),1))*ROW($1:$96),ROW($1:$23))+1,1)*10^ROW($1:$23)/10),REPT(0,MIN(COUNT(1/(MID(L9,ROW($1:$96),1)+1)),15))) -> 
G10: 2020-08-21 | H10: KASPI | I10: =F29 -> 5600 | J10: =IFERROR(IFERROR(VLOOKUP(C10,#REF!,3,0)*D10,VLOOKUP(C10,#REF!,7,0)*D10),"нет веса") -> нет веса | K10: Мы получили Ваш заказ номер 9630
H11: QIWI | J11: =IFERROR(IFERROR(VLOOKUP(C11,#REF!,3,0)*D11,VLOOKUP(C11,#REF!,7,0)*D11),"нет веса") -> нет веса | K11: Электронная почта | L11: asc_84@mail.ru
H12: СЧЁТ Альфа-Банк | J12: =IFERROR(IFERROR(VLOOKUP(C12,#REF!,3,0)*D12,VLOOKUP(C12,#REF!,7,0)*D12),"нет веса") -> нет веса | K12: Контактный телефон | L12: 87079988508 | P12: =(L12&" "&P13) -> 87079988508 87776029211 | Q12: =TEXT(SUM(MID(0&P12,LARGE(ISNUMBER(-MID(P12,ROW($1:$99),1))*ROW($1:$99),ROW($1:$15)+30)+1,1)*10^ROW($1:$15)/10),REPT(0,MIN(MAX(COUNT(1/(MID(P12,ROW($1:$99),1)+1))-30,),15)))&TEXT(SUM(MID(0&P12,LARGE(ISNUMBER(-MID(P12,ROW($1:$99),1))*ROW($1:$99),ROW($1:$15)+15)+1,1)*10^ROW($1:$15)/10),REPT(0,MIN(MAX(COUNT(1/(MID(P12,ROW($1:$99),1)+1))-15,),15)))&TEXT(SUM(MID(0&P12,LARGE(ISNUMBER(-MID(P12,ROW($1:$99),1))*ROW($1:$99),ROW($1:$15))+1,1)*10^ROW($1:$15)/10),REPT(0,MIN(COUNT(1/(MID(P12,ROW($1:$99),1)+1)),15))) -> 8707998850887776029211 | R12: =(MID(Q12,1,1))&"-"&(MID(Q12,2,3))&"-"&(MID(Q12,5,3))&"-"&(MID(Q12,8,2))&"-"&(MID(Q12,10,2))&" "&(MID(Q12,12,1))&"-"&(MID(Q12,13,3))&"-"&(MID(Q12,16,3))&"-"&(MID(Q12,19,2))&"-"&(MID(Q12,21,2))&" "&(MID(Q12,23,1))&"-"&(MID(Q12,24,3))&"-"&(MID(Q12,27,3))&"-"&(MID(Q12,30,2))&"-"&(MID(Q12,32,2)) -> 8-707-998-85-08 8-777-602-92-11 ----
J13: =IFERROR(IFERROR(VLOOKUP(C13,#REF!,3,0)*D13,VLOOKUP(C13,#REF!,7,0)*D13),"нет веса") -> нет веса | L13: 87776029211 | P13: =IF(L13="-",IFERROR(НайтиСтрокуПоСлову("Комментарий",K27:K60),0),L13) -> 87776029211
J14: =IFERROR(IFERROR(VLOOKUP(C14,#REF!,3,0)*D14,VLOOKUP(C14,#REF!,7,0)*D14),"нет веса") -> нет веса | K14: Оплата: | L14: Предоплата банковской картой | P14: =MID(L14,23,70) -> картой
J15: =IFERROR(IFERROR(VLOOKUP(C15,#REF!,3,0)*D15,VLOOKUP(C15,#REF!,7,0)*D15),"нет веса") -> нет веса | K15: Доставка: | L15: EMS KAZPOST | P15: =IF(LEFT(P14,2)="EX",MID(L15,11,70),L15) -> EMS KAZPOST | Q15: =TEXT(SUM(MID(0&P15,LARGE(ISNUMBER(-MID(P15,ROW($1:$88),1))*ROW($1:$88),ROW($1:$15)+15)+1,1)*10^ROW($1:$15)/10),REPT(0,MIN(MAX(COUNT(1/(MID(P15,ROW($1:$88),1)+1))-15,),15)))&TEXT(SUM(MID(0&P15,LARGE(ISNUMBER(-MID(P15,ROW($1:$88),1))*ROW($1:$88),ROW($1:$15))+1,1)*10^ROW($1:$15)/10),REPT(0,MIN(COUNT(1/(MID(P15,ROW($1:$88),1)+1)),15))) ->  | R15: =SUMPRODUCT(--SUBSTITUTE(Q15:Q15,CHAR(160),)) ->  | S15: =LEN(Q15) -> 0 | T15: =FLOOR(S15/3,1) -> 0
J16: =IFERROR(IFERROR(VLOOKUP(C16,#REF!,3,0)*D16,VLOOKUP(C16,#REF!,7,0)*D16),"нет веса") -> нет веса | K16: Адрес доставки | L16: Индекс: | P16: =MID(L16,9,70) -> 
J17: =IFERROR(IFERROR(VLOOKUP(C17,#REF!,3,0)*D17,VLOOKUP(C17,#REF!,7,0)*D17),"нет веса") -> нет веса | L17: Страна: Казахстан | P17: =MID(L17,9,70) -> Казахстан | Q17: =IF(LEFT(K17,4)="ваша",VALUE(MID(K17,13,20))*100,0) -> 0
J18: =IFERROR(IFERROR(VLOOKUP(C18,#REF!,3,0)*D18,VLOOKUP(C18,#REF!,7,0)*D18),"нет веса") -> нет веса | L18: Область: Алматинская | P18: =MID(L18,10,70) -> Алматинская
J19: =IFERROR(IFERROR(VLOOKUP(C19,#REF!,3,0)*D19,VLOOKUP(C19,#REF!,7,0)*D19),"нет веса") -> нет веса | L19: Город: Алматы | P19: =MID(L19,8,70) -> Алматы | Q19: =IF(LEFT(K19,4)="ваша",VALUE(MID(K19,13,20))*100,0) -> 0
J20: =IFERROR(IFERROR(VLOOKUP(C20,#REF!,3,0)*D20,VLOOKUP(C20,#REF!,7,0)*D20),"нет веса") -> нет веса | L20: Улица: Толе-би | P20: =MID(L20,8,70) -> Толе-би | Q20: =IF(LEFT(K31,4)="ваша",VALUE(MID(K31,13,20))*100,0) -> 0
J21: =IFERROR(IFERROR(VLOOKUP(C21,#REF!,3,0)*D21,VLOOKUP(C21,#REF!,7,0)*D21),"нет веса") -> нет веса | L21: Здание: 156 | P21: =MID(L21,9,70) -> 156 | Q21: =IF(LEFT(K32,4)="ваша",VALUE(MID(K32,13,20))*100,0) -> 0
J22: =IFERROR(IFERROR(VLOOKUP(C22,#REF!,3,0)*D22,VLOOKUP(C22,#REF!,7,0)*D22),"нет веса") -> нет веса | L22: Квартира: 8 | P22: =MID(L22,11,70) -> 8 | Q22: =IF(LEFT(#REF!,4)="ваша",VALUE(MID(#REF!,13,20))*100,0) -> 
E23: Итого: | F23: =SUM(F7:F22) -> 4200 | J23: =IF(K40>0,M40,"") ->  | K23: Комментарий: Магнит, 100 шт. | Q23: =IF(LEFT(K33,4)="ваша",VALUE(MID(K33,13,20))*100,0) -> 0
A24: =IF(L41>0,N41,"") ->  | D24: скидка: | E24: =IF(F23>150000,10,IF(F23>100000,8,IF(F23>60000,5,IF(F23>30000,3,0)))) -> 0 | F24: =F23-(F23*E24/100) -> 4200 | G24: =IFERROR(SUM(I7:I22)-F29+1,0) -> 1 | P24: =N24 -> 0 | Q24: =TEXT(SUM(MID(0&P24,LARGE(ISNUMBER(-MID(P24,ROW($1:$88),1))*ROW($1:$88),ROW($1:$15)+15)+1,1)*10^ROW($1:$15)/10),REPT(0,MIN(MAX(COUNT(1/(MID(P24,ROW($1:$88),1)+1))-15,),15)))&TEXT(SUM(MID(0&P24,LARGE(ISNUMBER(-MID(P24,ROW($1:$88),1))*ROW($1:$88),ROW($1:$15))+1,1)*10^ROW($1:$15)/10),REPT(0,MIN(COUNT(1/(MID(P24,ROW($1:$88),1)+1)),15))) -> 0
